Workbook

Sheet Flow
A1: Equivalent hydraulic conductivity calculation (for the deposited restoration materials)
J2: Key | L2: INPUT CELL (other cells are calculated)
A3: Equivalent hydraulic conductivity perpendicular to the stratification (Domenico & Schwartz, 1998):
D5: Where: | E5: Kx is the equiavalent hydraulic conductivity for the layered system (m/s)
E6: mi is the thickness if the layer (m)
E7: Ki is the homogeneous conductivity for individual layers (m/s)
A9: Parameter | D9: Symbol | E9: Value | F9: Units | G9: Comments
A10: Layer 1: attenuation layer | D10: K1 | E10: 1e-07 | F10: m/s | G10: K = hydraulic conductivity
A11: Layer 1: attenuation layer | D11: m1 | E11: 1 | F11: m | G11: Attenuation layer thickness
A12: Layer 2: attenuation layer | D12: K2 | E12: 1e-07 | F12: m/s
A13: Layer 2: attenuation layer | D13: m2 | E13: 538 | F13: m | G13: It is assumed that the bulk K of the deposited waste is similar to the K of the attenuation layer.
A14: Layer 3: attenuation layer | D14: K3 | E14: 1e-07 | F14: m/s
A15: Layer 3: attenuation layer | D15: m3 | E15: =E11 -> 1 | F15: m
A16: Equivalent horizontal conductivity | D16: Kx | E16: =(E11+E13+E15)/((E11/E10)+(E13/E12)+(E15/E14)) -> 1e-07 | F16: m/s | G16: Based on the method in Domenico & Schwartz (1998).
A19: Discharge at the DOWN hydraulic gradient edge of the deposited restoration materials
A21: Based on the modified form of the Dupuit equation for steady unsaturated flow subject to infiltration or evaporation (Fetter, 2001):
E23: Where: | F23: q'x is the flow per unit width at x (m2/s)
F24: x is the distance from the origin (the up hydraulic gradient edge of the deposit) (m)
F25: K is the hydraulic conductivity (m/s)
F26: h1 is the head at the origin (m)
F27: h2 is the head at L (m)
F28: L is the distance from the origin at the point where h2 is measured (m)
F29: ω is the recharge rate (m/s)
A44: It is assumed that:
B45: 1. the hydraulic gradient is equal to the slope of the water table
B46: 2. the streamlines are horizontal and the equipotential lines are vertical
A48: Parameter | D48: Symbol | E48: Value | F48: Units | G48: Comments
A49: Distance from origin | D49: x | E49: =E53 -> 540 | F49: m | G49: Origin is assumed as the up hydraulic edge of the deposited restoration material (external to attenuation layer).
A50: Hydraulic conductivity | D50: Kx | E50: =E16 -> 1e-07 | F50: m/s | G50: Equivalent horizontal hydraulic conductivity through restoration materials and any attenuation layers.
A51: Head at the origin | D51: h1 | E51: 2.45 | F51: m | G51: Head at up hydraulic gradient edge of deposited restoration material relative to base of deposited restoration material.
A52: Head at L | D52: h2 | E52: 2.28 | F52: m | G52: Head at down hydraulic gradient edge of deposited restoration material.
A53: Distance from origin to h2 | D53: L | E53: =E11+E13+E15 -> 540 | F53: m | G53: If x = L the flow calculated is that at the down hydraulic gradient boundary.
A54: Recharge rate CALCULATED | E54: =(51.8/1000)/(60*60*24*365) -> 1.642567225e-09 | F54: m/s
A55: Recharge rate ADJUSTED | E55: =E128 -> 4.647418897e-12 | F55: m/s | G55: See under the heading Location of the water table divide (used to calibrate infiltration) below.
A56: Recharge to use? | E56: ADJUSTED | G56: Specify which recharge rate to use in the calculations.
A57: Recharge rate | D57: ω | E57: =IF(E56="CALCULATED",E54,IF(E56="ADJUSTED",E55,"ERROR")) -> 4.647418897e-12 | F57: m/s | G57: Calculated recharge converted to m/s.
A58: Recharge rate | D58: ω | E58: =(E57*1*1)*(60*60*24*365) -> 0.0001465610023 | F58: m3/m2/year
A59: Recharge rate | D59: ω | E59: =E58*1000 -> 0.1465610023 | F59: mm/year
A60: Recharge | D60: Q | E60: =E58*E49 -> 0.07914294127 | F60: m3/year | G60: Calculated for comparative purposes assuming unit width and a length parallel to flow of L.
A61: Discharge per unit width | D61: q'x | E61: =((E50*(E51^2-E52^2))/(2*E53))-(E57*((E53/2)-E49)) -> 1.329256806e-09 | F61: m2/s | G61: Based on the method presented in Fetter (2001). | AC61: CALCULATED
A62: Width | D62: y | E62: 1 | F62: m | AC62: ADJUSTED
A63: Flow | D63: Q | E63: =E61*E62 -> 1.329256806e-09 | F63: m3/s
A64: Flow | D64: Q | E64: =E63*60*60*24 -> 0.000114847788 | F64: m3/day
A65: Flow | D65: Q | E65: =E64*365.25 -> 0.04194815458 | F65: m3/year | G65: Positive value denotes flow in the x-direction. Negative value denotes flow in the x-direction is reversed.
A66: Flow | D66: Q | E66: =E65*1000 -> 41.94815458 | F66: l/year
A68: Discharge at the UP hydraulic gradient edge of the deposited restoration materials
A70: Parameter | D70: Symbol | E70: Value | F70: Units | G70: Comments
A71: Distance from origin | D71: x | E71: 0 | F71: m | G71: Origin is assumed as the up hydraulic edge of the deposited restoration material (external to attenuation layer). X=0 is the up hydraulic gradient edge of the deposit of restoration materials.
A72: Hydraulic conductivity | D72: Kx | E72: =E50 -> 1e-07 | F72: m/s | G72: Average horizontal hydraulic conductivity through restoration materials and any attenuation layers.
A73: Head at the origin | D73: h1 | E73: =E51 -> 2.45 | F73: m | G73: Head at up hydraulic gradient edge of deposited restoration material relative to base of deposited restoration material.
A74: Head at L | D74: h2 | E74: =E52 -> 2.28 | F74: m | G74: Head at down hydraulic gradient edge of deposited restoration material relative to base of deposited restoration material.
A75: Distance from origin to h2 | D75: L | E75: =E53 -> 540 | F75: m | G75: If x = 0 the flow calculated is that at the up hydraulic gradient boundary.
A76: Recharge rate in use | D76: ω | E76: =E57 -> 4.647418897e-12 | F76: m/s
A77: Recharge rate | D77: ω | E77: =(E76*1)*(60*60*24*365) -> 0.0001465610023 | F77: m3/m2/year
A78: Recharge rate | D78: ω | E78: =E77*1000 -> 0.1465610023 | F78: mm/year
A79: Flow per unit width | D79: q'x | E79: =((E72*(E73^2-E74^2))/(2*E75))-(E76*((E75/2)-E71)) -> -1.180349399e-09 | F79: m2/s | G79: Based on the method presented in Fetter (2001).
A80: Width | D80: y | E80: 1 | F80: m
A81: Flow | D81: Q | E81: =E79*E80 -> -1.180349399e-09 | F81: m3/s
A82: Flow | D82: Q | E82: =E81*60*60*24 -> -0.000101982188 | F82: m3/day
A83: Flow | D83: Q | E83: =E82*365.25 -> -0.03724899418 | F83: m3/year | G83: Positive value denotes flow in the x-direction. Negative value denotes flow in the x-direction is reversed.
A84: Flow | D84: Q | E84: =E83*1000 -> -37.24899418 | F84: l/year
A87: Location of the water table divide and maximum elevation of the water table using the CALCULATED infiltration scenario
A89: If the water table is subject to infiltration there may be a water divide. q'x will be zero at the water table divide. Consistent with Fetter (2001):
E91: Where: | F91: d is the distance from the origin to the water table divide (m)
F92: K is the hydraulic conductivity (m/s)
F93: h1 is the head at the origin (m)
F94: h2 is the head at L (m)
F95: L is the distance from the origin at the point where h2 is measured (m)
F96: ω is the recharge rate (m/s)
A98: The elevation of the water table at the divide may be found with (Fetter, 2001):
F100: Where: | G100: hmax is the maximum elevation which is the elevation at the water table divide
A107: Parameter | D107: Symbol | E107: Value | F107: Units | G107: Comments
A108: Hydraulic conductivity | D108: Kx | E108: =E72 -> 1e-07 | F108: m/s
A109: Head at the origin | D109: h1 | E109: =E51 -> 2.45 | F109: m
A110: Head at L | D110: h2 | E110: =E52 -> 2.28 | F110: m
A111: Distance from origin to h2 | D111: L | E111: =E53 -> 540 | F111: m
A112: Recharge rate | D112: ω | E112: =E54 -> 1.642567225e-09 | F112: m/s
A113: Distance from origin to divide | D113: d | E113: =(E111/2)-((E108/E112)*((E109^2-E110^2)/(2*E111))) -> 269.9546724 | F113: m
A114: Elevation at water table divide | D114: hmax | E114: =((E109^2)-(((E109^2-E110^2)*E113)/E111)+((E112/E108)*(E111-E113)*E113))^0.5 -> 34.68475156 | F114: m
A115: Maximum possible head at divide | E115: 4 | F115: m
A117: Location of the water table divide (used to calibrate infiltration)
A119: For the ADJUSTED infiltration calculation it is recognised that hmax cannot exceed the restored land profile.
A120: On this basis the maximum head at the water table divide is restricted by geometry and values of ω are varied iteratively until hmax is no greater than
A121: the maximum possible elevation of the water table divide based on the restored landform.
A123: Parameter | D123: Symbol | E123: Value | F123: Units | G123: Comments
A124: Hydraulic conductivity | D124: Kx | E124: =E108 -> 1e-07 | F124: m/s
A125: Head at the origin | D125: h1 | E125: =E51 -> 2.45 | F125: m
A126: Head at L | D126: h2 | E126: =E52 -> 2.28 | F126: m
A127: Distance from origin to h2 | D127: L | E127: =E53 -> 540 | F127: m
A128: Recharge rate | D128: ω | E128: 4.647418897e-12 | F128: m/s | G128: Vary the recharge rate so that hmax is approximately equal to the maximum possible water level divide elevation.
A129: Distance from origin to divide | D129: d | E129: =(E127/2)-((E124/E128)*((E125^2-E126^2)/(2*E127))) -> 253.9795583 | F129: m
A130: Elevation at water table divide | D130: hmax | E130: 4 | F130: m | G130: If the elevation of water table divide exceeds the restoration profile hmax cannot be maintained. Rainfall which otherwise could have infiltrated will run off.
A131: Maximum possible head at divide | E131: =E115 -> 4 | F131: m | G131: The rate of elevation is varied so that the hmax is similar to the maximum possible recharge mound elevation based on the restoration profile.
A133: Flow in the aquifer
A135: Flow in the aquifer is calculated using Darcy's law and assuming unit width.
D137: Where: | E137: Q is the flow in the aquifer (m3/s)
E138: i is the hydraulic gradient (no units)
E139: A is the cross sectional area perpendicular to flow (m2)
A141: Parameter | D141: Symbol | E141: Value | F141: Units | G141: Comments
A142: Aquifer hydraulic conductivity | D142: Kaq | E142: 2.31e-05 | F142: m/s
A143: Hydraulic gradient in aquifer | D143: i | E143: 0.0058 | F143: -
A144: Saturated thickness | D144: t | E144: =E51 -> 2.45 | F144: m
A145: Cross sectional area | D145: A | E145: =E144*1 -> 2.45 | F145: m2 | G145: Assuming unit width
A146: Flow | D146: Q | E146: =E142*E143*E145 -> 3.28251e-07 | F146: m3/s | G146: Using Darcy's law
A147: Flow | D147: Q | E147: =E146*(60*60*24*365) -> 10.35172354 | F147: m3/year
A149: References
A150: Domenico, P.A. & Schwartz F.W. 1998. Physical and Chemical Hydrogeology. Second Edition. John Wiley & Sons Inc. Page 42.
A151: Fetter, C.W. 2001. Applied Hydrogeology, 4th Edition. Pages 140 to 144.

Sheet WaterBalance
A1: Water balance (unit width perpendicular to groundwater flow in the aquifer)
A3: Recharge | E3: =Flow!E60 -> 0.07914294127 | F3: m3/year | G3: Postive value = INPUT
A4: Flow: down hydraulic gradient edge | E4: =Flow!E65 -> 0.04194815458 | F4: m3/year | G4: Positive value = OUTPUT flow at down hydraulic gradient edge.
A5: Flow: up hydraulic gradient edge | E5: =-Flow!E83 -> 0.03724899418 | F5: m3/year | G5: Positive value = OUTPUT flow at up hydraulic gradient edge. Negative value = INPUT flow at up hydraulic gradient edge.
A6: TOTAL | E6: =E3-E4-E5 -> -5.420749402e-05 | F6: m3/year | G6: Total flow should be zero if INPUTs balance OUTPUTs.
A8: Aquifer flow | E8: =Flow!E147 -> 10.35172354 | F8: m3/year
A9: Flow across up hydraulic gradient boundary | E9: =Flow!E83 -> -0.03724899418 | F9: m3/year | G9: Positive value = aquifer flow into deposited restoration materials
A10: Aquifer flow not flowing into deposit | E10: =MIN(E8,E8-E9) -> 10.35172354 | F10: m3/year | G10: Flow assumed to bypass round deposited restoration materials and be available for dilution down hydraulic gradient.
A11: Aquifer flow not flowing into deposit | E11: =E10/(60*60*24*365) -> 3.28251e-07 | F11: m3/s
A13: Flow through restoration materials | E13: =Flow!E65+IF(Flow!E83<0,-Flow!E83,0) -> 0.07919714876 | F13: m3/year
A14: Flow through restoration materials | E14: =E13/(60*60*24*365) -> 2.511325113e-09 | F14: m3/s
A15: Flow through restoration materials | E15: =E13*1000 -> 79.19714876 | F15: l/year
A16: Flow through restoration materials | E16: =QsrcLitres/365 -> 0.2169784898 | F16: l/day
A18: aquifer flow + recharge | E18: =E8+E3 -> 10.43086648 | F18: m3/year
A19: flow out of deposit + flow round | E19: =E10+Flow!E65+IF(Flow!E83<0,-Flow!E83,0) -> 10.43092068 | F19: m3/year
A20: FLOW CHECK | E20: =IF(E18-E19<ABS(0.1),"OK","ERROR") -> OK | G20: Is the tolerance within 0.1m3/year?
A22: Notes:
A23: Items in bold are used in the GenericAssessment worksheet

Sheet SourceInputs
A1: Source inputs
D2: Key | F2: INPUT CELL (other cells are calculated)
D4: Initial concentration | E4: Initial concentration
A5: Parameter | B5: Parameter name | C5: Category
D6: mg/l | E6: µg/l
A7: P1 | B7: Arsenic | C7: Hazardous | D7: 0.05 | E7: =D7*1000 -> 50
A8: P2 | B8: Mercury | C8: Hazardous | D8: 0.001 | E8: =D8*1000 -> 1
A9: P3 | B9: Toluene | C9: Hazardous | D9: 0.8695 | E9: 869.5
A10: P4 | B10: Cadmium | C10: Non hazardous | D10: 0.004 | E10: 4 | Q10: Non hazardous
A11: P5 | B11: Zinc | C11: Non hazardous | D11: 0.4 | E11: 400 | Q11: Hazardous
A12: P6 | B12: Copper | C12: Non hazardous | D12: 0.2 | E12: 200
A13: P7 | B13: Lead | C13: Hazardous | D13: 0.05 | E13: 50

Sheet GenericAssessment
A1: Calculated concentrations in the aquifer following immediate dilution
D3: Where: | E3: Caq is the estimated concentration in the aquifer (mg/l) | I3: Key | K3: INPUT CELL (other cells are calculated)
E4: Csrc is the concentration in the source (mg/l).
E5: Qsrc is the discharge from the imported restoration materials (m3/s)
E6: Cbg is the background concentration in the aquifer (mg/l)
E7: Qaq is the flow in the aquifer not including the flow through the restoration materials (m3/s)
A10: =SourceInputsAttenuation!A12 -> Parameter | B10: =SourceInputsAttenuation!B12 -> Parameter name | C10: Source concentration | D10: Environmental assessment limit (EAL) (mg/l) | E10: Assumed background concentrations (mg/l) | F10: Concentration following immediate dilution in groundwater (mg/l) | G10: Ratio of predicted concentrations to EAL
A11: =SourceInputsAttenuation!A14 -> P1 | B11: =SourceInputsAttenuation!B14 -> Arsenic | C11: =SourceInputsAttenuation!E14 -> 0.05 | D11: 0.0075 | E11: 0.0018 | F11: =((C11*Qsrc)+($E11*Qaq))/(Qsrc+Qaq) -> 0.002165960272 | G11: =F11/D11 -> 0.2887947029
A12: =SourceInputsAttenuation!A15 -> P2 | B12: =SourceInputsAttenuation!B15 -> Mercury | C12: =SourceInputsAttenuation!E15 -> 0.001 | D12: 1e-05 | E12: 0 | F12: =((C12*Qsrc)+($E12*Qaq))/(Qsrc+Qaq) -> 7.592536762e-06 | G12: =F12/D12 -> 0.7592536762
A13: =SourceInputsAttenuation!A16 -> P3 | B13: =SourceInputsAttenuation!B16 -> Toluene | C13: =SourceInputsAttenuation!E16 -> 0.8695 | D13: 0.004 | E13: 0 | F13: =((C13*Qsrc)+($E13*Qaq))/(Qsrc+Qaq) -> 0.006601710714 | G13: 1.650427679
A14: =SourceInputsAttenuation!A17 -> P4 | B14: =SourceInputsAttenuation!B17 -> Cadmium | C14: =SourceInputsAttenuation!E17 -> 0.004 | D14: 0.027 | E14: 0.0017 | F14: =((C14*Qsrc)+($E14*Qaq))/(Qsrc+Qaq) -> 0.001717462835 | G14: 0.06360973461
A15: =SourceInputsAttenuation!A18 -> P5 | B15: =SourceInputsAttenuation!B18 -> Zinc | C15: =SourceInputsAttenuation!E18 -> 0.4 | D15: 0.11 | E15: 0.017 | F15: =((C15*Qsrc)+($E15*Qaq))/(Qsrc+Qaq) -> 0.01990794158 | G15: 0.1809812871
A16: =SourceInputsAttenuation!A19 -> P6 | B16: =SourceInputsAttenuation!B19 -> Copper | C16: =SourceInputsAttenuation!E19 -> 0.2 | D16: 0.087 | E16: 0.0075 | F16: 0.008961563327 | G16: 0.103006475
A17: =SourceInputsAttenuation!A20 -> P7 | B17: =SourceInputsAttenuation!B20 -> Lead | C17: =SourceInputsAttenuation!E20 -> 0.05 | D17: 0.0002 | E17: 0 | F17: 0.0003796268381 | G17: 1.89813419

Sheet SourceInputsAttenuation
A1: Source inputs (with attenuation and source decline where specified)
A3: Consistent with the LandSim manual (Environment Agency, 1996) the concentration of a species in the source at time t can be calculated based on the kappa constant for the species and the liquid to solid ratio at time t:
I5: Key | K5: INPUT CELL (other cells are calculated)
C6: Where: | D6: Ct is the concentration of the species in the source at any time t (mg/l)
D7: C0 is the initial concentration of the species in leachate (mg/l)
D8: κ (kappa) is a species and waste-specific constant (kg/l)
D9: LS is the liquid to solid ratio at time t (l/kg) calculated as the aqueous losses from the source to time t divided by the mass of the source.
E11: Initial concentration | F11: Initial concentration | G11: Calculation of kappa (κ) constant
A12: Parameter | B12: Parameter name | C12: Source type | D12: Category | G12: m (slope) | H12: c (intercept) | I12: κ
E13: mg/l | F13: µg/l | G13: kg/l | H13: kg/l | I13: kg/l | M13: Graph titles | O13: Stem | P13: Variation in | R13: Stem2 | S13: concentrations with time
A14: P1 | B14: =SourceInputs!B7 -> Arsenic | C14: Decline | D14: =SourceInputs!C7 -> Hazardous | E14: =SourceInputs!D7 -> 0.05 | F14: =E14*1000 -> 50 | G14: 0.0415 | H14: -0.0862 | I14: =IF(C14="DECLINE",G14*LN(F14)+H14,0) -> 0.07614895473 | M14: =$P$13&LOWER(B14)&$S$13 -> Variation in arsenic concentrations with time | W14: Decline
A15: P2 | B15: =SourceInputs!B8 -> Mercury | C15: Decline | D15: =SourceInputs!C8 -> Hazardous | E15: =SourceInputs!D8 -> 0.001 | F15: =E15*1000 -> 1 | G15: 0.0767 | H15: 0.1643 | I15: =IF(C15="DECLINE",G15*LN(F15)+H15,0) -> 0.1643 | M15: =$P$13&LOWER(B15)&$S$13 -> Variation in mercury concentrations with time | W15: Constant
A16: P3 | B16: =SourceInputs!B9 -> Toluene | C16: Decline | D16: =SourceInputs!C9 -> Hazardous | E16: =SourceInputs!D9 -> 0.8695 | F16: 869.5 | G16: 0.0298 | H16: 0.2919 | I16: 0.4935839663 | M16: Variation in toluene concentrations with time
A17: P4 | B17: =SourceInputs!B10 -> Cadmium | C17: Decline | D17: =SourceInputs!C10 -> Non hazardous | E17: =SourceInputs!D10 -> 0.004 | F17: 4 | G17: 0.0823 | H17: 0.1589 | I17: 0.2729920259 | M17: Variation in cadmium concentrations with time | W17: Non hazardous
A18: P5 | B18: =SourceInputs!B11 -> Zinc | C18: Decline | D18: =SourceInputs!C11 -> Non hazardous | E18: =SourceInputs!D11 -> 0.4 | F18: 400 | G18: 0.0403 | H18: 0.0561 | I18: 0.2975560212 | M18: Variation in zinc concentrations with time | W18: Hazardous
A19: P6 | B19: =SourceInputs!B12 -> Copper | C19: Decline | D19: =SourceInputs!C12 -> Non hazardous | E19: =SourceInputs!D12 -> 0.2 | F19: 200 | G19: 0.0664 | H19: -0.0488 | I19: 0.3030082731 | M19: Variation in copper concentrations with time
A20: P7 | B20: =SourceInputs!B13 -> Lead | C20: Decline | D20: =SourceInputs!C13 -> Hazardous | E20: =SourceInputs!D13 -> 0.05 | F20: 50 | G20: 0.0443 | H20: 0.0171 | I20: 0.1904026191 | M20: Variation in lead concentrations with time
A22: Source geometry and physical properties
A24: Parameter | B24: Unit | C24: Value | D24: Comments
A25: Length | B25: m | C25: =Flow!E53-2 -> 538
A26: Thickness | B26: m | C26: 3 | D26: Thickness of the deposited waste used in the calculation of waste mass.
A27: Width of source | B27: m | C27: 1000000000 | D27: This only changes the transverse dispersion. If set to a high value ngligible transverse dispersion will be assumed to occur.
A28: Volume | B28: m3 | C28: =1*C25*C26 -> 1614 | D28: Unit width is assumed.
A29: Volume | B29: l | C29: =C28*1000 -> 1614000
A30: Source porosity | B30: Fraction | C30: 0.3
A31: Source bulk density | B31: kg/l | C31: 1.7
A32: Source dry density | B32: kg/l | C32: =(1.7-(0.3*1))/1 -> 1.4
A33: Source mass | B33: kg | C33: =C31*C29 -> 2743800
A34: Fraction of organic carbon | B34: Fraction | C34: =(0.01+0.1)/2 -> 0.055
A36: Reference
A37: Environment Agency 1996. LandSim. Landfill performance assessment: Simulation by Monte Carlo method. R&D Publication 120. Release 2. (LandSim version 2)

Sheet AttenuationInputs
A1: Calculation input parameters relevant to attenuation in the attenuation layer
A3: Note: See NumericalSoln and AnalyticalSoln worksheets for details on the calculation methods. | J3: Key | L3: INPUT CELL (other cells are calculated)
A5: Conservatively it is assumed that discharge from the attenuation layer up hydraulic gradient and down hydraulic gradient emanates from the down hydraulic gradient face which increases the assumed rate of contaminant migration in the attenuation layer.
A7: Input parameter | F7: Symbol | G7: Value | H7: Unit | I7: Comment
A8: Distance along the pathway in the direction of flow | F8: x | G8: 1 | H8: m | I8: It is assumed that the source is located adjacent to the attenuation layer and that the attenuation layer is 1m thick.
A9: Saturated thickness in the outflow region | F9: h | G9: =Flow!E52 -> 2.28 | H9: m
A10: Specific discharge | F10: q | G10: =(WaterBalance!E14)/G9 -> 1.101458383e-09 | H10: m/s | I10: Calculated as the flow per unit width divided by the head at the down hydraulic boundary.
A11: Effective porosity | F11: n | G11: =SourceInputsAttenuation!C30 -> 0.3 | H11: -
A12: Mean groundwater velocity | F12: νw | G12: =G10/G11 -> 3.671527943e-09 | H12: m/s
A13: Tortuosity | F13: τ | G13: 5 | H13: -
A14: Dispersivity in the x direction (longitudinal) | F14: αL | G14: =G8*0.1 -> 0.1 | H14: m
A15: Dispersivity (transverse) | F15: αT | G15: 0.03 | H15: m
A17: Parameter | B17: Parameter name | C17: Free water diffusion coefficient | D17: Coefficient of molecular diffusion | E17: Longitudinal dispersion coefficient | F17: Transverse dispersion coefficient | G17: Organic carbon partition coefficient | H17: Distribution coefficient | I17: Retardation factor | J17: Retarded velocity | K17: Degradation half life | L17: Degradation half life | M17: Decay constant | N17: Comments
C18: Dw | D18: Dm | E18: DL | F18: DT | G18: Koc | H18: Kd | I18: Rf | J18: ν = vw/Rf | K18: t½ | L18: t½ | M18: γ
A19: Units | C19: m2/s | D19: m2/s | E19: m2/s | F19: m2/s | G19: l/kg | H19: l/kg | I19: - | J19: m/s | K19: years | L19: s | M19: 1/s
A20: P1 | B20: =SourceInputsAttenuation!B14 -> Arsenic | C20: 5.94e-10 | D20: =IF(C20="",0.000000000001,C20/τ) -> 1.188e-10 | E20: =(α*νw)+D20 -> 4.859527943e-10 | F20: =(αT*νw)+D20 -> 2.289458383e-10 | H20: 25 | I20: =1+((SourceInputsAttenuation!$C$31/n)*H20) -> 142.6666667 | J20: =νw/$I20 -> 2.573500894e-11 | M20: =IF(L20="",0,(LN(2)/L20)) -> 0
A21: P2 | B21: =SourceInputsAttenuation!B15 -> Mercury | C21: 5.94e-10 | D21: =IF(C21="",0.000000000001,C21/τ) -> 1.188e-10 | E21: =(α*νw)+D21 -> 4.859527943e-10 | F21: =(αT*νw)+D21 -> 2.289458383e-10 | H21: 3835.4 | I21: =1+((SourceInputsAttenuation!$C$31/n)*H21) -> 21734.93333 | J21: =νw/$I21 -> 1.689228987e-13 | M21: =IF(L21="",0,(LN(2)/L21)) -> 0
A22: P3 | B22: =SourceInputsAttenuation!B16 -> Toluene | C22: =((0.413+0.847+0.6)/3)*0.000000001 -> 6.2e-10 | D22: 1.24e-10 | E22: 4.911527943e-10 | F22: 2.341458383e-10 | G22: =(131+242)/2 -> 186.5 | H22: =G22*SourceInputsAttenuation!$C$34 -> 10.2575 | I22: =1+((SourceInputsAttenuation!$C$31/n)*H22) -> 59.12583333 | J22: 6.209684897e-11 | K22: 0.822 | L22: =K22*(60*60*24*365.25) -> 25940347.2 | M22: =IF(L22="",0,(LN(2)/L22)) -> 2.672081353e-08
A23: P4 | B23: =SourceInputsAttenuation!B17 -> Cadmium | C23: 5.94e-10 | D23: 1.188e-10 | E23: 4.859527943e-10 | F23: 2.289458383e-10 | H23: 222.2 | I23: =1+((SourceInputsAttenuation!$C$31/n)*H23) -> 1260.133333 | J23: 2.913602748e-12 | M23: 0
A24: P5 | B24: =SourceInputsAttenuation!B18 -> Zinc | C24: 5.94e-10 | D24: 1.188e-10 | E24: 4.859527943e-10 | F24: 2.289458383e-10 | H24: 25 | I24: =1+((SourceInputsAttenuation!$C$31/n)*H24) -> 142.6666667 | J24: 2.573500894e-11 | M24: 0
A25: P6 | B25: =SourceInputsAttenuation!B19 -> Copper | C25: 5.94e-10 | D25: 1.188e-10 | E25: 4.859527943e-10 | F25: 2.289458383e-10 | H25: 126.8 | I25: =1+((SourceInputsAttenuation!$C$31/n)*H25) -> 719.5333333 | J25: 5.102651639e-12 | M25: 0
A26: P7 | B26: =SourceInputsAttenuation!B20 -> Lead | C26: 5.94e-10 | D26: =IF(C26="",0.000000000001,C26/τ) -> 1.188e-10 | E26: 4.859527943e-10 | F26: 2.289458383e-10 | H26: 434.5 | I26: =1+((SourceInputsAttenuation!$C$31/n)*H26) -> 2463.166667 | J26: 1.490572275e-12 | M26: 0
B28: Rf = 1 + (ρ/η).Kd | E28: Equation 6.31 in the LandSim manual | H28: Rf | I28: retardation factor for specific contaminant (-)
H29: ρ | I29: bulk density of material (kg/l)
H30: Kd | I30: distribution coefficient for specific contaminant (l/kg)
H31: η | I31: effective porosity of material (-)
A33: Reference
A34: Environment Agency 1996. LandSim. Landfill performance assessment: Simulation by Monte Carlo method. R&D Publication 120. Release 2. (LandSim version 2)

Sheet WithAttenuation
A1: Calculated concentrations in the aquifer following immediate dilution and taking into account attenuation in the attenuation layer
D3: Where: | E3: Caq is the estimated concentration in the aquifer (mg/l)
E4: Csrc is the concentration in the source (mg/l).
E5: Qsrc is the discharge from the imported restoration materials (m3/s)
E6: Cbg is the background concentration in the aquifer (mg/l)
E7: Qaq is the flow in the aquifer not including the flow through the restoration materials (m3/s)
A10: Where attenuation is taken into account in the attenuation layer it is assumed that that Qsrc is the concentration at the outer edge of the attenuation layer.
A11: For the calculation of attenuation in the attenuation layer it is assumed that the calculated flow from both the up hydraulic gradient and down hydraulic gradient edges of the attenuation layer flow through the down hydraulic gradient boundary.
A12: Breakthrough may therefore occur sooner than would otherwise be the case.
F15: Maximum concentration predicted at the edge of the imported materials [DOWN hydraulcic gradient] (mg/l) | H15: Concentration predicted in the aquifer following immediate dilution (mg/l)
A16: =SourceInputsAttenuation!A12 -> Parameter | B16: =SourceInputsAttenuation!B12 -> Parameter name | C16: Source concentration | D16: Environmental assessment limit (EAL) (mg/l) | E16: Assumed background concentrations (mg/l) | F16: With attenuation (and source decline for inorganics) (numeric) | G16: With attenuation (and source decline for inorganics) (analytical) | H16: Immediate dilution in groundwater only | I16: With attenuation (and source decline for inorganics) (numeric) | J16: With attenuation (and source decline for inorganics) (analytical) | K16: Ratio of predicted concentrations to EAL
A17: =SourceInputsAttenuation!A14 -> P1 | B17: =SourceInputsAttenuation!B14 -> Arsenic | C17: =SourceInputsAttenuation!E14 -> 0.05 | D17: =GenericAssessment!D11 -> 0.0075 | E17: =GenericAssessment!E11 -> 0.0018 | F17: =MAX('P1'!D4:D1903) -> 0.04956780169 | G17: =IFERROR(MAX(P1an!J4:J1903),"NOT SOLVED") -> 0.04957436139 | H17: =((C17*Qsrc)+($E17*Qaq))/(Qsrc+Qaq) -> 0.002165960272 | I17: =MAX('P1'!G4:G1903) -> 0.00216267879 | J17: =IFERROR(MAX(P1an!K4:K1903),"NOT SOLVED") -> 0.002162728595 | K17: =I17/D17 -> 0.2883571721
A18: =SourceInputsAttenuation!A15 -> P2 | B18: =SourceInputsAttenuation!B15 -> Mercury | C18: =SourceInputsAttenuation!E15 -> 0.001 | D18: =GenericAssessment!D12 -> 1e-05 | E18: =GenericAssessment!E12 -> 0 | F18: =MAX('P2'!D5:D1904) -> 6.61656738e-11 | G18: =IFERROR(MAX(P2an!J4:J1903),"NOT SOLVED") -> 1.514302674e-18 | H18: =((C18*Qsrc)+($E18*Qaq))/(Qsrc+Qaq) -> 7.592536762e-06 | I18: =MAX('P2'!G5:G1904) -> 5.023653107e-13 | J18: =IFERROR(MAX(P2an!K4:K1903),"NOT SOLVED") -> 1.149739872e-20 | K18: =I18/D18 -> 5.023653107e-08
A19: =SourceInputsAttenuation!A16 -> P3 | B19: =SourceInputsAttenuation!B16 -> Toluene | C19: =SourceInputsAttenuation!E16 -> 0.8695 | D19: =GenericAssessment!D13 -> 0.004 | E19: =GenericAssessment!E13 -> 0 | F19: =MAX('P3'!D6:D1905) -> 7.752584933e-24 | G19: =IFERROR(MAX(P3an!J4:J1903),"NOT SOLVED") -> 7.54244338e-24 | H19: 0.006601710714 | I19: =MAX('P3'!G6:G1905) -> 5.886178611e-26 | J19: =IFERROR(MAX(P3an!K4:K1903),"NOT SOLVED") -> 5.726627863e-26 | K19: 1.471544653e-23
A20: =SourceInputsAttenuation!A17 -> P4 | B20: =SourceInputsAttenuation!B17 -> Cadmium | C20: =SourceInputsAttenuation!E17 -> 0.004 | D20: =GenericAssessment!D14 -> 0.027 | E20: =GenericAssessment!E14 -> 0.0017 | F20: =MAX('P4'!D7:D1906) -> 0.002071983811 | G20: =IFERROR(MAX(P4an!J4:J1903),"NOT SOLVED") -> 0.002072692373 | H20: =((C20*Qsrc)+($E20*Qaq))/(Qsrc+Qaq) -> 0.001717462835 | I20: =MAX('P4'!G7:G1906) -> 0.001702824301 | J20: =IFERROR(MAX(P4an!K4:K1903),"NOTSOLVED") -> 0.001702829681 | K20: 0.06306756669
A21: =SourceInputsAttenuation!A18 -> P5 | B21: =SourceInputsAttenuation!B18 -> Zinc | C21: =SourceInputsAttenuation!E18 -> 0.4 | D21: =GenericAssessment!D15 -> 0.11 | E21: =GenericAssessment!E15 -> 0.017 | F21: =MAX('P5'!D8:D1907) -> 0.3894086553 | G21: =IFERROR(MAX(P5an!J4:J1903),"NOT SOLVED") -> 0.3894246552 | H21: =((C21*Qsrc)+($E21*Qaq))/(Qsrc+Qaq) -> 0.01990794158 | I21: =MAX('P5'!G8:G1907) -> 0.01982752641 | J21: =IFERROR(MAX(P5an!K4:K1903),"NOT SOLVED") -> 0.01982764789 | K21: 0.1802502401
A22: =SourceInputsAttenuation!A19 -> P6 | B22: =SourceInputsAttenuation!B19 -> Copper | C22: =SourceInputsAttenuation!E19 -> 0.2 | D22: =GenericAssessment!D16 -> 0.087 | E22: =GenericAssessment!E16 -> 0.0075 | F22: =MAX('P6'!D9:D1908) -> 0.1702050903 | G22: =IFERROR(MAX(P6an!J4:J1903),"NOT SOLVED") -> 0.1701827024 | H22: 0.008961563327 | I22: =MAX('P6'!G9:G1908) -> 0.00873534438 | J22: =IFERROR(MAX(P6an!K4:K1903),"NOT SOLVED") -> 0.008735174399 | K22: 0.1004062572
A23: =SourceInputsAttenuation!A20 -> P7 | B23: =SourceInputsAttenuation!B20 -> Lead | C23: =SourceInputsAttenuation!E20 -> 0.05 | D23: =GenericAssessment!D17 -> 0.0002 | E23: =GenericAssessment!E17 -> 0 | F23: =MAX('P7'!D10:D1909) -> 0.004768449407 | G23: =IFERROR(MAX(P7an!J4:J1903),"NOT SOLVED") -> 0.004763047309 | H23: 0.0003796268381 | I23: =MAX('P7'!G10:G1909) -> 3.620462742e-05 | J23: =IFERROR(MAX(P7an!K4:K1903),"NOT SOLVED") -> 3.616361179e-05 | K23: 0.1810231371
A25: Notes: | B25: For the analytical solution to the advection dispersion equation a value of "NOT SOLVED" denotes that the value of µ is negative number which is the case for certain combinations of inputs. This means that √µ becomes an imaginary number.
B26: The LandSim manual provides an alternative solution to advection dispersion equation when µ is negative but the solution is not implemented here and the numerical results should be used instead.
B32: Information used for plotting EALs on the graph
B33: Year | C33: =B17 -> Arsenic | E33: =B18 -> Mercury | F33: =B19 -> Toluene | H33: =B20 -> Cadmium | I33: =B21 -> Zinc | J33: =B22 -> Copper | K33: =B23 -> Lead
B34: 1 | C34: =$D$17 -> 0.0075 | E34: =$D$18 -> 1e-05 | F34: =$D$19 -> 0.004 | H34: =$D$20 -> 0.027 | I34: =$D$21 -> 0.11 | J34: =$D$22 -> 0.087 | K34: =$D$23 -> 0.0002
B35: 10000 | C35: =$D$17 -> 0.0075 | E35: =$D$18 -> 1e-05 | F35: =$D$19 -> 0.004 | H35: =$D$20 -> 0.027 | I35: =$D$21 -> 0.11 | J35: =$D$22 -> 0.087 | K35: =$D$23 -> 0.0002

Sheet SrcDecline
A1: P1 | B1: =SourceInputsAttenuation!B14 -> Arsenic | C1: =SourceInputsAttenuation!C14 -> Decline | D1: P2 | E1: =SourceInputsAttenuation!B15 -> Mercury | F1: =SourceInputsAttenuation!C15 -> Decline | G1: P3 | H1: =SourceInputsAttenuation!B16 -> Toluene | I1: =SourceInputsAttenuation!C16 -> Decline | J1: P4 | K1: =SourceInputsAttenuation!B17 -> Cadmium | L1: =SourceInputsAttenuation!C17 -> Decline | M1: P5 | N1: =SourceInputsAttenuation!B18 -> Zinc | O1: =SourceInputsAttenuation!C18 -> Decline | P1: P6 | Q1: =SourceInputsAttenuation!B19 -> Copper | R1: =SourceInputsAttenuation!C19 -> Decline | S1: P7 | T1: =SourceInputsAttenuation!B20 -> Lead | U1: =SourceInputsAttenuation!C20 -> Decline | X1: References
A2: Years of leaching | B2: Liquid to solid ratio at time t LS (l/kg) | C2: Source concentration Ct (mg/l) | D2: Years of leaching | E2: Liquid to solid ratio at time t LS (l/kg) | F2: Source concentration Ct (mg/l) | G2: Years of leaching | H2: Liquid to solid ratio at time t LS (l/kg) | I2: Source concentration Ct (mg/l) | J2: Years of leaching | K2: Liquid to solid ratio at time t LS (l/kg) | L2: Source concentration Ct (mg/l) | M2: Years of leaching | N2: Liquid to solid ratio at time t LS (l/kg) | O2: Source concentration Ct (mg/l) | P2: Years of leaching | Q2: Liquid to solid ratio at time t LS (l/kg) | R2: Source concentration Ct (mg/l) | S2: Years of leaching | T2: Liquid to solid ratio at time t LS (l/kg) | U2: Source concentration Ct (mg/l) | X2: Golder Associates. 2003. Addendum to LandSim 2 manual relevant to LandSim 2.5.
A3: 0 | B3: =IF(C$1="Decline",(A3*QsrcLitres)/(SourceInputsAttenuation!$C$33),"") -> 0 | C3: =IF(C$1="Decline",SourceInputsAttenuation!$E$14*EXP(-1*((SourceInputsAttenuation!$I$14)*SrcDecline!B3)),SourceInputsAttenuation!$E$14) -> 0.05 | D3: 0 | E3: =IF(F$1="Decline",(D3*QsrcLitres)/SourceInputsAttenuation!$C$33,"") -> 0 | F3: =IF(F$1="Decline",SourceInputsAttenuation!$E$15*EXP(-1*(SourceInputsAttenuation!$I$15*SrcDecline!E3)),SourceInputsAttenuation!$E$15) -> 0.001 | G3: 0 | H3: =IF(I$1="Decline",(G3*QsrcLitres)/SourceInputsAttenuation!$C$33,"") -> 0 | I3: =IF(I$1="Decline",SourceInputsAttenuation!$E$16*EXP(-1*(SourceInputsAttenuation!$I$16*SrcDecline!E3)),SourceInputsAttenuation!$E$16) -> 0.8695 | J3: 0 | K3: =IF(L$1="Decline",(J3*QsrcLitres)/SourceInputsAttenuation!$C$33,"") -> 0 | L3: =IF(L$1="Decline",SourceInputsAttenuation!$E$17*EXP(-1*(SourceInputsAttenuation!$I$17*SrcDecline!K3)),SourceInputsAttenuation!$E$17) -> 0.004 | M3: 0 | N3: =IF(O$1="Decline",(M3*QsrcLitres)/SourceInputsAttenuation!$C$33,"") -> 0 | O3: =IF(O$1="Decline",SourceInputsAttenuation!$E$18*EXP(-1*(SourceInputsAttenuation!$I$18*SrcDecline!N3)),SourceInputsAttenuation!$E$18) -> 0.4 | P3: 0 | Q3: =IF(R$1="Decline",(P3*QsrcLitres)/SourceInputsAttenuation!$C$33,"") -> 0 | R3: =IF(R$1="Decline",SourceInputsAttenuation!$E$19*EXP(-1*(SourceInputsAttenuation!$I$19*SrcDecline!Q3)),SourceInputsAttenuation!$E$19) -> 0.2 | S3: 0 | T3: =IF(U$1="Decline",(S3*QsrcLitres)/SourceInputsAttenuation!$C$33,"") -> 0 | U3: =IF(U$1="Decline",SourceInputsAttenuation!$E$20*EXP(-1*(SourceInputsAttenuation!$I$20*SrcDecline!T3)),SourceInputsAttenuation!$E$20) -> 0.05
A4: =IF(A3<1000,A3+1,A3+10) -> 1 | B4: =IF(C$1="Decline",(A4*QsrcLitres)/(SourceInputsAttenuation!$C$33),"") -> 2.886403847e-05 | C4: =IF(C$1="Decline",SourceInputsAttenuation!$E$14*EXP(-1*((SourceInputsAttenuation!$I$14)*SrcDecline!B4)),SourceInputsAttenuation!$E$14) -> 0.0499998901 | D4: =IF(D3<1000,D3+1,D3+10) -> 1 | E4: =IF(F$1="Decline",(D4*QsrcLitres)/SourceInputsAttenuation!$C$33,"") -> 2.886403847e-05 | F4: =IF(F$1="Decline",SourceInputsAttenuation!$E$15*EXP(-1*(SourceInputsAttenuation!$I$15*SrcDecline!E4)),SourceInputsAttenuation!$E$15) -> 0.0009999952576 | G4: =IF(G3<1000,G3+1,G3+10) -> 1 | H4: =IF(I$1="Decline",(G4*QsrcLitres)/SourceInputsAttenuation!$C$33,"") -> 2.886403847e-05 | I4: =IF(I$1="Decline",SourceInputsAttenuation!$E$16*EXP(-1*(SourceInputsAttenuation!$I$16*SrcDecline!E4)),SourceInputsAttenuation!$E$16) -> 0.8694876125 | J4: =IF(J3<1000,J3+1,J3+10) -> 1 | K4: =IF(L$1="Decline",(J4*QsrcLitres)/SourceInputsAttenuation!$C$33,"") -> 2.886403847e-05 | L4: =IF(L$1="Decline",SourceInputsAttenuation!$E$17*EXP(-1*(SourceInputsAttenuation!$I$17*SrcDecline!K4)),SourceInputsAttenuation!$E$17) -> 0.003999968482 | M4: =IF(M3<1000,M3+1,M3+10) -> 1 | N4: =IF(O$1="Decline",(M4*QsrcLitres)/SourceInputsAttenuation!$C$33,"") -> 2.886403847e-05 | O4: =IF(O$1="Decline",SourceInputsAttenuation!$E$18*EXP(-1*(SourceInputsAttenuation!$I$18*SrcDecline!N4)),SourceInputsAttenuation!$E$18) -> 0.3999965645 | P4: =IF(P3<1000,P3+1,P3+10) -> 1 | Q4: =IF(R$1="Decline",(P4*QsrcLitres)/SourceInputsAttenuation!$C$33,"") -> 2.886403847e-05 | R4: =IF(R$1="Decline",SourceInputsAttenuation!$E$19*EXP(-1*(SourceInputsAttenuation!$I$19*SrcDecline!Q4)),SourceInputsAttenuation!$E$19) -> 0.1999982508 | S4: =IF(S3<1000,S3+1,S3+10) -> 1 | T4: =IF(U$1="Decline",(S4*QsrcLitres)/SourceInputsAttenuation!$C$33,"") -> 2.886403847e-05 | U4: =IF(U$1="Decline",SourceInputsAttenuation!$E$20*EXP(-1*(SourceInputsAttenuation!$I$20*SrcDecline!T4)),SourceInputsAttenuation!$E$20) -> 0.04999972521
A5: =IF(A4<1000,A4+1,A4+10) -> 2 | B5: =IF(C$1="Decline",(A5*QsrcLitres)/(SourceInputsAttenuation!$C$33),"") -> 5.772807694e-05 | C5: =IF(C$1="Decline",SourceInputsAttenuation!$E$14*EXP(-1*((SourceInputsAttenuation!$I$14)*SrcDecline!B5)),SourceInputsAttenuation!$E$14) -> 0.0499997802 | D5: =IF(D4<1000,D4+1,D4+10) -> 2 | E5: =IF(F$1="Decline",(D5*QsrcLitres)/SourceInputsAttenuation!$C$33,"") -> 5.772807694e-05 | F5: =IF(F$1="Decline",SourceInputsAttenuation!$E$15*EXP(-1*(SourceInputsAttenuation!$I$15*SrcDecline!E5)),SourceInputsAttenuation!$E$15) -> 0.0009999905153 | G5: =IF(G4<1000,G4+1,G4+10) -> 2 | H5: =IF(I$1="Decline",(G5*QsrcLitres)/SourceInputsAttenuation!$C$33,"") -> 5.772807694e-05 | I5: =IF(I$1="Decline",SourceInputsAttenuation!$E$16*EXP(-1*(SourceInputsAttenuation!$I$16*SrcDecline!E5)),SourceInputsAttenuation!$E$16) -> 0.8694752251 | J5: =IF(J4<1000,J4+1,J4+10) -> 2 | K5: =IF(L$1="Decline",(J5*QsrcLitres)/SourceInputsAttenuation!$C$33,"") -> 5.772807694e-05 | L5: =IF(L$1="Decline",SourceInputsAttenuation!$E$17*EXP(-1*(SourceInputsAttenuation!$I$17*SrcDecline!K5)),SourceInputsAttenuation!$E$17) -> 0.003999936963 | M5: =IF(M4<1000,M4+1,M4+10) -> 2 | N5: =IF(O$1="Decline",(M5*QsrcLitres)/SourceInputsAttenuation!$C$33,"") -> 5.772807694e-05 | O5: =IF(O$1="Decline",SourceInputsAttenuation!$E$18*EXP(-1*(SourceInputsAttenuation!$I$18*SrcDecline!N5)),SourceInputsAttenuation!$E$18) -> 0.3999931291 | P5: =IF(P4<1000,P4+1,P4+10) -> 2 | Q5: =IF(R$1="Decline",(P5*QsrcLitres)/SourceInputsAttenuation!$C$33,"") -> 5.772807694e-05 | R5: =IF(R$1="Decline",SourceInputsAttenuation!$E$19*EXP(-1*(SourceInputsAttenuation!$I$19*SrcDecline!Q5)),SourceInputsAttenuation!$E$19) -> 0.1999965016 | S5: =IF(S4<1000,S4+1,S4+10) -> 2 | T5: =IF(U$1="Decline",(S5*QsrcLitres)/SourceInputsAttenuation!$C$33,"") -> 5.772807694e-05 | U5: =IF(U$1="Decline",SourceInputsAttenuation!$E$20*EXP(-1*(SourceInputsAttenuation!$I$20*SrcDecline!T5)),SourceInputsAttenuation!$E$20) -> 0.04999945042
A6: 3 | B6: =IF(C$1="Decline",(A6*QsrcLitres)/(SourceInputsAttenuation!$C$33),"") -> 8.659211542e-05 | C6: =IF(C$1="Decline",SourceInputsAttenuation!$E$14*EXP(-1*((SourceInputsAttenuation!$I$14)*SrcDecline!B6)),SourceInputsAttenuation!$E$14) -> 0.04999967031 | D6: 3 | E6: =IF(F$1="Decline",(D6*QsrcLitres)/SourceInputsAttenuation!$C$33,"") -> 8.659211542e-05 | F6: =IF(F$1="Decline",SourceInputsAttenuation!$E$15*EXP(-1*(SourceInputsAttenuation!$I$15*SrcDecline!E6)),SourceInputsAttenuation!$E$15) -> 0.000999985773 | G6: 3 | H6: =IF(I$1="Decline",(G6*QsrcLitres)/SourceInputsAttenuation!$C$33,"") -> 8.659211542e-05 | I6: =IF(I$1="Decline",SourceInputsAttenuation!$E$16*EXP(-1*(SourceInputsAttenuation!$I$16*SrcDecline!E6)),SourceInputsAttenuation!$E$16) -> 0.8694628379 | J6: 3 | K6: =IF(L$1="Decline",(J6*QsrcLitres)/SourceInputsAttenuation!$C$33,"") -> 8.659211542e-05 | L6: =IF(L$1="Decline",SourceInputsAttenuation!$E$17*EXP(-1*(SourceInputsAttenuation!$I$17*SrcDecline!K6)),SourceInputsAttenuation!$E$17) -> 0.003999905445 | M6: 3 | N6: =IF(O$1="Decline",(M6*QsrcLitres)/SourceInputsAttenuation!$C$33,"") -> 8.659211542e-05 | O6: =IF(O$1="Decline",SourceInputsAttenuation!$E$18*EXP(-1*(SourceInputsAttenuation!$I$18*SrcDecline!N6)),SourceInputsAttenuation!$E$18) -> 0.3999896937 | P6: 3 | Q6: =IF(R$1="Decline",(P6*QsrcLitres)/SourceInputsAttenuation!$C$33,"") -> 8.659211542e-05 | R6: =IF(R$1="Decline",SourceInputsAttenuation!$E$19*EXP(-1*(SourceInputsAttenuation!$I$19*SrcDecline!Q6)),SourceInputsAttenuation!$E$19) -> 0.1999947524 | S6: 3 | T6: =IF(U$1="Decline",(S6*QsrcLitres)/SourceInputsAttenuation!$C$33,"") -> 8.659211542e-05 | U6: =IF(U$1="Decline",SourceInputsAttenuation!$E$20*EXP(-1*(SourceInputsAttenuation!$I$20*SrcDecline!T6)),SourceInputsAttenuation!$E$20) -> 0.04999917564
A7: 4 | B7: =IF(C$1="Decline",(A7*QsrcLitres)/(SourceInputsAttenuation!$C$33),"") -> 0.0001154561539 | C7: =IF(C$1="Decline",SourceInputsAttenuation!$E$14*EXP(-1*((SourceInputsAttenuation!$I$14)*SrcDecline!B7)),SourceInputsAttenuation!$E$14) -> 0.04999956041 | D7: 4 | E7: =IF(F$1="Decline",(D7*QsrcLitres)/SourceInputsAttenuation!$C$33,"") -> 0.0001154561539 | F7: =IF(F$1="Decline",SourceInputsAttenuation!$E$15*EXP(-1*(SourceInputsAttenuation!$I$15*SrcDecline!E7)),SourceInputsAttenuation!$E$15) -> 0.0009999810307 | G7: 4 | H7: =IF(I$1="Decline",(G7*QsrcLitres)/SourceInputsAttenuation!$C$33,"") -> 0.0001154561539 | I7: =IF(I$1="Decline",SourceInputsAttenuation!$E$16*EXP(-1*(SourceInputsAttenuation!$I$16*SrcDecline!E7)),SourceInputsAttenuation!$E$16) -> 0.8694504509 | J7: 4 | K7: =IF(L$1="Decline",(J7*QsrcLitres)/SourceInputsAttenuation!$C$33,"") -> 0.0001154561539 | L7: =IF(L$1="Decline",SourceInputsAttenuation!$E$17*EXP(-1*(SourceInputsAttenuation!$I$17*SrcDecline!K7)),SourceInputsAttenuation!$E$17) -> 0.003999873928 | M7: 4 | N7: =IF(O$1="Decline",(M7*QsrcLitres)/SourceInputsAttenuation!$C$33,"") -> 0.0001154561539 | O7: =IF(O$1="Decline",SourceInputsAttenuation!$E$18*EXP(-1*(SourceInputsAttenuation!$I$18*SrcDecline!N7)),SourceInputsAttenuation!$E$18) -> 0.3999862584 | P7: 4 | Q7: =IF(R$1="Decline",(P7*QsrcLitres)/SourceInputsAttenuation!$C$33,"") -> 0.0001154561539 | R7: =IF(R$1="Decline",SourceInputsAttenuation!$E$19*EXP(-1*(SourceInputsAttenuation!$I$19*SrcDecline!Q7)),SourceInputsAttenuation!$E$19) -> 0.1999930033 | S7: 4 | T7: =IF(U$1="Decline",(S7*QsrcLitres)/SourceInputsAttenuation!$C$33,"") -> 0.0001154561539 | U7: =IF(U$1="Decline",SourceInputsAttenuation!$E$20*EXP(-1*(SourceInputsAttenuation!$I$20*SrcDecline!T7)),SourceInputsAttenuation!$E$20) -> 0.04999890085
A8: 5 | B8: =IF(C$1="Decline",(A8*QsrcLitres)/(SourceInputsAttenuation!$C$33),"") -> 0.0001443201924 | C8: =IF(C$1="Decline",SourceInputsAttenuation!$E$14*EXP(-1*((SourceInputsAttenuation!$I$14)*SrcDecline!B8)),SourceInputsAttenuation!$E$14) -> 0.04999945051 | D8: 5 | E8: =IF(F$1="Decline",(D8*QsrcLitres)/SourceInputsAttenuation!$C$33,"") -> 0.0001443201924 | F8: =IF(F$1="Decline",SourceInputsAttenuation!$E$15*EXP(-1*(SourceInputsAttenuation!$I$15*SrcDecline!E8)),SourceInputsAttenuation!$E$15) -> 0.0009999762885 | G8: 5 | H8: =IF(I$1="Decline",(G8*QsrcLitres)/SourceInputsAttenuation!$C$33,"") -> 0.0001443201924 | I8: =IF(I$1="Decline",SourceInputsAttenuation!$E$16*EXP(-1*(SourceInputsAttenuation!$I$16*SrcDecline!E8)),SourceInputsAttenuation!$E$16) -> 0.8694380641 | J8: 5 | K8: =IF(L$1="Decline",(J8*QsrcLitres)/SourceInputsAttenuation!$C$33,"") -> 0.0001443201924 | L8: =IF(L$1="Decline",SourceInputsAttenuation!$E$17*EXP(-1*(SourceInputsAttenuation!$I$17*SrcDecline!K8)),SourceInputsAttenuation!$E$17) -> 0.00399984241 | M8: 5 | N8: =IF(O$1="Decline",(M8*QsrcLitres)/SourceInputsAttenuation!$C$33,"") -> 0.0001443201924 | O8: =IF(O$1="Decline",SourceInputsAttenuation!$E$18*EXP(-1*(SourceInputsAttenuation!$I$18*SrcDecline!N8)),SourceInputsAttenuation!$E$18) -> 0.399982823 | P8: 5 | Q8: =IF(R$1="Decline",(P8*QsrcLitres)/SourceInputsAttenuation!$C$33,"") -> 0.0001443201924 | R8: =IF(R$1="Decline",SourceInputsAttenuation!$E$19*EXP(-1*(SourceInputsAttenuation!$I$19*SrcDecline!Q8)),SourceInputsAttenuation!$E$19) -> 0.1999912541 | S8: 5 | T8: =IF(U$1="Decline",(S8*QsrcLitres)/SourceInputsAttenuation!$C$33,"") -> 0.0001443201924 | U8: =IF(U$1="Decline",SourceInputsAttenuation!$E$20*EXP(-1*(SourceInputsAttenuation!$I$20*SrcDecline!T8)),SourceInputsAttenuation!$E$20) -> 0.04999862607
A9: 6 | B9: =IF(C$1="Decline",(A9*QsrcLitres)/(SourceInputsAttenuation!$C$33),"") -> 0.0001731842308 | C9: =IF(C$1="Decline",SourceInputsAttenuation!$E$14*EXP(-1*((SourceInputsAttenuation!$I$14)*SrcDecline!B9)),SourceInputsAttenuation!$E$14) -> 0.04999934061 | D9: 6 | E9: =IF(F$1="Decline",(D9*QsrcLitres)/SourceInputsAttenuation!$C$33,"") -> 0.0001731842308 | F9: =IF(F$1="Decline",SourceInputsAttenuation!$E$15*EXP(-1*(SourceInputsAttenuation!$I$15*SrcDecline!E9)),SourceInputsAttenuation!$E$15) -> 0.0009999715462 | G9: 6 | H9: =IF(I$1="Decline",(G9*QsrcLitres)/SourceInputsAttenuation!$C$33,"") -> 0.0001731842308 | I9: =IF(I$1="Decline",SourceInputsAttenuation!$E$16*EXP(-1*(SourceInputsAttenuation!$I$16*SrcDecline!E9)),SourceInputsAttenuation!$E$16) -> 0.8694256775 | J9: 6 | K9: =IF(L$1="Decline",(J9*QsrcLitres)/SourceInputsAttenuation!$C$33,"") -> 0.0001731842308 | L9: =IF(L$1="Decline",SourceInputsAttenuation!$E$17*EXP(-1*(SourceInputsAttenuation!$I$17*SrcDecline!K9)),SourceInputsAttenuation!$E$17) -> 0.003999810893 | M9: 6 | N9: =IF(O$1="Decline",(M9*QsrcLitres)/SourceInputsAttenuation!$C$33,"") -> 0.0001731842308 | O9: =IF(O$1="Decline",SourceInputsAttenuation!$E$18*EXP(-1*(SourceInputsAttenuation!$I$18*SrcDecline!N9)),SourceInputsAttenuation!$E$18) -> 0.3999793877 | P9: 6 | Q9: =IF(R$1="Decline",(P9*QsrcLitres)/SourceInputsAttenuation!$C$33,"") -> 0.0001731842308 | R9: =IF(R$1="Decline",SourceInputsAttenuation!$E$19*EXP(-1*(SourceInputsAttenuation!$I$19*SrcDecline!Q9)),SourceInputsAttenuation!$E$19) -> 0.199989505 | S9: 6 | T9: =IF(U$1="Decline",(S9*QsrcLitres)/SourceInputsAttenuation!$C$33,"") -> 0.0001731842308 | U9: =IF(U$1="Decline",SourceInputsAttenuation!$E$20*EXP(-1*(SourceInputsAttenuation!$I$20*SrcDecline!T9)),SourceInputsAttenuation!$E$20) -> 0.04999835129
A10: 7 | B10: =IF(C$1="Decline",(A10*QsrcLitres)/(SourceInputsAttenuation!$C$33),"") -> 0.0002020482693 | C10: =IF(C$1="Decline",SourceInputsAttenuation!$E$14*EXP(-1*((SourceInputsAttenuation!$I$14)*SrcDecline!B10)),SourceInputsAttenuation!$E$14) -> 0.04999923072 | D10: 7 | E10: =IF(F$1="Decline",(D10*QsrcLitres)/SourceInputsAttenuation!$C$33,"") -> 0.0002020482693 | F10: =IF(F$1="Decline",SourceInputsAttenuation!$E$15*EXP(-1*(SourceInputsAttenuation!$I$15*SrcDecline!E10)),SourceInputsAttenuation!$E$15) -> 0.000999966804 | G10: 7 | H10: =IF(I$1="Decline",(G10*QsrcLitres)/SourceInputsAttenuation!$C$33,"") -> 0.0002020482693 | I10: =IF(I$1="Decline",SourceInputsAttenuation!$E$16*EXP(-1*(SourceInputsAttenuation!$I$16*SrcDecline!E10)),SourceInputsAttenuation!$E$16) -> 0.869413291 | J10: 7 | K10: =IF(L$1="Decline",(J10*QsrcLitres)/SourceInputsAttenuation!$C$33,"") -> 0.0002020482693 | L10: =IF(L$1="Decline",SourceInputsAttenuation!$E$17*EXP(-1*(SourceInputsAttenuation!$I$17*SrcDecline!K10)),SourceInputsAttenuation!$E$17) -> 0.003999779376 | M10: 7 | N10: =IF(O$1="Decline",(M10*QsrcLitres)/SourceInputsAttenuation!$C$33,"") -> 0.0002020482693 | O10: =IF(O$1="Decline",SourceInputsAttenuation!$E$18*EXP(-1*(SourceInputsAttenuation!$I$18*SrcDecline!N10)),SourceInputsAttenuation!$E$18) -> 0.3999759525 | P10: 7 | Q10: =IF(R$1="Decline",(P10*QsrcLitres)/SourceInputsAttenuation!$C$33,"") -> 0.0002020482693 | R10: =IF(R$1="Decline",SourceInputsAttenuation!$E$19*EXP(-1*(SourceInputsAttenuation!$I$19*SrcDecline!Q10)),SourceInputsAttenuation!$E$19) -> 0.1999877559 | S10: 7 | T10: =IF(U$1="Decline",(S10*QsrcLitres)/SourceInputsAttenuation!$C$33,"") -> 0.0002020482693 | U10: =IF(U$1="Decline",SourceInputsAttenuation!$E$20*EXP(-1*(SourceInputsAttenuation!$I$20*SrcDecline!T10)),SourceInputsAttenuation!$E$20) -> 0.04999807651
A11: 8 | B11: =IF(C$1="Decline",(A11*QsrcLitres)/(SourceInputsAttenuation!$C$33),"") -> 0.0002309123078 | C11: =IF(C$1="Decline",SourceInputsAttenuation!$E$14*EXP(-1*((SourceInputsAttenuation!$I$14)*SrcDecline!B11)),SourceInputsAttenuation!$E$14) -> 0.04999912082 | D11: 8 | E11: =IF(F$1="Decline",(D11*QsrcLitres)/SourceInputsAttenuation!$C$33,"") -> 0.0002309123078 | F11: =IF(F$1="Decline",SourceInputsAttenuation!$E$15*EXP(-1*(SourceInputsAttenuation!$I$15*SrcDecline!E11)),SourceInputsAttenuation!$E$15) -> 0.0009999620618 | G11: 8 | H11: =IF(I$1="Decline",(G11*QsrcLitres)/SourceInputsAttenuation!$C$33,"") -> 0.0002309123078 | I11: =IF(I$1="Decline",SourceInputsAttenuation!$E$16*EXP(-1*(SourceInputsAttenuation!$I$16*SrcDecline!E11)),SourceInputsAttenuation!$E$16) -> 0.8694009047 | J11: 8 | K11: =IF(L$1="Decline",(J11*QsrcLitres)/SourceInputsAttenuation!$C$33,"") -> 0.0002309123078 | L11: =IF(L$1="Decline",SourceInputsAttenuation!$E$17*EXP(-1*(SourceInputsAttenuation!$I$17*SrcDecline!K11)),SourceInputsAttenuation!$E$17) -> 0.003999747859 | M11: 8 | N11: =IF(O$1="Decline",(M11*QsrcLitres)/SourceInputsAttenuation!$C$33,"") -> 0.0002309123078 | O11: =IF(O$1="Decline",SourceInputsAttenuation!$E$18*EXP(-1*(SourceInputsAttenuation!$I$18*SrcDecline!N11)),SourceInputsAttenuation!$E$18) -> 0.3999725172 | P11: 8 | Q11: =IF(R$1="Decline",(P11*QsrcLitres)/SourceInputsAttenuation!$C$33,"") -> 0.0002309123078 | R11: =IF(R$1="Decline",SourceInputsAttenuation!$E$19*EXP(-1*(SourceInputsAttenuation!$I$19*SrcDecline!Q11)),SourceInputsAttenuation!$E$19) -> 0.1999860068 | S11: 8 | T11: =IF(U$1="Decline",(S11*QsrcLitres)/SourceInputsAttenuation!$C$33,"") -> 0.0002309123078 | U11: =IF(U$1="Decline",SourceInputsAttenuation!$E$20*EXP(-1*(SourceInputsAttenuation!$I$20*SrcDecline!T11)),SourceInputsAttenuation!$E$20) -> 0.04999780173
A12: 9 | B12: =IF(C$1="Decline",(A12*QsrcLitres)/(SourceInputsAttenuation!$C$33),"") -> 0.0002597763462 | C12: =IF(C$1="Decline",SourceInputsAttenuation!$E$14*EXP(-1*((SourceInputsAttenuation!$I$14)*SrcDecline!B12)),SourceInputsAttenuation!$E$14) -> 0.04999901092 | D12: 9 | E12: =IF(F$1="Decline",(D12*QsrcLitres)/SourceInputsAttenuation!$C$33,"") -> 0.0002597763462 | F12: =IF(F$1="Decline",SourceInputsAttenuation!$E$15*EXP(-1*(SourceInputsAttenuation!$I$15*SrcDecline!E12)),SourceInputsAttenuation!$E$15) -> 0.0009999573197 | G12: 9 | H12: =IF(I$1="Decline",(G12*QsrcLitres)/SourceInputsAttenuation!$C$33,"") -> 0.0002597763462 | I12: =IF(I$1="Decline",SourceInputsAttenuation!$E$16*EXP(-1*(SourceInputsAttenuation!$I$16*SrcDecline!E12)),SourceInputsAttenuation!$E$16) -> 0.8693885186 | J12: 9 | K12: =IF(L$1="Decline",(J12*QsrcLitres)/SourceInputsAttenuation!$C$33,"") -> 0.0002597763462 | L12: =IF(L$1="Decline",SourceInputsAttenuation!$E$17*EXP(-1*(SourceInputsAttenuation!$I$17*SrcDecline!K12)),SourceInputsAttenuation!$E$17) -> 0.003999716343 | M12: 9 | N12: =IF(O$1="Decline",(M12*QsrcLitres)/SourceInputsAttenuation!$C$33,"") -> 0.0002597763462 | O12: =IF(O$1="Decline",SourceInputsAttenuation!$E$18*EXP(-1*(SourceInputsAttenuation!$I$18*SrcDecline!N12)),SourceInputsAttenuation!$E$18) -> 0.399969082 | P12: 9 | Q12: =IF(R$1="Decline",(P12*QsrcLitres)/SourceInputsAttenuation!$C$33,"") -> 0.0002597763462 | R12: =IF(R$1="Decline",SourceInputsAttenuation!$E$19*EXP(-1*(SourceInputsAttenuation!$I$19*SrcDecline!Q12)),SourceInputsAttenuation!$E$19) -> 0.1999842577 | S12: 9 | T12: =IF(U$1="Decline",(S12*QsrcLitres)/SourceInputsAttenuation!$C$33,"") -> 0.0002597763462 | U12: =IF(U$1="Decline",SourceInputsAttenuation!$E$20*EXP(-1*(SourceInputsAttenuation!$I$20*SrcDecline!T12)),SourceInputsAttenuation!$E$20) -> 0.04999752696
A13: 10 | B13: =IF(C$1="Decline",(A13*QsrcLitres)/(SourceInputsAttenuation!$C$33),"") -> 0.0002886403847 | C13: =IF(C$1="Decline",SourceInputsAttenuation!$E$14*EXP(-1*((SourceInputsAttenuation!$I$14)*SrcDecline!B13)),SourceInputsAttenuation!$E$14) -> 0.04999890103 | D13: 10 | E13: =IF(F$1="Decline",(D13*QsrcLitres)/SourceInputsAttenuation!$C$33,"") -> 0.0002886403847 | F13: =IF(F$1="Decline",SourceInputsAttenuation!$E$15*EXP(-1*(SourceInputsAttenuation!$I$15*SrcDecline!E13)),SourceInputsAttenuation!$E$15) -> 0.0009999525775 | G13: 10 | H13: =IF(I$1="Decline",(G13*QsrcLitres)/SourceInputsAttenuation!$C$33,"") -> 0.0002886403847 | I13: =IF(I$1="Decline",SourceInputsAttenuation!$E$16*EXP(-1*(SourceInputsAttenuation!$I$16*SrcDecline!E13)),SourceInputsAttenuation!$E$16) -> 0.8693761327 | J13: 10 | K13: =IF(L$1="Decline",(J13*QsrcLitres)/SourceInputsAttenuation!$C$33,"") -> 0.0002886403847 | L13: =IF(L$1="Decline",SourceInputsAttenuation!$E$17*EXP(-1*(SourceInputsAttenuation!$I$17*SrcDecline!K13)),SourceInputsAttenuation!$E$17) -> 0.003999684826 | M13: 10 | N13: =IF(O$1="Decline",(M13*QsrcLitres)/SourceInputsAttenuation!$C$33,"") -> 0.0002886403847 | O13: =IF(O$1="Decline",SourceInputsAttenuation!$E$18*EXP(-1*(SourceInputsAttenuation!$I$18*SrcDecline!N13)),SourceInputsAttenuation!$E$18) -> 0.3999656468 | P13: 10 | Q13: =IF(R$1="Decline",(P13*QsrcLitres)/SourceInputsAttenuation!$C$33,"") -> 0.0002886403847 | R13: =IF(R$1="Decline",SourceInputsAttenuation!$E$19*EXP(-1*(SourceInputsAttenuation!$I$19*SrcDecline!Q13)),SourceInputsAttenuation!$E$19) -> 0.1999825087 | S13: 10 | T13: =IF(U$1="Decline",(S13*QsrcLitres)/SourceInputsAttenuation!$C$33,"") -> 0.0002886403847 | U13: =IF(U$1="Decline",SourceInputsAttenuation!$E$20*EXP(-1*(SourceInputsAttenuation!$I$20*SrcDecline!T13)),SourceInputsAttenuation!$E$20) -> 0.04999725218
A14: 11 | B14: =IF(C$1="Decline",(A14*QsrcLitres)/(SourceInputsAttenuation!$C$33),"") -> 0.0003175044232 | C14: =IF(C$1="Decline",SourceInputsAttenuation!$E$14*EXP(-1*((SourceInputsAttenuation!$I$14)*SrcDecline!B14)),SourceInputsAttenuation!$E$14) -> 0.04999879113 | D14: 11 | E14: =IF(F$1="Decline",(D14*QsrcLitres)/SourceInputsAttenuation!$C$33,"") -> 0.0003175044232 | F14: =IF(F$1="Decline",SourceInputsAttenuation!$E$15*EXP(-1*(SourceInputsAttenuation!$I$15*SrcDecline!E14)),SourceInputsAttenuation!$E$15) -> 0.0009999478354 | G14: 11 | H14: =IF(I$1="Decline",(G14*QsrcLitres)/SourceInputsAttenuation!$C$33,"") -> 0.0003175044232 | I14: =IF(I$1="Decline",SourceInputsAttenuation!$E$16*EXP(-1*(SourceInputsAttenuation!$I$16*SrcDecline!E14)),SourceInputsAttenuation!$E$16) -> 0.8693637469 | J14: 11 | K14: =IF(L$1="Decline",(J14*QsrcLitres)/SourceInputsAttenuation!$C$33,"") -> 0.0003175044232 | L14: =IF(L$1="Decline",SourceInputsAttenuation!$E$17*EXP(-1*(SourceInputsAttenuation!$I$17*SrcDecline!K14)),SourceInputsAttenuation!$E$17) -> 0.00399965331 | M14: 11 | N14: =IF(O$1="Decline",(M14*QsrcLitres)/SourceInputsAttenuation!$C$33,"") -> 0.0003175044232 | O14: =IF(O$1="Decline",SourceInputsAttenuation!$E$18*EXP(-1*(SourceInputsAttenuation!$I$18*SrcDecline!N14)),SourceInputsAttenuation!$E$18) -> 0.3999622116 | P14: 11 | Q14: =IF(R$1="Decline",(P14*QsrcLitres)/SourceInputsAttenuation!$C$33,"") -> 0.0003175044232 | R14: =IF(R$1="Decline",SourceInputsAttenuation!$E$19*EXP(-1*(SourceInputsAttenuation!$I$19*SrcDecline!Q14)),SourceInputsAttenuation!$E$19) -> 0.1999807596 | S14: 11 | T14: =IF(U$1="Decline",(S14*QsrcLitres)/SourceInputsAttenuation!$C$33,"") -> 0.0003175044232 | U14: =IF(U$1="Decline",SourceInputsAttenuation!$E$20*EXP(-1*(SourceInputsAttenuation!$I$20*SrcDecline!T14)),SourceInputsAttenuation!$E$20) -> 0.04999697741
A15: 12 | B15: =IF(C$1="Decline",(A15*QsrcLitres)/(SourceInputsAttenuation!$C$33),"") -> 0.0003463684617 | C15: =IF(C$1="Decline",SourceInputsAttenuation!$E$14*EXP(-1*((SourceInputsAttenuation!$I$14)*SrcDecline!B15)),SourceInputsAttenuation!$E$14) -> 0.04999868124 | D15: 12 | E15: =IF(F$1="Decline",(D15*QsrcLitres)/SourceInputsAttenuation!$C$33,"") -> 0.0003463684617 | F15: =IF(F$1="Decline",SourceInputsAttenuation!$E$15*EXP(-1*(SourceInputsAttenuation!$I$15*SrcDecline!E15)),SourceInputsAttenuation!$E$15) -> 0.0009999430933 | G15: 12 | H15: =IF(I$1="Decline",(G15*QsrcLitres)/SourceInputsAttenuation!$C$33,"") -> 0.0003463684617 | I15: =IF(I$1="Decline",SourceInputsAttenuation!$E$16*EXP(-1*(SourceInputsAttenuation!$I$16*SrcDecline!E15)),SourceInputsAttenuation!$E$16) -> 0.8693513613 | J15: 12 | K15: =IF(L$1="Decline",(J15*QsrcLitres)/SourceInputsAttenuation!$C$33,"") -> 0.0003463684617 | L15: =IF(L$1="Decline",SourceInputsAttenuation!$E$17*EXP(-1*(SourceInputsAttenuation!$I$17*SrcDecline!K15)),SourceInputsAttenuation!$E$17) -> 0.003999621795 | M15: 12 | N15: =IF(O$1="Decline",(M15*QsrcLitres)/SourceInputsAttenuation!$C$33,"") -> 0.0003463684617 | O15: =IF(O$1="Decline",SourceInputsAttenuation!$E$18*EXP(-1*(SourceInputsAttenuation!$I$18*SrcDecline!N15)),SourceInputsAttenuation!$E$18) -> 0.3999587765 | P15: 12 | Q15: =IF(R$1="Decline",(P15*QsrcLitres)/SourceInputsAttenuation!$C$33,"") -> 0.0003463684617 | R15: =IF(R$1="Decline",SourceInputsAttenuation!$E$19*EXP(-1*(SourceInputsAttenuation!$I$19*SrcDecline!Q15)),SourceInputsAttenuation!$E$19) -> 0.1999790106 | S15: 12 | T15: =IF(U$1="Decline",(S15*QsrcLitres)/SourceInputsAttenuation!$C$33,"") -> 0.0003463684617 | U15: =IF(U$1="Decline",SourceInputsAttenuation!$E$20*EXP(-1*(SourceInputsAttenuation!$I$20*SrcDecline!T15)),SourceInputsAttenuation!$E$20) -> 0.04999670264
A16: 13 | B16: =IF(C$1="Decline",(A16*QsrcLitres)/(SourceInputsAttenuation!$C$33),"") -> 0.0003752325001 | C16: =IF(C$1="Decline",SourceInputsAttenuation!$E$14*EXP(-1*((SourceInputsAttenuation!$I$14)*SrcDecline!B16)),SourceInputsAttenuation!$E$14) -> 0.04999857134 | D16: 13 | E16: =IF(F$1="Decline",(D16*QsrcLitres)/SourceInputsAttenuation!$C$33,"") -> 0.0003752325001 | F16: =IF(F$1="Decline",SourceInputsAttenuation!$E$15*EXP(-1*(SourceInputsAttenuation!$I$15*SrcDecline!E16)),SourceInputsAttenuation!$E$15) -> 0.0009999383512 | G16: 13 | H16: =IF(I$1="Decline",(G16*QsrcLitres)/SourceInputsAttenuation!$C$33,"") -> 0.0003752325001 | I16: =IF(I$1="Decline",SourceInputsAttenuation!$E$16*EXP(-1*(SourceInputsAttenuation!$I$16*SrcDecline!E16)),SourceInputsAttenuation!$E$16) -> 0.8693389759 | J16: 13 | K16: =IF(L$1="Decline",(J16*QsrcLitres)/SourceInputsAttenuation!$C$33,"") -> 0.0003752325001 | L16: =IF(L$1="Decline",SourceInputsAttenuation!$E$17*EXP(-1*(SourceInputsAttenuation!$I$17*SrcDecline!K16)),SourceInputsAttenuation!$E$17) -> 0.003999590279 | M16: 13 | N16: =IF(O$1="Decline",(M16*QsrcLitres)/SourceInputsAttenuation!$C$33,"") -> 0.0003752325001 | O16: =IF(O$1="Decline",SourceInputsAttenuation!$E$18*EXP(-1*(SourceInputsAttenuation!$I$18*SrcDecline!N16)),SourceInputsAttenuation!$E$18) -> 0.3999553414 | P16: 13 | Q16: =IF(R$1="Decline",(P16*QsrcLitres)/SourceInputsAttenuation!$C$33,"") -> 0.0003752325001 | R16: =IF(R$1="Decline",SourceInputsAttenuation!$E$19*EXP(-1*(SourceInputsAttenuation!$I$19*SrcDecline!Q16)),SourceInputsAttenuation!$E$19) -> 0.1999772616 | S16: 13 | T16: =IF(U$1="Decline",(S16*QsrcLitres)/SourceInputsAttenuation!$C$33,"") -> 0.0003752325001 | U16: =IF(U$1="Decline",SourceInputsAttenuation!$E$20*EXP(-1*(SourceInputsAttenuation!$I$20*SrcDecline!T16)),SourceInputsAttenuation!$E$20) -> 0.04999642787
A17: 14 | B17: =IF(C$1="Decline",(A17*QsrcLitres)/(SourceInputsAttenuation!$C$33),"") -> 0.0004040965386 | C17: =IF(C$1="Decline",SourceInputsAttenuation!$E$14*EXP(-1*((SourceInputsAttenuation!$I$14)*SrcDecline!B17)),SourceInputsAttenuation!$E$14) -> 0.04999846145 | D17: 14 | E17: =IF(F$1="Decline",(D17*QsrcLitres)/SourceInputsAttenuation!$C$33,"") -> 0.0004040965386 | F17: =IF(F$1="Decline",SourceInputsAttenuation!$E$15*EXP(-1*(SourceInputsAttenuation!$I$15*SrcDecline!E17)),SourceInputsAttenuation!$E$15) -> 0.0009999336091 | G17: 14 | H17: =IF(I$1="Decline",(G17*QsrcLitres)/SourceInputsAttenuation!$C$33,"") -> 0.0004040965386 | I17: =IF(I$1="Decline",SourceInputsAttenuation!$E$16*EXP(-1*(SourceInputsAttenuation!$I$16*SrcDecline!E17)),SourceInputsAttenuation!$E$16) -> 0.8693265907 | J17: 14 | K17: =IF(L$1="Decline",(J17*QsrcLitres)/SourceInputsAttenuation!$C$33,"") -> 0.0004040965386 | L17: =IF(L$1="Decline",SourceInputsAttenuation!$E$17*EXP(-1*(SourceInputsAttenuation!$I$17*SrcDecline!K17)),SourceInputsAttenuation!$E$17) -> 0.003999558764 | M17: 14 | N17: =IF(O$1="Decline",(M17*QsrcLitres)/SourceInputsAttenuation!$C$33,"") -> 0.0004040965386 | O17: =IF(O$1="Decline",SourceInputsAttenuation!$E$18*EXP(-1*(SourceInputsAttenuation!$I$18*SrcDecline!N17)),SourceInputsAttenuation!$E$18) -> 0.3999519063 | P17: 14 | Q17: =IF(R$1="Decline",(P17*QsrcLitres)/SourceInputsAttenuation!$C$33,"") -> 0.0004040965386 | R17: =IF(R$1="Decline",SourceInputsAttenuation!$E$19*EXP(-1*(SourceInputsAttenuation!$I$19*SrcDecline!Q17)),SourceInputsAttenuation!$E$19) -> 0.1999755126 | S17: 14 | T17: =IF(U$1="Decline",(S17*QsrcLitres)/SourceInputsAttenuation!$C$33,"") -> 0.0004040965386 | U17: =IF(U$1="Decline",SourceInputsAttenuation!$E$20*EXP(-1*(SourceInputsAttenuation!$I$20*SrcDecline!T17)),SourceInputsAttenuation!$E$20) -> 0.0499961531
A18: 15 | B18: =IF(C$1="Decline",(A18*QsrcLitres)/(SourceInputsAttenuation!$C$33),"") -> 0.0004329605771 | C18: =IF(C$1="Decline",SourceInputsAttenuation!$E$14*EXP(-1*((SourceInputsAttenuation!$I$14)*SrcDecline!B18)),SourceInputsAttenuation!$E$14) -> 0.04999835155 | D18: 15 | E18: =IF(F$1="Decline",(D18*QsrcLitres)/SourceInputsAttenuation!$C$33,"") -> 0.0004329605771 | F18: =IF(F$1="Decline",SourceInputsAttenuation!$E$15*EXP(-1*(SourceInputsAttenuation!$I$15*SrcDecline!E18)),SourceInputsAttenuation!$E$15) -> 0.0009999288671 | G18: 15 | H18: =IF(I$1="Decline",(G18*QsrcLitres)/SourceInputsAttenuation!$C$33,"") -> 0.0004329605771 | I18: =IF(I$1="Decline",SourceInputsAttenuation!$E$16*EXP(-1*(SourceInputsAttenuation!$I$16*SrcDecline!E18)),SourceInputsAttenuation!$E$16) -> 0.8693142056 | J18: 15 | K18: =IF(L$1="Decline",(J18*QsrcLitres)/SourceInputsAttenuation!$C$33,"") -> 0.0004329605771 | L18: =IF(L$1="Decline",SourceInputsAttenuation!$E$17*EXP(-1*(SourceInputsAttenuation!$I$17*SrcDecline!K18)),SourceInputsAttenuation!$E$17) -> 0.003999527249 | M18: 15 | N18: =IF(O$1="Decline",(M18*QsrcLitres)/SourceInputsAttenuation!$C$33,"") -> 0.0004329605771 | O18: =IF(O$1="Decline",SourceInputsAttenuation!$E$18*EXP(-1*(SourceInputsAttenuation!$I$18*SrcDecline!N18)),SourceInputsAttenuation!$E$18) -> 0.3999484713 | P18: 15 | Q18: =IF(R$1="Decline",(P18*QsrcLitres)/SourceInputsAttenuation!$C$33,"") -> 0.0004329605771 | R18: =IF(R$1="Decline",SourceInputsAttenuation!$E$19*EXP(-1*(SourceInputsAttenuation!$I$19*SrcDecline!Q18)),SourceInputsAttenuation!$E$19) -> 0.1999737636 | S18: 15 | T18: =IF(U$1="Decline",(S18*QsrcLitres)/SourceInputsAttenuation!$C$33,"") -> 0.0004329605771 | U18: =IF(U$1="Decline",SourceInputsAttenuation!$E$20*EXP(-1*(SourceInputsAttenuation!$I$20*SrcDecline!T18)),SourceInputsAttenuation!$E$20) -> 0.04999587833
A19: 16 | B19: =IF(C$1="Decline",(A19*QsrcLitres)/(SourceInputsAttenuation!$C$33),"") -> 0.0004618246156 | C19: =IF(C$1="Decline",SourceInputsAttenuation!$E$14*EXP(-1*((SourceInputsAttenuation!$I$14)*SrcDecline!B19)),SourceInputsAttenuation!$E$14) -> 0.04999824166 | D19: 16 | E19: =IF(F$1="Decline",(D19*QsrcLitres)/SourceInputsAttenuation!$C$33,"") -> 0.0004618246156 | F19: =IF(F$1="Decline",SourceInputsAttenuation!$E$15*EXP(-1*(SourceInputsAttenuation!$I$15*SrcDecline!E19)),SourceInputsAttenuation!$E$15) -> 0.0009999241251 | G19: 16 | H19: =IF(I$1="Decline",(G19*QsrcLitres)/SourceInputsAttenuation!$C$33,"") -> 0.0004618246156 | I19: =IF(I$1="Decline",SourceInputsAttenuation!$E$16*EXP(-1*(SourceInputsAttenuation!$I$16*SrcDecline!E19)),SourceInputsAttenuation!$E$16) -> 0.8693018207 | J19: 16 | K19: =IF(L$1="Decline",(J19*QsrcLitres)/SourceInputsAttenuation!$C$33,"") -> 0.0004618246156 | L19: =IF(L$1="Decline",SourceInputsAttenuation!$E$17*EXP(-1*(SourceInputsAttenuation!$I$17*SrcDecline!K19)),SourceInputsAttenuation!$E$17) -> 0.003999495734 | M19: 16 | N19: =IF(O$1="Decline",(M19*QsrcLitres)/SourceInputsAttenuation!$C$33,"") -> 0.0004618246156 | O19: =IF(O$1="Decline",SourceInputsAttenuation!$E$18*EXP(-1*(SourceInputsAttenuation!$I$18*SrcDecline!N19)),SourceInputsAttenuation!$E$18) -> 0.3999450363 | P19: 16 | Q19: =IF(R$1="Decline",(P19*QsrcLitres)/SourceInputsAttenuation!$C$33,"") -> 0.0004618246156 | R19: =IF(R$1="Decline",SourceInputsAttenuation!$E$19*EXP(-1*(SourceInputsAttenuation!$I$19*SrcDecline!Q19)),SourceInputsAttenuation!$E$19) -> 0.1999720146 | S19: 16 | T19: =IF(U$1="Decline",(S19*QsrcLitres)/SourceInputsAttenuation!$C$33,"") -> 0.0004618246156 | U19: =IF(U$1="Decline",SourceInputsAttenuation!$E$20*EXP(-1*(SourceInputsAttenuation!$I$20*SrcDecline!T19)),SourceInputsAttenuation!$E$20) -> 0.04999560356
A20: 17 | B20: =IF(C$1="Decline",(A20*QsrcLitres)/(SourceInputsAttenuation!$C$33),"") -> 0.000490688654 | C20: =IF(C$1="Decline",SourceInputsAttenuation!$E$14*EXP(-1*((SourceInputsAttenuation!$I$14)*SrcDecline!B20)),SourceInputsAttenuation!$E$14) -> 0.04999813176 | D20: 17 | E20: =IF(F$1="Decline",(D20*QsrcLitres)/SourceInputsAttenuation!$C$33,"") -> 0.000490688654 | F20: =IF(F$1="Decline",SourceInputsAttenuation!$E$15*EXP(-1*(SourceInputsAttenuation!$I$15*SrcDecline!E20)),SourceInputsAttenuation!$E$15) -> 0.0009999193831 | G20: 17 | H20: =IF(I$1="Decline",(G20*QsrcLitres)/SourceInputsAttenuation!$C$33,"") -> 0.000490688654 | I20: =IF(I$1="Decline",SourceInputsAttenuation!$E$16*EXP(-1*(SourceInputsAttenuation!$I$16*SrcDecline!E20)),SourceInputsAttenuation!$E$16) -> 0.869289436 | J20: 17 | K20: =IF(L$1="Decline",(J20*QsrcLitres)/SourceInputsAttenuation!$C$33,"") -> 0.000490688654 | L20: =IF(L$1="Decline",SourceInputsAttenuation!$E$17*EXP(-1*(SourceInputsAttenuation!$I$17*SrcDecline!K20)),SourceInputsAttenuation!$E$17) -> 0.00399946422 | M20: 17 | N20: =IF(O$1="Decline",(M20*QsrcLitres)/SourceInputsAttenuation!$C$33,"") -> 0.000490688654 | O20: =IF(O$1="Decline",SourceInputsAttenuation!$E$18*EXP(-1*(SourceInputsAttenuation!$I$18*SrcDecline!N20)),SourceInputsAttenuation!$E$18) -> 0.3999416013 | P20: 17 | Q20: =IF(R$1="Decline",(P20*QsrcLitres)/SourceInputsAttenuation!$C$33,"") -> 0.000490688654 | R20: =IF(R$1="Decline",SourceInputsAttenuation!$E$19*EXP(-1*(SourceInputsAttenuation!$I$19*SrcDecline!Q20)),SourceInputsAttenuation!$E$19) -> 0.1999702657 | S20: 17 | T20: =IF(U$1="Decline",(S20*QsrcLitres)/SourceInputsAttenuation!$C$33,"") -> 0.000490688654 | U20: =IF(U$1="Decline",SourceInputsAttenuation!$E$20*EXP(-1*(SourceInputsAttenuation!$I$20*SrcDecline!T20)),SourceInputsAttenuation!$E$20) -> 0.0499953288
A21: 18 | B21: =IF(C$1="Decline",(A21*QsrcLitres)/(SourceInputsAttenuation!$C$33),"") -> 0.0005195526925 | C21: =IF(C$1="Decline",SourceInputsAttenuation!$E$14*EXP(-1*((SourceInputsAttenuation!$I$14)*SrcDecline!B21)),SourceInputsAttenuation!$E$14) -> 0.04999802187 | D21: 18 | E21: =IF(F$1="Decline",(D21*QsrcLitres)/SourceInputsAttenuation!$C$33,"") -> 0.0005195526925 | F21: =IF(F$1="Decline",SourceInputsAttenuation!$E$15*EXP(-1*(SourceInputsAttenuation!$I$15*SrcDecline!E21)),SourceInputsAttenuation!$E$15) -> 0.0009999146411 | G21: 18 | H21: =IF(I$1="Decline",(G21*QsrcLitres)/SourceInputsAttenuation!$C$33,"") -> 0.0005195526925 | I21: =IF(I$1="Decline",SourceInputsAttenuation!$E$16*EXP(-1*(SourceInputsAttenuation!$I$16*SrcDecline!E21)),SourceInputsAttenuation!$E$16) -> 0.8692770515 | J21: 18 | K21: =IF(L$1="Decline",(J21*QsrcLitres)/SourceInputsAttenuation!$C$33,"") -> 0.0005195526925 | L21: =IF(L$1="Decline",SourceInputsAttenuation!$E$17*EXP(-1*(SourceInputsAttenuation!$I$17*SrcDecline!K21)),SourceInputsAttenuation!$E$17) -> 0.003999432705 | M21: 18 | N21: =IF(O$1="Decline",(M21*QsrcLitres)/SourceInputsAttenuation!$C$33,"") -> 0.0005195526925 | O21: =IF(O$1="Decline",SourceInputsAttenuation!$E$18*EXP(-1*(SourceInputsAttenuation!$I$18*SrcDecline!N21)),SourceInputsAttenuation!$E$18) -> 0.3999381664 | P21: 18 | Q21: =IF(R$1="Decline",(P21*QsrcLitres)/SourceInputsAttenuation!$C$33,"") -> 0.0005195526925 | R21: =IF(R$1="Decline",SourceInputsAttenuation!$E$19*EXP(-1*(SourceInputsAttenuation!$I$19*SrcDecline!Q21)),SourceInputsAttenuation!$E$19) -> 0.1999685167 | S21: 18 | T21: =IF(U$1="Decline",(S21*QsrcLitres)/SourceInputsAttenuation!$C$33,"") -> 0.0005195526925 | U21: =IF(U$1="Decline",SourceInputsAttenuation!$E$20*EXP(-1*(SourceInputsAttenuation!$I$20*SrcDecline!T21)),SourceInputsAttenuation!$E$20) -> 0.04999505403
A22: 19 | B22: =IF(C$1="Decline",(A22*QsrcLitres)/(SourceInputsAttenuation!$C$33),"") -> 0.000548416731 | C22: =IF(C$1="Decline",SourceInputsAttenuation!$E$14*EXP(-1*((SourceInputsAttenuation!$I$14)*SrcDecline!B22)),SourceInputsAttenuation!$E$14) -> 0.04999791198 | D22: 19 | E22: =IF(F$1="Decline",(D22*QsrcLitres)/SourceInputsAttenuation!$C$33,"") -> 0.000548416731 | F22: =IF(F$1="Decline",SourceInputsAttenuation!$E$15*EXP(-1*(SourceInputsAttenuation!$I$15*SrcDecline!E22)),SourceInputsAttenuation!$E$15) -> 0.0009999098992 | G22: 19 | H22: =IF(I$1="Decline",(G22*QsrcLitres)/SourceInputsAttenuation!$C$33,"") -> 0.000548416731 | I22: =IF(I$1="Decline",SourceInputsAttenuation!$E$16*EXP(-1*(SourceInputsAttenuation!$I$16*SrcDecline!E22)),SourceInputsAttenuation!$E$16) -> 0.8692646672 | J22: 19 | K22: =IF(L$1="Decline",(J22*QsrcLitres)/SourceInputsAttenuation!$C$33,"") -> 0.000548416731 | L22: =IF(L$1="Decline",SourceInputsAttenuation!$E$17*EXP(-1*(SourceInputsAttenuation!$I$17*SrcDecline!K22)),SourceInputsAttenuation!$E$17) -> 0.003999401191 | M22: 19 | N22: =IF(O$1="Decline",(M22*QsrcLitres)/SourceInputsAttenuation!$C$33,"") -> 0.000548416731 | O22: =IF(O$1="Decline",SourceInputsAttenuation!$E$18*EXP(-1*(SourceInputsAttenuation!$I$18*SrcDecline!N22)),SourceInputsAttenuation!$E$18) -> 0.3999347314 | P22: 19 | Q22: =IF(R$1="Decline",(P22*QsrcLitres)/SourceInputsAttenuation!$C$33,"") -> 0.000548416731 | R22: =IF(R$1="Decline",SourceInputsAttenuation!$E$19*EXP(-1*(SourceInputsAttenuation!$I$19*SrcDecline!Q22)),SourceInputsAttenuation!$E$19) -> 0.1999667678 | S22: 19 | T22: =IF(U$1="Decline",(S22*QsrcLitres)/SourceInputsAttenuation!$C$33,"") -> 0.000548416731 | U22: =IF(U$1="Decline",SourceInputsAttenuation!$E$20*EXP(-1*(SourceInputsAttenuation!$I$20*SrcDecline!T22)),SourceInputsAttenuation!$E$20) -> 0.04999477927
A23: 20 | B23: =IF(C$1="Decline",(A23*QsrcLitres)/(SourceInputsAttenuation!$C$33),"") -> 0.0005772807694 | C23: =IF(C$1="Decline",SourceInputsAttenuation!$E$14*EXP(-1*((SourceInputsAttenuation!$I$14)*SrcDecline!B23)),SourceInputsAttenuation!$E$14) -> 0.04999780208 | D23: 20 | E23: =IF(F$1="Decline",(D23*QsrcLitres)/SourceInputsAttenuation!$C$33,"") -> 0.0005772807694 | F23: =IF(F$1="Decline",SourceInputsAttenuation!$E$15*EXP(-1*(SourceInputsAttenuation!$I$15*SrcDecline!E23)),SourceInputsAttenuation!$E$15) -> 0.0009999051573 | G23: 20 | H23: =IF(I$1="Decline",(G23*QsrcLitres)/SourceInputsAttenuation!$C$33,"") -> 0.0005772807694 | I23: =IF(I$1="Decline",SourceInputsAttenuation!$E$16*EXP(-1*(SourceInputsAttenuation!$I$16*SrcDecline!E23)),SourceInputsAttenuation!$E$16) -> 0.869252283 | J23: 20 | K23: =IF(L$1="Decline",(J23*QsrcLitres)/SourceInputsAttenuation!$C$33,"") -> 0.0005772807694 | L23: =IF(L$1="Decline",SourceInputsAttenuation!$E$17*EXP(-1*(SourceInputsAttenuation!$I$17*SrcDecline!K23)),SourceInputsAttenuation!$E$17) -> 0.003999369677 | M23: 20 | N23: =IF(O$1="Decline",(M23*QsrcLitres)/SourceInputsAttenuation!$C$33,"") -> 0.0005772807694 | O23: =IF(O$1="Decline",SourceInputsAttenuation!$E$18*EXP(-1*(SourceInputsAttenuation!$I$18*SrcDecline!N23)),SourceInputsAttenuation!$E$18) -> 0.3999312966 | P23: 20 | Q23: =IF(R$1="Decline",(P23*QsrcLitres)/SourceInputsAttenuation!$C$33,"") -> 0.0005772807694 | R23: =IF(R$1="Decline",SourceInputsAttenuation!$E$19*EXP(-1*(SourceInputsAttenuation!$I$19*SrcDecline!Q23)),SourceInputsAttenuation!$E$19) -> 0.1999650189 | S23: 20 | T23: =IF(U$1="Decline",(S23*QsrcLitres)/SourceInputsAttenuation!$C$33,"") -> 0.0005772807694 | U23: =IF(U$1="Decline",SourceInputsAttenuation!$E$20*EXP(-1*(SourceInputsAttenuation!$I$20*SrcDecline!T23)),SourceInputsAttenuation!$E$20) -> 0.04999450451
A24: 21 | B24: =IF(C$1="Decline",(A24*QsrcLitres)/(SourceInputsAttenuation!$C$33),"") -> 0.0006061448079 | C24: =IF(C$1="Decline",SourceInputsAttenuation!$E$14*EXP(-1*((SourceInputsAttenuation!$I$14)*SrcDecline!B24)),SourceInputsAttenuation!$E$14) -> 0.04999769219 | D24: 21 | E24: =IF(F$1="Decline",(D24*QsrcLitres)/SourceInputsAttenuation!$C$33,"") -> 0.0006061448079 | F24: =IF(F$1="Decline",SourceInputsAttenuation!$E$15*EXP(-1*(SourceInputsAttenuation!$I$15*SrcDecline!E24)),SourceInputsAttenuation!$E$15) -> 0.0009999004154 | G24: 21 | H24: =IF(I$1="Decline",(G24*QsrcLitres)/SourceInputsAttenuation!$C$33,"") -> 0.0006061448079 | I24: =IF(I$1="Decline",SourceInputsAttenuation!$E$16*EXP(-1*(SourceInputsAttenuation!$I$16*SrcDecline!E24)),SourceInputsAttenuation!$E$16) -> 0.869239899 | J24: 21 | K24: =IF(L$1="Decline",(J24*QsrcLitres)/SourceInputsAttenuation!$C$33,"") -> 0.0006061448079 | L24: =IF(L$1="Decline",SourceInputsAttenuation!$E$17*EXP(-1*(SourceInputsAttenuation!$I$17*SrcDecline!K24)),SourceInputsAttenuation!$E$17) -> 0.003999338164 | M24: 21 | N24: =IF(O$1="Decline",(M24*QsrcLitres)/SourceInputsAttenuation!$C$33,"") -> 0.0006061448079 | O24: =IF(O$1="Decline",SourceInputsAttenuation!$E$18*EXP(-1*(SourceInputsAttenuation!$I$18*SrcDecline!N24)),SourceInputsAttenuation!$E$18) -> 0.3999278617 | P24: 21 | Q24: =IF(R$1="Decline",(P24*QsrcLitres)/SourceInputsAttenuation!$C$33,"") -> 0.0006061448079 | R24: =IF(R$1="Decline",SourceInputsAttenuation!$E$19*EXP(-1*(SourceInputsAttenuation!$I$19*SrcDecline!Q24)),SourceInputsAttenuation!$E$19) -> 0.19996327 | S24: 21 | T24: =IF(U$1="Decline",(S24*QsrcLitres)/SourceInputsAttenuation!$C$33,"") -> 0.0006061448079 | U24: =IF(U$1="Decline",SourceInputsAttenuation!$E$20*EXP(-1*(SourceInputsAttenuation!$I$20*SrcDecline!T24)),SourceInputsAttenuation!$E$20) -> 0.04999422976
A25: 22 | B25: =IF(C$1="Decline",(A25*QsrcLitres)/(SourceInputsAttenuation!$C$33),"") -> 0.0006350088464 | C25: =IF(C$1="Decline",SourceInputsAttenuation!$E$14*EXP(-1*((SourceInputsAttenuation!$I$14)*SrcDecline!B25)),SourceInputsAttenuation!$E$14) -> 0.0499975823 | D25: 22 | E25: =IF(F$1="Decline",(D25*QsrcLitres)/SourceInputsAttenuation!$C$33,"") -> 0.0006350088464 | F25: =IF(F$1="Decline",SourceInputsAttenuation!$E$15*EXP(-1*(SourceInputsAttenuation!$I$15*SrcDecline!E25)),SourceInputsAttenuation!$E$15) -> 0.0009998956735 | G25: 22 | H25: =IF(I$1="Decline",(G25*QsrcLitres)/SourceInputsAttenuation!$C$33,"") -> 0.0006350088464 | I25: =IF(I$1="Decline",SourceInputsAttenuation!$E$16*EXP(-1*(SourceInputsAttenuation!$I$16*SrcDecline!E25)),SourceInputsAttenuation!$E$16) -> 0.8692275152 | J25: 22 | K25: =IF(L$1="Decline",(J25*QsrcLitres)/SourceInputsAttenuation!$C$33,"") -> 0.0006350088464 | L25: =IF(L$1="Decline",SourceInputsAttenuation!$E$17*EXP(-1*(SourceInputsAttenuation!$I$17*SrcDecline!K25)),SourceInputsAttenuation!$E$17) -> 0.003999306651 | M25: 22 | N25: =IF(O$1="Decline",(M25*QsrcLitres)/SourceInputsAttenuation!$C$33,"") -> 0.0006350088464 | O25: =IF(O$1="Decline",SourceInputsAttenuation!$E$18*EXP(-1*(SourceInputsAttenuation!$I$18*SrcDecline!N25)),SourceInputsAttenuation!$E$18) -> 0.3999244269 | P25: 22 | Q25: =IF(R$1="Decline",(P25*QsrcLitres)/SourceInputsAttenuation!$C$33,"") -> 0.0006350088464 | R25: =IF(R$1="Decline",SourceInputsAttenuation!$E$19*EXP(-1*(SourceInputsAttenuation!$I$19*SrcDecline!Q25)),SourceInputsAttenuation!$E$19) -> 0.1999615211 | S25: 22 | T25: =IF(U$1="Decline",(S25*QsrcLitres)/SourceInputsAttenuation!$C$33,"") -> 0.0006350088464 | U25: =IF(U$1="Decline",SourceInputsAttenuation!$E$20*EXP(-1*(SourceInputsAttenuation!$I$20*SrcDecline!T25)),SourceInputsAttenuation!$E$20) -> 0.049993955
A26: 23 | B26: =IF(C$1="Decline",(A26*QsrcLitres)/(SourceInputsAttenuation!$C$33),"") -> 0.0006638728849 | C26: =IF(C$1="Decline",SourceInputsAttenuation!$E$14*EXP(-1*((SourceInputsAttenuation!$I$14)*SrcDecline!B26)),SourceInputsAttenuation!$E$14) -> 0.0499974724 | D26: 23 | E26: =IF(F$1="Decline",(D26*QsrcLitres)/SourceInputsAttenuation!$C$33,"") -> 0.0006638728849 | F26: =IF(F$1="Decline",SourceInputsAttenuation!$E$15*EXP(-1*(SourceInputsAttenuation!$I$15*SrcDecline!E26)),SourceInputsAttenuation!$E$15) -> 0.0009998909316 | G26: 23 | H26: =IF(I$1="Decline",(G26*QsrcLitres)/SourceInputsAttenuation!$C$33,"") -> 0.0006638728849 | I26: =IF(I$1="Decline",SourceInputsAttenuation!$E$16*EXP(-1*(SourceInputsAttenuation!$I$16*SrcDecline!E26)),SourceInputsAttenuation!$E$16) -> 0.8692151315 | J26: 23 | K26: =IF(L$1="Decline",(J26*QsrcLitres)/SourceInputsAttenuation!$C$33,"") -> 0.0006638728849 | L26: =IF(L$1="Decline",SourceInputsAttenuation!$E$17*EXP(-1*(SourceInputsAttenuation!$I$17*SrcDecline!K26)),SourceInputsAttenuation!$E$17) -> 0.003999275138 | M26: 23 | N26: =IF(O$1="Decline",(M26*QsrcLitres)/SourceInputsAttenuation!$C$33,"") -> 0.0006638728849 | O26: =IF(O$1="Decline",SourceInputsAttenuation!$E$18*EXP(-1*(SourceInputsAttenuation!$I$18*SrcDecline!N26)),SourceInputsAttenuation!$E$18) -> 0.3999209921 | P26: 23 | Q26: =IF(R$1="Decline",(P26*QsrcLitres)/SourceInputsAttenuation!$C$33,"") -> 0.0006638728849 | R26: =IF(R$1="Decline",SourceInputsAttenuation!$E$19*EXP(-1*(SourceInputsAttenuation!$I$19*SrcDecline!Q26)),SourceInputsAttenuation!$E$19) -> 0.1999597723 | S26: 23 | T26: =IF(U$1="Decline",(S26*QsrcLitres)/SourceInputsAttenuation!$C$33,"") -> 0.0006638728849 | U26: =IF(U$1="Decline",SourceInputsAttenuation!$E$20*EXP(-1*(SourceInputsAttenuation!$I$20*SrcDecline!T26)),SourceInputsAttenuation!$E$20) -> 0.04999368024
A27: 24 | B27: =IF(C$1="Decline",(A27*QsrcLitres)/(SourceInputsAttenuation!$C$33),"") -> 0.0006927369233 | C27: =IF(C$1="Decline",SourceInputsAttenuation!$E$14*EXP(-1*((SourceInputsAttenuation!$I$14)*SrcDecline!B27)),SourceInputsAttenuation!$E$14) -> 0.04999736251 | D27: 24 | E27: =IF(F$1="Decline",(D27*QsrcLitres)/SourceInputsAttenuation!$C$33,"") -> 0.0006927369233 | F27: =IF(F$1="Decline",SourceInputsAttenuation!$E$15*EXP(-1*(SourceInputsAttenuation!$I$15*SrcDecline!E27)),SourceInputsAttenuation!$E$15) -> 0.0009998861898 | G27: 24 | H27: =IF(I$1="Decline",(G27*QsrcLitres)/SourceInputsAttenuation!$C$33,"") -> 0.0006927369233 | I27: =IF(I$1="Decline",SourceInputsAttenuation!$E$16*EXP(-1*(SourceInputsAttenuation!$I$16*SrcDecline!E27)),SourceInputsAttenuation!$E$16) -> 0.869202748 | J27: 24 | K27: =IF(L$1="Decline",(J27*QsrcLitres)/SourceInputsAttenuation!$C$33,"") -> 0.0006927369233 | L27: =IF(L$1="Decline",SourceInputsAttenuation!$E$17*EXP(-1*(SourceInputsAttenuation!$I$17*SrcDecline!K27)),SourceInputsAttenuation!$E$17) -> 0.003999243625 | M27: 24 | N27: =IF(O$1="Decline",(M27*QsrcLitres)/SourceInputsAttenuation!$C$33,"") -> 0.0006927369233 | O27: =IF(O$1="Decline",SourceInputsAttenuation!$E$18*EXP(-1*(SourceInputsAttenuation!$I$18*SrcDecline!N27)),SourceInputsAttenuation!$E$18) -> 0.3999175573 | P27: 24 | Q27: =IF(R$1="Decline",(P27*QsrcLitres)/SourceInputsAttenuation!$C$33,"") -> 0.0006927369233 | R27: =IF(R$1="Decline",SourceInputsAttenuation!$E$19*EXP(-1*(SourceInputsAttenuation!$I$19*SrcDecline!Q27)),SourceInputsAttenuation!$E$19) -> 0.1999580234 | S27: 24 | T27: =IF(U$1="Decline",(S27*QsrcLitres)/SourceInputsAttenuation!$C$33,"") -> 0.0006927369233 | U27: =IF(U$1="Decline",SourceInputsAttenuation!$E$20*EXP(-1*(SourceInputsAttenuation!$I$20*SrcDecline!T27)),SourceInputsAttenuation!$E$20) -> 0.04999340549
A28: 25 | B28: =IF(C$1="Decline",(A28*QsrcLitres)/(SourceInputsAttenuation!$C$33),"") -> 0.0007216009618 | C28: =IF(C$1="Decline",SourceInputsAttenuation!$E$14*EXP(-1*((SourceInputsAttenuation!$I$14)*SrcDecline!B28)),SourceInputsAttenuation!$E$14) -> 0.04999725262 | D28: 25 | E28: =IF(F$1="Decline",(D28*QsrcLitres)/SourceInputsAttenuation!$C$33,"") -> 0.0007216009618 | F28: =IF(F$1="Decline",SourceInputsAttenuation!$E$15*EXP(-1*(SourceInputsAttenuation!$I$15*SrcDecline!E28)),SourceInputsAttenuation!$E$15) -> 0.000999881448 | G28: 25 | H28: =IF(I$1="Decline",(G28*QsrcLitres)/SourceInputsAttenuation!$C$33,"") -> 0.0007216009618 | I28: =IF(I$1="Decline",SourceInputsAttenuation!$E$16*EXP(-1*(SourceInputsAttenuation!$I$16*SrcDecline!E28)),SourceInputsAttenuation!$E$16) -> 0.8691903648 | J28: 25 | K28: =IF(L$1="Decline",(J28*QsrcLitres)/SourceInputsAttenuation!$C$33,"") -> 0.0007216009618 | L28: =IF(L$1="Decline",SourceInputsAttenuation!$E$17*EXP(-1*(SourceInputsAttenuation!$I$17*SrcDecline!K28)),SourceInputsAttenuation!$E$17) -> 0.003999212112 | M28: 25 | N28: =IF(O$1="Decline",(M28*QsrcLitres)/SourceInputsAttenuation!$C$33,"") -> 0.0007216009618 | O28: =IF(O$1="Decline",SourceInputsAttenuation!$E$18*EXP(-1*(SourceInputsAttenuation!$I$18*SrcDecline!N28)),SourceInputsAttenuation!$E$18) -> 0.3999141225 | P28: 25 | Q28: =IF(R$1="Decline",(P28*QsrcLitres)/SourceInputsAttenuation!$C$33,"") -> 0.0007216009618 | R28: =IF(R$1="Decline",SourceInputsAttenuation!$E$19*EXP(-1*(SourceInputsAttenuation!$I$19*SrcDecline!Q28)),SourceInputsAttenuation!$E$19) -> 0.1999562746 | S28: 25 | T28: =IF(U$1="Decline",(S28*QsrcLitres)/SourceInputsAttenuation!$C$33,"") -> 0.0007216009618 | U28: =IF(U$1="Decline",SourceInputsAttenuation!$E$20*EXP(-1*(SourceInputsAttenuation!$I$20*SrcDecline!T28)),SourceInputsAttenuation!$E$20) -> 0.04999313074
A29: 26 | B29: =IF(C$1="Decline",(A29*QsrcLitres)/(SourceInputsAttenuation!$C$33),"") -> 0.0007504650003 | C29: =IF(C$1="Decline",SourceInputsAttenuation!$E$14*EXP(-1*((SourceInputsAttenuation!$I$14)*SrcDecline!B29)),SourceInputsAttenuation!$E$14) -> 0.04999714273 | D29: 26 | E29: =IF(F$1="Decline",(D29*QsrcLitres)/SourceInputsAttenuation!$C$33,"") -> 0.0007504650003 | F29: =IF(F$1="Decline",SourceInputsAttenuation!$E$15*EXP(-1*(SourceInputsAttenuation!$I$15*SrcDecline!E29)),SourceInputsAttenuation!$E$15) -> 0.0009998767062 | G29: 26 | H29: =IF(I$1="Decline",(G29*QsrcLitres)/SourceInputsAttenuation!$C$33,"") -> 0.0007504650003 | I29: =IF(I$1="Decline",SourceInputsAttenuation!$E$16*EXP(-1*(SourceInputsAttenuation!$I$16*SrcDecline!E29)),SourceInputsAttenuation!$E$16) -> 0.8691779816 | J29: 26 | K29: =IF(L$1="Decline",(J29*QsrcLitres)/SourceInputsAttenuation!$C$33,"") -> 0.0007504650003 | L29: =IF(L$1="Decline",SourceInputsAttenuation!$E$17*EXP(-1*(SourceInputsAttenuation!$I$17*SrcDecline!K29)),SourceInputsAttenuation!$E$17) -> 0.0039991806 | M29: 26 | N29: =IF(O$1="Decline",(M29*QsrcLitres)/SourceInputsAttenuation!$C$33,"") -> 0.0007504650003 | O29: =IF(O$1="Decline",SourceInputsAttenuation!$E$18*EXP(-1*(SourceInputsAttenuation!$I$18*SrcDecline!N29)),SourceInputsAttenuation!$E$18) -> 0.3999106878 | P29: 26 | Q29: =IF(R$1="Decline",(P29*QsrcLitres)/SourceInputsAttenuation!$C$33,"") -> 0.0007504650003 | R29: =IF(R$1="Decline",SourceInputsAttenuation!$E$19*EXP(-1*(SourceInputsAttenuation!$I$19*SrcDecline!Q29)),SourceInputsAttenuation!$E$19) -> 0.1999545257 | S29: 26 | T29: =IF(U$1="Decline",(S29*QsrcLitres)/SourceInputsAttenuation!$C$33,"") -> 0.0007504650003 | U29: =IF(U$1="Decline",SourceInputsAttenuation!$E$20*EXP(-1*(SourceInputsAttenuation!$I$20*SrcDecline!T29)),SourceInputsAttenuation!$E$20) -> 0.04999285599
A30: 27 | B30: =IF(C$1="Decline",(A30*QsrcLitres)/(SourceInputsAttenuation!$C$33),"") -> 0.0007793290387 | C30: =IF(C$1="Decline",SourceInputsAttenuation!$E$14*EXP(-1*((SourceInputsAttenuation!$I$14)*SrcDecline!B30)),SourceInputsAttenuation!$E$14) -> 0.04999703283 | D30: 27 | E30: =IF(F$1="Decline",(D30*QsrcLitres)/SourceInputsAttenuation!$C$33,"") -> 0.0007793290387 | F30: =IF(F$1="Decline",SourceInputsAttenuation!$E$15*EXP(-1*(SourceInputsAttenuation!$I$15*SrcDecline!E30)),SourceInputsAttenuation!$E$15) -> 0.0009998719644 | G30: 27 | H30: =IF(I$1="Decline",(G30*QsrcLitres)/SourceInputsAttenuation!$C$33,"") -> 0.0007793290387 | I30: =IF(I$1="Decline",SourceInputsAttenuation!$E$16*EXP(-1*(SourceInputsAttenuation!$I$16*SrcDecline!E30)),SourceInputsAttenuation!$E$16) -> 0.8691655987 | J30: 27 | K30: =IF(L$1="Decline",(J30*QsrcLitres)/SourceInputsAttenuation!$C$33,"") -> 0.0007793290387 | L30: =IF(L$1="Decline",SourceInputsAttenuation!$E$17*EXP(-1*(SourceInputsAttenuation!$I$17*SrcDecline!K30)),SourceInputsAttenuation!$E$17) -> 0.003999149088 | M30: 27 | N30: =IF(O$1="Decline",(M30*QsrcLitres)/SourceInputsAttenuation!$C$33,"") -> 0.0007793290387 | O30: =IF(O$1="Decline",SourceInputsAttenuation!$E$18*EXP(-1*(SourceInputsAttenuation!$I$18*SrcDecline!N30)),SourceInputsAttenuation!$E$18) -> 0.3999072531 | P30: 27 | Q30: =IF(R$1="Decline",(P30*QsrcLitres)/SourceInputsAttenuation!$C$33,"") -> 0.0007793290387 | R30: =IF(R$1="Decline",SourceInputsAttenuation!$E$19*EXP(-1*(SourceInputsAttenuation!$I$19*SrcDecline!Q30)),SourceInputsAttenuation!$E$19) -> 0.1999527769 | S30: 27 | T30: =IF(U$1="Decline",(S30*QsrcLitres)/SourceInputsAttenuation!$C$33,"") -> 0.0007793290387 | U30: =IF(U$1="Decline",SourceInputsAttenuation!$E$20*EXP(-1*(SourceInputsAttenuation!$I$20*SrcDecline!T30)),SourceInputsAttenuation!$E$20) -> 0.04999258124
A31: 28 | B31: =IF(C$1="Decline",(A31*QsrcLitres)/(SourceInputsAttenuation!$C$33),"") -> 0.0008081930772 | C31: =IF(C$1="Decline",SourceInputsAttenuation!$E$14*EXP(-1*((SourceInputsAttenuation!$I$14)*SrcDecline!B31)),SourceInputsAttenuation!$E$14) -> 0.04999692294 | D31: 28 | E31: =IF(F$1="Decline",(D31*QsrcLitres)/SourceInputsAttenuation!$C$33,"") -> 0.0008081930772 | F31: =IF(F$1="Decline",SourceInputsAttenuation!$E$15*EXP(-1*(SourceInputsAttenuation!$I$15*SrcDecline!E31)),SourceInputsAttenuation!$E$15) -> 0.0009998672227 | G31: 28 | H31: =IF(I$1="Decline",(G31*QsrcLitres)/SourceInputsAttenuation!$C$33,"") -> 0.0008081930772 | I31: =IF(I$1="Decline",SourceInputsAttenuation!$E$16*EXP(-1*(SourceInputsAttenuation!$I$16*SrcDecline!E31)),SourceInputsAttenuation!$E$16) -> 0.8691532159 | J31: 28 | K31: =IF(L$1="Decline",(J31*QsrcLitres)/SourceInputsAttenuation!$C$33,"") -> 0.0008081930772 | L31: =IF(L$1="Decline",SourceInputsAttenuation!$E$17*EXP(-1*(SourceInputsAttenuation!$I$17*SrcDecline!K31)),SourceInputsAttenuation!$E$17) -> 0.003999117576 | M31: 28 | N31: =IF(O$1="Decline",(M31*QsrcLitres)/SourceInputsAttenuation!$C$33,"") -> 0.0008081930772 | O31: =IF(O$1="Decline",SourceInputsAttenuation!$E$18*EXP(-1*(SourceInputsAttenuation!$I$18*SrcDecline!N31)),SourceInputsAttenuation!$E$18) -> 0.3999038185 | P31: 28 | Q31: =IF(R$1="Decline",(P31*QsrcLitres)/SourceInputsAttenuation!$C$33,"") -> 0.0008081930772 | R31: =IF(R$1="Decline",SourceInputsAttenuation!$E$19*EXP(-1*(SourceInputsAttenuation!$I$19*SrcDecline!Q31)),SourceInputsAttenuation!$E$19) -> 0.1999510282 | S31: 28 | T31: =IF(U$1="Decline",(S31*QsrcLitres)/SourceInputsAttenuation!$C$33,"") -> 0.0008081930772 | U31: =IF(U$1="Decline",SourceInputsAttenuation!$E$20*EXP(-1*(SourceInputsAttenuation!$I$20*SrcDecline!T31)),SourceInputsAttenuation!$E$20) -> 0.04999230649
A32: 29 | B32: =IF(C$1="Decline",(A32*QsrcLitres)/(SourceInputsAttenuation!$C$33),"") -> 0.0008370571157 | C32: =IF(C$1="Decline",SourceInputsAttenuation!$E$14*EXP(-1*((SourceInputsAttenuation!$I$14)*SrcDecline!B32)),SourceInputsAttenuation!$E$14) -> 0.04999681305 | D32: 29 | E32: =IF(F$1="Decline",(D32*QsrcLitres)/SourceInputsAttenuation!$C$33,"") -> 0.0008370571157 | F32: =IF(F$1="Decline",SourceInputsAttenuation!$E$15*EXP(-1*(SourceInputsAttenuation!$I$15*SrcDecline!E32)),SourceInputsAttenuation!$E$15) -> 0.000999862481 | G32: 29 | H32: =IF(I$1="Decline",(G32*QsrcLitres)/SourceInputsAttenuation!$C$33,"") -> 0.0008370571157 | I32: =IF(I$1="Decline",SourceInputsAttenuation!$E$16*EXP(-1*(SourceInputsAttenuation!$I$16*SrcDecline!E32)),SourceInputsAttenuation!$E$16) -> 0.8691408333 | J32: 29 | K32: =IF(L$1="Decline",(J32*QsrcLitres)/SourceInputsAttenuation!$C$33,"") -> 0.0008370571157 | L32: =IF(L$1="Decline",SourceInputsAttenuation!$E$17*EXP(-1*(SourceInputsAttenuation!$I$17*SrcDecline!K32)),SourceInputsAttenuation!$E$17) -> 0.003999086065 | M32: 29 | N32: =IF(O$1="Decline",(M32*QsrcLitres)/SourceInputsAttenuation!$C$33,"") -> 0.0008370571157 | O32: =IF(O$1="Decline",SourceInputsAttenuation!$E$18*EXP(-1*(SourceInputsAttenuation!$I$18*SrcDecline!N32)),SourceInputsAttenuation!$E$18) -> 0.3999003839 | P32: 29 | Q32: =IF(R$1="Decline",(P32*QsrcLitres)/SourceInputsAttenuation!$C$33,"") -> 0.0008370571157 | R32: =IF(R$1="Decline",SourceInputsAttenuation!$E$19*EXP(-1*(SourceInputsAttenuation!$I$19*SrcDecline!Q32)),SourceInputsAttenuation!$E$19) -> 0.1999492794 | S32: 29 | T32: =IF(U$1="Decline",(S32*QsrcLitres)/SourceInputsAttenuation!$C$33,"") -> 0.0008370571157 | U32: =IF(U$1="Decline",SourceInputsAttenuation!$E$20*EXP(-1*(SourceInputsAttenuation!$I$20*SrcDecline!T32)),SourceInputsAttenuation!$E$20) -> 0.04999203174
A33: 30 | B33: =IF(C$1="Decline",(A33*QsrcLitres)/(SourceInputsAttenuation!$C$33),"") -> 0.0008659211542 | C33: =IF(C$1="Decline",SourceInputsAttenuation!$E$14*EXP(-1*((SourceInputsAttenuation!$I$14)*SrcDecline!B33)),SourceInputsAttenuation!$E$14) -> 0.04999670316 | D33: 30 | E33: =IF(F$1="Decline",(D33*QsrcLitres)/SourceInputsAttenuation!$C$33,"") -> 0.0008659211542 | F33: =IF(F$1="Decline",SourceInputsAttenuation!$E$15*EXP(-1*(SourceInputsAttenuation!$I$15*SrcDecline!E33)),SourceInputsAttenuation!$E$15) -> 0.0009998577393 | G33: 30 | H33: =IF(I$1="Decline",(G33*QsrcLitres)/SourceInputsAttenuation!$C$33,"") -> 0.0008659211542 | I33: =IF(I$1="Decline",SourceInputsAttenuation!$E$16*EXP(-1*(SourceInputsAttenuation!$I$16*SrcDecline!E33)),SourceInputsAttenuation!$E$16) -> 0.8691284509 | J33: 30 | K33: =IF(L$1="Decline",(J33*QsrcLitres)/SourceInputsAttenuation!$C$33,"") -> 0.0008659211542 | L33: =IF(L$1="Decline",SourceInputsAttenuation!$E$17*EXP(-1*(SourceInputsAttenuation!$I$17*SrcDecline!K33)),SourceInputsAttenuation!$E$17) -> 0.003999054553 | M33: 30 | N33: =IF(O$1="Decline",(M33*QsrcLitres)/SourceInputsAttenuation!$C$33,"") -> 0.0008659211542 | O33: =IF(O$1="Decline",SourceInputsAttenuation!$E$18*EXP(-1*(SourceInputsAttenuation!$I$18*SrcDecline!N33)),SourceInputsAttenuation!$E$18) -> 0.3998969493 | P33: 30 | Q33: =IF(R$1="Decline",(P33*QsrcLitres)/SourceInputsAttenuation!$C$33,"") -> 0.0008659211542 | R33: =IF(R$1="Decline",SourceInputsAttenuation!$E$19*EXP(-1*(SourceInputsAttenuation!$I$19*SrcDecline!Q33)),SourceInputsAttenuation!$E$19) -> 0.1999475306 | S33: 30 | T33: =IF(U$1="Decline",(S33*QsrcLitres)/SourceInputsAttenuation!$C$33,"") -> 0.0008659211542 | U33: =IF(U$1="Decline",SourceInputsAttenuation!$E$20*EXP(-1*(SourceInputsAttenuation!$I$20*SrcDecline!T33)),SourceInputsAttenuation!$E$20) -> 0.049991757
A34: 31 | B34: =IF(C$1="Decline",(A34*QsrcLitres)/(SourceInputsAttenuation!$C$33),"") -> 0.0008947851926 | C34: =IF(C$1="Decline",SourceInputsAttenuation!$E$14*EXP(-1*((SourceInputsAttenuation!$I$14)*SrcDecline!B34)),SourceInputsAttenuation!$E$14) -> 0.04999659327 | D34: 31 | E34: =IF(F$1="Decline",(D34*QsrcLitres)/SourceInputsAttenuation!$C$33,"") -> 0.0008947851926 | F34: =IF(F$1="Decline",SourceInputsAttenuation!$E$15*EXP(-1*(SourceInputsAttenuation!$I$15*SrcDecline!E34)),SourceInputsAttenuation!$E$15) -> 0.0009998529976 | G34: 31 | H34: =IF(I$1="Decline",(G34*QsrcLitres)/SourceInputsAttenuation!$C$33,"") -> 0.0008947851926 | I34: =IF(I$1="Decline",SourceInputsAttenuation!$E$16*EXP(-1*(SourceInputsAttenuation!$I$16*SrcDecline!E34)),SourceInputsAttenuation!$E$16) -> 0.8691160687 | J34: 31 | K34: =IF(L$1="Decline",(J34*QsrcLitres)/SourceInputsAttenuation!$C$33,"") -> 0.0008947851926 | L34: =IF(L$1="Decline",SourceInputsAttenuation!$E$17*EXP(-1*(SourceInputsAttenuation!$I$17*SrcDecline!K34)),SourceInputsAttenuation!$E$17) -> 0.003999023042 | M34: 31 | N34: =IF(O$1="Decline",(M34*QsrcLitres)/SourceInputsAttenuation!$C$33,"") -> 0.0008947851926 | O34: =IF(O$1="Decline",SourceInputsAttenuation!$E$18*EXP(-1*(SourceInputsAttenuation!$I$18*SrcDecline!N34)),SourceInputsAttenuation!$E$18) -> 0.3998935147 | P34: 31 | Q34: =IF(R$1="Decline",(P34*QsrcLitres)/SourceInputsAttenuation!$C$33,"") -> 0.0008947851926 | R34: =IF(R$1="Decline",SourceInputsAttenuation!$E$19*EXP(-1*(SourceInputsAttenuation!$I$19*SrcDecline!Q34)),SourceInputsAttenuation!$E$19) -> 0.1999457819 | S34: 31 | T34: =IF(U$1="Decline",(S34*QsrcLitres)/SourceInputsAttenuation!$C$33,"") -> 0.0008947851926 | U34: =IF(U$1="Decline",SourceInputsAttenuation!$E$20*EXP(-1*(SourceInputsAttenuation!$I$20*SrcDecline!T34)),SourceInputsAttenuation!$E$20) -> 0.04999148225
A35: 32 | B35: =IF(C$1="Decline",(A35*QsrcLitres)/(SourceInputsAttenuation!$C$33),"") -> 0.0009236492311 | C35: =IF(C$1="Decline",SourceInputsAttenuation!$E$14*EXP(-1*((SourceInputsAttenuation!$I$14)*SrcDecline!B35)),SourceInputsAttenuation!$E$14) -> 0.04999648338 | D35: 32 | E35: =IF(F$1="Decline",(D35*QsrcLitres)/SourceInputsAttenuation!$C$33,"") -> 0.0009236492311 | F35: =IF(F$1="Decline",SourceInputsAttenuation!$E$15*EXP(-1*(SourceInputsAttenuation!$I$15*SrcDecline!E35)),SourceInputsAttenuation!$E$15) -> 0.0009998482559 | G35: 32 | H35: =IF(I$1="Decline",(G35*QsrcLitres)/SourceInputsAttenuation!$C$33,"") -> 0.0009236492311 | I35: =IF(I$1="Decline",SourceInputsAttenuation!$E$16*EXP(-1*(SourceInputsAttenuation!$I$16*SrcDecline!E35)),SourceInputsAttenuation!$E$16) -> 0.8691036866 | J35: 32 | K35: =IF(L$1="Decline",(J35*QsrcLitres)/SourceInputsAttenuation!$C$33,"") -> 0.0009236492311 | L35: =IF(L$1="Decline",SourceInputsAttenuation!$E$17*EXP(-1*(SourceInputsAttenuation!$I$17*SrcDecline!K35)),SourceInputsAttenuation!$E$17) -> 0.003998991532 | M35: 32 | N35: =IF(O$1="Decline",(M35*QsrcLitres)/SourceInputsAttenuation!$C$33,"") -> 0.0009236492311 | O35: =IF(O$1="Decline",SourceInputsAttenuation!$E$18*EXP(-1*(SourceInputsAttenuation!$I$18*SrcDecline!N35)),SourceInputsAttenuation!$E$18) -> 0.3998900801 | P35: 32 | Q35: =IF(R$1="Decline",(P35*QsrcLitres)/SourceInputsAttenuation!$C$33,"") -> 0.0009236492311 | R35: =IF(R$1="Decline",SourceInputsAttenuation!$E$19*EXP(-1*(SourceInputsAttenuation!$I$19*SrcDecline!Q35)),SourceInputsAttenuation!$E$19) -> 0.1999440332 | S35: 32 | T35: =IF(U$1="Decline",(S35*QsrcLitres)/SourceInputsAttenuation!$C$33,"") -> 0.0009236492311 | U35: =IF(U$1="Decline",SourceInputsAttenuation!$E$20*EXP(-1*(SourceInputsAttenuation!$I$20*SrcDecline!T35)),SourceInputsAttenuation!$E$20) -> 0.04999120751
A36: 33 | B36: =IF(C$1="Decline",(A36*QsrcLitres)/(SourceInputsAttenuation!$C$33),"") -> 0.0009525132696 | C36: =IF(C$1="Decline",SourceInputsAttenuation!$E$14*EXP(-1*((SourceInputsAttenuation!$I$14)*SrcDecline!B36)),SourceInputsAttenuation!$E$14) -> 0.04999637349 | D36: 33 | E36: =IF(F$1="Decline",(D36*QsrcLitres)/SourceInputsAttenuation!$C$33,"") -> 0.0009525132696 | F36: =IF(F$1="Decline",SourceInputsAttenuation!$E$15*EXP(-1*(SourceInputsAttenuation!$I$15*SrcDecline!E36)),SourceInputsAttenuation!$E$15) -> 0.0009998435143 | G36: 33 | H36: =IF(I$1="Decline",(G36*QsrcLitres)/SourceInputsAttenuation!$C$33,"") -> 0.0009525132696 | I36: =IF(I$1="Decline",SourceInputsAttenuation!$E$16*EXP(-1*(SourceInputsAttenuation!$I$16*SrcDecline!E36)),SourceInputsAttenuation!$E$16) -> 0.8690913048 | J36: 33 | K36: =IF(L$1="Decline",(J36*QsrcLitres)/SourceInputsAttenuation!$C$33,"") -> 0.0009525132696 | L36: =IF(L$1="Decline",SourceInputsAttenuation!$E$17*EXP(-1*(SourceInputsAttenuation!$I$17*SrcDecline!K36)),SourceInputsAttenuation!$E$17) -> 0.003998960021 | M36: 33 | N36: =IF(O$1="Decline",(M36*QsrcLitres)/SourceInputsAttenuation!$C$33,"") -> 0.0009525132696 | O36: =IF(O$1="Decline",SourceInputsAttenuation!$E$18*EXP(-1*(SourceInputsAttenuation!$I$18*SrcDecline!N36)),SourceInputsAttenuation!$E$18) -> 0.3998866456 | P36: 33 | Q36: =IF(R$1="Decline",(P36*QsrcLitres)/SourceInputsAttenuation!$C$33,"") -> 0.0009525132696 | R36: =IF(R$1="Decline",SourceInputsAttenuation!$E$19*EXP(-1*(SourceInputsAttenuation!$I$19*SrcDecline!Q36)),SourceInputsAttenuation!$E$19) -> 0.1999422844 | S36: 33 | T36: =IF(U$1="Decline",(S36*QsrcLitres)/SourceInputsAttenuation!$C$33,"") -> 0.0009525132696 | U36: =IF(U$1="Decline",SourceInputsAttenuation!$E$20*EXP(-1*(SourceInputsAttenuation!$I$20*SrcDecline!T36)),SourceInputsAttenuation!$E$20) -> 0.04999093277
A37: 34 | B37: =IF(C$1="Decline",(A37*QsrcLitres)/(SourceInputsAttenuation!$C$33),"") -> 0.000981377308 | C37: =IF(C$1="Decline",SourceInputsAttenuation!$E$14*EXP(-1*((SourceInputsAttenuation!$I$14)*SrcDecline!B37)),SourceInputsAttenuation!$E$14) -> 0.0499962636 | D37: 34 | E37: =IF(F$1="Decline",(D37*QsrcLitres)/SourceInputsAttenuation!$C$33,"") -> 0.000981377308 | F37: =IF(F$1="Decline",SourceInputsAttenuation!$E$15*EXP(-1*(SourceInputsAttenuation!$I$15*SrcDecline!E37)),SourceInputsAttenuation!$E$15) -> 0.0009998387727 | G37: 34 | H37: =IF(I$1="Decline",(G37*QsrcLitres)/SourceInputsAttenuation!$C$33,"") -> 0.000981377308 | I37: =IF(I$1="Decline",SourceInputsAttenuation!$E$16*EXP(-1*(SourceInputsAttenuation!$I$16*SrcDecline!E37)),SourceInputsAttenuation!$E$16) -> 0.8690789231 | J37: 34 | K37: =IF(L$1="Decline",(J37*QsrcLitres)/SourceInputsAttenuation!$C$33,"") -> 0.000981377308 | L37: =IF(L$1="Decline",SourceInputsAttenuation!$E$17*EXP(-1*(SourceInputsAttenuation!$I$17*SrcDecline!K37)),SourceInputsAttenuation!$E$17) -> 0.003998928511 | M37: 34 | N37: =IF(O$1="Decline",(M37*QsrcLitres)/SourceInputsAttenuation!$C$33,"") -> 0.000981377308 | O37: =IF(O$1="Decline",SourceInputsAttenuation!$E$18*EXP(-1*(SourceInputsAttenuation!$I$18*SrcDecline!N37)),SourceInputsAttenuation!$E$18) -> 0.3998832112 | P37: 34 | Q37: =IF(R$1="Decline",(P37*QsrcLitres)/SourceInputsAttenuation!$C$33,"") -> 0.000981377308 | R37: =IF(R$1="Decline",SourceInputsAttenuation!$E$19*EXP(-1*(SourceInputsAttenuation!$I$19*SrcDecline!Q37)),SourceInputsAttenuation!$E$19) -> 0.1999405358 | S37: 34 | T37: =IF(U$1="Decline",(S37*QsrcLitres)/SourceInputsAttenuation!$C$33,"") -> 0.000981377308 | U37: =IF(U$1="Decline",SourceInputsAttenuation!$E$20*EXP(-1*(SourceInputsAttenuation!$I$20*SrcDecline!T37)),SourceInputsAttenuation!$E$20) -> 0.04999065803
A38: 35 | B38: =IF(C$1="Decline",(A38*QsrcLitres)/(SourceInputsAttenuation!$C$33),"") -> 0.001010241347 | C38: =IF(C$1="Decline",SourceInputsAttenuation!$E$14*EXP(-1*((SourceInputsAttenuation!$I$14)*SrcDecline!B38)),SourceInputsAttenuation!$E$14) -> 0.04999615371 | D38: 35 | E38: =IF(F$1="Decline",(D38*QsrcLitres)/SourceInputsAttenuation!$C$33,"") -> 0.001010241347 | F38: =IF(F$1="Decline",SourceInputsAttenuation!$E$15*EXP(-1*(SourceInputsAttenuation!$I$15*SrcDecline!E38)),SourceInputsAttenuation!$E$15) -> 0.0009998340311 | G38: 35 | H38: =IF(I$1="Decline",(G38*QsrcLitres)/SourceInputsAttenuation!$C$33,"") -> 0.001010241347 | I38: =IF(I$1="Decline",SourceInputsAttenuation!$E$16*EXP(-1*(SourceInputsAttenuation!$I$16*SrcDecline!E38)),SourceInputsAttenuation!$E$16) -> 0.8690665415 | J38: 35 | K38: =IF(L$1="Decline",(J38*QsrcLitres)/SourceInputsAttenuation!$C$33,"") -> 0.001010241347 | L38: =IF(L$1="Decline",SourceInputsAttenuation!$E$17*EXP(-1*(SourceInputsAttenuation!$I$17*SrcDecline!K38)),SourceInputsAttenuation!$E$17) -> 0.003998897001 | M38: 35 | N38: =IF(O$1="Decline",(M38*QsrcLitres)/SourceInputsAttenuation!$C$33,"") -> 0.001010241347 | O38: =IF(O$1="Decline",SourceInputsAttenuation!$E$18*EXP(-1*(SourceInputsAttenuation!$I$18*SrcDecline!N38)),SourceInputsAttenuation!$E$18) -> 0.3998797767 | P38: 35 | Q38: =IF(R$1="Decline",(P38*QsrcLitres)/SourceInputsAttenuation!$C$33,"") -> 0.001010241347 | R38: =IF(R$1="Decline",SourceInputsAttenuation!$E$19*EXP(-1*(SourceInputsAttenuation!$I$19*SrcDecline!Q38)),SourceInputsAttenuation!$E$19) -> 0.1999387871 | S38: 35 | T38: =IF(U$1="Decline",(S38*QsrcLitres)/SourceInputsAttenuation!$C$33,"") -> 0.001010241347 | U38: =IF(U$1="Decline",SourceInputsAttenuation!$E$20*EXP(-1*(SourceInputsAttenuation!$I$20*SrcDecline!T38)),SourceInputsAttenuation!$E$20) -> 0.0499903833
A39: 36 | B39: =IF(C$1="Decline",(A39*QsrcLitres)/(SourceInputsAttenuation!$C$33),"") -> 0.001039105385 | C39: =IF(C$1="Decline",SourceInputsAttenuation!$E$14*EXP(-1*((SourceInputsAttenuation!$I$14)*SrcDecline!B39)),SourceInputsAttenuation!$E$14) -> 0.04999604382 | D39: 36 | E39: =IF(F$1="Decline",(D39*QsrcLitres)/SourceInputsAttenuation!$C$33,"") -> 0.001039105385 | F39: =IF(F$1="Decline",SourceInputsAttenuation!$E$15*EXP(-1*(SourceInputsAttenuation!$I$15*SrcDecline!E39)),SourceInputsAttenuation!$E$15) -> 0.0009998292896 | G39: 36 | H39: =IF(I$1="Decline",(G39*QsrcLitres)/SourceInputsAttenuation!$C$33,"") -> 0.001039105385 | I39: =IF(I$1="Decline",SourceInputsAttenuation!$E$16*EXP(-1*(SourceInputsAttenuation!$I$16*SrcDecline!E39)),SourceInputsAttenuation!$E$16) -> 0.8690541602 | J39: 36 | K39: =IF(L$1="Decline",(J39*QsrcLitres)/SourceInputsAttenuation!$C$33,"") -> 0.001039105385 | L39: =IF(L$1="Decline",SourceInputsAttenuation!$E$17*EXP(-1*(SourceInputsAttenuation!$I$17*SrcDecline!K39)),SourceInputsAttenuation!$E$17) -> 0.003998865491 | M39: 36 | N39: =IF(O$1="Decline",(M39*QsrcLitres)/SourceInputsAttenuation!$C$33,"") -> 0.001039105385 | O39: =IF(O$1="Decline",SourceInputsAttenuation!$E$18*EXP(-1*(SourceInputsAttenuation!$I$18*SrcDecline!N39)),SourceInputsAttenuation!$E$18) -> 0.3998763423 | P39: 36 | Q39: =IF(R$1="Decline",(P39*QsrcLitres)/SourceInputsAttenuation!$C$33,"") -> 0.001039105385 | R39: =IF(R$1="Decline",SourceInputsAttenuation!$E$19*EXP(-1*(SourceInputsAttenuation!$I$19*SrcDecline!Q39)),SourceInputsAttenuation!$E$19) -> 0.1999370384 | S39: 36 | T39: =IF(U$1="Decline",(S39*QsrcLitres)/SourceInputsAttenuation!$C$33,"") -> 0.001039105385 | U39: =IF(U$1="Decline",SourceInputsAttenuation!$E$20*EXP(-1*(SourceInputsAttenuation!$I$20*SrcDecline!T39)),SourceInputsAttenuation!$E$20) -> 0.04999010856
A40: 37 | B40: =IF(C$1="Decline",(A40*QsrcLitres)/(SourceInputsAttenuation!$C$33),"") -> 0.001067969423 | C40: =IF(C$1="Decline",SourceInputsAttenuation!$E$14*EXP(-1*((SourceInputsAttenuation!$I$14)*SrcDecline!B40)),SourceInputsAttenuation!$E$14) -> 0.04999593393 | D40: 37 | E40: =IF(F$1="Decline",(D40*QsrcLitres)/SourceInputsAttenuation!$C$33,"") -> 0.001067969423 | F40: =IF(F$1="Decline",SourceInputsAttenuation!$E$15*EXP(-1*(SourceInputsAttenuation!$I$15*SrcDecline!E40)),SourceInputsAttenuation!$E$15) -> 0.000999824548 | G40: 37 | H40: =IF(I$1="Decline",(G40*QsrcLitres)/SourceInputsAttenuation!$C$33,"") -> 0.001067969423 | I40: =IF(I$1="Decline",SourceInputsAttenuation!$E$16*EXP(-1*(SourceInputsAttenuation!$I$16*SrcDecline!E40)),SourceInputsAttenuation!$E$16) -> 0.869041779 | J40: 37 | K40: =IF(L$1="Decline",(J40*QsrcLitres)/SourceInputsAttenuation!$C$33,"") -> 0.001067969423 | L40: =IF(L$1="Decline",SourceInputsAttenuation!$E$17*EXP(-1*(SourceInputsAttenuation!$I$17*SrcDecline!K40)),SourceInputsAttenuation!$E$17) -> 0.003998833981 | M40: 37 | N40: =IF(O$1="Decline",(M40*QsrcLitres)/SourceInputsAttenuation!$C$33,"") -> 0.001067969423 | O40: =IF(O$1="Decline",SourceInputsAttenuation!$E$18*EXP(-1*(SourceInputsAttenuation!$I$18*SrcDecline!N40)),SourceInputsAttenuation!$E$18) -> 0.3998729079 | P40: 37 | Q40: =IF(R$1="Decline",(P40*QsrcLitres)/SourceInputsAttenuation!$C$33,"") -> 0.001067969423 | R40: =IF(R$1="Decline",SourceInputsAttenuation!$E$19*EXP(-1*(SourceInputsAttenuation!$I$19*SrcDecline!Q40)),SourceInputsAttenuation!$E$19) -> 0.1999352898 | S40: 37 | T40: =IF(U$1="Decline",(S40*QsrcLitres)/SourceInputsAttenuation!$C$33,"") -> 0.001067969423 | U40: =IF(U$1="Decline",SourceInputsAttenuation!$E$20*EXP(-1*(SourceInputsAttenuation!$I$20*SrcDecline!T40)),SourceInputsAttenuation!$E$20) -> 0.04998983382
A41: 38 | B41: =IF(C$1="Decline",(A41*QsrcLitres)/(SourceInputsAttenuation!$C$33),"") -> 0.001096833462 | C41: =IF(C$1="Decline",SourceInputsAttenuation!$E$14*EXP(-1*((SourceInputsAttenuation!$I$14)*SrcDecline!B41)),SourceInputsAttenuation!$E$14) -> 0.04999582404 | D41: 38 | E41: =IF(F$1="Decline",(D41*QsrcLitres)/SourceInputsAttenuation!$C$33,"") -> 0.001096833462 | F41: =IF(F$1="Decline",SourceInputsAttenuation!$E$15*EXP(-1*(SourceInputsAttenuation!$I$15*SrcDecline!E41)),SourceInputsAttenuation!$E$15) -> 0.0009998198065 | G41: 38 | H41: =IF(I$1="Decline",(G41*QsrcLitres)/SourceInputsAttenuation!$C$33,"") -> 0.001096833462 | I41: =IF(I$1="Decline",SourceInputsAttenuation!$E$16*EXP(-1*(SourceInputsAttenuation!$I$16*SrcDecline!E41)),SourceInputsAttenuation!$E$16) -> 0.869029398 | J41: 38 | K41: =IF(L$1="Decline",(J41*QsrcLitres)/SourceInputsAttenuation!$C$33,"") -> 0.001096833462 | L41: =IF(L$1="Decline",SourceInputsAttenuation!$E$17*EXP(-1*(SourceInputsAttenuation!$I$17*SrcDecline!K41)),SourceInputsAttenuation!$E$17) -> 0.003998802472 | M41: 38 | N41: =IF(O$1="Decline",(M41*QsrcLitres)/SourceInputsAttenuation!$C$33,"") -> 0.001096833462 | O41: =IF(O$1="Decline",SourceInputsAttenuation!$E$18*EXP(-1*(SourceInputsAttenuation!$I$18*SrcDecline!N41)),SourceInputsAttenuation!$E$18) -> 0.3998694735 | P41: 38 | Q41: =IF(R$1="Decline",(P41*QsrcLitres)/SourceInputsAttenuation!$C$33,"") -> 0.001096833462 | R41: =IF(R$1="Decline",SourceInputsAttenuation!$E$19*EXP(-1*(SourceInputsAttenuation!$I$19*SrcDecline!Q41)),SourceInputsAttenuation!$E$19) -> 0.1999335411 | S41: 38 | T41: =IF(U$1="Decline",(S41*QsrcLitres)/SourceInputsAttenuation!$C$33,"") -> 0.001096833462 | U41: =IF(U$1="Decline",SourceInputsAttenuation!$E$20*EXP(-1*(SourceInputsAttenuation!$I$20*SrcDecline!T41)),SourceInputsAttenuation!$E$20) -> 0.04998955909
A42: 39 | B42: =IF(C$1="Decline",(A42*QsrcLitres)/(SourceInputsAttenuation!$C$33),"") -> 0.0011256975 | C42: =IF(C$1="Decline",SourceInputsAttenuation!$E$14*EXP(-1*((SourceInputsAttenuation!$I$14)*SrcDecline!B42)),SourceInputsAttenuation!$E$14) -> 0.04999571415 | D42: 39 | E42: =IF(F$1="Decline",(D42*QsrcLitres)/SourceInputsAttenuation!$C$33,"") -> 0.0011256975 | F42: =IF(F$1="Decline",SourceInputsAttenuation!$E$15*EXP(-1*(SourceInputsAttenuation!$I$15*SrcDecline!E42)),SourceInputsAttenuation!$E$15) -> 0.000999815065 | G42: 39 | H42: =IF(I$1="Decline",(G42*QsrcLitres)/SourceInputsAttenuation!$C$33,"") -> 0.0011256975 | I42: =IF(I$1="Decline",SourceInputsAttenuation!$E$16*EXP(-1*(SourceInputsAttenuation!$I$16*SrcDecline!E42)),SourceInputsAttenuation!$E$16) -> 0.8690170172 | J42: 39 | K42: =IF(L$1="Decline",(J42*QsrcLitres)/SourceInputsAttenuation!$C$33,"") -> 0.0011256975 | L42: =IF(L$1="Decline",SourceInputsAttenuation!$E$17*EXP(-1*(SourceInputsAttenuation!$I$17*SrcDecline!K42)),SourceInputsAttenuation!$E$17) -> 0.003998770963 | M42: 39 | N42: =IF(O$1="Decline",(M42*QsrcLitres)/SourceInputsAttenuation!$C$33,"") -> 0.0011256975 | O42: =IF(O$1="Decline",SourceInputsAttenuation!$E$18*EXP(-1*(SourceInputsAttenuation!$I$18*SrcDecline!N42)),SourceInputsAttenuation!$E$18) -> 0.3998660392 | P42: 39 | Q42: =IF(R$1="Decline",(P42*QsrcLitres)/SourceInputsAttenuation!$C$33,"") -> 0.0011256975 | R42: =IF(R$1="Decline",SourceInputsAttenuation!$E$19*EXP(-1*(SourceInputsAttenuation!$I$19*SrcDecline!Q42)),SourceInputsAttenuation!$E$19) -> 0.1999317925 | S42: 39 | T42: =IF(U$1="Decline",(S42*QsrcLitres)/SourceInputsAttenuation!$C$33,"") -> 0.0011256975 | U42: =IF(U$1="Decline",SourceInputsAttenuation!$E$20*EXP(-1*(SourceInputsAttenuation!$I$20*SrcDecline!T42)),SourceInputsAttenuation!$E$20) -> 0.04998928436
A43: 40 | B43: =IF(C$1="Decline",(A43*QsrcLitres)/(SourceInputsAttenuation!$C$33),"") -> 0.001154561539 | C43: =IF(C$1="Decline",SourceInputsAttenuation!$E$14*EXP(-1*((SourceInputsAttenuation!$I$14)*SrcDecline!B43)),SourceInputsAttenuation!$E$14) -> 0.04999560426 | D43: 40 | E43: =IF(F$1="Decline",(D43*QsrcLitres)/SourceInputsAttenuation!$C$33,"") -> 0.001154561539 | F43: =IF(F$1="Decline",SourceInputsAttenuation!$E$15*EXP(-1*(SourceInputsAttenuation!$I$15*SrcDecline!E43)),SourceInputsAttenuation!$E$15) -> 0.0009998103235 | G43: 40 | H43: =IF(I$1="Decline",(G43*QsrcLitres)/SourceInputsAttenuation!$C$33,"") -> 0.001154561539 | I43: =IF(I$1="Decline",SourceInputsAttenuation!$E$16*EXP(-1*(SourceInputsAttenuation!$I$16*SrcDecline!E43)),SourceInputsAttenuation!$E$16) -> 0.8690046365 | J43: 40 | K43: =IF(L$1="Decline",(J43*QsrcLitres)/SourceInputsAttenuation!$C$33,"") -> 0.001154561539 | L43: =IF(L$1="Decline",SourceInputsAttenuation!$E$17*EXP(-1*(SourceInputsAttenuation!$I$17*SrcDecline!K43)),SourceInputsAttenuation!$E$17) -> 0.003998739454 | M43: 40 | N43: =IF(O$1="Decline",(M43*QsrcLitres)/SourceInputsAttenuation!$C$33,"") -> 0.001154561539 | O43: =IF(O$1="Decline",SourceInputsAttenuation!$E$18*EXP(-1*(SourceInputsAttenuation!$I$18*SrcDecline!N43)),SourceInputsAttenuation!$E$18) -> 0.3998626049 | P43: 40 | Q43: =IF(R$1="Decline",(P43*QsrcLitres)/SourceInputsAttenuation!$C$33,"") -> 0.001154561539 | R43: =IF(R$1="Decline",SourceInputsAttenuation!$E$19*EXP(-1*(SourceInputsAttenuation!$I$19*SrcDecline!Q43)),SourceInputsAttenuation!$E$19) -> 0.1999300439 | S43: 40 | T43: =IF(U$1="Decline",(S43*QsrcLitres)/SourceInputsAttenuation!$C$33,"") -> 0.001154561539 | U43: =IF(U$1="Decline",SourceInputsAttenuation!$E$20*EXP(-1*(SourceInputsAttenuation!$I$20*SrcDecline!T43)),SourceInputsAttenuation!$E$20) -> 0.04998900963
A44: 41 | B44: =IF(C$1="Decline",(A44*QsrcLitres)/(SourceInputsAttenuation!$C$33),"") -> 0.001183425577 | C44: =IF(C$1="Decline",SourceInputsAttenuation!$E$14*EXP(-1*((SourceInputsAttenuation!$I$14)*SrcDecline!B44)),SourceInputsAttenuation!$E$14) -> 0.04999549437 | D44: 41 | E44: =IF(F$1="Decline",(D44*QsrcLitres)/SourceInputsAttenuation!$C$33,"") -> 0.001183425577 | F44: =IF(F$1="Decline",SourceInputsAttenuation!$E$15*EXP(-1*(SourceInputsAttenuation!$I$15*SrcDecline!E44)),SourceInputsAttenuation!$E$15) -> 0.0009998055821 | G44: 41 | H44: =IF(I$1="Decline",(G44*QsrcLitres)/SourceInputsAttenuation!$C$33,"") -> 0.001183425577 | I44: =IF(I$1="Decline",SourceInputsAttenuation!$E$16*EXP(-1*(SourceInputsAttenuation!$I$16*SrcDecline!E44)),SourceInputsAttenuation!$E$16) -> 0.8689922561 | J44: 41 | K44: =IF(L$1="Decline",(J44*QsrcLitres)/SourceInputsAttenuation!$C$33,"") -> 0.001183425577 | L44: =IF(L$1="Decline",SourceInputsAttenuation!$E$17*EXP(-1*(SourceInputsAttenuation!$I$17*SrcDecline!K44)),SourceInputsAttenuation!$E$17) -> 0.003998707946 | M44: 41 | N44: =IF(O$1="Decline",(M44*QsrcLitres)/SourceInputsAttenuation!$C$33,"") -> 0.001183425577 | O44: =IF(O$1="Decline",SourceInputsAttenuation!$E$18*EXP(-1*(SourceInputsAttenuation!$I$18*SrcDecline!N44)),SourceInputsAttenuation!$E$18) -> 0.3998591706 | P44: 41 | Q44: =IF(R$1="Decline",(P44*QsrcLitres)/SourceInputsAttenuation!$C$33,"") -> 0.001183425577 | R44: =IF(R$1="Decline",SourceInputsAttenuation!$E$19*EXP(-1*(SourceInputsAttenuation!$I$19*SrcDecline!Q44)),SourceInputsAttenuation!$E$19) -> 0.1999282953 | S44: 41 | T44: =IF(U$1="Decline",(S44*QsrcLitres)/SourceInputsAttenuation!$C$33,"") -> 0.001183425577 | U44: =IF(U$1="Decline",SourceInputsAttenuation!$E$20*EXP(-1*(SourceInputsAttenuation!$I$20*SrcDecline!T44)),SourceInputsAttenuation!$E$20) -> 0.0499887349
A45: 42 | B45: =IF(C$1="Decline",(A45*QsrcLitres)/(SourceInputsAttenuation!$C$33),"") -> 0.001212289616 | C45: =IF(C$1="Decline",SourceInputsAttenuation!$E$14*EXP(-1*((SourceInputsAttenuation!$I$14)*SrcDecline!B45)),SourceInputsAttenuation!$E$14) -> 0.04999538448 | D45: 42 | E45: =IF(F$1="Decline",(D45*QsrcLitres)/SourceInputsAttenuation!$C$33,"") -> 0.001212289616 | F45: =IF(F$1="Decline",SourceInputsAttenuation!$E$15*EXP(-1*(SourceInputsAttenuation!$I$15*SrcDecline!E45)),SourceInputsAttenuation!$E$15) -> 0.0009998008407 | G45: 42 | H45: =IF(I$1="Decline",(G45*QsrcLitres)/SourceInputsAttenuation!$C$33,"") -> 0.001212289616 | I45: =IF(I$1="Decline",SourceInputsAttenuation!$E$16*EXP(-1*(SourceInputsAttenuation!$I$16*SrcDecline!E45)),SourceInputsAttenuation!$E$16) -> 0.8689798758 | J45: 42 | K45: =IF(L$1="Decline",(J45*QsrcLitres)/SourceInputsAttenuation!$C$33,"") -> 0.001212289616 | L45: =IF(L$1="Decline",SourceInputsAttenuation!$E$17*EXP(-1*(SourceInputsAttenuation!$I$17*SrcDecline!K45)),SourceInputsAttenuation!$E$17) -> 0.003998676437 | M45: 42 | N45: =IF(O$1="Decline",(M45*QsrcLitres)/SourceInputsAttenuation!$C$33,"") -> 0.001212289616 | O45: =IF(O$1="Decline",SourceInputsAttenuation!$E$18*EXP(-1*(SourceInputsAttenuation!$I$18*SrcDecline!N45)),SourceInputsAttenuation!$E$18) -> 0.3998557364 | P45: 42 | Q45: =IF(R$1="Decline",(P45*QsrcLitres)/SourceInputsAttenuation!$C$33,"") -> 0.001212289616 | R45: =IF(R$1="Decline",SourceInputsAttenuation!$E$19*EXP(-1*(SourceInputsAttenuation!$I$19*SrcDecline!Q45)),SourceInputsAttenuation!$E$19) -> 0.1999265467 | S45: 42 | T45: =IF(U$1="Decline",(S45*QsrcLitres)/SourceInputsAttenuation!$C$33,"") -> 0.001212289616 | U45: =IF(U$1="Decline",SourceInputsAttenuation!$E$20*EXP(-1*(SourceInputsAttenuation!$I$20*SrcDecline!T45)),SourceInputsAttenuation!$E$20) -> 0.04998846018
A46: 43 | B46: =IF(C$1="Decline",(A46*QsrcLitres)/(SourceInputsAttenuation!$C$33),"") -> 0.001241153654 | C46: =IF(C$1="Decline",SourceInputsAttenuation!$E$14*EXP(-1*((SourceInputsAttenuation!$I$14)*SrcDecline!B46)),SourceInputsAttenuation!$E$14) -> 0.0499952746 | D46: 43 | E46: =IF(F$1="Decline",(D46*QsrcLitres)/SourceInputsAttenuation!$C$33,"") -> 0.001241153654 | F46: =IF(F$1="Decline",SourceInputsAttenuation!$E$15*EXP(-1*(SourceInputsAttenuation!$I$15*SrcDecline!E46)),SourceInputsAttenuation!$E$15) -> 0.0009997960992 | G46: 43 | H46: =IF(I$1="Decline",(G46*QsrcLitres)/SourceInputsAttenuation!$C$33,"") -> 0.001241153654 | I46: =IF(I$1="Decline",SourceInputsAttenuation!$E$16*EXP(-1*(SourceInputsAttenuation!$I$16*SrcDecline!E46)),SourceInputsAttenuation!$E$16) -> 0.8689674957 | J46: 43 | K46: =IF(L$1="Decline",(J46*QsrcLitres)/SourceInputsAttenuation!$C$33,"") -> 0.001241153654 | L46: =IF(L$1="Decline",SourceInputsAttenuation!$E$17*EXP(-1*(SourceInputsAttenuation!$I$17*SrcDecline!K46)),SourceInputsAttenuation!$E$17) -> 0.003998644929 | M46: 43 | N46: =IF(O$1="Decline",(M46*QsrcLitres)/SourceInputsAttenuation!$C$33,"") -> 0.001241153654 | O46: =IF(O$1="Decline",SourceInputsAttenuation!$E$18*EXP(-1*(SourceInputsAttenuation!$I$18*SrcDecline!N46)),SourceInputsAttenuation!$E$18) -> 0.3998523022 | P46: 43 | Q46: =IF(R$1="Decline",(P46*QsrcLitres)/SourceInputsAttenuation!$C$33,"") -> 0.001241153654 | R46: =IF(R$1="Decline",SourceInputsAttenuation!$E$19*EXP(-1*(SourceInputsAttenuation!$I$19*SrcDecline!Q46)),SourceInputsAttenuation!$E$19) -> 0.1999247982 | S46: 43 | T46: =IF(U$1="Decline",(S46*QsrcLitres)/SourceInputsAttenuation!$C$33,"") -> 0.001241153654 | U46: =IF(U$1="Decline",SourceInputsAttenuation!$E$20*EXP(-1*(SourceInputsAttenuation!$I$20*SrcDecline!T46)),SourceInputsAttenuation!$E$20) -> 0.04998818545
A47: 44 | B47: =IF(C$1="Decline",(A47*QsrcLitres)/(SourceInputsAttenuation!$C$33),"") -> 0.001270017693 | C47: =IF(C$1="Decline",SourceInputsAttenuation!$E$14*EXP(-1*((SourceInputsAttenuation!$I$14)*SrcDecline!B47)),SourceInputsAttenuation!$E$14) -> 0.04999516471 | D47: 44 | E47: =IF(F$1="Decline",(D47*QsrcLitres)/SourceInputsAttenuation!$C$33,"") -> 0.001270017693 | F47: =IF(F$1="Decline",SourceInputsAttenuation!$E$15*EXP(-1*(SourceInputsAttenuation!$I$15*SrcDecline!E47)),SourceInputsAttenuation!$E$15) -> 0.0009997913579 | G47: 44 | H47: =IF(I$1="Decline",(G47*QsrcLitres)/SourceInputsAttenuation!$C$33,"") -> 0.001270017693 | I47: =IF(I$1="Decline",SourceInputsAttenuation!$E$16*EXP(-1*(SourceInputsAttenuation!$I$16*SrcDecline!E47)),SourceInputsAttenuation!$E$16) -> 0.8689551157 | J47: 44 | K47: =IF(L$1="Decline",(J47*QsrcLitres)/SourceInputsAttenuation!$C$33,"") -> 0.001270017693 | L47: =IF(L$1="Decline",SourceInputsAttenuation!$E$17*EXP(-1*(SourceInputsAttenuation!$I$17*SrcDecline!K47)),SourceInputsAttenuation!$E$17) -> 0.003998613422 | M47: 44 | N47: =IF(O$1="Decline",(M47*QsrcLitres)/SourceInputsAttenuation!$C$33,"") -> 0.001270017693 | O47: =IF(O$1="Decline",SourceInputsAttenuation!$E$18*EXP(-1*(SourceInputsAttenuation!$I$18*SrcDecline!N47)),SourceInputsAttenuation!$E$18) -> 0.399848868 | P47: 44 | Q47: =IF(R$1="Decline",(P47*QsrcLitres)/SourceInputsAttenuation!$C$33,"") -> 0.001270017693 | R47: =IF(R$1="Decline",SourceInputsAttenuation!$E$19*EXP(-1*(SourceInputsAttenuation!$I$19*SrcDecline!Q47)),SourceInputsAttenuation!$E$19) -> 0.1999230496 | S47: 44 | T47: =IF(U$1="Decline",(S47*QsrcLitres)/SourceInputsAttenuation!$C$33,"") -> 0.001270017693 | U47: =IF(U$1="Decline",SourceInputsAttenuation!$E$20*EXP(-1*(SourceInputsAttenuation!$I$20*SrcDecline!T47)),SourceInputsAttenuation!$E$20) -> 0.04998791073
A48: 45 | B48: =IF(C$1="Decline",(A48*QsrcLitres)/(SourceInputsAttenuation!$C$33),"") -> 0.001298881731 | C48: =IF(C$1="Decline",SourceInputsAttenuation!$E$14*EXP(-1*((SourceInputsAttenuation!$I$14)*SrcDecline!B48)),SourceInputsAttenuation!$E$14) -> 0.04999505482 | D48: 45 | E48: =IF(F$1="Decline",(D48*QsrcLitres)/SourceInputsAttenuation!$C$33,"") -> 0.001298881731 | F48: =IF(F$1="Decline",SourceInputsAttenuation!$E$15*EXP(-1*(SourceInputsAttenuation!$I$15*SrcDecline!E48)),SourceInputsAttenuation!$E$15) -> 0.0009997866165 | G48: 45 | H48: =IF(I$1="Decline",(G48*QsrcLitres)/SourceInputsAttenuation!$C$33,"") -> 0.001298881731 | I48: =IF(I$1="Decline",SourceInputsAttenuation!$E$16*EXP(-1*(SourceInputsAttenuation!$I$16*SrcDecline!E48)),SourceInputsAttenuation!$E$16) -> 0.8689427359 | J48: 45 | K48: =IF(L$1="Decline",(J48*QsrcLitres)/SourceInputsAttenuation!$C$33,"") -> 0.001298881731 | L48: =IF(L$1="Decline",SourceInputsAttenuation!$E$17*EXP(-1*(SourceInputsAttenuation!$I$17*SrcDecline!K48)),SourceInputsAttenuation!$E$17) -> 0.003998581914 | M48: 45 | N48: =IF(O$1="Decline",(M48*QsrcLitres)/SourceInputsAttenuation!$C$33,"") -> 0.001298881731 | O48: =IF(O$1="Decline",SourceInputsAttenuation!$E$18*EXP(-1*(SourceInputsAttenuation!$I$18*SrcDecline!N48)),SourceInputsAttenuation!$E$18) -> 0.3998454338 | P48: 45 | Q48: =IF(R$1="Decline",(P48*QsrcLitres)/SourceInputsAttenuation!$C$33,"") -> 0.001298881731 | R48: =IF(R$1="Decline",SourceInputsAttenuation!$E$19*EXP(-1*(SourceInputsAttenuation!$I$19*SrcDecline!Q48)),SourceInputsAttenuation!$E$19) -> 0.1999213011 | S48: 45 | T48: =IF(U$1="Decline",(S48*QsrcLitres)/SourceInputsAttenuation!$C$33,"") -> 0.001298881731 | U48: =IF(U$1="Decline",SourceInputsAttenuation!$E$20*EXP(-1*(SourceInputsAttenuation!$I$20*SrcDecline!T48)),SourceInputsAttenuation!$E$20) -> 0.049987636
A49: 46 | B49: =IF(C$1="Decline",(A49*QsrcLitres)/(SourceInputsAttenuation!$C$33),"") -> 0.00132774577 | C49: =IF(C$1="Decline",SourceInputsAttenuation!$E$14*EXP(-1*((SourceInputsAttenuation!$I$14)*SrcDecline!B49)),SourceInputsAttenuation!$E$14) -> 0.04999494493 | D49: 46 | E49: =IF(F$1="Decline",(D49*QsrcLitres)/SourceInputsAttenuation!$C$33,"") -> 0.00132774577 | F49: =IF(F$1="Decline",SourceInputsAttenuation!$E$15*EXP(-1*(SourceInputsAttenuation!$I$15*SrcDecline!E49)),SourceInputsAttenuation!$E$15) -> 0.0009997818752 | G49: 46 | H49: =IF(I$1="Decline",(G49*QsrcLitres)/SourceInputsAttenuation!$C$33,"") -> 0.00132774577 | I49: =IF(I$1="Decline",SourceInputsAttenuation!$E$16*EXP(-1*(SourceInputsAttenuation!$I$16*SrcDecline!E49)),SourceInputsAttenuation!$E$16) -> 0.8689303564 | J49: 46 | K49: =IF(L$1="Decline",(J49*QsrcLitres)/SourceInputsAttenuation!$C$33,"") -> 0.00132774577 | L49: =IF(L$1="Decline",SourceInputsAttenuation!$E$17*EXP(-1*(SourceInputsAttenuation!$I$17*SrcDecline!K49)),SourceInputsAttenuation!$E$17) -> 0.003998550407 | M49: 46 | N49: =IF(O$1="Decline",(M49*QsrcLitres)/SourceInputsAttenuation!$C$33,"") -> 0.00132774577 | O49: =IF(O$1="Decline",SourceInputsAttenuation!$E$18*EXP(-1*(SourceInputsAttenuation!$I$18*SrcDecline!N49)),SourceInputsAttenuation!$E$18) -> 0.3998419997 | P49: 46 | Q49: =IF(R$1="Decline",(P49*QsrcLitres)/SourceInputsAttenuation!$C$33,"") -> 0.00132774577 | R49: =IF(R$1="Decline",SourceInputsAttenuation!$E$19*EXP(-1*(SourceInputsAttenuation!$I$19*SrcDecline!Q49)),SourceInputsAttenuation!$E$19) -> 0.1999195526 | S49: 46 | T49: =IF(U$1="Decline",(S49*QsrcLitres)/SourceInputsAttenuation!$C$33,"") -> 0.00132774577 | U49: =IF(U$1="Decline",SourceInputsAttenuation!$E$20*EXP(-1*(SourceInputsAttenuation!$I$20*SrcDecline!T49)),SourceInputsAttenuation!$E$20) -> 0.04998736128
A50: 47 | B50: =IF(C$1="Decline",(A50*QsrcLitres)/(SourceInputsAttenuation!$C$33),"") -> 0.001356609808 | C50: =IF(C$1="Decline",SourceInputsAttenuation!$E$14*EXP(-1*((SourceInputsAttenuation!$I$14)*SrcDecline!B50)),SourceInputsAttenuation!$E$14) -> 0.04999483505 | D50: 47 | E50: =IF(F$1="Decline",(D50*QsrcLitres)/SourceInputsAttenuation!$C$33,"") -> 0.001356609808 | F50: =IF(F$1="Decline",SourceInputsAttenuation!$E$15*EXP(-1*(SourceInputsAttenuation!$I$15*SrcDecline!E50)),SourceInputsAttenuation!$E$15) -> 0.0009997771338 | G50: 47 | H50: =IF(I$1="Decline",(G50*QsrcLitres)/SourceInputsAttenuation!$C$33,"") -> 0.001356609808 | I50: =IF(I$1="Decline",SourceInputsAttenuation!$E$16*EXP(-1*(SourceInputsAttenuation!$I$16*SrcDecline!E50)),SourceInputsAttenuation!$E$16) -> 0.8689179769 | J50: 47 | K50: =IF(L$1="Decline",(J50*QsrcLitres)/SourceInputsAttenuation!$C$33,"") -> 0.001356609808 | L50: =IF(L$1="Decline",SourceInputsAttenuation!$E$17*EXP(-1*(SourceInputsAttenuation!$I$17*SrcDecline!K50)),SourceInputsAttenuation!$E$17) -> 0.0039985189 | M50: 47 | N50: =IF(O$1="Decline",(M50*QsrcLitres)/SourceInputsAttenuation!$C$33,"") -> 0.001356609808 | O50: =IF(O$1="Decline",SourceInputsAttenuation!$E$18*EXP(-1*(SourceInputsAttenuation!$I$18*SrcDecline!N50)),SourceInputsAttenuation!$E$18) -> 0.3998385656 | P50: 47 | Q50: =IF(R$1="Decline",(P50*QsrcLitres)/SourceInputsAttenuation!$C$33,"") -> 0.001356609808 | R50: =IF(R$1="Decline",SourceInputsAttenuation!$E$19*EXP(-1*(SourceInputsAttenuation!$I$19*SrcDecline!Q50)),SourceInputsAttenuation!$E$19) -> 0.1999178041 | S50: 47 | T50: =IF(U$1="Decline",(S50*QsrcLitres)/SourceInputsAttenuation!$C$33,"") -> 0.001356609808 | U50: =IF(U$1="Decline",SourceInputsAttenuation!$E$20*EXP(-1*(SourceInputsAttenuation!$I$20*SrcDecline!T50)),SourceInputsAttenuation!$E$20) -> 0.04998708656
A51: 48 | B51: =IF(C$1="Decline",(A51*QsrcLitres)/(SourceInputsAttenuation!$C$33),"") -> 0.001385473847 | C51: =IF(C$1="Decline",SourceInputsAttenuation!$E$14*EXP(-1*((SourceInputsAttenuation!$I$14)*SrcDecline!B51)),SourceInputsAttenuation!$E$14) -> 0.04999472516 | D51: 48 | E51: =IF(F$1="Decline",(D51*QsrcLitres)/SourceInputsAttenuation!$C$33,"") -> 0.001385473847 | F51: =IF(F$1="Decline",SourceInputsAttenuation!$E$15*EXP(-1*(SourceInputsAttenuation!$I$15*SrcDecline!E51)),SourceInputsAttenuation!$E$15) -> 0.0009997723926 | G51: 48 | H51: =IF(I$1="Decline",(G51*QsrcLitres)/SourceInputsAttenuation!$C$33,"") -> 0.001385473847 | I51: =IF(I$1="Decline",SourceInputsAttenuation!$E$16*EXP(-1*(SourceInputsAttenuation!$I$16*SrcDecline!E51)),SourceInputsAttenuation!$E$16) -> 0.8689055977 | J51: 48 | K51: =IF(L$1="Decline",(J51*QsrcLitres)/SourceInputsAttenuation!$C$33,"") -> 0.001385473847 | L51: =IF(L$1="Decline",SourceInputsAttenuation!$E$17*EXP(-1*(SourceInputsAttenuation!$I$17*SrcDecline!K51)),SourceInputsAttenuation!$E$17) -> 0.003998487393 | M51: 48 | N51: =IF(O$1="Decline",(M51*QsrcLitres)/SourceInputsAttenuation!$C$33,"") -> 0.001385473847 | O51: =IF(O$1="Decline",SourceInputsAttenuation!$E$18*EXP(-1*(SourceInputsAttenuation!$I$18*SrcDecline!N51)),SourceInputsAttenuation!$E$18) -> 0.3998351316 | P51: 48 | Q51: =IF(R$1="Decline",(P51*QsrcLitres)/SourceInputsAttenuation!$C$33,"") -> 0.001385473847 | R51: =IF(R$1="Decline",SourceInputsAttenuation!$E$19*EXP(-1*(SourceInputsAttenuation!$I$19*SrcDecline!Q51)),SourceInputsAttenuation!$E$19) -> 0.1999160556 | S51: 48 | T51: =IF(U$1="Decline",(S51*QsrcLitres)/SourceInputsAttenuation!$C$33,"") -> 0.001385473847 | U51: =IF(U$1="Decline",SourceInputsAttenuation!$E$20*EXP(-1*(SourceInputsAttenuation!$I$20*SrcDecline!T51)),SourceInputsAttenuation!$E$20) -> 0.04998681185
A52: 49 | B52: =IF(C$1="Decline",(A52*QsrcLitres)/(SourceInputsAttenuation!$C$33),"") -> 0.001414337885 | C52: =IF(C$1="Decline",SourceInputsAttenuation!$E$14*EXP(-1*((SourceInputsAttenuation!$I$14)*SrcDecline!B52)),SourceInputsAttenuation!$E$14) -> 0.04999461527 | D52: 49 | E52: =IF(F$1="Decline",(D52*QsrcLitres)/SourceInputsAttenuation!$C$33,"") -> 0.001414337885 | F52: =IF(F$1="Decline",SourceInputsAttenuation!$E$15*EXP(-1*(SourceInputsAttenuation!$I$15*SrcDecline!E52)),SourceInputsAttenuation!$E$15) -> 0.0009997676513 | G52: 49 | H52: =IF(I$1="Decline",(G52*QsrcLitres)/SourceInputsAttenuation!$C$33,"") -> 0.001414337885 | I52: =IF(I$1="Decline",SourceInputsAttenuation!$E$16*EXP(-1*(SourceInputsAttenuation!$I$16*SrcDecline!E52)),SourceInputsAttenuation!$E$16) -> 0.8688932186 | J52: 49 | K52: =IF(L$1="Decline",(J52*QsrcLitres)/SourceInputsAttenuation!$C$33,"") -> 0.001414337885 | L52: =IF(L$1="Decline",SourceInputsAttenuation!$E$17*EXP(-1*(SourceInputsAttenuation!$I$17*SrcDecline!K52)),SourceInputsAttenuation!$E$17) -> 0.003998455886 | M52: 49 | N52: =IF(O$1="Decline",(M52*QsrcLitres)/SourceInputsAttenuation!$C$33,"") -> 0.001414337885 | O52: =IF(O$1="Decline",SourceInputsAttenuation!$E$18*EXP(-1*(SourceInputsAttenuation!$I$18*SrcDecline!N52)),SourceInputsAttenuation!$E$18) -> 0.3998316975 | P52: 49 | Q52: =IF(R$1="Decline",(P52*QsrcLitres)/SourceInputsAttenuation!$C$33,"") -> 0.001414337885 | R52: =IF(R$1="Decline",SourceInputsAttenuation!$E$19*EXP(-1*(SourceInputsAttenuation!$I$19*SrcDecline!Q52)),SourceInputsAttenuation!$E$19) -> 0.1999143071 | S52: 49 | T52: =IF(U$1="Decline",(S52*QsrcLitres)/SourceInputsAttenuation!$C$33,"") -> 0.001414337885 | U52: =IF(U$1="Decline",SourceInputsAttenuation!$E$20*EXP(-1*(SourceInputsAttenuation!$I$20*SrcDecline!T52)),SourceInputsAttenuation!$E$20) -> 0.04998653713
A53: 50 | B53: =IF(C$1="Decline",(A53*QsrcLitres)/(SourceInputsAttenuation!$C$33),"") -> 0.001443201924 | C53: =IF(C$1="Decline",SourceInputsAttenuation!$E$14*EXP(-1*((SourceInputsAttenuation!$I$14)*SrcDecline!B53)),SourceInputsAttenuation!$E$14) -> 0.04999450539 | D53: 50 | E53: =IF(F$1="Decline",(D53*QsrcLitres)/SourceInputsAttenuation!$C$33,"") -> 0.001443201924 | F53: =IF(F$1="Decline",SourceInputsAttenuation!$E$15*EXP(-1*(SourceInputsAttenuation!$I$15*SrcDecline!E53)),SourceInputsAttenuation!$E$15) -> 0.00099976291 | G53: 50 | H53: =IF(I$1="Decline",(G53*QsrcLitres)/SourceInputsAttenuation!$C$33,"") -> 0.001443201924 | I53: =IF(I$1="Decline",SourceInputsAttenuation!$E$16*EXP(-1*(SourceInputsAttenuation!$I$16*SrcDecline!E53)),SourceInputsAttenuation!$E$16) -> 0.8688808398 | J53: 50 | K53: =IF(L$1="Decline",(J53*QsrcLitres)/SourceInputsAttenuation!$C$33,"") -> 0.001443201924 | L53: =IF(L$1="Decline",SourceInputsAttenuation!$E$17*EXP(-1*(SourceInputsAttenuation!$I$17*SrcDecline!K53)),SourceInputsAttenuation!$E$17) -> 0.00399842438 | M53: 50 | N53: =IF(O$1="Decline",(M53*QsrcLitres)/SourceInputsAttenuation!$C$33,"") -> 0.001443201924 | O53: =IF(O$1="Decline",SourceInputsAttenuation!$E$18*EXP(-1*(SourceInputsAttenuation!$I$18*SrcDecline!N53)),SourceInputsAttenuation!$E$18) -> 0.3998282635 | P53: 50 | Q53: =IF(R$1="Decline",(P53*QsrcLitres)/SourceInputsAttenuation!$C$33,"") -> 0.001443201924 | R53: =IF(R$1="Decline",SourceInputsAttenuation!$E$19*EXP(-1*(SourceInputsAttenuation!$I$19*SrcDecline!Q53)),SourceInputsAttenuation!$E$19) -> 0.1999125587 | S53: 50 | T53: =IF(U$1="Decline",(S53*QsrcLitres)/SourceInputsAttenuation!$C$33,"") -> 0.001443201924 | U53: =IF(U$1="Decline",SourceInputsAttenuation!$E$20*EXP(-1*(SourceInputsAttenuation!$I$20*SrcDecline!T53)),SourceInputsAttenuation!$E$20) -> 0.04998626242
A54: 51 | B54: =IF(C$1="Decline",(A54*QsrcLitres)/(SourceInputsAttenuation!$C$33),"") -> 0.001472065962 | C54: =IF(C$1="Decline",SourceInputsAttenuation!$E$14*EXP(-1*((SourceInputsAttenuation!$I$14)*SrcDecline!B54)),SourceInputsAttenuation!$E$14) -> 0.0499943955 | D54: 51 | E54: =IF(F$1="Decline",(D54*QsrcLitres)/SourceInputsAttenuation!$C$33,"") -> 0.001472065962 | F54: =IF(F$1="Decline",SourceInputsAttenuation!$E$15*EXP(-1*(SourceInputsAttenuation!$I$15*SrcDecline!E54)),SourceInputsAttenuation!$E$15) -> 0.0009997581688 | G54: 51 | H54: =IF(I$1="Decline",(G54*QsrcLitres)/SourceInputsAttenuation!$C$33,"") -> 0.001472065962 | I54: =IF(I$1="Decline",SourceInputsAttenuation!$E$16*EXP(-1*(SourceInputsAttenuation!$I$16*SrcDecline!E54)),SourceInputsAttenuation!$E$16) -> 0.8688684611 | J54: 51 | K54: =IF(L$1="Decline",(J54*QsrcLitres)/SourceInputsAttenuation!$C$33,"") -> 0.001472065962 | L54: =IF(L$1="Decline",SourceInputsAttenuation!$E$17*EXP(-1*(SourceInputsAttenuation!$I$17*SrcDecline!K54)),SourceInputsAttenuation!$E$17) -> 0.003998392874 | M54: 51 | N54: =IF(O$1="Decline",(M54*QsrcLitres)/SourceInputsAttenuation!$C$33,"") -> 0.001472065962 | O54: =IF(O$1="Decline",SourceInputsAttenuation!$E$18*EXP(-1*(SourceInputsAttenuation!$I$18*SrcDecline!N54)),SourceInputsAttenuation!$E$18) -> 0.3998248295 | P54: 51 | Q54: =IF(R$1="Decline",(P54*QsrcLitres)/SourceInputsAttenuation!$C$33,"") -> 0.001472065962 | R54: =IF(R$1="Decline",SourceInputsAttenuation!$E$19*EXP(-1*(SourceInputsAttenuation!$I$19*SrcDecline!Q54)),SourceInputsAttenuation!$E$19) -> 0.1999108103 | S54: 51 | T54: =IF(U$1="Decline",(S54*QsrcLitres)/SourceInputsAttenuation!$C$33,"") -> 0.001472065962 | U54: =IF(U$1="Decline",SourceInputsAttenuation!$E$20*EXP(-1*(SourceInputsAttenuation!$I$20*SrcDecline!T54)),SourceInputsAttenuation!$E$20) -> 0.0499859877
A55: 52 | B55: =IF(C$1="Decline",(A55*QsrcLitres)/(SourceInputsAttenuation!$C$33),"") -> 0.001500930001 | C55: =IF(C$1="Decline",SourceInputsAttenuation!$E$14*EXP(-1*((SourceInputsAttenuation!$I$14)*SrcDecline!B55)),SourceInputsAttenuation!$E$14) -> 0.04999428561 | D55: 52 | E55: =IF(F$1="Decline",(D55*QsrcLitres)/SourceInputsAttenuation!$C$33,"") -> 0.001500930001 | F55: =IF(F$1="Decline",SourceInputsAttenuation!$E$15*EXP(-1*(SourceInputsAttenuation!$I$15*SrcDecline!E55)),SourceInputsAttenuation!$E$15) -> 0.0009997534276 | G55: 52 | H55: =IF(I$1="Decline",(G55*QsrcLitres)/SourceInputsAttenuation!$C$33,"") -> 0.001500930001 | I55: =IF(I$1="Decline",SourceInputsAttenuation!$E$16*EXP(-1*(SourceInputsAttenuation!$I$16*SrcDecline!E55)),SourceInputsAttenuation!$E$16) -> 0.8688560825 | J55: 52 | K55: =IF(L$1="Decline",(J55*QsrcLitres)/SourceInputsAttenuation!$C$33,"") -> 0.001500930001 | L55: =IF(L$1="Decline",SourceInputsAttenuation!$E$17*EXP(-1*(SourceInputsAttenuation!$I$17*SrcDecline!K55)),SourceInputsAttenuation!$E$17) -> 0.003998361368 | M55: 52 | N55: =IF(O$1="Decline",(M55*QsrcLitres)/SourceInputsAttenuation!$C$33,"") -> 0.001500930001 | O55: =IF(O$1="Decline",SourceInputsAttenuation!$E$18*EXP(-1*(SourceInputsAttenuation!$I$18*SrcDecline!N55)),SourceInputsAttenuation!$E$18) -> 0.3998213956 | P55: 52 | Q55: =IF(R$1="Decline",(P55*QsrcLitres)/SourceInputsAttenuation!$C$33,"") -> 0.001500930001 | R55: =IF(R$1="Decline",SourceInputsAttenuation!$E$19*EXP(-1*(SourceInputsAttenuation!$I$19*SrcDecline!Q55)),SourceInputsAttenuation!$E$19) -> 0.1999090618 | S55: 52 | T55: =IF(U$1="Decline",(S55*QsrcLitres)/SourceInputsAttenuation!$C$33,"") -> 0.001500930001 | U55: =IF(U$1="Decline",SourceInputsAttenuation!$E$20*EXP(-1*(SourceInputsAttenuation!$I$20*SrcDecline!T55)),SourceInputsAttenuation!$E$20) -> 0.04998571299
A56: 53 | B56: =IF(C$1="Decline",(A56*QsrcLitres)/(SourceInputsAttenuation!$C$33),"") -> 0.001529794039 | C56: =IF(C$1="Decline",SourceInputsAttenuation!$E$14*EXP(-1*((SourceInputsAttenuation!$I$14)*SrcDecline!B56)),SourceInputsAttenuation!$E$14) -> 0.04999417573 | D56: 53 | E56: =IF(F$1="Decline",(D56*QsrcLitres)/SourceInputsAttenuation!$C$33,"") -> 0.001529794039 | F56: =IF(F$1="Decline",SourceInputsAttenuation!$E$15*EXP(-1*(SourceInputsAttenuation!$I$15*SrcDecline!E56)),SourceInputsAttenuation!$E$15) -> 0.0009997486864 | G56: 53 | H56: =IF(I$1="Decline",(G56*QsrcLitres)/SourceInputsAttenuation!$C$33,"") -> 0.001529794039 | I56: =IF(I$1="Decline",SourceInputsAttenuation!$E$16*EXP(-1*(SourceInputsAttenuation!$I$16*SrcDecline!E56)),SourceInputsAttenuation!$E$16) -> 0.8688437042 | J56: 53 | K56: =IF(L$1="Decline",(J56*QsrcLitres)/SourceInputsAttenuation!$C$33,"") -> 0.001529794039 | L56: =IF(L$1="Decline",SourceInputsAttenuation!$E$17*EXP(-1*(SourceInputsAttenuation!$I$17*SrcDecline!K56)),SourceInputsAttenuation!$E$17) -> 0.003998329862 | M56: 53 | N56: =IF(O$1="Decline",(M56*QsrcLitres)/SourceInputsAttenuation!$C$33,"") -> 0.001529794039 | O56: =IF(O$1="Decline",SourceInputsAttenuation!$E$18*EXP(-1*(SourceInputsAttenuation!$I$18*SrcDecline!N56)),SourceInputsAttenuation!$E$18) -> 0.3998179617 | P56: 53 | Q56: =IF(R$1="Decline",(P56*QsrcLitres)/SourceInputsAttenuation!$C$33,"") -> 0.001529794039 | R56: =IF(R$1="Decline",SourceInputsAttenuation!$E$19*EXP(-1*(SourceInputsAttenuation!$I$19*SrcDecline!Q56)),SourceInputsAttenuation!$E$19) -> 0.1999073134 | S56: 53 | T56: =IF(U$1="Decline",(S56*QsrcLitres)/SourceInputsAttenuation!$C$33,"") -> 0.001529794039 | U56: =IF(U$1="Decline",SourceInputsAttenuation!$E$20*EXP(-1*(SourceInputsAttenuation!$I$20*SrcDecline!T56)),SourceInputsAttenuation!$E$20) -> 0.04998543828
A57: 54 | B57: =IF(C$1="Decline",(A57*QsrcLitres)/(SourceInputsAttenuation!$C$33),"") -> 0.001558658077 | C57: =IF(C$1="Decline",SourceInputsAttenuation!$E$14*EXP(-1*((SourceInputsAttenuation!$I$14)*SrcDecline!B57)),SourceInputsAttenuation!$E$14) -> 0.04999406584 | D57: 54 | E57: =IF(F$1="Decline",(D57*QsrcLitres)/SourceInputsAttenuation!$C$33,"") -> 0.001558658077 | F57: =IF(F$1="Decline",SourceInputsAttenuation!$E$15*EXP(-1*(SourceInputsAttenuation!$I$15*SrcDecline!E57)),SourceInputsAttenuation!$E$15) -> 0.0009997439453 | G57: 54 | H57: =IF(I$1="Decline",(G57*QsrcLitres)/SourceInputsAttenuation!$C$33,"") -> 0.001558658077 | I57: =IF(I$1="Decline",SourceInputsAttenuation!$E$16*EXP(-1*(SourceInputsAttenuation!$I$16*SrcDecline!E57)),SourceInputsAttenuation!$E$16) -> 0.868831326 | J57: 54 | K57: =IF(L$1="Decline",(J57*QsrcLitres)/SourceInputsAttenuation!$C$33,"") -> 0.001558658077 | L57: =IF(L$1="Decline",SourceInputsAttenuation!$E$17*EXP(-1*(SourceInputsAttenuation!$I$17*SrcDecline!K57)),SourceInputsAttenuation!$E$17) -> 0.003998298357 | M57: 54 | N57: =IF(O$1="Decline",(M57*QsrcLitres)/SourceInputsAttenuation!$C$33,"") -> 0.001558658077 | O57: =IF(O$1="Decline",SourceInputsAttenuation!$E$18*EXP(-1*(SourceInputsAttenuation!$I$18*SrcDecline!N57)),SourceInputsAttenuation!$E$18) -> 0.3998145278 | P57: 54 | Q57: =IF(R$1="Decline",(P57*QsrcLitres)/SourceInputsAttenuation!$C$33,"") -> 0.001558658077 | R57: =IF(R$1="Decline",SourceInputsAttenuation!$E$19*EXP(-1*(SourceInputsAttenuation!$I$19*SrcDecline!Q57)),SourceInputsAttenuation!$E$19) -> 0.199905565 | S57: 54 | T57: =IF(U$1="Decline",(S57*QsrcLitres)/SourceInputsAttenuation!$C$33,"") -> 0.001558658077 | U57: =IF(U$1="Decline",SourceInputsAttenuation!$E$20*EXP(-1*(SourceInputsAttenuation!$I$20*SrcDecline!T57)),SourceInputsAttenuation!$E$20) -> 0.04998516357
A58: 55 | B58: =IF(C$1="Decline",(A58*QsrcLitres)/(SourceInputsAttenuation!$C$33),"") -> 0.001587522116 | C58: =IF(C$1="Decline",SourceInputsAttenuation!$E$14*EXP(-1*((SourceInputsAttenuation!$I$14)*SrcDecline!B58)),SourceInputsAttenuation!$E$14) -> 0.04999395596 | D58: 55 | E58: =IF(F$1="Decline",(D58*QsrcLitres)/SourceInputsAttenuation!$C$33,"") -> 0.001587522116 | F58: =IF(F$1="Decline",SourceInputsAttenuation!$E$15*EXP(-1*(SourceInputsAttenuation!$I$15*SrcDecline!E58)),SourceInputsAttenuation!$E$15) -> 0.0009997392041 | G58: 55 | H58: =IF(I$1="Decline",(G58*QsrcLitres)/SourceInputsAttenuation!$C$33,"") -> 0.001587522116 | I58: =IF(I$1="Decline",SourceInputsAttenuation!$E$16*EXP(-1*(SourceInputsAttenuation!$I$16*SrcDecline!E58)),SourceInputsAttenuation!$E$16) -> 0.868818948 | J58: 55 | K58: =IF(L$1="Decline",(J58*QsrcLitres)/SourceInputsAttenuation!$C$33,"") -> 0.001587522116 | L58: =IF(L$1="Decline",SourceInputsAttenuation!$E$17*EXP(-1*(SourceInputsAttenuation!$I$17*SrcDecline!K58)),SourceInputsAttenuation!$E$17) -> 0.003998266852 | M58: 55 | N58: =IF(O$1="Decline",(M58*QsrcLitres)/SourceInputsAttenuation!$C$33,"") -> 0.001587522116 | O58: =IF(O$1="Decline",SourceInputsAttenuation!$E$18*EXP(-1*(SourceInputsAttenuation!$I$18*SrcDecline!N58)),SourceInputsAttenuation!$E$18) -> 0.3998110939 | P58: 55 | Q58: =IF(R$1="Decline",(P58*QsrcLitres)/SourceInputsAttenuation!$C$33,"") -> 0.001587522116 | R58: =IF(R$1="Decline",SourceInputsAttenuation!$E$19*EXP(-1*(SourceInputsAttenuation!$I$19*SrcDecline!Q58)),SourceInputsAttenuation!$E$19) -> 0.1999038167 | S58: 55 | T58: =IF(U$1="Decline",(S58*QsrcLitres)/SourceInputsAttenuation!$C$33,"") -> 0.001587522116 | U58: =IF(U$1="Decline",SourceInputsAttenuation!$E$20*EXP(-1*(SourceInputsAttenuation!$I$20*SrcDecline!T58)),SourceInputsAttenuation!$E$20) -> 0.04998488887
A59: 56 | B59: =IF(C$1="Decline",(A59*QsrcLitres)/(SourceInputsAttenuation!$C$33),"") -> 0.001616386154 | C59: =IF(C$1="Decline",SourceInputsAttenuation!$E$14*EXP(-1*((SourceInputsAttenuation!$I$14)*SrcDecline!B59)),SourceInputsAttenuation!$E$14) -> 0.04999384607 | D59: 56 | E59: =IF(F$1="Decline",(D59*QsrcLitres)/SourceInputsAttenuation!$C$33,"") -> 0.001616386154 | F59: =IF(F$1="Decline",SourceInputsAttenuation!$E$15*EXP(-1*(SourceInputsAttenuation!$I$15*SrcDecline!E59)),SourceInputsAttenuation!$E$15) -> 0.000999734463 | G59: 56 | H59: =IF(I$1="Decline",(G59*QsrcLitres)/SourceInputsAttenuation!$C$33,"") -> 0.001616386154 | I59: =IF(I$1="Decline",SourceInputsAttenuation!$E$16*EXP(-1*(SourceInputsAttenuation!$I$16*SrcDecline!E59)),SourceInputsAttenuation!$E$16) -> 0.8688065702 | J59: 56 | K59: =IF(L$1="Decline",(J59*QsrcLitres)/SourceInputsAttenuation!$C$33,"") -> 0.001616386154 | L59: =IF(L$1="Decline",SourceInputsAttenuation!$E$17*EXP(-1*(SourceInputsAttenuation!$I$17*SrcDecline!K59)),SourceInputsAttenuation!$E$17) -> 0.003998235347 | M59: 56 | N59: =IF(O$1="Decline",(M59*QsrcLitres)/SourceInputsAttenuation!$C$33,"") -> 0.001616386154 | O59: =IF(O$1="Decline",SourceInputsAttenuation!$E$18*EXP(-1*(SourceInputsAttenuation!$I$18*SrcDecline!N59)),SourceInputsAttenuation!$E$18) -> 0.3998076601 | P59: 56 | Q59: =IF(R$1="Decline",(P59*QsrcLitres)/SourceInputsAttenuation!$C$33,"") -> 0.001616386154 | R59: =IF(R$1="Decline",SourceInputsAttenuation!$E$19*EXP(-1*(SourceInputsAttenuation!$I$19*SrcDecline!Q59)),SourceInputsAttenuation!$E$19) -> 0.1999020683 | S59: 56 | T59: =IF(U$1="Decline",(S59*QsrcLitres)/SourceInputsAttenuation!$C$33,"") -> 0.001616386154 | U59: =IF(U$1="Decline",SourceInputsAttenuation!$E$20*EXP(-1*(SourceInputsAttenuation!$I$20*SrcDecline!T59)),SourceInputsAttenuation!$E$20) -> 0.04998461416
A60: 57 | B60: =IF(C$1="Decline",(A60*QsrcLitres)/(SourceInputsAttenuation!$C$33),"") -> 0.001645250193 | C60: =IF(C$1="Decline",SourceInputsAttenuation!$E$14*EXP(-1*((SourceInputsAttenuation!$I$14)*SrcDecline!B60)),SourceInputsAttenuation!$E$14) -> 0.04999373619 | D60: 57 | E60: =IF(F$1="Decline",(D60*QsrcLitres)/SourceInputsAttenuation!$C$33,"") -> 0.001645250193 | F60: =IF(F$1="Decline",SourceInputsAttenuation!$E$15*EXP(-1*(SourceInputsAttenuation!$I$15*SrcDecline!E60)),SourceInputsAttenuation!$E$15) -> 0.0009997297219 | G60: 57 | H60: =IF(I$1="Decline",(G60*QsrcLitres)/SourceInputsAttenuation!$C$33,"") -> 0.001645250193 | I60: =IF(I$1="Decline",SourceInputsAttenuation!$E$16*EXP(-1*(SourceInputsAttenuation!$I$16*SrcDecline!E60)),SourceInputsAttenuation!$E$16) -> 0.8687941925 | J60: 57 | K60: =IF(L$1="Decline",(J60*QsrcLitres)/SourceInputsAttenuation!$C$33,"") -> 0.001645250193 | L60: =IF(L$1="Decline",SourceInputsAttenuation!$E$17*EXP(-1*(SourceInputsAttenuation!$I$17*SrcDecline!K60)),SourceInputsAttenuation!$E$17) -> 0.003998203843 | M60: 57 | N60: =IF(O$1="Decline",(M60*QsrcLitres)/SourceInputsAttenuation!$C$33,"") -> 0.001645250193 | O60: =IF(O$1="Decline",SourceInputsAttenuation!$E$18*EXP(-1*(SourceInputsAttenuation!$I$18*SrcDecline!N60)),SourceInputsAttenuation!$E$18) -> 0.3998042263 | P60: 57 | Q60: =IF(R$1="Decline",(P60*QsrcLitres)/SourceInputsAttenuation!$C$33,"") -> 0.001645250193 | R60: =IF(R$1="Decline",SourceInputsAttenuation!$E$19*EXP(-1*(SourceInputsAttenuation!$I$19*SrcDecline!Q60)),SourceInputsAttenuation!$E$19) -> 0.19990032 | S60: 57 | T60: =IF(U$1="Decline",(S60*QsrcLitres)/SourceInputsAttenuation!$C$33,"") -> 0.001645250193 | U60: =IF(U$1="Decline",SourceInputsAttenuation!$E$20*EXP(-1*(SourceInputsAttenuation!$I$20*SrcDecline!T60)),SourceInputsAttenuation!$E$20) -> 0.04998433946
A61: 58 | B61: =IF(C$1="Decline",(A61*QsrcLitres)/(SourceInputsAttenuation!$C$33),"") -> 0.001674114231 | C61: =IF(C$1="Decline",SourceInputsAttenuation!$E$14*EXP(-1*((SourceInputsAttenuation!$I$14)*SrcDecline!B61)),SourceInputsAttenuation!$E$14) -> 0.0499936263 | D61: 58 | E61: =IF(F$1="Decline",(D61*QsrcLitres)/SourceInputsAttenuation!$C$33,"") -> 0.001674114231 | F61: =IF(F$1="Decline",SourceInputsAttenuation!$E$15*EXP(-1*(SourceInputsAttenuation!$I$15*SrcDecline!E61)),SourceInputsAttenuation!$E$15) -> 0.0009997249809 | G61: 58 | H61: =IF(I$1="Decline",(G61*QsrcLitres)/SourceInputsAttenuation!$C$33,"") -> 0.001674114231 | I61: =IF(I$1="Decline",SourceInputsAttenuation!$E$16*EXP(-1*(SourceInputsAttenuation!$I$16*SrcDecline!E61)),SourceInputsAttenuation!$E$16) -> 0.8687818151 | J61: 58 | K61: =IF(L$1="Decline",(J61*QsrcLitres)/SourceInputsAttenuation!$C$33,"") -> 0.001674114231 | L61: =IF(L$1="Decline",SourceInputsAttenuation!$E$17*EXP(-1*(SourceInputsAttenuation!$I$17*SrcDecline!K61)),SourceInputsAttenuation!$E$17) -> 0.003998172338 | M61: 58 | N61: =IF(O$1="Decline",(M61*QsrcLitres)/SourceInputsAttenuation!$C$33,"") -> 0.001674114231 | O61: =IF(O$1="Decline",SourceInputsAttenuation!$E$18*EXP(-1*(SourceInputsAttenuation!$I$18*SrcDecline!N61)),SourceInputsAttenuation!$E$18) -> 0.3998007925 | P61: 58 | Q61: =IF(R$1="Decline",(P61*QsrcLitres)/SourceInputsAttenuation!$C$33,"") -> 0.001674114231 | R61: =IF(R$1="Decline",SourceInputsAttenuation!$E$19*EXP(-1*(SourceInputsAttenuation!$I$19*SrcDecline!Q61)),SourceInputsAttenuation!$E$19) -> 0.1998985716 | S61: 58 | T61: =IF(U$1="Decline",(S61*QsrcLitres)/SourceInputsAttenuation!$C$33,"") -> 0.001674114231 | U61: =IF(U$1="Decline",SourceInputsAttenuation!$E$20*EXP(-1*(SourceInputsAttenuation!$I$20*SrcDecline!T61)),SourceInputsAttenuation!$E$20) -> 0.04998406475
A62: 59 | B62: =IF(C$1="Decline",(A62*QsrcLitres)/(SourceInputsAttenuation!$C$33),"") -> 0.00170297827 | C62: =IF(C$1="Decline",SourceInputsAttenuation!$E$14*EXP(-1*((SourceInputsAttenuation!$I$14)*SrcDecline!B62)),SourceInputsAttenuation!$E$14) -> 0.04999351642 | D62: 59 | E62: =IF(F$1="Decline",(D62*QsrcLitres)/SourceInputsAttenuation!$C$33,"") -> 0.00170297827 | F62: =IF(F$1="Decline",SourceInputsAttenuation!$E$15*EXP(-1*(SourceInputsAttenuation!$I$15*SrcDecline!E62)),SourceInputsAttenuation!$E$15) -> 0.0009997202398 | G62: 59 | H62: =IF(I$1="Decline",(G62*QsrcLitres)/SourceInputsAttenuation!$C$33,"") -> 0.00170297827 | I62: =IF(I$1="Decline",SourceInputsAttenuation!$E$16*EXP(-1*(SourceInputsAttenuation!$I$16*SrcDecline!E62)),SourceInputsAttenuation!$E$16) -> 0.8687694378 | J62: 59 | K62: =IF(L$1="Decline",(J62*QsrcLitres)/SourceInputsAttenuation!$C$33,"") -> 0.00170297827 | L62: =IF(L$1="Decline",SourceInputsAttenuation!$E$17*EXP(-1*(SourceInputsAttenuation!$I$17*SrcDecline!K62)),SourceInputsAttenuation!$E$17) -> 0.003998140834 | M62: 59 | N62: =IF(O$1="Decline",(M62*QsrcLitres)/SourceInputsAttenuation!$C$33,"") -> 0.00170297827 | O62: =IF(O$1="Decline",SourceInputsAttenuation!$E$18*EXP(-1*(SourceInputsAttenuation!$I$18*SrcDecline!N62)),SourceInputsAttenuation!$E$18) -> 0.3997973588 | P62: 59 | Q62: =IF(R$1="Decline",(P62*QsrcLitres)/SourceInputsAttenuation!$C$33,"") -> 0.00170297827 | R62: =IF(R$1="Decline",SourceInputsAttenuation!$E$19*EXP(-1*(SourceInputsAttenuation!$I$19*SrcDecline!Q62)),SourceInputsAttenuation!$E$19) -> 0.1998968233 | S62: 59 | T62: =IF(U$1="Decline",(S62*QsrcLitres)/SourceInputsAttenuation!$C$33,"") -> 0.00170297827 | U62: =IF(U$1="Decline",SourceInputsAttenuation!$E$20*EXP(-1*(SourceInputsAttenuation!$I$20*SrcDecline!T62)),SourceInputsAttenuation!$E$20) -> 0.04998379005
A63: 60 | B63: =IF(C$1="Decline",(A63*QsrcLitres)/(SourceInputsAttenuation!$C$33),"") -> 0.001731842308 | C63: =IF(C$1="Decline",SourceInputsAttenuation!$E$14*EXP(-1*((SourceInputsAttenuation!$I$14)*SrcDecline!B63)),SourceInputsAttenuation!$E$14) -> 0.04999340654 | D63: 60 | E63: =IF(F$1="Decline",(D63*QsrcLitres)/SourceInputsAttenuation!$C$33,"") -> 0.001731842308 | F63: =IF(F$1="Decline",SourceInputsAttenuation!$E$15*EXP(-1*(SourceInputsAttenuation!$I$15*SrcDecline!E63)),SourceInputsAttenuation!$E$15) -> 0.0009997154988 | G63: 60 | H63: =IF(I$1="Decline",(G63*QsrcLitres)/SourceInputsAttenuation!$C$33,"") -> 0.001731842308 | I63: =IF(I$1="Decline",SourceInputsAttenuation!$E$16*EXP(-1*(SourceInputsAttenuation!$I$16*SrcDecline!E63)),SourceInputsAttenuation!$E$16) -> 0.8687570606 | J63: 60 | K63: =IF(L$1="Decline",(J63*QsrcLitres)/SourceInputsAttenuation!$C$33,"") -> 0.001731842308 | L63: =IF(L$1="Decline",SourceInputsAttenuation!$E$17*EXP(-1*(SourceInputsAttenuation!$I$17*SrcDecline!K63)),SourceInputsAttenuation!$E$17) -> 0.00399810933 | M63: 60 | N63: =IF(O$1="Decline",(M63*QsrcLitres)/SourceInputsAttenuation!$C$33,"") -> 0.001731842308 | O63: =IF(O$1="Decline",SourceInputsAttenuation!$E$18*EXP(-1*(SourceInputsAttenuation!$I$18*SrcDecline!N63)),SourceInputsAttenuation!$E$18) -> 0.3997939251 | P63: 60 | Q63: =IF(R$1="Decline",(P63*QsrcLitres)/SourceInputsAttenuation!$C$33,"") -> 0.001731842308 | R63: =IF(R$1="Decline",SourceInputsAttenuation!$E$19*EXP(-1*(SourceInputsAttenuation!$I$19*SrcDecline!Q63)),SourceInputsAttenuation!$E$19) -> 0.199895075 | S63: 60 | T63: =IF(U$1="Decline",(S63*QsrcLitres)/SourceInputsAttenuation!$C$33,"") -> 0.001731842308 | U63: =IF(U$1="Decline",SourceInputsAttenuation!$E$20*EXP(-1*(SourceInputsAttenuation!$I$20*SrcDecline!T63)),SourceInputsAttenuation!$E$20) -> 0.04998351535
A64: 61 | B64: =IF(C$1="Decline",(A64*QsrcLitres)/(SourceInputsAttenuation!$C$33),"") -> 0.001760706347 | C64: =IF(C$1="Decline",SourceInputsAttenuation!$E$14*EXP(-1*((SourceInputsAttenuation!$I$14)*SrcDecline!B64)),SourceInputsAttenuation!$E$14) -> 0.04999329665 | D64: 61 | E64: =IF(F$1="Decline",(D64*QsrcLitres)/SourceInputsAttenuation!$C$33,"") -> 0.001760706347 | F64: =IF(F$1="Decline",SourceInputsAttenuation!$E$15*EXP(-1*(SourceInputsAttenuation!$I$15*SrcDecline!E64)),SourceInputsAttenuation!$E$15) -> 0.0009997107578 | G64: 61 | H64: =IF(I$1="Decline",(G64*QsrcLitres)/SourceInputsAttenuation!$C$33,"") -> 0.001760706347 | I64: =IF(I$1="Decline",SourceInputsAttenuation!$E$16*EXP(-1*(SourceInputsAttenuation!$I$16*SrcDecline!E64)),SourceInputsAttenuation!$E$16) -> 0.8687446837 | J64: 61 | K64: =IF(L$1="Decline",(J64*QsrcLitres)/SourceInputsAttenuation!$C$33,"") -> 0.001760706347 | L64: =IF(L$1="Decline",SourceInputsAttenuation!$E$17*EXP(-1*(SourceInputsAttenuation!$I$17*SrcDecline!K64)),SourceInputsAttenuation!$E$17) -> 0.003998077827 | M64: 61 | N64: =IF(O$1="Decline",(M64*QsrcLitres)/SourceInputsAttenuation!$C$33,"") -> 0.001760706347 | O64: =IF(O$1="Decline",SourceInputsAttenuation!$E$18*EXP(-1*(SourceInputsAttenuation!$I$18*SrcDecline!N64)),SourceInputsAttenuation!$E$18) -> 0.3997904914 | P64: 61 | Q64: =IF(R$1="Decline",(P64*QsrcLitres)/SourceInputsAttenuation!$C$33,"") -> 0.001760706347 | R64: =IF(R$1="Decline",SourceInputsAttenuation!$E$19*EXP(-1*(SourceInputsAttenuation!$I$19*SrcDecline!Q64)),SourceInputsAttenuation!$E$19) -> 0.1998933267 | S64: 61 | T64: =IF(U$1="Decline",(S64*QsrcLitres)/SourceInputsAttenuation!$C$33,"") -> 0.001760706347 | U64: =IF(U$1="Decline",SourceInputsAttenuation!$E$20*EXP(-1*(SourceInputsAttenuation!$I$20*SrcDecline!T64)),SourceInputsAttenuation!$E$20) -> 0.04998324065
A65: 62 | B65: =IF(C$1="Decline",(A65*QsrcLitres)/(SourceInputsAttenuation!$C$33),"") -> 0.001789570385 | C65: =IF(C$1="Decline",SourceInputsAttenuation!$E$14*EXP(-1*((SourceInputsAttenuation!$I$14)*SrcDecline!B65)),SourceInputsAttenuation!$E$14) -> 0.04999318677 | D65: 62 | E65: =IF(F$1="Decline",(D65*QsrcLitres)/SourceInputsAttenuation!$C$33,"") -> 0.001789570385 | F65: =IF(F$1="Decline",SourceInputsAttenuation!$E$15*EXP(-1*(SourceInputsAttenuation!$I$15*SrcDecline!E65)),SourceInputsAttenuation!$E$15) -> 0.0009997060168 | G65: 62 | H65: =IF(I$1="Decline",(G65*QsrcLitres)/SourceInputsAttenuation!$C$33,"") -> 0.001789570385 | I65: =IF(I$1="Decline",SourceInputsAttenuation!$E$16*EXP(-1*(SourceInputsAttenuation!$I$16*SrcDecline!E65)),SourceInputsAttenuation!$E$16) -> 0.8687323069 | J65: 62 | K65: =IF(L$1="Decline",(J65*QsrcLitres)/SourceInputsAttenuation!$C$33,"") -> 0.001789570385 | L65: =IF(L$1="Decline",SourceInputsAttenuation!$E$17*EXP(-1*(SourceInputsAttenuation!$I$17*SrcDecline!K65)),SourceInputsAttenuation!$E$17) -> 0.003998046323 | M65: 62 | N65: =IF(O$1="Decline",(M65*QsrcLitres)/SourceInputsAttenuation!$C$33,"") -> 0.001789570385 | O65: =IF(O$1="Decline",SourceInputsAttenuation!$E$18*EXP(-1*(SourceInputsAttenuation!$I$18*SrcDecline!N65)),SourceInputsAttenuation!$E$18) -> 0.3997870577 | P65: 62 | Q65: =IF(R$1="Decline",(P65*QsrcLitres)/SourceInputsAttenuation!$C$33,"") -> 0.001789570385 | R65: =IF(R$1="Decline",SourceInputsAttenuation!$E$19*EXP(-1*(SourceInputsAttenuation!$I$19*SrcDecline!Q65)),SourceInputsAttenuation!$E$19) -> 0.1998915785 | S65: 62 | T65: =IF(U$1="Decline",(S65*QsrcLitres)/SourceInputsAttenuation!$C$33,"") -> 0.001789570385 | U65: =IF(U$1="Decline",SourceInputsAttenuation!$E$20*EXP(-1*(SourceInputsAttenuation!$I$20*SrcDecline!T65)),SourceInputsAttenuation!$E$20) -> 0.04998296596
A66: 63 | B66: =IF(C$1="Decline",(A66*QsrcLitres)/(SourceInputsAttenuation!$C$33),"") -> 0.001818434424 | C66: =IF(C$1="Decline",SourceInputsAttenuation!$E$14*EXP(-1*((SourceInputsAttenuation!$I$14)*SrcDecline!B66)),SourceInputsAttenuation!$E$14) -> 0.04999307689 | D66: 63 | E66: =IF(F$1="Decline",(D66*QsrcLitres)/SourceInputsAttenuation!$C$33,"") -> 0.001818434424 | F66: =IF(F$1="Decline",SourceInputsAttenuation!$E$15*EXP(-1*(SourceInputsAttenuation!$I$15*SrcDecline!E66)),SourceInputsAttenuation!$E$15) -> 0.0009997012759 | G66: 63 | H66: =IF(I$1="Decline",(G66*QsrcLitres)/SourceInputsAttenuation!$C$33,"") -> 0.001818434424 | I66: =IF(I$1="Decline",SourceInputsAttenuation!$E$16*EXP(-1*(SourceInputsAttenuation!$I$16*SrcDecline!E66)),SourceInputsAttenuation!$E$16) -> 0.8687199303 | J66: 63 | K66: =IF(L$1="Decline",(J66*QsrcLitres)/SourceInputsAttenuation!$C$33,"") -> 0.001818434424 | L66: =IF(L$1="Decline",SourceInputsAttenuation!$E$17*EXP(-1*(SourceInputsAttenuation!$I$17*SrcDecline!K66)),SourceInputsAttenuation!$E$17) -> 0.00399801482 | M66: 63 | N66: =IF(O$1="Decline",(M66*QsrcLitres)/SourceInputsAttenuation!$C$33,"") -> 0.001818434424 | O66: =IF(O$1="Decline",SourceInputsAttenuation!$E$18*EXP(-1*(SourceInputsAttenuation!$I$18*SrcDecline!N66)),SourceInputsAttenuation!$E$18) -> 0.3997836241 | P66: 63 | Q66: =IF(R$1="Decline",(P66*QsrcLitres)/SourceInputsAttenuation!$C$33,"") -> 0.001818434424 | R66: =IF(R$1="Decline",SourceInputsAttenuation!$E$19*EXP(-1*(SourceInputsAttenuation!$I$19*SrcDecline!Q66)),SourceInputsAttenuation!$E$19) -> 0.1998898302 | S66: 63 | T66: =IF(U$1="Decline",(S66*QsrcLitres)/SourceInputsAttenuation!$C$33,"") -> 0.001818434424 | U66: =IF(U$1="Decline",SourceInputsAttenuation!$E$20*EXP(-1*(SourceInputsAttenuation!$I$20*SrcDecline!T66)),SourceInputsAttenuation!$E$20) -> 0.04998269126
A67: 64 | B67: =IF(C$1="Decline",(A67*QsrcLitres)/(SourceInputsAttenuation!$C$33),"") -> 0.001847298462 | C67: =IF(C$1="Decline",SourceInputsAttenuation!$E$14*EXP(-1*((SourceInputsAttenuation!$I$14)*SrcDecline!B67)),SourceInputsAttenuation!$E$14) -> 0.049992967 | D67: 64 | E67: =IF(F$1="Decline",(D67*QsrcLitres)/SourceInputsAttenuation!$C$33,"") -> 0.001847298462 | F67: =IF(F$1="Decline",SourceInputsAttenuation!$E$15*EXP(-1*(SourceInputsAttenuation!$I$15*SrcDecline!E67)),SourceInputsAttenuation!$E$15) -> 0.0009996965349 | G67: 64 | H67: =IF(I$1="Decline",(G67*QsrcLitres)/SourceInputsAttenuation!$C$33,"") -> 0.001847298462 | I67: =IF(I$1="Decline",SourceInputsAttenuation!$E$16*EXP(-1*(SourceInputsAttenuation!$I$16*SrcDecline!E67)),SourceInputsAttenuation!$E$16) -> 0.8687075539 | J67: 64 | K67: =IF(L$1="Decline",(J67*QsrcLitres)/SourceInputsAttenuation!$C$33,"") -> 0.001847298462 | L67: =IF(L$1="Decline",SourceInputsAttenuation!$E$17*EXP(-1*(SourceInputsAttenuation!$I$17*SrcDecline!K67)),SourceInputsAttenuation!$E$17) -> 0.003997983318 | M67: 64 | N67: =IF(O$1="Decline",(M67*QsrcLitres)/SourceInputsAttenuation!$C$33,"") -> 0.001847298462 | O67: =IF(O$1="Decline",SourceInputsAttenuation!$E$18*EXP(-1*(SourceInputsAttenuation!$I$18*SrcDecline!N67)),SourceInputsAttenuation!$E$18) -> 0.3997801905 | P67: 64 | Q67: =IF(R$1="Decline",(P67*QsrcLitres)/SourceInputsAttenuation!$C$33,"") -> 0.001847298462 | R67: =IF(R$1="Decline",SourceInputsAttenuation!$E$19*EXP(-1*(SourceInputsAttenuation!$I$19*SrcDecline!Q67)),SourceInputsAttenuation!$E$19) -> 0.199888082 | S67: 64 | T67: =IF(U$1="Decline",(S67*QsrcLitres)/SourceInputsAttenuation!$C$33,"") -> 0.001847298462 | U67: =IF(U$1="Decline",SourceInputsAttenuation!$E$20*EXP(-1*(SourceInputsAttenuation!$I$20*SrcDecline!T67)),SourceInputsAttenuation!$E$20) -> 0.04998241657
A68: 65 | B68: =IF(C$1="Decline",(A68*QsrcLitres)/(SourceInputsAttenuation!$C$33),"") -> 0.001876162501 | C68: =IF(C$1="Decline",SourceInputsAttenuation!$E$14*EXP(-1*((SourceInputsAttenuation!$I$14)*SrcDecline!B68)),SourceInputsAttenuation!$E$14) -> 0.04999285712 | D68: 65 | E68: =IF(F$1="Decline",(D68*QsrcLitres)/SourceInputsAttenuation!$C$33,"") -> 0.001876162501 | F68: =IF(F$1="Decline",SourceInputsAttenuation!$E$15*EXP(-1*(SourceInputsAttenuation!$I$15*SrcDecline!E68)),SourceInputsAttenuation!$E$15) -> 0.000999691794 | G68: 65 | H68: =IF(I$1="Decline",(G68*QsrcLitres)/SourceInputsAttenuation!$C$33,"") -> 0.001876162501 | I68: =IF(I$1="Decline",SourceInputsAttenuation!$E$16*EXP(-1*(SourceInputsAttenuation!$I$16*SrcDecline!E68)),SourceInputsAttenuation!$E$16) -> 0.8686951777 | J68: 65 | K68: =IF(L$1="Decline",(J68*QsrcLitres)/SourceInputsAttenuation!$C$33,"") -> 0.001876162501 | L68: =IF(L$1="Decline",SourceInputsAttenuation!$E$17*EXP(-1*(SourceInputsAttenuation!$I$17*SrcDecline!K68)),SourceInputsAttenuation!$E$17) -> 0.003997951815 | M68: 65 | N68: =IF(O$1="Decline",(M68*QsrcLitres)/SourceInputsAttenuation!$C$33,"") -> 0.001876162501 | O68: =IF(O$1="Decline",SourceInputsAttenuation!$E$18*EXP(-1*(SourceInputsAttenuation!$I$18*SrcDecline!N68)),SourceInputsAttenuation!$E$18) -> 0.3997767569 | P68: 65 | Q68: =IF(R$1="Decline",(P68*QsrcLitres)/SourceInputsAttenuation!$C$33,"") -> 0.001876162501 | R68: =IF(R$1="Decline",SourceInputsAttenuation!$E$19*EXP(-1*(SourceInputsAttenuation!$I$19*SrcDecline!Q68)),SourceInputsAttenuation!$E$19) -> 0.1998863338 | S68: 65 | T68: =IF(U$1="Decline",(S68*QsrcLitres)/SourceInputsAttenuation!$C$33,"") -> 0.001876162501 | U68: =IF(U$1="Decline",SourceInputsAttenuation!$E$20*EXP(-1*(SourceInputsAttenuation!$I$20*SrcDecline!T68)),SourceInputsAttenuation!$E$20) -> 0.04998214188
A69: =IF(A68<1000,A68+1,A68+10) -> 66 | B69: =IF(C$1="Decline",(A69*QsrcLitres)/(SourceInputsAttenuation!$C$33),"") -> 0.001905026539 | C69: =IF(C$1="Decline",SourceInputsAttenuation!$E$14*EXP(-1*((SourceInputsAttenuation!$I$14)*SrcDecline!B69)),SourceInputsAttenuation!$E$14) -> 0.04999274724 | D69: =IF(D68<1000,D68+1,D68+10) -> 66 | E69: =IF(F$1="Decline",(D69*QsrcLitres)/SourceInputsAttenuation!$C$33,"") -> 0.001905026539 | F69: =IF(F$1="Decline",SourceInputsAttenuation!$E$15*EXP(-1*(SourceInputsAttenuation!$I$15*SrcDecline!E69)),SourceInputsAttenuation!$E$15) -> 0.0009996870531 | G69: =IF(G68<1000,G68+1,G68+10) -> 66 | H69: =IF(I$1="Decline",(G69*QsrcLitres)/SourceInputsAttenuation!$C$33,"") -> 0.001905026539 | I69: =IF(I$1="Decline",SourceInputsAttenuation!$E$16*EXP(-1*(SourceInputsAttenuation!$I$16*SrcDecline!E69)),SourceInputsAttenuation!$E$16) -> 0.8686828016 | J69: =IF(J68<1000,J68+1,J68+10) -> 66 | K69: =IF(L$1="Decline",(J69*QsrcLitres)/SourceInputsAttenuation!$C$33,"") -> 0.001905026539 | L69: =IF(L$1="Decline",SourceInputsAttenuation!$E$17*EXP(-1*(SourceInputsAttenuation!$I$17*SrcDecline!K69)),SourceInputsAttenuation!$E$17) -> 0.003997920313 | M69: =IF(M68<1000,M68+1,M68+10) -> 66 | N69: =IF(O$1="Decline",(M69*QsrcLitres)/SourceInputsAttenuation!$C$33,"") -> 0.001905026539 | O69: =IF(O$1="Decline",SourceInputsAttenuation!$E$18*EXP(-1*(SourceInputsAttenuation!$I$18*SrcDecline!N69)),SourceInputsAttenuation!$E$18) -> 0.3997733234 | P69: =IF(P68<1000,P68+1,P68+10) -> 66 | Q69: =IF(R$1="Decline",(P69*QsrcLitres)/SourceInputsAttenuation!$C$33,"") -> 0.001905026539 | R69: =IF(R$1="Decline",SourceInputsAttenuation!$E$19*EXP(-1*(SourceInputsAttenuation!$I$19*SrcDecline!Q69)),SourceInputsAttenuation!$E$19) -> 0.1998845856 | S69: =IF(S68<1000,S68+1,S68+10) -> 66 | T69: =IF(U$1="Decline",(S69*QsrcLitres)/SourceInputsAttenuation!$C$33,"") -> 0.001905026539 | U69: =IF(U$1="Decline",SourceInputsAttenuation!$E$20*EXP(-1*(SourceInputsAttenuation!$I$20*SrcDecline!T69)),SourceInputsAttenuation!$E$20) -> 0.04998186719
A70: 67 | B70: =IF(C$1="Decline",(A70*QsrcLitres)/(SourceInputsAttenuation!$C$33),"") -> 0.001933890578 | C70: =IF(C$1="Decline",SourceInputsAttenuation!$E$14*EXP(-1*((SourceInputsAttenuation!$I$14)*SrcDecline!B70)),SourceInputsAttenuation!$E$14) -> 0.04999263735 | D70: 67 | E70: =IF(F$1="Decline",(D70*QsrcLitres)/SourceInputsAttenuation!$C$33,"") -> 0.001933890578 | F70: =IF(F$1="Decline",SourceInputsAttenuation!$E$15*EXP(-1*(SourceInputsAttenuation!$I$15*SrcDecline!E70)),SourceInputsAttenuation!$E$15) -> 0.0009996823123 | G70: 67 | H70: =IF(I$1="Decline",(G70*QsrcLitres)/SourceInputsAttenuation!$C$33,"") -> 0.001933890578 | I70: =IF(I$1="Decline",SourceInputsAttenuation!$E$16*EXP(-1*(SourceInputsAttenuation!$I$16*SrcDecline!E70)),SourceInputsAttenuation!$E$16) -> 0.8686704257 | J70: 67 | K70: =IF(L$1="Decline",(J70*QsrcLitres)/SourceInputsAttenuation!$C$33,"") -> 0.001933890578 | L70: =IF(L$1="Decline",SourceInputsAttenuation!$E$17*EXP(-1*(SourceInputsAttenuation!$I$17*SrcDecline!K70)),SourceInputsAttenuation!$E$17) -> 0.003997888811 | M70: 67 | N70: =IF(O$1="Decline",(M70*QsrcLitres)/SourceInputsAttenuation!$C$33,"") -> 0.001933890578 | O70: =IF(O$1="Decline",SourceInputsAttenuation!$E$18*EXP(-1*(SourceInputsAttenuation!$I$18*SrcDecline!N70)),SourceInputsAttenuation!$E$18) -> 0.3997698899 | P70: 67 | Q70: =IF(R$1="Decline",(P70*QsrcLitres)/SourceInputsAttenuation!$C$33,"") -> 0.001933890578 | R70: =IF(R$1="Decline",SourceInputsAttenuation!$E$19*EXP(-1*(SourceInputsAttenuation!$I$19*SrcDecline!Q70)),SourceInputsAttenuation!$E$19) -> 0.1998828374 | S70: 67 | T70: =IF(U$1="Decline",(S70*QsrcLitres)/SourceInputsAttenuation!$C$33,"") -> 0.001933890578 | U70: =IF(U$1="Decline",SourceInputsAttenuation!$E$20*EXP(-1*(SourceInputsAttenuation!$I$20*SrcDecline!T70)),SourceInputsAttenuation!$E$20) -> 0.0499815925
A71: 68 | B71: =IF(C$1="Decline",(A71*QsrcLitres)/(SourceInputsAttenuation!$C$33),"") -> 0.001962754616 | C71: =IF(C$1="Decline",SourceInputsAttenuation!$E$14*EXP(-1*((SourceInputsAttenuation!$I$14)*SrcDecline!B71)),SourceInputsAttenuation!$E$14) -> 0.04999252747 | D71: 68 | E71: =IF(F$1="Decline",(D71*QsrcLitres)/SourceInputsAttenuation!$C$33,"") -> 0.001962754616 | F71: =IF(F$1="Decline",SourceInputsAttenuation!$E$15*EXP(-1*(SourceInputsAttenuation!$I$15*SrcDecline!E71)),SourceInputsAttenuation!$E$15) -> 0.0009996775714 | G71: 68 | H71: =IF(I$1="Decline",(G71*QsrcLitres)/SourceInputsAttenuation!$C$33,"") -> 0.001962754616 | I71: =IF(I$1="Decline",SourceInputsAttenuation!$E$16*EXP(-1*(SourceInputsAttenuation!$I$16*SrcDecline!E71)),SourceInputsAttenuation!$E$16) -> 0.86865805 | J71: 68 | K71: =IF(L$1="Decline",(J71*QsrcLitres)/SourceInputsAttenuation!$C$33,"") -> 0.001962754616 | L71: =IF(L$1="Decline",SourceInputsAttenuation!$E$17*EXP(-1*(SourceInputsAttenuation!$I$17*SrcDecline!K71)),SourceInputsAttenuation!$E$17) -> 0.003997857309 | M71: 68 | N71: =IF(O$1="Decline",(M71*QsrcLitres)/SourceInputsAttenuation!$C$33,"") -> 0.001962754616 | O71: =IF(O$1="Decline",SourceInputsAttenuation!$E$18*EXP(-1*(SourceInputsAttenuation!$I$18*SrcDecline!N71)),SourceInputsAttenuation!$E$18) -> 0.3997664564 | P71: 68 | Q71: =IF(R$1="Decline",(P71*QsrcLitres)/SourceInputsAttenuation!$C$33,"") -> 0.001962754616 | R71: =IF(R$1="Decline",SourceInputsAttenuation!$E$19*EXP(-1*(SourceInputsAttenuation!$I$19*SrcDecline!Q71)),SourceInputsAttenuation!$E$19) -> 0.1998810892 | S71: 68 | T71: =IF(U$1="Decline",(S71*QsrcLitres)/SourceInputsAttenuation!$C$33,"") -> 0.001962754616 | U71: =IF(U$1="Decline",SourceInputsAttenuation!$E$20*EXP(-1*(SourceInputsAttenuation!$I$20*SrcDecline!T71)),SourceInputsAttenuation!$E$20) -> 0.04998131781
A72: 69 | B72: =IF(C$1="Decline",(A72*QsrcLitres)/(SourceInputsAttenuation!$C$33),"") -> 0.001991618655 | C72: =IF(C$1="Decline",SourceInputsAttenuation!$E$14*EXP(-1*((SourceInputsAttenuation!$I$14)*SrcDecline!B72)),SourceInputsAttenuation!$E$14) -> 0.04999241759 | D72: 69 | E72: =IF(F$1="Decline",(D72*QsrcLitres)/SourceInputsAttenuation!$C$33,"") -> 0.001991618655 | F72: =IF(F$1="Decline",SourceInputsAttenuation!$E$15*EXP(-1*(SourceInputsAttenuation!$I$15*SrcDecline!E72)),SourceInputsAttenuation!$E$15) -> 0.0009996728306 | G72: 69 | H72: =IF(I$1="Decline",(G72*QsrcLitres)/SourceInputsAttenuation!$C$33,"") -> 0.001991618655 | I72: =IF(I$1="Decline",SourceInputsAttenuation!$E$16*EXP(-1*(SourceInputsAttenuation!$I$16*SrcDecline!E72)),SourceInputsAttenuation!$E$16) -> 0.8686456745 | J72: 69 | K72: =IF(L$1="Decline",(J72*QsrcLitres)/SourceInputsAttenuation!$C$33,"") -> 0.001991618655 | L72: =IF(L$1="Decline",SourceInputsAttenuation!$E$17*EXP(-1*(SourceInputsAttenuation!$I$17*SrcDecline!K72)),SourceInputsAttenuation!$E$17) -> 0.003997825807 | M72: 69 | N72: =IF(O$1="Decline",(M72*QsrcLitres)/SourceInputsAttenuation!$C$33,"") -> 0.001991618655 | O72: =IF(O$1="Decline",SourceInputsAttenuation!$E$18*EXP(-1*(SourceInputsAttenuation!$I$18*SrcDecline!N72)),SourceInputsAttenuation!$E$18) -> 0.399763023 | P72: 69 | Q72: =IF(R$1="Decline",(P72*QsrcLitres)/SourceInputsAttenuation!$C$33,"") -> 0.001991618655 | R72: =IF(R$1="Decline",SourceInputsAttenuation!$E$19*EXP(-1*(SourceInputsAttenuation!$I$19*SrcDecline!Q72)),SourceInputsAttenuation!$E$19) -> 0.199879341 | S72: 69 | T72: =IF(U$1="Decline",(S72*QsrcLitres)/SourceInputsAttenuation!$C$33,"") -> 0.001991618655 | U72: =IF(U$1="Decline",SourceInputsAttenuation!$E$20*EXP(-1*(SourceInputsAttenuation!$I$20*SrcDecline!T72)),SourceInputsAttenuation!$E$20) -> 0.04998104312
A73: 70 | B73: =IF(C$1="Decline",(A73*QsrcLitres)/(SourceInputsAttenuation!$C$33),"") -> 0.002020482693 | C73: =IF(C$1="Decline",SourceInputsAttenuation!$E$14*EXP(-1*((SourceInputsAttenuation!$I$14)*SrcDecline!B73)),SourceInputsAttenuation!$E$14) -> 0.04999230771 | D73: 70 | E73: =IF(F$1="Decline",(D73*QsrcLitres)/SourceInputsAttenuation!$C$33,"") -> 0.002020482693 | F73: =IF(F$1="Decline",SourceInputsAttenuation!$E$15*EXP(-1*(SourceInputsAttenuation!$I$15*SrcDecline!E73)),SourceInputsAttenuation!$E$15) -> 0.0009996680898 | G73: 70 | H73: =IF(I$1="Decline",(G73*QsrcLitres)/SourceInputsAttenuation!$C$33,"") -> 0.002020482693 | I73: =IF(I$1="Decline",SourceInputsAttenuation!$E$16*EXP(-1*(SourceInputsAttenuation!$I$16*SrcDecline!E73)),SourceInputsAttenuation!$E$16) -> 0.8686332991 | J73: 70 | K73: =IF(L$1="Decline",(J73*QsrcLitres)/SourceInputsAttenuation!$C$33,"") -> 0.002020482693 | L73: =IF(L$1="Decline",SourceInputsAttenuation!$E$17*EXP(-1*(SourceInputsAttenuation!$I$17*SrcDecline!K73)),SourceInputsAttenuation!$E$17) -> 0.003997794306 | M73: 70 | N73: =IF(O$1="Decline",(M73*QsrcLitres)/SourceInputsAttenuation!$C$33,"") -> 0.002020482693 | O73: =IF(O$1="Decline",SourceInputsAttenuation!$E$18*EXP(-1*(SourceInputsAttenuation!$I$18*SrcDecline!N73)),SourceInputsAttenuation!$E$18) -> 0.3997595896 | P73: 70 | Q73: =IF(R$1="Decline",(P73*QsrcLitres)/SourceInputsAttenuation!$C$33,"") -> 0.002020482693 | R73: =IF(R$1="Decline",SourceInputsAttenuation!$E$19*EXP(-1*(SourceInputsAttenuation!$I$19*SrcDecline!Q73)),SourceInputsAttenuation!$E$19) -> 0.1998775929 | S73: 70 | T73: =IF(U$1="Decline",(S73*QsrcLitres)/SourceInputsAttenuation!$C$33,"") -> 0.002020482693 | U73: =IF(U$1="Decline",SourceInputsAttenuation!$E$20*EXP(-1*(SourceInputsAttenuation!$I$20*SrcDecline!T73)),SourceInputsAttenuation!$E$20) -> 0.04998076844
A74: 71 | B74: =IF(C$1="Decline",(A74*QsrcLitres)/(SourceInputsAttenuation!$C$33),"") -> 0.002049346732 | C74: =IF(C$1="Decline",SourceInputsAttenuation!$E$14*EXP(-1*((SourceInputsAttenuation!$I$14)*SrcDecline!B74)),SourceInputsAttenuation!$E$14) -> 0.04999219783 | D74: 71 | E74: =IF(F$1="Decline",(D74*QsrcLitres)/SourceInputsAttenuation!$C$33,"") -> 0.002049346732 | F74: =IF(F$1="Decline",SourceInputsAttenuation!$E$15*EXP(-1*(SourceInputsAttenuation!$I$15*SrcDecline!E74)),SourceInputsAttenuation!$E$15) -> 0.000999663349 | G74: 71 | H74: =IF(I$1="Decline",(G74*QsrcLitres)/SourceInputsAttenuation!$C$33,"") -> 0.002049346732 | I74: =IF(I$1="Decline",SourceInputsAttenuation!$E$16*EXP(-1*(SourceInputsAttenuation!$I$16*SrcDecline!E74)),SourceInputsAttenuation!$E$16) -> 0.868620924 | J74: 71 | K74: =IF(L$1="Decline",(J74*QsrcLitres)/SourceInputsAttenuation!$C$33,"") -> 0.002049346732 | L74: =IF(L$1="Decline",SourceInputsAttenuation!$E$17*EXP(-1*(SourceInputsAttenuation!$I$17*SrcDecline!K74)),SourceInputsAttenuation!$E$17) -> 0.003997762805 | M74: 71 | N74: =IF(O$1="Decline",(M74*QsrcLitres)/SourceInputsAttenuation!$C$33,"") -> 0.002049346732 | O74: =IF(O$1="Decline",SourceInputsAttenuation!$E$18*EXP(-1*(SourceInputsAttenuation!$I$18*SrcDecline!N74)),SourceInputsAttenuation!$E$18) -> 0.3997561562 | P74: 71 | Q74: =IF(R$1="Decline",(P74*QsrcLitres)/SourceInputsAttenuation!$C$33,"") -> 0.002049346732 | R74: =IF(R$1="Decline",SourceInputsAttenuation!$E$19*EXP(-1*(SourceInputsAttenuation!$I$19*SrcDecline!Q74)),SourceInputsAttenuation!$E$19) -> 0.1998758447 | S74: 71 | T74: =IF(U$1="Decline",(S74*QsrcLitres)/SourceInputsAttenuation!$C$33,"") -> 0.002049346732 | U74: =IF(U$1="Decline",SourceInputsAttenuation!$E$20*EXP(-1*(SourceInputsAttenuation!$I$20*SrcDecline!T74)),SourceInputsAttenuation!$E$20) -> 0.04998049376
A75: 72 | B75: =IF(C$1="Decline",(A75*QsrcLitres)/(SourceInputsAttenuation!$C$33),"") -> 0.00207821077 | C75: =IF(C$1="Decline",SourceInputsAttenuation!$E$14*EXP(-1*((SourceInputsAttenuation!$I$14)*SrcDecline!B75)),SourceInputsAttenuation!$E$14) -> 0.04999208795 | D75: 72 | E75: =IF(F$1="Decline",(D75*QsrcLitres)/SourceInputsAttenuation!$C$33,"") -> 0.00207821077 | F75: =IF(F$1="Decline",SourceInputsAttenuation!$E$15*EXP(-1*(SourceInputsAttenuation!$I$15*SrcDecline!E75)),SourceInputsAttenuation!$E$15) -> 0.0009996586083 | G75: 72 | H75: =IF(I$1="Decline",(G75*QsrcLitres)/SourceInputsAttenuation!$C$33,"") -> 0.00207821077 | I75: =IF(I$1="Decline",SourceInputsAttenuation!$E$16*EXP(-1*(SourceInputsAttenuation!$I$16*SrcDecline!E75)),SourceInputsAttenuation!$E$16) -> 0.868608549 | J75: 72 | K75: =IF(L$1="Decline",(J75*QsrcLitres)/SourceInputsAttenuation!$C$33,"") -> 0.00207821077 | L75: =IF(L$1="Decline",SourceInputsAttenuation!$E$17*EXP(-1*(SourceInputsAttenuation!$I$17*SrcDecline!K75)),SourceInputsAttenuation!$E$17) -> 0.003997731304 | M75: 72 | N75: =IF(O$1="Decline",(M75*QsrcLitres)/SourceInputsAttenuation!$C$33,"") -> 0.00207821077 | O75: =IF(O$1="Decline",SourceInputsAttenuation!$E$18*EXP(-1*(SourceInputsAttenuation!$I$18*SrcDecline!N75)),SourceInputsAttenuation!$E$18) -> 0.3997527228 | P75: 72 | Q75: =IF(R$1="Decline",(P75*QsrcLitres)/SourceInputsAttenuation!$C$33,"") -> 0.00207821077 | R75: =IF(R$1="Decline",SourceInputsAttenuation!$E$19*EXP(-1*(SourceInputsAttenuation!$I$19*SrcDecline!Q75)),SourceInputsAttenuation!$E$19) -> 0.1998740966 | S75: 72 | T75: =IF(U$1="Decline",(S75*QsrcLitres)/SourceInputsAttenuation!$C$33,"") -> 0.00207821077 | U75: =IF(U$1="Decline",SourceInputsAttenuation!$E$20*EXP(-1*(SourceInputsAttenuation!$I$20*SrcDecline!T75)),SourceInputsAttenuation!$E$20) -> 0.04998021908
A76: 73 | B76: =IF(C$1="Decline",(A76*QsrcLitres)/(SourceInputsAttenuation!$C$33),"") -> 0.002107074808 | C76: =IF(C$1="Decline",SourceInputsAttenuation!$E$14*EXP(-1*((SourceInputsAttenuation!$I$14)*SrcDecline!B76)),SourceInputsAttenuation!$E$14) -> 0.04999197807 | D76: 73 | E76: =IF(F$1="Decline",(D76*QsrcLitres)/SourceInputsAttenuation!$C$33,"") -> 0.002107074808 | F76: =IF(F$1="Decline",SourceInputsAttenuation!$E$15*EXP(-1*(SourceInputsAttenuation!$I$15*SrcDecline!E76)),SourceInputsAttenuation!$E$15) -> 0.0009996538675 | G76: 73 | H76: =IF(I$1="Decline",(G76*QsrcLitres)/SourceInputsAttenuation!$C$33,"") -> 0.002107074808 | I76: =IF(I$1="Decline",SourceInputsAttenuation!$E$16*EXP(-1*(SourceInputsAttenuation!$I$16*SrcDecline!E76)),SourceInputsAttenuation!$E$16) -> 0.8685961741 | J76: 73 | K76: =IF(L$1="Decline",(J76*QsrcLitres)/SourceInputsAttenuation!$C$33,"") -> 0.002107074808 | L76: =IF(L$1="Decline",SourceInputsAttenuation!$E$17*EXP(-1*(SourceInputsAttenuation!$I$17*SrcDecline!K76)),SourceInputsAttenuation!$E$17) -> 0.003997699803 | M76: 73 | N76: =IF(O$1="Decline",(M76*QsrcLitres)/SourceInputsAttenuation!$C$33,"") -> 0.002107074808 | O76: =IF(O$1="Decline",SourceInputsAttenuation!$E$18*EXP(-1*(SourceInputsAttenuation!$I$18*SrcDecline!N76)),SourceInputsAttenuation!$E$18) -> 0.3997492895 | P76: 73 | Q76: =IF(R$1="Decline",(P76*QsrcLitres)/SourceInputsAttenuation!$C$33,"") -> 0.002107074808 | R76: =IF(R$1="Decline",SourceInputsAttenuation!$E$19*EXP(-1*(SourceInputsAttenuation!$I$19*SrcDecline!Q76)),SourceInputsAttenuation!$E$19) -> 0.1998723485 | S76: 73 | T76: =IF(U$1="Decline",(S76*QsrcLitres)/SourceInputsAttenuation!$C$33,"") -> 0.002107074808 | U76: =IF(U$1="Decline",SourceInputsAttenuation!$E$20*EXP(-1*(SourceInputsAttenuation!$I$20*SrcDecline!T76)),SourceInputsAttenuation!$E$20) -> 0.0499799444
A77: 74 | B77: =IF(C$1="Decline",(A77*QsrcLitres)/(SourceInputsAttenuation!$C$33),"") -> 0.002135938847 | C77: =IF(C$1="Decline",SourceInputsAttenuation!$E$14*EXP(-1*((SourceInputsAttenuation!$I$14)*SrcDecline!B77)),SourceInputsAttenuation!$E$14) -> 0.04999186819 | D77: 74 | E77: =IF(F$1="Decline",(D77*QsrcLitres)/SourceInputsAttenuation!$C$33,"") -> 0.002135938847 | F77: =IF(F$1="Decline",SourceInputsAttenuation!$E$15*EXP(-1*(SourceInputsAttenuation!$I$15*SrcDecline!E77)),SourceInputsAttenuation!$E$15) -> 0.0009996491268 | G77: 74 | H77: =IF(I$1="Decline",(G77*QsrcLitres)/SourceInputsAttenuation!$C$33,"") -> 0.002135938847 | I77: =IF(I$1="Decline",SourceInputsAttenuation!$E$16*EXP(-1*(SourceInputsAttenuation!$I$16*SrcDecline!E77)),SourceInputsAttenuation!$E$16) -> 0.8685837995 | J77: 74 | K77: =IF(L$1="Decline",(J77*QsrcLitres)/SourceInputsAttenuation!$C$33,"") -> 0.002135938847 | L77: =IF(L$1="Decline",SourceInputsAttenuation!$E$17*EXP(-1*(SourceInputsAttenuation!$I$17*SrcDecline!K77)),SourceInputsAttenuation!$E$17) -> 0.003997668303 | M77: 74 | N77: =IF(O$1="Decline",(M77*QsrcLitres)/SourceInputsAttenuation!$C$33,"") -> 0.002135938847 | O77: =IF(O$1="Decline",SourceInputsAttenuation!$E$18*EXP(-1*(SourceInputsAttenuation!$I$18*SrcDecline!N77)),SourceInputsAttenuation!$E$18) -> 0.3997458562 | P77: 74 | Q77: =IF(R$1="Decline",(P77*QsrcLitres)/SourceInputsAttenuation!$C$33,"") -> 0.002135938847 | R77: =IF(R$1="Decline",SourceInputsAttenuation!$E$19*EXP(-1*(SourceInputsAttenuation!$I$19*SrcDecline!Q77)),SourceInputsAttenuation!$E$19) -> 0.1998706005 | S77: 74 | T77: =IF(U$1="Decline",(S77*QsrcLitres)/SourceInputsAttenuation!$C$33,"") -> 0.002135938847 | U77: =IF(U$1="Decline",SourceInputsAttenuation!$E$20*EXP(-1*(SourceInputsAttenuation!$I$20*SrcDecline!T77)),SourceInputsAttenuation!$E$20) -> 0.04997966972
A78: 75 | B78: =IF(C$1="Decline",(A78*QsrcLitres)/(SourceInputsAttenuation!$C$33),"") -> 0.002164802885 | C78: =IF(C$1="Decline",SourceInputsAttenuation!$E$14*EXP(-1*((SourceInputsAttenuation!$I$14)*SrcDecline!B78)),SourceInputsAttenuation!$E$14) -> 0.04999175831 | D78: 75 | E78: =IF(F$1="Decline",(D78*QsrcLitres)/SourceInputsAttenuation!$C$33,"") -> 0.002164802885 | F78: =IF(F$1="Decline",SourceInputsAttenuation!$E$15*EXP(-1*(SourceInputsAttenuation!$I$15*SrcDecline!E78)),SourceInputsAttenuation!$E$15) -> 0.0009996443861 | G78: 75 | H78: =IF(I$1="Decline",(G78*QsrcLitres)/SourceInputsAttenuation!$C$33,"") -> 0.002164802885 | I78: =IF(I$1="Decline",SourceInputsAttenuation!$E$16*EXP(-1*(SourceInputsAttenuation!$I$16*SrcDecline!E78)),SourceInputsAttenuation!$E$16) -> 0.868571425 | J78: 75 | K78: =IF(L$1="Decline",(J78*QsrcLitres)/SourceInputsAttenuation!$C$33,"") -> 0.002164802885 | L78: =IF(L$1="Decline",SourceInputsAttenuation!$E$17*EXP(-1*(SourceInputsAttenuation!$I$17*SrcDecline!K78)),SourceInputsAttenuation!$E$17) -> 0.003997636803 | M78: 75 | N78: =IF(O$1="Decline",(M78*QsrcLitres)/SourceInputsAttenuation!$C$33,"") -> 0.002164802885 | O78: =IF(O$1="Decline",SourceInputsAttenuation!$E$18*EXP(-1*(SourceInputsAttenuation!$I$18*SrcDecline!N78)),SourceInputsAttenuation!$E$18) -> 0.3997424229 | P78: 75 | Q78: =IF(R$1="Decline",(P78*QsrcLitres)/SourceInputsAttenuation!$C$33,"") -> 0.002164802885 | R78: =IF(R$1="Decline",SourceInputsAttenuation!$E$19*EXP(-1*(SourceInputsAttenuation!$I$19*SrcDecline!Q78)),SourceInputsAttenuation!$E$19) -> 0.1998688524 | S78: 75 | T78: =IF(U$1="Decline",(S78*QsrcLitres)/SourceInputsAttenuation!$C$33,"") -> 0.002164802885 | U78: =IF(U$1="Decline",SourceInputsAttenuation!$E$20*EXP(-1*(SourceInputsAttenuation!$I$20*SrcDecline!T78)),SourceInputsAttenuation!$E$20) -> 0.04997939504
A79: 76 | B79: =IF(C$1="Decline",(A79*QsrcLitres)/(SourceInputsAttenuation!$C$33),"") -> 0.002193666924 | C79: =IF(C$1="Decline",SourceInputsAttenuation!$E$14*EXP(-1*((SourceInputsAttenuation!$I$14)*SrcDecline!B79)),SourceInputsAttenuation!$E$14) -> 0.04999164843 | D79: 76 | E79: =IF(F$1="Decline",(D79*QsrcLitres)/SourceInputsAttenuation!$C$33,"") -> 0.002193666924 | F79: =IF(F$1="Decline",SourceInputsAttenuation!$E$15*EXP(-1*(SourceInputsAttenuation!$I$15*SrcDecline!E79)),SourceInputsAttenuation!$E$15) -> 0.0009996396455 | G79: 76 | H79: =IF(I$1="Decline",(G79*QsrcLitres)/SourceInputsAttenuation!$C$33,"") -> 0.002193666924 | I79: =IF(I$1="Decline",SourceInputsAttenuation!$E$16*EXP(-1*(SourceInputsAttenuation!$I$16*SrcDecline!E79)),SourceInputsAttenuation!$E$16) -> 0.8685590507 | J79: 76 | K79: =IF(L$1="Decline",(J79*QsrcLitres)/SourceInputsAttenuation!$C$33,"") -> 0.002193666924 | L79: =IF(L$1="Decline",SourceInputsAttenuation!$E$17*EXP(-1*(SourceInputsAttenuation!$I$17*SrcDecline!K79)),SourceInputsAttenuation!$E$17) -> 0.003997605303 | M79: 76 | N79: =IF(O$1="Decline",(M79*QsrcLitres)/SourceInputsAttenuation!$C$33,"") -> 0.002193666924 | O79: =IF(O$1="Decline",SourceInputsAttenuation!$E$18*EXP(-1*(SourceInputsAttenuation!$I$18*SrcDecline!N79)),SourceInputsAttenuation!$E$18) -> 0.3997389897 | P79: 76 | Q79: =IF(R$1="Decline",(P79*QsrcLitres)/SourceInputsAttenuation!$C$33,"") -> 0.002193666924 | R79: =IF(R$1="Decline",SourceInputsAttenuation!$E$19*EXP(-1*(SourceInputsAttenuation!$I$19*SrcDecline!Q79)),SourceInputsAttenuation!$E$19) -> 0.1998671043 | S79: 76 | T79: =IF(U$1="Decline",(S79*QsrcLitres)/SourceInputsAttenuation!$C$33,"") -> 0.002193666924 | U79: =IF(U$1="Decline",SourceInputsAttenuation!$E$20*EXP(-1*(SourceInputsAttenuation!$I$20*SrcDecline!T79)),SourceInputsAttenuation!$E$20) -> 0.04997912036
A80: 77 | B80: =IF(C$1="Decline",(A80*QsrcLitres)/(SourceInputsAttenuation!$C$33),"") -> 0.002222530962 | C80: =IF(C$1="Decline",SourceInputsAttenuation!$E$14*EXP(-1*((SourceInputsAttenuation!$I$14)*SrcDecline!B80)),SourceInputsAttenuation!$E$14) -> 0.04999153855 | D80: 77 | E80: =IF(F$1="Decline",(D80*QsrcLitres)/SourceInputsAttenuation!$C$33,"") -> 0.002222530962 | F80: =IF(F$1="Decline",SourceInputsAttenuation!$E$15*EXP(-1*(SourceInputsAttenuation!$I$15*SrcDecline!E80)),SourceInputsAttenuation!$E$15) -> 0.0009996349048 | G80: 77 | H80: =IF(I$1="Decline",(G80*QsrcLitres)/SourceInputsAttenuation!$C$33,"") -> 0.002222530962 | I80: =IF(I$1="Decline",SourceInputsAttenuation!$E$16*EXP(-1*(SourceInputsAttenuation!$I$16*SrcDecline!E80)),SourceInputsAttenuation!$E$16) -> 0.8685466766 | J80: 77 | K80: =IF(L$1="Decline",(J80*QsrcLitres)/SourceInputsAttenuation!$C$33,"") -> 0.002222530962 | L80: =IF(L$1="Decline",SourceInputsAttenuation!$E$17*EXP(-1*(SourceInputsAttenuation!$I$17*SrcDecline!K80)),SourceInputsAttenuation!$E$17) -> 0.003997573803 | M80: 77 | N80: =IF(O$1="Decline",(M80*QsrcLitres)/SourceInputsAttenuation!$C$33,"") -> 0.002222530962 | O80: =IF(O$1="Decline",SourceInputsAttenuation!$E$18*EXP(-1*(SourceInputsAttenuation!$I$18*SrcDecline!N80)),SourceInputsAttenuation!$E$18) -> 0.3997355565 | P80: 77 | Q80: =IF(R$1="Decline",(P80*QsrcLitres)/SourceInputsAttenuation!$C$33,"") -> 0.002222530962 | R80: =IF(R$1="Decline",SourceInputsAttenuation!$E$19*EXP(-1*(SourceInputsAttenuation!$I$19*SrcDecline!Q80)),SourceInputsAttenuation!$E$19) -> 0.1998653563 | S80: 77 | T80: =IF(U$1="Decline",(S80*QsrcLitres)/SourceInputsAttenuation!$C$33,"") -> 0.002222530962 | U80: =IF(U$1="Decline",SourceInputsAttenuation!$E$20*EXP(-1*(SourceInputsAttenuation!$I$20*SrcDecline!T80)),SourceInputsAttenuation!$E$20) -> 0.04997884569
A81: 78 | B81: =IF(C$1="Decline",(A81*QsrcLitres)/(SourceInputsAttenuation!$C$33),"") -> 0.002251395001 | C81: =IF(C$1="Decline",SourceInputsAttenuation!$E$14*EXP(-1*((SourceInputsAttenuation!$I$14)*SrcDecline!B81)),SourceInputsAttenuation!$E$14) -> 0.04999142867 | D81: 78 | E81: =IF(F$1="Decline",(D81*QsrcLitres)/SourceInputsAttenuation!$C$33,"") -> 0.002251395001 | F81: =IF(F$1="Decline",SourceInputsAttenuation!$E$15*EXP(-1*(SourceInputsAttenuation!$I$15*SrcDecline!E81)),SourceInputsAttenuation!$E$15) -> 0.0009996301642 | G81: 78 | H81: =IF(I$1="Decline",(G81*QsrcLitres)/SourceInputsAttenuation!$C$33,"") -> 0.002251395001 | I81: =IF(I$1="Decline",SourceInputsAttenuation!$E$16*EXP(-1*(SourceInputsAttenuation!$I$16*SrcDecline!E81)),SourceInputsAttenuation!$E$16) -> 0.8685343026 | J81: 78 | K81: =IF(L$1="Decline",(J81*QsrcLitres)/SourceInputsAttenuation!$C$33,"") -> 0.002251395001 | L81: =IF(L$1="Decline",SourceInputsAttenuation!$E$17*EXP(-1*(SourceInputsAttenuation!$I$17*SrcDecline!K81)),SourceInputsAttenuation!$E$17) -> 0.003997542304 | M81: 78 | N81: =IF(O$1="Decline",(M81*QsrcLitres)/SourceInputsAttenuation!$C$33,"") -> 0.002251395001 | O81: =IF(O$1="Decline",SourceInputsAttenuation!$E$18*EXP(-1*(SourceInputsAttenuation!$I$18*SrcDecline!N81)),SourceInputsAttenuation!$E$18) -> 0.3997321233 | P81: 78 | Q81: =IF(R$1="Decline",(P81*QsrcLitres)/SourceInputsAttenuation!$C$33,"") -> 0.002251395001 | R81: =IF(R$1="Decline",SourceInputsAttenuation!$E$19*EXP(-1*(SourceInputsAttenuation!$I$19*SrcDecline!Q81)),SourceInputsAttenuation!$E$19) -> 0.1998636083 | S81: 78 | T81: =IF(U$1="Decline",(S81*QsrcLitres)/SourceInputsAttenuation!$C$33,"") -> 0.002251395001 | U81: =IF(U$1="Decline",SourceInputsAttenuation!$E$20*EXP(-1*(SourceInputsAttenuation!$I$20*SrcDecline!T81)),SourceInputsAttenuation!$E$20) -> 0.04997857102
A82: 79 | B82: =IF(C$1="Decline",(A82*QsrcLitres)/(SourceInputsAttenuation!$C$33),"") -> 0.002280259039 | C82: =IF(C$1="Decline",SourceInputsAttenuation!$E$14*EXP(-1*((SourceInputsAttenuation!$I$14)*SrcDecline!B82)),SourceInputsAttenuation!$E$14) -> 0.04999131879 | D82: 79 | E82: =IF(F$1="Decline",(D82*QsrcLitres)/SourceInputsAttenuation!$C$33,"") -> 0.002280259039 | F82: =IF(F$1="Decline",SourceInputsAttenuation!$E$15*EXP(-1*(SourceInputsAttenuation!$I$15*SrcDecline!E82)),SourceInputsAttenuation!$E$15) -> 0.0009996254236 | G82: 79 | H82: =IF(I$1="Decline",(G82*QsrcLitres)/SourceInputsAttenuation!$C$33,"") -> 0.002280259039 | I82: =IF(I$1="Decline",SourceInputsAttenuation!$E$16*EXP(-1*(SourceInputsAttenuation!$I$16*SrcDecline!E82)),SourceInputsAttenuation!$E$16) -> 0.8685219289 | J82: 79 | K82: =IF(L$1="Decline",(J82*QsrcLitres)/SourceInputsAttenuation!$C$33,"") -> 0.002280259039 | L82: =IF(L$1="Decline",SourceInputsAttenuation!$E$17*EXP(-1*(SourceInputsAttenuation!$I$17*SrcDecline!K82)),SourceInputsAttenuation!$E$17) -> 0.003997510805 | M82: 79 | N82: =IF(O$1="Decline",(M82*QsrcLitres)/SourceInputsAttenuation!$C$33,"") -> 0.002280259039 | O82: =IF(O$1="Decline",SourceInputsAttenuation!$E$18*EXP(-1*(SourceInputsAttenuation!$I$18*SrcDecline!N82)),SourceInputsAttenuation!$E$18) -> 0.3997286901 | P82: 79 | Q82: =IF(R$1="Decline",(P82*QsrcLitres)/SourceInputsAttenuation!$C$33,"") -> 0.002280259039 | R82: =IF(R$1="Decline",SourceInputsAttenuation!$E$19*EXP(-1*(SourceInputsAttenuation!$I$19*SrcDecline!Q82)),SourceInputsAttenuation!$E$19) -> 0.1998618603 | S82: 79 | T82: =IF(U$1="Decline",(S82*QsrcLitres)/SourceInputsAttenuation!$C$33,"") -> 0.002280259039 | U82: =IF(U$1="Decline",SourceInputsAttenuation!$E$20*EXP(-1*(SourceInputsAttenuation!$I$20*SrcDecline!T82)),SourceInputsAttenuation!$E$20) -> 0.04997829635
A83: 80 | B83: =IF(C$1="Decline",(A83*QsrcLitres)/(SourceInputsAttenuation!$C$33),"") -> 0.002309123078 | C83: =IF(C$1="Decline",SourceInputsAttenuation!$E$14*EXP(-1*((SourceInputsAttenuation!$I$14)*SrcDecline!B83)),SourceInputsAttenuation!$E$14) -> 0.04999120891 | D83: 80 | E83: =IF(F$1="Decline",(D83*QsrcLitres)/SourceInputsAttenuation!$C$33,"") -> 0.002309123078 | F83: =IF(F$1="Decline",SourceInputsAttenuation!$E$15*EXP(-1*(SourceInputsAttenuation!$I$15*SrcDecline!E83)),SourceInputsAttenuation!$E$15) -> 0.000999620683 | G83: 80 | H83: =IF(I$1="Decline",(G83*QsrcLitres)/SourceInputsAttenuation!$C$33,"") -> 0.002309123078 | I83: =IF(I$1="Decline",SourceInputsAttenuation!$E$16*EXP(-1*(SourceInputsAttenuation!$I$16*SrcDecline!E83)),SourceInputsAttenuation!$E$16) -> 0.8685095553 | J83: 80 | K83: =IF(L$1="Decline",(J83*QsrcLitres)/SourceInputsAttenuation!$C$33,"") -> 0.002309123078 | L83: =IF(L$1="Decline",SourceInputsAttenuation!$E$17*EXP(-1*(SourceInputsAttenuation!$I$17*SrcDecline!K83)),SourceInputsAttenuation!$E$17) -> 0.003997479306 | M83: 80 | N83: =IF(O$1="Decline",(M83*QsrcLitres)/SourceInputsAttenuation!$C$33,"") -> 0.002309123078 | O83: =IF(O$1="Decline",SourceInputsAttenuation!$E$18*EXP(-1*(SourceInputsAttenuation!$I$18*SrcDecline!N83)),SourceInputsAttenuation!$E$18) -> 0.399725257 | P83: 80 | Q83: =IF(R$1="Decline",(P83*QsrcLitres)/SourceInputsAttenuation!$C$33,"") -> 0.002309123078 | R83: =IF(R$1="Decline",SourceInputsAttenuation!$E$19*EXP(-1*(SourceInputsAttenuation!$I$19*SrcDecline!Q83)),SourceInputsAttenuation!$E$19) -> 0.1998601123 | S83: 80 | T83: =IF(U$1="Decline",(S83*QsrcLitres)/SourceInputsAttenuation!$C$33,"") -> 0.002309123078 | U83: =IF(U$1="Decline",SourceInputsAttenuation!$E$20*EXP(-1*(SourceInputsAttenuation!$I$20*SrcDecline!T83)),SourceInputsAttenuation!$E$20) -> 0.04997802168
A84: 81 | B84: =IF(C$1="Decline",(A84*QsrcLitres)/(SourceInputsAttenuation!$C$33),"") -> 0.002337987116 | C84: =IF(C$1="Decline",SourceInputsAttenuation!$E$14*EXP(-1*((SourceInputsAttenuation!$I$14)*SrcDecline!B84)),SourceInputsAttenuation!$E$14) -> 0.04999109903 | D84: 81 | E84: =IF(F$1="Decline",(D84*QsrcLitres)/SourceInputsAttenuation!$C$33,"") -> 0.002337987116 | F84: =IF(F$1="Decline",SourceInputsAttenuation!$E$15*EXP(-1*(SourceInputsAttenuation!$I$15*SrcDecline!E84)),SourceInputsAttenuation!$E$15) -> 0.0009996159425 | G84: 81 | H84: =IF(I$1="Decline",(G84*QsrcLitres)/SourceInputsAttenuation!$C$33,"") -> 0.002337987116 | I84: =IF(I$1="Decline",SourceInputsAttenuation!$E$16*EXP(-1*(SourceInputsAttenuation!$I$16*SrcDecline!E84)),SourceInputsAttenuation!$E$16) -> 0.8684971819 | J84: 81 | K84: =IF(L$1="Decline",(J84*QsrcLitres)/SourceInputsAttenuation!$C$33,"") -> 0.002337987116 | L84: =IF(L$1="Decline",SourceInputsAttenuation!$E$17*EXP(-1*(SourceInputsAttenuation!$I$17*SrcDecline!K84)),SourceInputsAttenuation!$E$17) -> 0.003997447807 | M84: 81 | N84: =IF(O$1="Decline",(M84*QsrcLitres)/SourceInputsAttenuation!$C$33,"") -> 0.002337987116 | O84: =IF(O$1="Decline",SourceInputsAttenuation!$E$18*EXP(-1*(SourceInputsAttenuation!$I$18*SrcDecline!N84)),SourceInputsAttenuation!$E$18) -> 0.3997218239 | P84: 81 | Q84: =IF(R$1="Decline",(P84*QsrcLitres)/SourceInputsAttenuation!$C$33,"") -> 0.002337987116 | R84: =IF(R$1="Decline",SourceInputsAttenuation!$E$19*EXP(-1*(SourceInputsAttenuation!$I$19*SrcDecline!Q84)),SourceInputsAttenuation!$E$19) -> 0.1998583643 | S84: 81 | T84: =IF(U$1="Decline",(S84*QsrcLitres)/SourceInputsAttenuation!$C$33,"") -> 0.002337987116 | U84: =IF(U$1="Decline",SourceInputsAttenuation!$E$20*EXP(-1*(SourceInputsAttenuation!$I$20*SrcDecline!T84)),SourceInputsAttenuation!$E$20) -> 0.04997774701
A85: 82 | B85: =IF(C$1="Decline",(A85*QsrcLitres)/(SourceInputsAttenuation!$C$33),"") -> 0.002366851155 | C85: =IF(C$1="Decline",SourceInputsAttenuation!$E$14*EXP(-1*((SourceInputsAttenuation!$I$14)*SrcDecline!B85)),SourceInputsAttenuation!$E$14) -> 0.04999098915 | D85: 82 | E85: =IF(F$1="Decline",(D85*QsrcLitres)/SourceInputsAttenuation!$C$33,"") -> 0.002366851155 | F85: =IF(F$1="Decline",SourceInputsAttenuation!$E$15*EXP(-1*(SourceInputsAttenuation!$I$15*SrcDecline!E85)),SourceInputsAttenuation!$E$15) -> 0.000999611202 | G85: 82 | H85: =IF(I$1="Decline",(G85*QsrcLitres)/SourceInputsAttenuation!$C$33,"") -> 0.002366851155 | I85: =IF(I$1="Decline",SourceInputsAttenuation!$E$16*EXP(-1*(SourceInputsAttenuation!$I$16*SrcDecline!E85)),SourceInputsAttenuation!$E$16) -> 0.8684848086 | J85: 82 | K85: =IF(L$1="Decline",(J85*QsrcLitres)/SourceInputsAttenuation!$C$33,"") -> 0.002366851155 | L85: =IF(L$1="Decline",SourceInputsAttenuation!$E$17*EXP(-1*(SourceInputsAttenuation!$I$17*SrcDecline!K85)),SourceInputsAttenuation!$E$17) -> 0.003997416309 | M85: 82 | N85: =IF(O$1="Decline",(M85*QsrcLitres)/SourceInputsAttenuation!$C$33,"") -> 0.002366851155 | O85: =IF(O$1="Decline",SourceInputsAttenuation!$E$18*EXP(-1*(SourceInputsAttenuation!$I$18*SrcDecline!N85)),SourceInputsAttenuation!$E$18) -> 0.3997183909 | P85: 82 | Q85: =IF(R$1="Decline",(P85*QsrcLitres)/SourceInputsAttenuation!$C$33,"") -> 0.002366851155 | R85: =IF(R$1="Decline",SourceInputsAttenuation!$E$19*EXP(-1*(SourceInputsAttenuation!$I$19*SrcDecline!Q85)),SourceInputsAttenuation!$E$19) -> 0.1998566163 | S85: 82 | T85: =IF(U$1="Decline",(S85*QsrcLitres)/SourceInputsAttenuation!$C$33,"") -> 0.002366851155 | U85: =IF(U$1="Decline",SourceInputsAttenuation!$E$20*EXP(-1*(SourceInputsAttenuation!$I$20*SrcDecline!T85)),SourceInputsAttenuation!$E$20) -> 0.04997747234
A86: 83 | B86: =IF(C$1="Decline",(A86*QsrcLitres)/(SourceInputsAttenuation!$C$33),"") -> 0.002395715193 | C86: =IF(C$1="Decline",SourceInputsAttenuation!$E$14*EXP(-1*((SourceInputsAttenuation!$I$14)*SrcDecline!B86)),SourceInputsAttenuation!$E$14) -> 0.04999087927 | D86: 83 | E86: =IF(F$1="Decline",(D86*QsrcLitres)/SourceInputsAttenuation!$C$33,"") -> 0.002395715193 | F86: =IF(F$1="Decline",SourceInputsAttenuation!$E$15*EXP(-1*(SourceInputsAttenuation!$I$15*SrcDecline!E86)),SourceInputsAttenuation!$E$15) -> 0.0009996064615 | G86: 83 | H86: =IF(I$1="Decline",(G86*QsrcLitres)/SourceInputsAttenuation!$C$33,"") -> 0.002395715193 | I86: =IF(I$1="Decline",SourceInputsAttenuation!$E$16*EXP(-1*(SourceInputsAttenuation!$I$16*SrcDecline!E86)),SourceInputsAttenuation!$E$16) -> 0.8684724356 | J86: 83 | K86: =IF(L$1="Decline",(J86*QsrcLitres)/SourceInputsAttenuation!$C$33,"") -> 0.002395715193 | L86: =IF(L$1="Decline",SourceInputsAttenuation!$E$17*EXP(-1*(SourceInputsAttenuation!$I$17*SrcDecline!K86)),SourceInputsAttenuation!$E$17) -> 0.003997384811 | M86: 83 | N86: =IF(O$1="Decline",(M86*QsrcLitres)/SourceInputsAttenuation!$C$33,"") -> 0.002395715193 | O86: =IF(O$1="Decline",SourceInputsAttenuation!$E$18*EXP(-1*(SourceInputsAttenuation!$I$18*SrcDecline!N86)),SourceInputsAttenuation!$E$18) -> 0.3997149578 | P86: 83 | Q86: =IF(R$1="Decline",(P86*QsrcLitres)/SourceInputsAttenuation!$C$33,"") -> 0.002395715193 | R86: =IF(R$1="Decline",SourceInputsAttenuation!$E$19*EXP(-1*(SourceInputsAttenuation!$I$19*SrcDecline!Q86)),SourceInputsAttenuation!$E$19) -> 0.1998548684 | S86: 83 | T86: =IF(U$1="Decline",(S86*QsrcLitres)/SourceInputsAttenuation!$C$33,"") -> 0.002395715193 | U86: =IF(U$1="Decline",SourceInputsAttenuation!$E$20*EXP(-1*(SourceInputsAttenuation!$I$20*SrcDecline!T86)),SourceInputsAttenuation!$E$20) -> 0.04997719768
A87: 84 | B87: =IF(C$1="Decline",(A87*QsrcLitres)/(SourceInputsAttenuation!$C$33),"") -> 0.002424579232 | C87: =IF(C$1="Decline",SourceInputsAttenuation!$E$14*EXP(-1*((SourceInputsAttenuation!$I$14)*SrcDecline!B87)),SourceInputsAttenuation!$E$14) -> 0.04999076939 | D87: 84 | E87: =IF(F$1="Decline",(D87*QsrcLitres)/SourceInputsAttenuation!$C$33,"") -> 0.002424579232 | F87: =IF(F$1="Decline",SourceInputsAttenuation!$E$15*EXP(-1*(SourceInputsAttenuation!$I$15*SrcDecline!E87)),SourceInputsAttenuation!$E$15) -> 0.000999601721 | G87: 84 | H87: =IF(I$1="Decline",(G87*QsrcLitres)/SourceInputsAttenuation!$C$33,"") -> 0.002424579232 | I87: =IF(I$1="Decline",SourceInputsAttenuation!$E$16*EXP(-1*(SourceInputsAttenuation!$I$16*SrcDecline!E87)),SourceInputsAttenuation!$E$16) -> 0.8684600627 | J87: 84 | K87: =IF(L$1="Decline",(J87*QsrcLitres)/SourceInputsAttenuation!$C$33,"") -> 0.002424579232 | L87: =IF(L$1="Decline",SourceInputsAttenuation!$E$17*EXP(-1*(SourceInputsAttenuation!$I$17*SrcDecline!K87)),SourceInputsAttenuation!$E$17) -> 0.003997353313 | M87: 84 | N87: =IF(O$1="Decline",(M87*QsrcLitres)/SourceInputsAttenuation!$C$33,"") -> 0.002424579232 | O87: =IF(O$1="Decline",SourceInputsAttenuation!$E$18*EXP(-1*(SourceInputsAttenuation!$I$18*SrcDecline!N87)),SourceInputsAttenuation!$E$18) -> 0.3997115248 | P87: 84 | Q87: =IF(R$1="Decline",(P87*QsrcLitres)/SourceInputsAttenuation!$C$33,"") -> 0.002424579232 | R87: =IF(R$1="Decline",SourceInputsAttenuation!$E$19*EXP(-1*(SourceInputsAttenuation!$I$19*SrcDecline!Q87)),SourceInputsAttenuation!$E$19) -> 0.1998531204 | S87: 84 | T87: =IF(U$1="Decline",(S87*QsrcLitres)/SourceInputsAttenuation!$C$33,"") -> 0.002424579232 | U87: =IF(U$1="Decline",SourceInputsAttenuation!$E$20*EXP(-1*(SourceInputsAttenuation!$I$20*SrcDecline!T87)),SourceInputsAttenuation!$E$20) -> 0.04997692302
A88: 85 | B88: =IF(C$1="Decline",(A88*QsrcLitres)/(SourceInputsAttenuation!$C$33),"") -> 0.00245344327 | C88: =IF(C$1="Decline",SourceInputsAttenuation!$E$14*EXP(-1*((SourceInputsAttenuation!$I$14)*SrcDecline!B88)),SourceInputsAttenuation!$E$14) -> 0.04999065952 | D88: 85 | E88: =IF(F$1="Decline",(D88*QsrcLitres)/SourceInputsAttenuation!$C$33,"") -> 0.00245344327 | F88: =IF(F$1="Decline",SourceInputsAttenuation!$E$15*EXP(-1*(SourceInputsAttenuation!$I$15*SrcDecline!E88)),SourceInputsAttenuation!$E$15) -> 0.0009995969805 | G88: 85 | H88: =IF(I$1="Decline",(G88*QsrcLitres)/SourceInputsAttenuation!$C$33,"") -> 0.00245344327 | I88: =IF(I$1="Decline",SourceInputsAttenuation!$E$16*EXP(-1*(SourceInputsAttenuation!$I$16*SrcDecline!E88)),SourceInputsAttenuation!$E$16) -> 0.86844769 | J88: 85 | K88: =IF(L$1="Decline",(J88*QsrcLitres)/SourceInputsAttenuation!$C$33,"") -> 0.00245344327 | L88: =IF(L$1="Decline",SourceInputsAttenuation!$E$17*EXP(-1*(SourceInputsAttenuation!$I$17*SrcDecline!K88)),SourceInputsAttenuation!$E$17) -> 0.003997321815 | M88: 85 | N88: =IF(O$1="Decline",(M88*QsrcLitres)/SourceInputsAttenuation!$C$33,"") -> 0.00245344327 | O88: =IF(O$1="Decline",SourceInputsAttenuation!$E$18*EXP(-1*(SourceInputsAttenuation!$I$18*SrcDecline!N88)),SourceInputsAttenuation!$E$18) -> 0.3997080918 | P88: 85 | Q88: =IF(R$1="Decline",(P88*QsrcLitres)/SourceInputsAttenuation!$C$33,"") -> 0.00245344327 | R88: =IF(R$1="Decline",SourceInputsAttenuation!$E$19*EXP(-1*(SourceInputsAttenuation!$I$19*SrcDecline!Q88)),SourceInputsAttenuation!$E$19) -> 0.1998513725 | S88: 85 | T88: =IF(U$1="Decline",(S88*QsrcLitres)/SourceInputsAttenuation!$C$33,"") -> 0.00245344327 | U88: =IF(U$1="Decline",SourceInputsAttenuation!$E$20*EXP(-1*(SourceInputsAttenuation!$I$20*SrcDecline!T88)),SourceInputsAttenuation!$E$20) -> 0.04997664835
A89: 86 | B89: =IF(C$1="Decline",(A89*QsrcLitres)/(SourceInputsAttenuation!$C$33),"") -> 0.002482307309 | C89: =IF(C$1="Decline",SourceInputsAttenuation!$E$14*EXP(-1*((SourceInputsAttenuation!$I$14)*SrcDecline!B89)),SourceInputsAttenuation!$E$14) -> 0.04999054964 | D89: 86 | E89: =IF(F$1="Decline",(D89*QsrcLitres)/SourceInputsAttenuation!$C$33,"") -> 0.002482307309 | F89: =IF(F$1="Decline",SourceInputsAttenuation!$E$15*EXP(-1*(SourceInputsAttenuation!$I$15*SrcDecline!E89)),SourceInputsAttenuation!$E$15) -> 0.0009995922401 | G89: 86 | H89: =IF(I$1="Decline",(G89*QsrcLitres)/SourceInputsAttenuation!$C$33,"") -> 0.002482307309 | I89: =IF(I$1="Decline",SourceInputsAttenuation!$E$16*EXP(-1*(SourceInputsAttenuation!$I$16*SrcDecline!E89)),SourceInputsAttenuation!$E$16) -> 0.8684353174 | J89: 86 | K89: =IF(L$1="Decline",(J89*QsrcLitres)/SourceInputsAttenuation!$C$33,"") -> 0.002482307309 | L89: =IF(L$1="Decline",SourceInputsAttenuation!$E$17*EXP(-1*(SourceInputsAttenuation!$I$17*SrcDecline!K89)),SourceInputsAttenuation!$E$17) -> 0.003997290318 | M89: 86 | N89: =IF(O$1="Decline",(M89*QsrcLitres)/SourceInputsAttenuation!$C$33,"") -> 0.002482307309 | O89: =IF(O$1="Decline",SourceInputsAttenuation!$E$18*EXP(-1*(SourceInputsAttenuation!$I$18*SrcDecline!N89)),SourceInputsAttenuation!$E$18) -> 0.3997046589 | P89: 86 | Q89: =IF(R$1="Decline",(P89*QsrcLitres)/SourceInputsAttenuation!$C$33,"") -> 0.002482307309 | R89: =IF(R$1="Decline",SourceInputsAttenuation!$E$19*EXP(-1*(SourceInputsAttenuation!$I$19*SrcDecline!Q89)),SourceInputsAttenuation!$E$19) -> 0.1998496246 | S89: 86 | T89: =IF(U$1="Decline",(S89*QsrcLitres)/SourceInputsAttenuation!$C$33,"") -> 0.002482307309 | U89: =IF(U$1="Decline",SourceInputsAttenuation!$E$20*EXP(-1*(SourceInputsAttenuation!$I$20*SrcDecline!T89)),SourceInputsAttenuation!$E$20) -> 0.04997637369
A90: 87 | B90: =IF(C$1="Decline",(A90*QsrcLitres)/(SourceInputsAttenuation!$C$33),"") -> 0.002511171347 | C90: =IF(C$1="Decline",SourceInputsAttenuation!$E$14*EXP(-1*((SourceInputsAttenuation!$I$14)*SrcDecline!B90)),SourceInputsAttenuation!$E$14) -> 0.04999043976 | D90: 87 | E90: =IF(F$1="Decline",(D90*QsrcLitres)/SourceInputsAttenuation!$C$33,"") -> 0.002511171347 | F90: =IF(F$1="Decline",SourceInputsAttenuation!$E$15*EXP(-1*(SourceInputsAttenuation!$I$15*SrcDecline!E90)),SourceInputsAttenuation!$E$15) -> 0.0009995874996 | G90: 87 | H90: =IF(I$1="Decline",(G90*QsrcLitres)/SourceInputsAttenuation!$C$33,"") -> 0.002511171347 | I90: =IF(I$1="Decline",SourceInputsAttenuation!$E$16*EXP(-1*(SourceInputsAttenuation!$I$16*SrcDecline!E90)),SourceInputsAttenuation!$E$16) -> 0.8684229451 | J90: 87 | K90: =IF(L$1="Decline",(J90*QsrcLitres)/SourceInputsAttenuation!$C$33,"") -> 0.002511171347 | L90: =IF(L$1="Decline",SourceInputsAttenuation!$E$17*EXP(-1*(SourceInputsAttenuation!$I$17*SrcDecline!K90)),SourceInputsAttenuation!$E$17) -> 0.003997258821 | M90: 87 | N90: =IF(O$1="Decline",(M90*QsrcLitres)/SourceInputsAttenuation!$C$33,"") -> 0.002511171347 | O90: =IF(O$1="Decline",SourceInputsAttenuation!$E$18*EXP(-1*(SourceInputsAttenuation!$I$18*SrcDecline!N90)),SourceInputsAttenuation!$E$18) -> 0.399701226 | P90: 87 | Q90: =IF(R$1="Decline",(P90*QsrcLitres)/SourceInputsAttenuation!$C$33,"") -> 0.002511171347 | R90: =IF(R$1="Decline",SourceInputsAttenuation!$E$19*EXP(-1*(SourceInputsAttenuation!$I$19*SrcDecline!Q90)),SourceInputsAttenuation!$E$19) -> 0.1998478767 | S90: 87 | T90: =IF(U$1="Decline",(S90*QsrcLitres)/SourceInputsAttenuation!$C$33,"") -> 0.002511171347 | U90: =IF(U$1="Decline",SourceInputsAttenuation!$E$20*EXP(-1*(SourceInputsAttenuation!$I$20*SrcDecline!T90)),SourceInputsAttenuation!$E$20) -> 0.04997609903
A91: 88 | B91: =IF(C$1="Decline",(A91*QsrcLitres)/(SourceInputsAttenuation!$C$33),"") -> 0.002540035386 | C91: =IF(C$1="Decline",SourceInputsAttenuation!$E$14*EXP(-1*((SourceInputsAttenuation!$I$14)*SrcDecline!B91)),SourceInputsAttenuation!$E$14) -> 0.04999032988 | D91: 88 | E91: =IF(F$1="Decline",(D91*QsrcLitres)/SourceInputsAttenuation!$C$33,"") -> 0.002540035386 | F91: =IF(F$1="Decline",SourceInputsAttenuation!$E$15*EXP(-1*(SourceInputsAttenuation!$I$15*SrcDecline!E91)),SourceInputsAttenuation!$E$15) -> 0.0009995827593 | G91: 88 | H91: =IF(I$1="Decline",(G91*QsrcLitres)/SourceInputsAttenuation!$C$33,"") -> 0.002540035386 | I91: =IF(I$1="Decline",SourceInputsAttenuation!$E$16*EXP(-1*(SourceInputsAttenuation!$I$16*SrcDecline!E91)),SourceInputsAttenuation!$E$16) -> 0.8684105729 | J91: 88 | K91: =IF(L$1="Decline",(J91*QsrcLitres)/SourceInputsAttenuation!$C$33,"") -> 0.002540035386 | L91: =IF(L$1="Decline",SourceInputsAttenuation!$E$17*EXP(-1*(SourceInputsAttenuation!$I$17*SrcDecline!K91)),SourceInputsAttenuation!$E$17) -> 0.003997227324 | M91: 88 | N91: =IF(O$1="Decline",(M91*QsrcLitres)/SourceInputsAttenuation!$C$33,"") -> 0.002540035386 | O91: =IF(O$1="Decline",SourceInputsAttenuation!$E$18*EXP(-1*(SourceInputsAttenuation!$I$18*SrcDecline!N91)),SourceInputsAttenuation!$E$18) -> 0.3996977931 | P91: 88 | Q91: =IF(R$1="Decline",(P91*QsrcLitres)/SourceInputsAttenuation!$C$33,"") -> 0.002540035386 | R91: =IF(R$1="Decline",SourceInputsAttenuation!$E$19*EXP(-1*(SourceInputsAttenuation!$I$19*SrcDecline!Q91)),SourceInputsAttenuation!$E$19) -> 0.1998461289 | S91: 88 | T91: =IF(U$1="Decline",(S91*QsrcLitres)/SourceInputsAttenuation!$C$33,"") -> 0.002540035386 | U91: =IF(U$1="Decline",SourceInputsAttenuation!$E$20*EXP(-1*(SourceInputsAttenuation!$I$20*SrcDecline!T91)),SourceInputsAttenuation!$E$20) -> 0.04997582438
A92: 89 | B92: =IF(C$1="Decline",(A92*QsrcLitres)/(SourceInputsAttenuation!$C$33),"") -> 0.002568899424 | C92: =IF(C$1="Decline",SourceInputsAttenuation!$E$14*EXP(-1*((SourceInputsAttenuation!$I$14)*SrcDecline!B92)),SourceInputsAttenuation!$E$14) -> 0.04999022001 | D92: 89 | E92: =IF(F$1="Decline",(D92*QsrcLitres)/SourceInputsAttenuation!$C$33,"") -> 0.002568899424 | F92: =IF(F$1="Decline",SourceInputsAttenuation!$E$15*EXP(-1*(SourceInputsAttenuation!$I$15*SrcDecline!E92)),SourceInputsAttenuation!$E$15) -> 0.0009995780189 | G92: 89 | H92: =IF(I$1="Decline",(G92*QsrcLitres)/SourceInputsAttenuation!$C$33,"") -> 0.002568899424 | I92: =IF(I$1="Decline",SourceInputsAttenuation!$E$16*EXP(-1*(SourceInputsAttenuation!$I$16*SrcDecline!E92)),SourceInputsAttenuation!$E$16) -> 0.8683982009 | J92: 89 | K92: =IF(L$1="Decline",(J92*QsrcLitres)/SourceInputsAttenuation!$C$33,"") -> 0.002568899424 | L92: =IF(L$1="Decline",SourceInputsAttenuation!$E$17*EXP(-1*(SourceInputsAttenuation!$I$17*SrcDecline!K92)),SourceInputsAttenuation!$E$17) -> 0.003997195827 | M92: 89 | N92: =IF(O$1="Decline",(M92*QsrcLitres)/SourceInputsAttenuation!$C$33,"") -> 0.002568899424 | O92: =IF(O$1="Decline",SourceInputsAttenuation!$E$18*EXP(-1*(SourceInputsAttenuation!$I$18*SrcDecline!N92)),SourceInputsAttenuation!$E$18) -> 0.3996943602 | P92: 89 | Q92: =IF(R$1="Decline",(P92*QsrcLitres)/SourceInputsAttenuation!$C$33,"") -> 0.002568899424 | R92: =IF(R$1="Decline",SourceInputsAttenuation!$E$19*EXP(-1*(SourceInputsAttenuation!$I$19*SrcDecline!Q92)),SourceInputsAttenuation!$E$19) -> 0.199844381 | S92: 89 | T92: =IF(U$1="Decline",(S92*QsrcLitres)/SourceInputsAttenuation!$C$33,"") -> 0.002568899424 | U92: =IF(U$1="Decline",SourceInputsAttenuation!$E$20*EXP(-1*(SourceInputsAttenuation!$I$20*SrcDecline!T92)),SourceInputsAttenuation!$E$20) -> 0.04997554972
A93: 90 | B93: =IF(C$1="Decline",(A93*QsrcLitres)/(SourceInputsAttenuation!$C$33),"") -> 0.002597763462 | C93: =IF(C$1="Decline",SourceInputsAttenuation!$E$14*EXP(-1*((SourceInputsAttenuation!$I$14)*SrcDecline!B93)),SourceInputsAttenuation!$E$14) -> 0.04999011013 | D93: 90 | E93: =IF(F$1="Decline",(D93*QsrcLitres)/SourceInputsAttenuation!$C$33,"") -> 0.002597763462 | F93: =IF(F$1="Decline",SourceInputsAttenuation!$E$15*EXP(-1*(SourceInputsAttenuation!$I$15*SrcDecline!E93)),SourceInputsAttenuation!$E$15) -> 0.0009995732785 | G93: 90 | H93: =IF(I$1="Decline",(G93*QsrcLitres)/SourceInputsAttenuation!$C$33,"") -> 0.002597763462 | I93: =IF(I$1="Decline",SourceInputsAttenuation!$E$16*EXP(-1*(SourceInputsAttenuation!$I$16*SrcDecline!E93)),SourceInputsAttenuation!$E$16) -> 0.868385829 | J93: 90 | K93: =IF(L$1="Decline",(J93*QsrcLitres)/SourceInputsAttenuation!$C$33,"") -> 0.002597763462 | L93: =IF(L$1="Decline",SourceInputsAttenuation!$E$17*EXP(-1*(SourceInputsAttenuation!$I$17*SrcDecline!K93)),SourceInputsAttenuation!$E$17) -> 0.003997164331 | M93: 90 | N93: =IF(O$1="Decline",(M93*QsrcLitres)/SourceInputsAttenuation!$C$33,"") -> 0.002597763462 | O93: =IF(O$1="Decline",SourceInputsAttenuation!$E$18*EXP(-1*(SourceInputsAttenuation!$I$18*SrcDecline!N93)),SourceInputsAttenuation!$E$18) -> 0.3996909274 | P93: 90 | Q93: =IF(R$1="Decline",(P93*QsrcLitres)/SourceInputsAttenuation!$C$33,"") -> 0.002597763462 | R93: =IF(R$1="Decline",SourceInputsAttenuation!$E$19*EXP(-1*(SourceInputsAttenuation!$I$19*SrcDecline!Q93)),SourceInputsAttenuation!$E$19) -> 0.1998426332 | S93: 90 | T93: =IF(U$1="Decline",(S93*QsrcLitres)/SourceInputsAttenuation!$C$33,"") -> 0.002597763462 | U93: =IF(U$1="Decline",SourceInputsAttenuation!$E$20*EXP(-1*(SourceInputsAttenuation!$I$20*SrcDecline!T93)),SourceInputsAttenuation!$E$20) -> 0.04997527507
A94: 91 | B94: =IF(C$1="Decline",(A94*QsrcLitres)/(SourceInputsAttenuation!$C$33),"") -> 0.002626627501 | C94: =IF(C$1="Decline",SourceInputsAttenuation!$E$14*EXP(-1*((SourceInputsAttenuation!$I$14)*SrcDecline!B94)),SourceInputsAttenuation!$E$14) -> 0.04999000025 | D94: 91 | E94: =IF(F$1="Decline",(D94*QsrcLitres)/SourceInputsAttenuation!$C$33,"") -> 0.002626627501 | F94: =IF(F$1="Decline",SourceInputsAttenuation!$E$15*EXP(-1*(SourceInputsAttenuation!$I$15*SrcDecline!E94)),SourceInputsAttenuation!$E$15) -> 0.0009995685382 | G94: 91 | H94: =IF(I$1="Decline",(G94*QsrcLitres)/SourceInputsAttenuation!$C$33,"") -> 0.002626627501 | I94: =IF(I$1="Decline",SourceInputsAttenuation!$E$16*EXP(-1*(SourceInputsAttenuation!$I$16*SrcDecline!E94)),SourceInputsAttenuation!$E$16) -> 0.8683734574 | J94: 91 | K94: =IF(L$1="Decline",(J94*QsrcLitres)/SourceInputsAttenuation!$C$33,"") -> 0.002626627501 | L94: =IF(L$1="Decline",SourceInputsAttenuation!$E$17*EXP(-1*(SourceInputsAttenuation!$I$17*SrcDecline!K94)),SourceInputsAttenuation!$E$17) -> 0.003997132835 | M94: 91 | N94: =IF(O$1="Decline",(M94*QsrcLitres)/SourceInputsAttenuation!$C$33,"") -> 0.002626627501 | O94: =IF(O$1="Decline",SourceInputsAttenuation!$E$18*EXP(-1*(SourceInputsAttenuation!$I$18*SrcDecline!N94)),SourceInputsAttenuation!$E$18) -> 0.3996874946 | P94: 91 | Q94: =IF(R$1="Decline",(P94*QsrcLitres)/SourceInputsAttenuation!$C$33,"") -> 0.002626627501 | R94: =IF(R$1="Decline",SourceInputsAttenuation!$E$19*EXP(-1*(SourceInputsAttenuation!$I$19*SrcDecline!Q94)),SourceInputsAttenuation!$E$19) -> 0.1998408854 | S94: 91 | T94: =IF(U$1="Decline",(S94*QsrcLitres)/SourceInputsAttenuation!$C$33,"") -> 0.002626627501 | U94: =IF(U$1="Decline",SourceInputsAttenuation!$E$20*EXP(-1*(SourceInputsAttenuation!$I$20*SrcDecline!T94)),SourceInputsAttenuation!$E$20) -> 0.04997500041
A95: 92 | B95: =IF(C$1="Decline",(A95*QsrcLitres)/(SourceInputsAttenuation!$C$33),"") -> 0.002655491539 | C95: =IF(C$1="Decline",SourceInputsAttenuation!$E$14*EXP(-1*((SourceInputsAttenuation!$I$14)*SrcDecline!B95)),SourceInputsAttenuation!$E$14) -> 0.04998989038 | D95: 92 | E95: =IF(F$1="Decline",(D95*QsrcLitres)/SourceInputsAttenuation!$C$33,"") -> 0.002655491539 | F95: =IF(F$1="Decline",SourceInputsAttenuation!$E$15*EXP(-1*(SourceInputsAttenuation!$I$15*SrcDecline!E95)),SourceInputsAttenuation!$E$15) -> 0.0009995637979 | G95: 92 | H95: =IF(I$1="Decline",(G95*QsrcLitres)/SourceInputsAttenuation!$C$33,"") -> 0.002655491539 | I95: =IF(I$1="Decline",SourceInputsAttenuation!$E$16*EXP(-1*(SourceInputsAttenuation!$I$16*SrcDecline!E95)),SourceInputsAttenuation!$E$16) -> 0.8683610859 | J95: 92 | K95: =IF(L$1="Decline",(J95*QsrcLitres)/SourceInputsAttenuation!$C$33,"") -> 0.002655491539 | L95: =IF(L$1="Decline",SourceInputsAttenuation!$E$17*EXP(-1*(SourceInputsAttenuation!$I$17*SrcDecline!K95)),SourceInputsAttenuation!$E$17) -> 0.003997101339 | M95: 92 | N95: =IF(O$1="Decline",(M95*QsrcLitres)/SourceInputsAttenuation!$C$33,"") -> 0.002655491539 | O95: =IF(O$1="Decline",SourceInputsAttenuation!$E$18*EXP(-1*(SourceInputsAttenuation!$I$18*SrcDecline!N95)),SourceInputsAttenuation!$E$18) -> 0.3996840618 | P95: 92 | Q95: =IF(R$1="Decline",(P95*QsrcLitres)/SourceInputsAttenuation!$C$33,"") -> 0.002655491539 | R95: =IF(R$1="Decline",SourceInputsAttenuation!$E$19*EXP(-1*(SourceInputsAttenuation!$I$19*SrcDecline!Q95)),SourceInputsAttenuation!$E$19) -> 0.1998391375 | S95: 92 | T95: =IF(U$1="Decline",(S95*QsrcLitres)/SourceInputsAttenuation!$C$33,"") -> 0.002655491539 | U95: =IF(U$1="Decline",SourceInputsAttenuation!$E$20*EXP(-1*(SourceInputsAttenuation!$I$20*SrcDecline!T95)),SourceInputsAttenuation!$E$20) -> 0.04997472576
A96: 93 | B96: =IF(C$1="Decline",(A96*QsrcLitres)/(SourceInputsAttenuation!$C$33),"") -> 0.002684355578 | C96: =IF(C$1="Decline",SourceInputsAttenuation!$E$14*EXP(-1*((SourceInputsAttenuation!$I$14)*SrcDecline!B96)),SourceInputsAttenuation!$E$14) -> 0.0499897805 | D96: 93 | E96: =IF(F$1="Decline",(D96*QsrcLitres)/SourceInputsAttenuation!$C$33,"") -> 0.002684355578 | F96: =IF(F$1="Decline",SourceInputsAttenuation!$E$15*EXP(-1*(SourceInputsAttenuation!$I$15*SrcDecline!E96)),SourceInputsAttenuation!$E$15) -> 0.0009995590576 | G96: 93 | H96: =IF(I$1="Decline",(G96*QsrcLitres)/SourceInputsAttenuation!$C$33,"") -> 0.002684355578 | I96: =IF(I$1="Decline",SourceInputsAttenuation!$E$16*EXP(-1*(SourceInputsAttenuation!$I$16*SrcDecline!E96)),SourceInputsAttenuation!$E$16) -> 0.8683487146 | J96: 93 | K96: =IF(L$1="Decline",(J96*QsrcLitres)/SourceInputsAttenuation!$C$33,"") -> 0.002684355578 | L96: =IF(L$1="Decline",SourceInputsAttenuation!$E$17*EXP(-1*(SourceInputsAttenuation!$I$17*SrcDecline!K96)),SourceInputsAttenuation!$E$17) -> 0.003997069843 | M96: 93 | N96: =IF(O$1="Decline",(M96*QsrcLitres)/SourceInputsAttenuation!$C$33,"") -> 0.002684355578 | O96: =IF(O$1="Decline",SourceInputsAttenuation!$E$18*EXP(-1*(SourceInputsAttenuation!$I$18*SrcDecline!N96)),SourceInputsAttenuation!$E$18) -> 0.3996806291 | P96: 93 | Q96: =IF(R$1="Decline",(P96*QsrcLitres)/SourceInputsAttenuation!$C$33,"") -> 0.002684355578 | R96: =IF(R$1="Decline",SourceInputsAttenuation!$E$19*EXP(-1*(SourceInputsAttenuation!$I$19*SrcDecline!Q96)),SourceInputsAttenuation!$E$19) -> 0.1998373898 | S96: 93 | T96: =IF(U$1="Decline",(S96*QsrcLitres)/SourceInputsAttenuation!$C$33,"") -> 0.002684355578 | U96: =IF(U$1="Decline",SourceInputsAttenuation!$E$20*EXP(-1*(SourceInputsAttenuation!$I$20*SrcDecline!T96)),SourceInputsAttenuation!$E$20) -> 0.04997445111
A97: 94 | B97: =IF(C$1="Decline",(A97*QsrcLitres)/(SourceInputsAttenuation!$C$33),"") -> 0.002713219616 | C97: =IF(C$1="Decline",SourceInputsAttenuation!$E$14*EXP(-1*((SourceInputsAttenuation!$I$14)*SrcDecline!B97)),SourceInputsAttenuation!$E$14) -> 0.04998967063 | D97: 94 | E97: =IF(F$1="Decline",(D97*QsrcLitres)/SourceInputsAttenuation!$C$33,"") -> 0.002713219616 | F97: =IF(F$1="Decline",SourceInputsAttenuation!$E$15*EXP(-1*(SourceInputsAttenuation!$I$15*SrcDecline!E97)),SourceInputsAttenuation!$E$15) -> 0.0009995543174 | G97: 94 | H97: =IF(I$1="Decline",(G97*QsrcLitres)/SourceInputsAttenuation!$C$33,"") -> 0.002713219616 | I97: =IF(I$1="Decline",SourceInputsAttenuation!$E$16*EXP(-1*(SourceInputsAttenuation!$I$16*SrcDecline!E97)),SourceInputsAttenuation!$E$16) -> 0.8683363435 | J97: 94 | K97: =IF(L$1="Decline",(J97*QsrcLitres)/SourceInputsAttenuation!$C$33,"") -> 0.002713219616 | L97: =IF(L$1="Decline",SourceInputsAttenuation!$E$17*EXP(-1*(SourceInputsAttenuation!$I$17*SrcDecline!K97)),SourceInputsAttenuation!$E$17) -> 0.003997038348 | M97: 94 | N97: =IF(O$1="Decline",(M97*QsrcLitres)/SourceInputsAttenuation!$C$33,"") -> 0.002713219616 | O97: =IF(O$1="Decline",SourceInputsAttenuation!$E$18*EXP(-1*(SourceInputsAttenuation!$I$18*SrcDecline!N97)),SourceInputsAttenuation!$E$18) -> 0.3996771964 | P97: 94 | Q97: =IF(R$1="Decline",(P97*QsrcLitres)/SourceInputsAttenuation!$C$33,"") -> 0.002713219616 | R97: =IF(R$1="Decline",SourceInputsAttenuation!$E$19*EXP(-1*(SourceInputsAttenuation!$I$19*SrcDecline!Q97)),SourceInputsAttenuation!$E$19) -> 0.199835642 | S97: 94 | T97: =IF(U$1="Decline",(S97*QsrcLitres)/SourceInputsAttenuation!$C$33,"") -> 0.002713219616 | U97: =IF(U$1="Decline",SourceInputsAttenuation!$E$20*EXP(-1*(SourceInputsAttenuation!$I$20*SrcDecline!T97)),SourceInputsAttenuation!$E$20) -> 0.04997417646
A98: 95 | B98: =IF(C$1="Decline",(A98*QsrcLitres)/(SourceInputsAttenuation!$C$33),"") -> 0.002742083655 | C98: =IF(C$1="Decline",SourceInputsAttenuation!$E$14*EXP(-1*((SourceInputsAttenuation!$I$14)*SrcDecline!B98)),SourceInputsAttenuation!$E$14) -> 0.04998956075 | D98: 95 | E98: =IF(F$1="Decline",(D98*QsrcLitres)/SourceInputsAttenuation!$C$33,"") -> 0.002742083655 | F98: =IF(F$1="Decline",SourceInputsAttenuation!$E$15*EXP(-1*(SourceInputsAttenuation!$I$15*SrcDecline!E98)),SourceInputsAttenuation!$E$15) -> 0.0009995495771 | G98: 95 | H98: =IF(I$1="Decline",(G98*QsrcLitres)/SourceInputsAttenuation!$C$33,"") -> 0.002742083655 | I98: =IF(I$1="Decline",SourceInputsAttenuation!$E$16*EXP(-1*(SourceInputsAttenuation!$I$16*SrcDecline!E98)),SourceInputsAttenuation!$E$16) -> 0.8683239725 | J98: 95 | K98: =IF(L$1="Decline",(J98*QsrcLitres)/SourceInputsAttenuation!$C$33,"") -> 0.002742083655 | L98: =IF(L$1="Decline",SourceInputsAttenuation!$E$17*EXP(-1*(SourceInputsAttenuation!$I$17*SrcDecline!K98)),SourceInputsAttenuation!$E$17) -> 0.003997006853 | M98: 95 | N98: =IF(O$1="Decline",(M98*QsrcLitres)/SourceInputsAttenuation!$C$33,"") -> 0.002742083655 | O98: =IF(O$1="Decline",SourceInputsAttenuation!$E$18*EXP(-1*(SourceInputsAttenuation!$I$18*SrcDecline!N98)),SourceInputsAttenuation!$E$18) -> 0.3996737637 | P98: 95 | Q98: =IF(R$1="Decline",(P98*QsrcLitres)/SourceInputsAttenuation!$C$33,"") -> 0.002742083655 | R98: =IF(R$1="Decline",SourceInputsAttenuation!$E$19*EXP(-1*(SourceInputsAttenuation!$I$19*SrcDecline!Q98)),SourceInputsAttenuation!$E$19) -> 0.1998338942 | S98: 95 | T98: =IF(U$1="Decline",(S98*QsrcLitres)/SourceInputsAttenuation!$C$33,"") -> 0.002742083655 | U98: =IF(U$1="Decline",SourceInputsAttenuation!$E$20*EXP(-1*(SourceInputsAttenuation!$I$20*SrcDecline!T98)),SourceInputsAttenuation!$E$20) -> 0.04997390182
A99: 96 | B99: =IF(C$1="Decline",(A99*QsrcLitres)/(SourceInputsAttenuation!$C$33),"") -> 0.002770947693 | C99: =IF(C$1="Decline",SourceInputsAttenuation!$E$14*EXP(-1*((SourceInputsAttenuation!$I$14)*SrcDecline!B99)),SourceInputsAttenuation!$E$14) -> 0.04998945087 | D99: 96 | E99: =IF(F$1="Decline",(D99*QsrcLitres)/SourceInputsAttenuation!$C$33,"") -> 0.002770947693 | F99: =IF(F$1="Decline",SourceInputsAttenuation!$E$15*EXP(-1*(SourceInputsAttenuation!$I$15*SrcDecline!E99)),SourceInputsAttenuation!$E$15) -> 0.0009995448369 | G99: 96 | H99: =IF(I$1="Decline",(G99*QsrcLitres)/SourceInputsAttenuation!$C$33,"") -> 0.002770947693 | I99: =IF(I$1="Decline",SourceInputsAttenuation!$E$16*EXP(-1*(SourceInputsAttenuation!$I$16*SrcDecline!E99)),SourceInputsAttenuation!$E$16) -> 0.8683116018 | J99: 96 | K99: =IF(L$1="Decline",(J99*QsrcLitres)/SourceInputsAttenuation!$C$33,"") -> 0.002770947693 | L99: =IF(L$1="Decline",SourceInputsAttenuation!$E$17*EXP(-1*(SourceInputsAttenuation!$I$17*SrcDecline!K99)),SourceInputsAttenuation!$E$17) -> 0.003996975358 | M99: 96 | N99: =IF(O$1="Decline",(M99*QsrcLitres)/SourceInputsAttenuation!$C$33,"") -> 0.002770947693 | O99: =IF(O$1="Decline",SourceInputsAttenuation!$E$18*EXP(-1*(SourceInputsAttenuation!$I$18*SrcDecline!N99)),SourceInputsAttenuation!$E$18) -> 0.3996703311 | P99: 96 | Q99: =IF(R$1="Decline",(P99*QsrcLitres)/SourceInputsAttenuation!$C$33,"") -> 0.002770947693 | R99: =IF(R$1="Decline",SourceInputsAttenuation!$E$19*EXP(-1*(SourceInputsAttenuation!$I$19*SrcDecline!Q99)),SourceInputsAttenuation!$E$19) -> 0.1998321465 | S99: 96 | T99: =IF(U$1="Decline",(S99*QsrcLitres)/SourceInputsAttenuation!$C$33,"") -> 0.002770947693 | U99: =IF(U$1="Decline",SourceInputsAttenuation!$E$20*EXP(-1*(SourceInputsAttenuation!$I$20*SrcDecline!T99)),SourceInputsAttenuation!$E$20) -> 0.04997362717
A100: 97 | B100: =IF(C$1="Decline",(A100*QsrcLitres)/(SourceInputsAttenuation!$C$33),"") -> 0.002799811732 | C100: =IF(C$1="Decline",SourceInputsAttenuation!$E$14*EXP(-1*((SourceInputsAttenuation!$I$14)*SrcDecline!B100)),SourceInputsAttenuation!$E$14) -> 0.049989341 | D100: 97 | E100: =IF(F$1="Decline",(D100*QsrcLitres)/SourceInputsAttenuation!$C$33,"") -> 0.002799811732 | F100: =IF(F$1="Decline",SourceInputsAttenuation!$E$15*EXP(-1*(SourceInputsAttenuation!$I$15*SrcDecline!E100)),SourceInputsAttenuation!$E$15) -> 0.0009995400967 | G100: 97 | H100: =IF(I$1="Decline",(G100*QsrcLitres)/SourceInputsAttenuation!$C$33,"") -> 0.002799811732 | I100: =IF(I$1="Decline",SourceInputsAttenuation!$E$16*EXP(-1*(SourceInputsAttenuation!$I$16*SrcDecline!E100)),SourceInputsAttenuation!$E$16) -> 0.8682992312 | J100: 97 | K100: =IF(L$1="Decline",(J100*QsrcLitres)/SourceInputsAttenuation!$C$33,"") -> 0.002799811732 | L100: =IF(L$1="Decline",SourceInputsAttenuation!$E$17*EXP(-1*(SourceInputsAttenuation!$I$17*SrcDecline!K100)),SourceInputsAttenuation!$E$17) -> 0.003996943863 | M100: 97 | N100: =IF(O$1="Decline",(M100*QsrcLitres)/SourceInputsAttenuation!$C$33,"") -> 0.002799811732 | O100: =IF(O$1="Decline",SourceInputsAttenuation!$E$18*EXP(-1*(SourceInputsAttenuation!$I$18*SrcDecline!N100)),SourceInputsAttenuation!$E$18) -> 0.3996668984 | P100: 97 | Q100: =IF(R$1="Decline",(P100*QsrcLitres)/SourceInputsAttenuation!$C$33,"") -> 0.002799811732 | R100: =IF(R$1="Decline",SourceInputsAttenuation!$E$19*EXP(-1*(SourceInputsAttenuation!$I$19*SrcDecline!Q100)),SourceInputsAttenuation!$E$19) -> 0.1998303987 | S100: 97 | T100: =IF(U$1="Decline",(S100*QsrcLitres)/SourceInputsAttenuation!$C$33,"") -> 0.002799811732 | U100: =IF(U$1="Decline",SourceInputsAttenuation!$E$20*EXP(-1*(SourceInputsAttenuation!$I$20*SrcDecline!T100)),SourceInputsAttenuation!$E$20) -> 0.04997335253
A101: 98 | B101: =IF(C$1="Decline",(A101*QsrcLitres)/(SourceInputsAttenuation!$C$33),"") -> 0.00282867577 | C101: =IF(C$1="Decline",SourceInputsAttenuation!$E$14*EXP(-1*((SourceInputsAttenuation!$I$14)*SrcDecline!B101)),SourceInputsAttenuation!$E$14) -> 0.04998923112 | D101: 98 | E101: =IF(F$1="Decline",(D101*QsrcLitres)/SourceInputsAttenuation!$C$33,"") -> 0.00282867577 | F101: =IF(F$1="Decline",SourceInputsAttenuation!$E$15*EXP(-1*(SourceInputsAttenuation!$I$15*SrcDecline!E101)),SourceInputsAttenuation!$E$15) -> 0.0009995353566 | G101: 98 | H101: =IF(I$1="Decline",(G101*QsrcLitres)/SourceInputsAttenuation!$C$33,"") -> 0.00282867577 | I101: =IF(I$1="Decline",SourceInputsAttenuation!$E$16*EXP(-1*(SourceInputsAttenuation!$I$16*SrcDecline!E101)),SourceInputsAttenuation!$E$16) -> 0.8682868607 | J101: 98 | K101: =IF(L$1="Decline",(J101*QsrcLitres)/SourceInputsAttenuation!$C$33,"") -> 0.00282867577 | L101: =IF(L$1="Decline",SourceInputsAttenuation!$E$17*EXP(-1*(SourceInputsAttenuation!$I$17*SrcDecline!K101)),SourceInputsAttenuation!$E$17) -> 0.003996912369 | M101: 98 | N101: =IF(O$1="Decline",(M101*QsrcLitres)/SourceInputsAttenuation!$C$33,"") -> 0.00282867577 | O101: =IF(O$1="Decline",SourceInputsAttenuation!$E$18*EXP(-1*(SourceInputsAttenuation!$I$18*SrcDecline!N101)),SourceInputsAttenuation!$E$18) -> 0.3996634658 | P101: 98 | Q101: =IF(R$1="Decline",(P101*QsrcLitres)/SourceInputsAttenuation!$C$33,"") -> 0.00282867577 | R101: =IF(R$1="Decline",SourceInputsAttenuation!$E$19*EXP(-1*(SourceInputsAttenuation!$I$19*SrcDecline!Q101)),SourceInputsAttenuation!$E$19) -> 0.199828651 | S101: 98 | T101: =IF(U$1="Decline",(S101*QsrcLitres)/SourceInputsAttenuation!$C$33,"") -> 0.00282867577 | U101: =IF(U$1="Decline",SourceInputsAttenuation!$E$20*EXP(-1*(SourceInputsAttenuation!$I$20*SrcDecline!T101)),SourceInputsAttenuation!$E$20) -> 0.04997307789
A102: 99 | B102: =IF(C$1="Decline",(A102*QsrcLitres)/(SourceInputsAttenuation!$C$33),"") -> 0.002857539809 | C102: =IF(C$1="Decline",SourceInputsAttenuation!$E$14*EXP(-1*((SourceInputsAttenuation!$I$14)*SrcDecline!B102)),SourceInputsAttenuation!$E$14) -> 0.04998912125 | D102: 99 | E102: =IF(F$1="Decline",(D102*QsrcLitres)/SourceInputsAttenuation!$C$33,"") -> 0.002857539809 | F102: =IF(F$1="Decline",SourceInputsAttenuation!$E$15*EXP(-1*(SourceInputsAttenuation!$I$15*SrcDecline!E102)),SourceInputsAttenuation!$E$15) -> 0.0009995306164 | G102: 99 | H102: =IF(I$1="Decline",(G102*QsrcLitres)/SourceInputsAttenuation!$C$33,"") -> 0.002857539809 | I102: =IF(I$1="Decline",SourceInputsAttenuation!$E$16*EXP(-1*(SourceInputsAttenuation!$I$16*SrcDecline!E102)),SourceInputsAttenuation!$E$16) -> 0.8682744905 | J102: 99 | K102: =IF(L$1="Decline",(J102*QsrcLitres)/SourceInputsAttenuation!$C$33,"") -> 0.002857539809 | L102: =IF(L$1="Decline",SourceInputsAttenuation!$E$17*EXP(-1*(SourceInputsAttenuation!$I$17*SrcDecline!K102)),SourceInputsAttenuation!$E$17) -> 0.003996880874 | M102: 99 | N102: =IF(O$1="Decline",(M102*QsrcLitres)/SourceInputsAttenuation!$C$33,"") -> 0.002857539809 | O102: =IF(O$1="Decline",SourceInputsAttenuation!$E$18*EXP(-1*(SourceInputsAttenuation!$I$18*SrcDecline!N102)),SourceInputsAttenuation!$E$18) -> 0.3996600333 | P102: 99 | Q102: =IF(R$1="Decline",(P102*QsrcLitres)/SourceInputsAttenuation!$C$33,"") -> 0.002857539809 | R102: =IF(R$1="Decline",SourceInputsAttenuation!$E$19*EXP(-1*(SourceInputsAttenuation!$I$19*SrcDecline!Q102)),SourceInputsAttenuation!$E$19) -> 0.1998269033 | S102: 99 | T102: =IF(U$1="Decline",(S102*QsrcLitres)/SourceInputsAttenuation!$C$33,"") -> 0.002857539809 | U102: =IF(U$1="Decline",SourceInputsAttenuation!$E$20*EXP(-1*(SourceInputsAttenuation!$I$20*SrcDecline!T102)),SourceInputsAttenuation!$E$20) -> 0.04997280325
A103: 100 | B103: =IF(C$1="Decline",(A103*QsrcLitres)/(SourceInputsAttenuation!$C$33),"") -> 0.002886403847 | C103: =IF(C$1="Decline",SourceInputsAttenuation!$E$14*EXP(-1*((SourceInputsAttenuation!$I$14)*SrcDecline!B103)),SourceInputsAttenuation!$E$14) -> 0.04998901138 | D103: 100 | E103: =IF(F$1="Decline",(D103*QsrcLitres)/SourceInputsAttenuation!$C$33,"") -> 0.002886403847 | F103: =IF(F$1="Decline",SourceInputsAttenuation!$E$15*EXP(-1*(SourceInputsAttenuation!$I$15*SrcDecline!E103)),SourceInputsAttenuation!$E$15) -> 0.0009995258763 | G103: 100 | H103: =IF(I$1="Decline",(G103*QsrcLitres)/SourceInputsAttenuation!$C$33,"") -> 0.002886403847 | I103: =IF(I$1="Decline",SourceInputsAttenuation!$E$16*EXP(-1*(SourceInputsAttenuation!$I$16*SrcDecline!E103)),SourceInputsAttenuation!$E$16) -> 0.8682621204 | J103: 100 | K103: =IF(L$1="Decline",(J103*QsrcLitres)/SourceInputsAttenuation!$C$33,"") -> 0.002886403847 | L103: =IF(L$1="Decline",SourceInputsAttenuation!$E$17*EXP(-1*(SourceInputsAttenuation!$I$17*SrcDecline!K103)),SourceInputsAttenuation!$E$17) -> 0.003996849381 | M103: 100 | N103: =IF(O$1="Decline",(M103*QsrcLitres)/SourceInputsAttenuation!$C$33,"") -> 0.002886403847 | O103: =IF(O$1="Decline",SourceInputsAttenuation!$E$18*EXP(-1*(SourceInputsAttenuation!$I$18*SrcDecline!N103)),SourceInputsAttenuation!$E$18) -> 0.3996566008 | P103: 100 | Q103: =IF(R$1="Decline",(P103*QsrcLitres)/SourceInputsAttenuation!$C$33,"") -> 0.002886403847 | R103: =IF(R$1="Decline",SourceInputsAttenuation!$E$19*EXP(-1*(SourceInputsAttenuation!$I$19*SrcDecline!Q103)),SourceInputsAttenuation!$E$19) -> 0.1998251556 | S103: 100 | T103: =IF(U$1="Decline",(S103*QsrcLitres)/SourceInputsAttenuation!$C$33,"") -> 0.002886403847 | U103: =IF(U$1="Decline",SourceInputsAttenuation!$E$20*EXP(-1*(SourceInputsAttenuation!$I$20*SrcDecline!T103)),SourceInputsAttenuation!$E$20) -> 0.04997252861
A104: 101 | B104: =IF(C$1="Decline",(A104*QsrcLitres)/(SourceInputsAttenuation!$C$33),"") -> 0.002915267886 | C104: =IF(C$1="Decline",SourceInputsAttenuation!$E$14*EXP(-1*((SourceInputsAttenuation!$I$14)*SrcDecline!B104)),SourceInputsAttenuation!$E$14) -> 0.0499889015 | D104: 101 | E104: =IF(F$1="Decline",(D104*QsrcLitres)/SourceInputsAttenuation!$C$33,"") -> 0.002915267886 | F104: =IF(F$1="Decline",SourceInputsAttenuation!$E$15*EXP(-1*(SourceInputsAttenuation!$I$15*SrcDecline!E104)),SourceInputsAttenuation!$E$15) -> 0.0009995211362 | G104: 101 | H104: =IF(I$1="Decline",(G104*QsrcLitres)/SourceInputsAttenuation!$C$33,"") -> 0.002915267886 | I104: =IF(I$1="Decline",SourceInputsAttenuation!$E$16*EXP(-1*(SourceInputsAttenuation!$I$16*SrcDecline!E104)),SourceInputsAttenuation!$E$16) -> 0.8682497505 | J104: 101 | K104: =IF(L$1="Decline",(J104*QsrcLitres)/SourceInputsAttenuation!$C$33,"") -> 0.002915267886 | L104: =IF(L$1="Decline",SourceInputsAttenuation!$E$17*EXP(-1*(SourceInputsAttenuation!$I$17*SrcDecline!K104)),SourceInputsAttenuation!$E$17) -> 0.003996817887 | M104: 101 | N104: =IF(O$1="Decline",(M104*QsrcLitres)/SourceInputsAttenuation!$C$33,"") -> 0.002915267886 | O104: =IF(O$1="Decline",SourceInputsAttenuation!$E$18*EXP(-1*(SourceInputsAttenuation!$I$18*SrcDecline!N104)),SourceInputsAttenuation!$E$18) -> 0.3996531682 | P104: 101 | Q104: =IF(R$1="Decline",(P104*QsrcLitres)/SourceInputsAttenuation!$C$33,"") -> 0.002915267886 | R104: =IF(R$1="Decline",SourceInputsAttenuation!$E$19*EXP(-1*(SourceInputsAttenuation!$I$19*SrcDecline!Q104)),SourceInputsAttenuation!$E$19) -> 0.199823408 | S104: 101 | T104: =IF(U$1="Decline",(S104*QsrcLitres)/SourceInputsAttenuation!$C$33,"") -> 0.002915267886 | U104: =IF(U$1="Decline",SourceInputsAttenuation!$E$20*EXP(-1*(SourceInputsAttenuation!$I$20*SrcDecline!T104)),SourceInputsAttenuation!$E$20) -> 0.04997225397
A105: 102 | B105: =IF(C$1="Decline",(A105*QsrcLitres)/(SourceInputsAttenuation!$C$33),"") -> 0.002944131924 | C105: =IF(C$1="Decline",SourceInputsAttenuation!$E$14*EXP(-1*((SourceInputsAttenuation!$I$14)*SrcDecline!B105)),SourceInputsAttenuation!$E$14) -> 0.04998879163 | D105: 102 | E105: =IF(F$1="Decline",(D105*QsrcLitres)/SourceInputsAttenuation!$C$33,"") -> 0.002944131924 | F105: =IF(F$1="Decline",SourceInputsAttenuation!$E$15*EXP(-1*(SourceInputsAttenuation!$I$15*SrcDecline!E105)),SourceInputsAttenuation!$E$15) -> 0.0009995163961 | G105: 102 | H105: =IF(I$1="Decline",(G105*QsrcLitres)/SourceInputsAttenuation!$C$33,"") -> 0.002944131924 | I105: =IF(I$1="Decline",SourceInputsAttenuation!$E$16*EXP(-1*(SourceInputsAttenuation!$I$16*SrcDecline!E105)),SourceInputsAttenuation!$E$16) -> 0.8682373808 | J105: 102 | K105: =IF(L$1="Decline",(J105*QsrcLitres)/SourceInputsAttenuation!$C$33,"") -> 0.002944131924 | L105: =IF(L$1="Decline",SourceInputsAttenuation!$E$17*EXP(-1*(SourceInputsAttenuation!$I$17*SrcDecline!K105)),SourceInputsAttenuation!$E$17) -> 0.003996786393 | M105: 102 | N105: =IF(O$1="Decline",(M105*QsrcLitres)/SourceInputsAttenuation!$C$33,"") -> 0.002944131924 | O105: =IF(O$1="Decline",SourceInputsAttenuation!$E$18*EXP(-1*(SourceInputsAttenuation!$I$18*SrcDecline!N105)),SourceInputsAttenuation!$E$18) -> 0.3996497358 | P105: 102 | Q105: =IF(R$1="Decline",(P105*QsrcLitres)/SourceInputsAttenuation!$C$33,"") -> 0.002944131924 | R105: =IF(R$1="Decline",SourceInputsAttenuation!$E$19*EXP(-1*(SourceInputsAttenuation!$I$19*SrcDecline!Q105)),SourceInputsAttenuation!$E$19) -> 0.1998216603 | S105: 102 | T105: =IF(U$1="Decline",(S105*QsrcLitres)/SourceInputsAttenuation!$C$33,"") -> 0.002944131924 | U105: =IF(U$1="Decline",SourceInputsAttenuation!$E$20*EXP(-1*(SourceInputsAttenuation!$I$20*SrcDecline!T105)),SourceInputsAttenuation!$E$20) -> 0.04997197933
A106: 103 | B106: =IF(C$1="Decline",(A106*QsrcLitres)/(SourceInputsAttenuation!$C$33),"") -> 0.002972995963 | C106: =IF(C$1="Decline",SourceInputsAttenuation!$E$14*EXP(-1*((SourceInputsAttenuation!$I$14)*SrcDecline!B106)),SourceInputsAttenuation!$E$14) -> 0.04998868175 | D106: 103 | E106: =IF(F$1="Decline",(D106*QsrcLitres)/SourceInputsAttenuation!$C$33,"") -> 0.002972995963 | F106: =IF(F$1="Decline",SourceInputsAttenuation!$E$15*EXP(-1*(SourceInputsAttenuation!$I$15*SrcDecline!E106)),SourceInputsAttenuation!$E$15) -> 0.000999511656 | G106: 103 | H106: =IF(I$1="Decline",(G106*QsrcLitres)/SourceInputsAttenuation!$C$33,"") -> 0.002972995963 | I106: =IF(I$1="Decline",SourceInputsAttenuation!$E$16*EXP(-1*(SourceInputsAttenuation!$I$16*SrcDecline!E106)),SourceInputsAttenuation!$E$16) -> 0.8682250113 | J106: 103 | K106: =IF(L$1="Decline",(J106*QsrcLitres)/SourceInputsAttenuation!$C$33,"") -> 0.002972995963 | L106: =IF(L$1="Decline",SourceInputsAttenuation!$E$17*EXP(-1*(SourceInputsAttenuation!$I$17*SrcDecline!K106)),SourceInputsAttenuation!$E$17) -> 0.0039967549 | M106: 103 | N106: =IF(O$1="Decline",(M106*QsrcLitres)/SourceInputsAttenuation!$C$33,"") -> 0.002972995963 | O106: =IF(O$1="Decline",SourceInputsAttenuation!$E$18*EXP(-1*(SourceInputsAttenuation!$I$18*SrcDecline!N106)),SourceInputsAttenuation!$E$18) -> 0.3996463033 | P106: 103 | Q106: =IF(R$1="Decline",(P106*QsrcLitres)/SourceInputsAttenuation!$C$33,"") -> 0.002972995963 | R106: =IF(R$1="Decline",SourceInputsAttenuation!$E$19*EXP(-1*(SourceInputsAttenuation!$I$19*SrcDecline!Q106)),SourceInputsAttenuation!$E$19) -> 0.1998199127 | S106: 103 | T106: =IF(U$1="Decline",(S106*QsrcLitres)/SourceInputsAttenuation!$C$33,"") -> 0.002972995963 | U106: =IF(U$1="Decline",SourceInputsAttenuation!$E$20*EXP(-1*(SourceInputsAttenuation!$I$20*SrcDecline!T106)),SourceInputsAttenuation!$E$20) -> 0.0499717047
A107: 104 | B107: =IF(C$1="Decline",(A107*QsrcLitres)/(SourceInputsAttenuation!$C$33),"") -> 0.003001860001 | C107: =IF(C$1="Decline",SourceInputsAttenuation!$E$14*EXP(-1*((SourceInputsAttenuation!$I$14)*SrcDecline!B107)),SourceInputsAttenuation!$E$14) -> 0.04998857188 | D107: 104 | E107: =IF(F$1="Decline",(D107*QsrcLitres)/SourceInputsAttenuation!$C$33,"") -> 0.003001860001 | F107: =IF(F$1="Decline",SourceInputsAttenuation!$E$15*EXP(-1*(SourceInputsAttenuation!$I$15*SrcDecline!E107)),SourceInputsAttenuation!$E$15) -> 0.000999506916 | G107: 104 | H107: =IF(I$1="Decline",(G107*QsrcLitres)/SourceInputsAttenuation!$C$33,"") -> 0.003001860001 | I107: =IF(I$1="Decline",SourceInputsAttenuation!$E$16*EXP(-1*(SourceInputsAttenuation!$I$16*SrcDecline!E107)),SourceInputsAttenuation!$E$16) -> 0.8682126419 | J107: 104 | K107: =IF(L$1="Decline",(J107*QsrcLitres)/SourceInputsAttenuation!$C$33,"") -> 0.003001860001 | L107: =IF(L$1="Decline",SourceInputsAttenuation!$E$17*EXP(-1*(SourceInputsAttenuation!$I$17*SrcDecline!K107)),SourceInputsAttenuation!$E$17) -> 0.003996723407 | M107: 104 | N107: =IF(O$1="Decline",(M107*QsrcLitres)/SourceInputsAttenuation!$C$33,"") -> 0.003001860001 | O107: =IF(O$1="Decline",SourceInputsAttenuation!$E$18*EXP(-1*(SourceInputsAttenuation!$I$18*SrcDecline!N107)),SourceInputsAttenuation!$E$18) -> 0.3996428709 | P107: 104 | Q107: =IF(R$1="Decline",(P107*QsrcLitres)/SourceInputsAttenuation!$C$33,"") -> 0.003001860001 | R107: =IF(R$1="Decline",SourceInputsAttenuation!$E$19*EXP(-1*(SourceInputsAttenuation!$I$19*SrcDecline!Q107)),SourceInputsAttenuation!$E$19) -> 0.199818165 | S107: 104 | T107: =IF(U$1="Decline",(S107*QsrcLitres)/SourceInputsAttenuation!$C$33,"") -> 0.003001860001 | U107: =IF(U$1="Decline",SourceInputsAttenuation!$E$20*EXP(-1*(SourceInputsAttenuation!$I$20*SrcDecline!T107)),SourceInputsAttenuation!$E$20) -> 0.04997143007
A108: 105 | B108: =IF(C$1="Decline",(A108*QsrcLitres)/(SourceInputsAttenuation!$C$33),"") -> 0.00303072404 | C108: =IF(C$1="Decline",SourceInputsAttenuation!$E$14*EXP(-1*((SourceInputsAttenuation!$I$14)*SrcDecline!B108)),SourceInputsAttenuation!$E$14) -> 0.04998846201 | D108: 105 | E108: =IF(F$1="Decline",(D108*QsrcLitres)/SourceInputsAttenuation!$C$33,"") -> 0.00303072404 | F108: =IF(F$1="Decline",SourceInputsAttenuation!$E$15*EXP(-1*(SourceInputsAttenuation!$I$15*SrcDecline!E108)),SourceInputsAttenuation!$E$15) -> 0.000999502176 | G108: 105 | H108: =IF(I$1="Decline",(G108*QsrcLitres)/SourceInputsAttenuation!$C$33,"") -> 0.00303072404 | I108: =IF(I$1="Decline",SourceInputsAttenuation!$E$16*EXP(-1*(SourceInputsAttenuation!$I$16*SrcDecline!E108)),SourceInputsAttenuation!$E$16) -> 0.8682002727 | J108: 105 | K108: =IF(L$1="Decline",(J108*QsrcLitres)/SourceInputsAttenuation!$C$33,"") -> 0.00303072404 | L108: =IF(L$1="Decline",SourceInputsAttenuation!$E$17*EXP(-1*(SourceInputsAttenuation!$I$17*SrcDecline!K108)),SourceInputsAttenuation!$E$17) -> 0.003996691915 | M108: 105 | N108: =IF(O$1="Decline",(M108*QsrcLitres)/SourceInputsAttenuation!$C$33,"") -> 0.00303072404 | O108: =IF(O$1="Decline",SourceInputsAttenuation!$E$18*EXP(-1*(SourceInputsAttenuation!$I$18*SrcDecline!N108)),SourceInputsAttenuation!$E$18) -> 0.3996394385 | P108: 105 | Q108: =IF(R$1="Decline",(P108*QsrcLitres)/SourceInputsAttenuation!$C$33,"") -> 0.00303072404 | R108: =IF(R$1="Decline",SourceInputsAttenuation!$E$19*EXP(-1*(SourceInputsAttenuation!$I$19*SrcDecline!Q108)),SourceInputsAttenuation!$E$19) -> 0.1998164174 | S108: 105 | T108: =IF(U$1="Decline",(S108*QsrcLitres)/SourceInputsAttenuation!$C$33,"") -> 0.00303072404 | U108: =IF(U$1="Decline",SourceInputsAttenuation!$E$20*EXP(-1*(SourceInputsAttenuation!$I$20*SrcDecline!T108)),SourceInputsAttenuation!$E$20) -> 0.04997115543
A109: 106 | B109: =IF(C$1="Decline",(A109*QsrcLitres)/(SourceInputsAttenuation!$C$33),"") -> 0.003059588078 | C109: =IF(C$1="Decline",SourceInputsAttenuation!$E$14*EXP(-1*((SourceInputsAttenuation!$I$14)*SrcDecline!B109)),SourceInputsAttenuation!$E$14) -> 0.04998835214 | D109: 106 | E109: =IF(F$1="Decline",(D109*QsrcLitres)/SourceInputsAttenuation!$C$33,"") -> 0.003059588078 | F109: =IF(F$1="Decline",SourceInputsAttenuation!$E$15*EXP(-1*(SourceInputsAttenuation!$I$15*SrcDecline!E109)),SourceInputsAttenuation!$E$15) -> 0.000999497436 | G109: 106 | H109: =IF(I$1="Decline",(G109*QsrcLitres)/SourceInputsAttenuation!$C$33,"") -> 0.003059588078 | I109: =IF(I$1="Decline",SourceInputsAttenuation!$E$16*EXP(-1*(SourceInputsAttenuation!$I$16*SrcDecline!E109)),SourceInputsAttenuation!$E$16) -> 0.8681879037 | J109: 106 | K109: =IF(L$1="Decline",(J109*QsrcLitres)/SourceInputsAttenuation!$C$33,"") -> 0.003059588078 | L109: =IF(L$1="Decline",SourceInputsAttenuation!$E$17*EXP(-1*(SourceInputsAttenuation!$I$17*SrcDecline!K109)),SourceInputsAttenuation!$E$17) -> 0.003996660422 | M109: 106 | N109: =IF(O$1="Decline",(M109*QsrcLitres)/SourceInputsAttenuation!$C$33,"") -> 0.003059588078 | O109: =IF(O$1="Decline",SourceInputsAttenuation!$E$18*EXP(-1*(SourceInputsAttenuation!$I$18*SrcDecline!N109)),SourceInputsAttenuation!$E$18) -> 0.3996360062 | P109: 106 | Q109: =IF(R$1="Decline",(P109*QsrcLitres)/SourceInputsAttenuation!$C$33,"") -> 0.003059588078 | R109: =IF(R$1="Decline",SourceInputsAttenuation!$E$19*EXP(-1*(SourceInputsAttenuation!$I$19*SrcDecline!Q109)),SourceInputsAttenuation!$E$19) -> 0.1998146698 | S109: 106 | T109: =IF(U$1="Decline",(S109*QsrcLitres)/SourceInputsAttenuation!$C$33,"") -> 0.003059588078 | U109: =IF(U$1="Decline",SourceInputsAttenuation!$E$20*EXP(-1*(SourceInputsAttenuation!$I$20*SrcDecline!T109)),SourceInputsAttenuation!$E$20) -> 0.0499708808
A110: 107 | B110: =IF(C$1="Decline",(A110*QsrcLitres)/(SourceInputsAttenuation!$C$33),"") -> 0.003088452117 | C110: =IF(C$1="Decline",SourceInputsAttenuation!$E$14*EXP(-1*((SourceInputsAttenuation!$I$14)*SrcDecline!B110)),SourceInputsAttenuation!$E$14) -> 0.04998824226 | D110: 107 | E110: =IF(F$1="Decline",(D110*QsrcLitres)/SourceInputsAttenuation!$C$33,"") -> 0.003088452117 | F110: =IF(F$1="Decline",SourceInputsAttenuation!$E$15*EXP(-1*(SourceInputsAttenuation!$I$15*SrcDecline!E110)),SourceInputsAttenuation!$E$15) -> 0.000999492696 | G110: 107 | H110: =IF(I$1="Decline",(G110*QsrcLitres)/SourceInputsAttenuation!$C$33,"") -> 0.003088452117 | I110: =IF(I$1="Decline",SourceInputsAttenuation!$E$16*EXP(-1*(SourceInputsAttenuation!$I$16*SrcDecline!E110)),SourceInputsAttenuation!$E$16) -> 0.8681755349 | J110: 107 | K110: =IF(L$1="Decline",(J110*QsrcLitres)/SourceInputsAttenuation!$C$33,"") -> 0.003088452117 | L110: =IF(L$1="Decline",SourceInputsAttenuation!$E$17*EXP(-1*(SourceInputsAttenuation!$I$17*SrcDecline!K110)),SourceInputsAttenuation!$E$17) -> 0.00399662893 | M110: 107 | N110: =IF(O$1="Decline",(M110*QsrcLitres)/SourceInputsAttenuation!$C$33,"") -> 0.003088452117 | O110: =IF(O$1="Decline",SourceInputsAttenuation!$E$18*EXP(-1*(SourceInputsAttenuation!$I$18*SrcDecline!N110)),SourceInputsAttenuation!$E$18) -> 0.3996325738 | P110: 107 | Q110: =IF(R$1="Decline",(P110*QsrcLitres)/SourceInputsAttenuation!$C$33,"") -> 0.003088452117 | R110: =IF(R$1="Decline",SourceInputsAttenuation!$E$19*EXP(-1*(SourceInputsAttenuation!$I$19*SrcDecline!Q110)),SourceInputsAttenuation!$E$19) -> 0.1998129222 | S110: 107 | T110: =IF(U$1="Decline",(S110*QsrcLitres)/SourceInputsAttenuation!$C$33,"") -> 0.003088452117 | U110: =IF(U$1="Decline",SourceInputsAttenuation!$E$20*EXP(-1*(SourceInputsAttenuation!$I$20*SrcDecline!T110)),SourceInputsAttenuation!$E$20) -> 0.04997060617
A111: 108 | B111: =IF(C$1="Decline",(A111*QsrcLitres)/(SourceInputsAttenuation!$C$33),"") -> 0.003117316155 | C111: =IF(C$1="Decline",SourceInputsAttenuation!$E$14*EXP(-1*((SourceInputsAttenuation!$I$14)*SrcDecline!B111)),SourceInputsAttenuation!$E$14) -> 0.04998813239 | D111: 108 | E111: =IF(F$1="Decline",(D111*QsrcLitres)/SourceInputsAttenuation!$C$33,"") -> 0.003117316155 | F111: =IF(F$1="Decline",SourceInputsAttenuation!$E$15*EXP(-1*(SourceInputsAttenuation!$I$15*SrcDecline!E111)),SourceInputsAttenuation!$E$15) -> 0.0009994879561 | G111: 108 | H111: =IF(I$1="Decline",(G111*QsrcLitres)/SourceInputsAttenuation!$C$33,"") -> 0.003117316155 | I111: =IF(I$1="Decline",SourceInputsAttenuation!$E$16*EXP(-1*(SourceInputsAttenuation!$I$16*SrcDecline!E111)),SourceInputsAttenuation!$E$16) -> 0.8681631662 | J111: 108 | K111: =IF(L$1="Decline",(J111*QsrcLitres)/SourceInputsAttenuation!$C$33,"") -> 0.003117316155 | L111: =IF(L$1="Decline",SourceInputsAttenuation!$E$17*EXP(-1*(SourceInputsAttenuation!$I$17*SrcDecline!K111)),SourceInputsAttenuation!$E$17) -> 0.003996597438 | M111: 108 | N111: =IF(O$1="Decline",(M111*QsrcLitres)/SourceInputsAttenuation!$C$33,"") -> 0.003117316155 | O111: =IF(O$1="Decline",SourceInputsAttenuation!$E$18*EXP(-1*(SourceInputsAttenuation!$I$18*SrcDecline!N111)),SourceInputsAttenuation!$E$18) -> 0.3996291415 | P111: 108 | Q111: =IF(R$1="Decline",(P111*QsrcLitres)/SourceInputsAttenuation!$C$33,"") -> 0.003117316155 | R111: =IF(R$1="Decline",SourceInputsAttenuation!$E$19*EXP(-1*(SourceInputsAttenuation!$I$19*SrcDecline!Q111)),SourceInputsAttenuation!$E$19) -> 0.1998111747 | S111: 108 | T111: =IF(U$1="Decline",(S111*QsrcLitres)/SourceInputsAttenuation!$C$33,"") -> 0.003117316155 | U111: =IF(U$1="Decline",SourceInputsAttenuation!$E$20*EXP(-1*(SourceInputsAttenuation!$I$20*SrcDecline!T111)),SourceInputsAttenuation!$E$20) -> 0.04997033155
A112: 109 | B112: =IF(C$1="Decline",(A112*QsrcLitres)/(SourceInputsAttenuation!$C$33),"") -> 0.003146180193 | C112: =IF(C$1="Decline",SourceInputsAttenuation!$E$14*EXP(-1*((SourceInputsAttenuation!$I$14)*SrcDecline!B112)),SourceInputsAttenuation!$E$14) -> 0.04998802252 | D112: 109 | E112: =IF(F$1="Decline",(D112*QsrcLitres)/SourceInputsAttenuation!$C$33,"") -> 0.003146180193 | F112: =IF(F$1="Decline",SourceInputsAttenuation!$E$15*EXP(-1*(SourceInputsAttenuation!$I$15*SrcDecline!E112)),SourceInputsAttenuation!$E$15) -> 0.0009994832162 | G112: 109 | H112: =IF(I$1="Decline",(G112*QsrcLitres)/SourceInputsAttenuation!$C$33,"") -> 0.003146180193 | I112: =IF(I$1="Decline",SourceInputsAttenuation!$E$16*EXP(-1*(SourceInputsAttenuation!$I$16*SrcDecline!E112)),SourceInputsAttenuation!$E$16) -> 0.8681507977 | J112: 109 | K112: =IF(L$1="Decline",(J112*QsrcLitres)/SourceInputsAttenuation!$C$33,"") -> 0.003146180193 | L112: =IF(L$1="Decline",SourceInputsAttenuation!$E$17*EXP(-1*(SourceInputsAttenuation!$I$17*SrcDecline!K112)),SourceInputsAttenuation!$E$17) -> 0.003996565947 | M112: 109 | N112: =IF(O$1="Decline",(M112*QsrcLitres)/SourceInputsAttenuation!$C$33,"") -> 0.003146180193 | O112: =IF(O$1="Decline",SourceInputsAttenuation!$E$18*EXP(-1*(SourceInputsAttenuation!$I$18*SrcDecline!N112)),SourceInputsAttenuation!$E$18) -> 0.3996257093 | P112: 109 | Q112: =IF(R$1="Decline",(P112*QsrcLitres)/SourceInputsAttenuation!$C$33,"") -> 0.003146180193 | R112: =IF(R$1="Decline",SourceInputsAttenuation!$E$19*EXP(-1*(SourceInputsAttenuation!$I$19*SrcDecline!Q112)),SourceInputsAttenuation!$E$19) -> 0.1998094271 | S112: 109 | T112: =IF(U$1="Decline",(S112*QsrcLitres)/SourceInputsAttenuation!$C$33,"") -> 0.003146180193 | U112: =IF(U$1="Decline",SourceInputsAttenuation!$E$20*EXP(-1*(SourceInputsAttenuation!$I$20*SrcDecline!T112)),SourceInputsAttenuation!$E$20) -> 0.04997005692
A113: 110 | B113: =IF(C$1="Decline",(A113*QsrcLitres)/(SourceInputsAttenuation!$C$33),"") -> 0.003175044232 | C113: =IF(C$1="Decline",SourceInputsAttenuation!$E$14*EXP(-1*((SourceInputsAttenuation!$I$14)*SrcDecline!B113)),SourceInputsAttenuation!$E$14) -> 0.04998791265 | D113: 110 | E113: =IF(F$1="Decline",(D113*QsrcLitres)/SourceInputsAttenuation!$C$33,"") -> 0.003175044232 | F113: =IF(F$1="Decline",SourceInputsAttenuation!$E$15*EXP(-1*(SourceInputsAttenuation!$I$15*SrcDecline!E113)),SourceInputsAttenuation!$E$15) -> 0.0009994784763 | G113: 110 | H113: =IF(I$1="Decline",(G113*QsrcLitres)/SourceInputsAttenuation!$C$33,"") -> 0.003175044232 | I113: =IF(I$1="Decline",SourceInputsAttenuation!$E$16*EXP(-1*(SourceInputsAttenuation!$I$16*SrcDecline!E113)),SourceInputsAttenuation!$E$16) -> 0.8681384294 | J113: 110 | K113: =IF(L$1="Decline",(J113*QsrcLitres)/SourceInputsAttenuation!$C$33,"") -> 0.003175044232 | L113: =IF(L$1="Decline",SourceInputsAttenuation!$E$17*EXP(-1*(SourceInputsAttenuation!$I$17*SrcDecline!K113)),SourceInputsAttenuation!$E$17) -> 0.003996534455 | M113: 110 | N113: =IF(O$1="Decline",(M113*QsrcLitres)/SourceInputsAttenuation!$C$33,"") -> 0.003175044232 | O113: =IF(O$1="Decline",SourceInputsAttenuation!$E$18*EXP(-1*(SourceInputsAttenuation!$I$18*SrcDecline!N113)),SourceInputsAttenuation!$E$18) -> 0.399622277 | P113: 110 | Q113: =IF(R$1="Decline",(P113*QsrcLitres)/SourceInputsAttenuation!$C$33,"") -> 0.003175044232 | R113: =IF(R$1="Decline",SourceInputsAttenuation!$E$19*EXP(-1*(SourceInputsAttenuation!$I$19*SrcDecline!Q113)),SourceInputsAttenuation!$E$19) -> 0.1998076796 | S113: 110 | T113: =IF(U$1="Decline",(S113*QsrcLitres)/SourceInputsAttenuation!$C$33,"") -> 0.003175044232 | U113: =IF(U$1="Decline",SourceInputsAttenuation!$E$20*EXP(-1*(SourceInputsAttenuation!$I$20*SrcDecline!T113)),SourceInputsAttenuation!$E$20) -> 0.0499697823
A114: 111 | B114: =IF(C$1="Decline",(A114*QsrcLitres)/(SourceInputsAttenuation!$C$33),"") -> 0.00320390827 | C114: =IF(C$1="Decline",SourceInputsAttenuation!$E$14*EXP(-1*((SourceInputsAttenuation!$I$14)*SrcDecline!B114)),SourceInputsAttenuation!$E$14) -> 0.04998780277 | D114: 111 | E114: =IF(F$1="Decline",(D114*QsrcLitres)/SourceInputsAttenuation!$C$33,"") -> 0.00320390827 | F114: =IF(F$1="Decline",SourceInputsAttenuation!$E$15*EXP(-1*(SourceInputsAttenuation!$I$15*SrcDecline!E114)),SourceInputsAttenuation!$E$15) -> 0.0009994737364 | G114: 111 | H114: =IF(I$1="Decline",(G114*QsrcLitres)/SourceInputsAttenuation!$C$33,"") -> 0.00320390827 | I114: =IF(I$1="Decline",SourceInputsAttenuation!$E$16*EXP(-1*(SourceInputsAttenuation!$I$16*SrcDecline!E114)),SourceInputsAttenuation!$E$16) -> 0.8681260613 | J114: 111 | K114: =IF(L$1="Decline",(J114*QsrcLitres)/SourceInputsAttenuation!$C$33,"") -> 0.00320390827 | L114: =IF(L$1="Decline",SourceInputsAttenuation!$E$17*EXP(-1*(SourceInputsAttenuation!$I$17*SrcDecline!K114)),SourceInputsAttenuation!$E$17) -> 0.003996502964 | M114: 111 | N114: =IF(O$1="Decline",(M114*QsrcLitres)/SourceInputsAttenuation!$C$33,"") -> 0.00320390827 | O114: =IF(O$1="Decline",SourceInputsAttenuation!$E$18*EXP(-1*(SourceInputsAttenuation!$I$18*SrcDecline!N114)),SourceInputsAttenuation!$E$18) -> 0.3996188448 | P114: 111 | Q114: =IF(R$1="Decline",(P114*QsrcLitres)/SourceInputsAttenuation!$C$33,"") -> 0.00320390827 | R114: =IF(R$1="Decline",SourceInputsAttenuation!$E$19*EXP(-1*(SourceInputsAttenuation!$I$19*SrcDecline!Q114)),SourceInputsAttenuation!$E$19) -> 0.1998059321 | S114: 111 | T114: =IF(U$1="Decline",(S114*QsrcLitres)/SourceInputsAttenuation!$C$33,"") -> 0.00320390827 | U114: =IF(U$1="Decline",SourceInputsAttenuation!$E$20*EXP(-1*(SourceInputsAttenuation!$I$20*SrcDecline!T114)),SourceInputsAttenuation!$E$20) -> 0.04996950768
A115: 112 | B115: =IF(C$1="Decline",(A115*QsrcLitres)/(SourceInputsAttenuation!$C$33),"") -> 0.003232772309 | C115: =IF(C$1="Decline",SourceInputsAttenuation!$E$14*EXP(-1*((SourceInputsAttenuation!$I$14)*SrcDecline!B115)),SourceInputsAttenuation!$E$14) -> 0.0499876929 | D115: 112 | E115: =IF(F$1="Decline",(D115*QsrcLitres)/SourceInputsAttenuation!$C$33,"") -> 0.003232772309 | F115: =IF(F$1="Decline",SourceInputsAttenuation!$E$15*EXP(-1*(SourceInputsAttenuation!$I$15*SrcDecline!E115)),SourceInputsAttenuation!$E$15) -> 0.0009994689965 | G115: 112 | H115: =IF(I$1="Decline",(G115*QsrcLitres)/SourceInputsAttenuation!$C$33,"") -> 0.003232772309 | I115: =IF(I$1="Decline",SourceInputsAttenuation!$E$16*EXP(-1*(SourceInputsAttenuation!$I$16*SrcDecline!E115)),SourceInputsAttenuation!$E$16) -> 0.8681136934 | J115: 112 | K115: =IF(L$1="Decline",(J115*QsrcLitres)/SourceInputsAttenuation!$C$33,"") -> 0.003232772309 | L115: =IF(L$1="Decline",SourceInputsAttenuation!$E$17*EXP(-1*(SourceInputsAttenuation!$I$17*SrcDecline!K115)),SourceInputsAttenuation!$E$17) -> 0.003996471473 | M115: 112 | N115: =IF(O$1="Decline",(M115*QsrcLitres)/SourceInputsAttenuation!$C$33,"") -> 0.003232772309 | O115: =IF(O$1="Decline",SourceInputsAttenuation!$E$18*EXP(-1*(SourceInputsAttenuation!$I$18*SrcDecline!N115)),SourceInputsAttenuation!$E$18) -> 0.3996154127 | P115: 112 | Q115: =IF(R$1="Decline",(P115*QsrcLitres)/SourceInputsAttenuation!$C$33,"") -> 0.003232772309 | R115: =IF(R$1="Decline",SourceInputsAttenuation!$E$19*EXP(-1*(SourceInputsAttenuation!$I$19*SrcDecline!Q115)),SourceInputsAttenuation!$E$19) -> 0.1998041846 | S115: 112 | T115: =IF(U$1="Decline",(S115*QsrcLitres)/SourceInputsAttenuation!$C$33,"") -> 0.003232772309 | U115: =IF(U$1="Decline",SourceInputsAttenuation!$E$20*EXP(-1*(SourceInputsAttenuation!$I$20*SrcDecline!T115)),SourceInputsAttenuation!$E$20) -> 0.04996923305
A116: 113 | B116: =IF(C$1="Decline",(A116*QsrcLitres)/(SourceInputsAttenuation!$C$33),"") -> 0.003261636347 | C116: =IF(C$1="Decline",SourceInputsAttenuation!$E$14*EXP(-1*((SourceInputsAttenuation!$I$14)*SrcDecline!B116)),SourceInputsAttenuation!$E$14) -> 0.04998758303 | D116: 113 | E116: =IF(F$1="Decline",(D116*QsrcLitres)/SourceInputsAttenuation!$C$33,"") -> 0.003261636347 | F116: =IF(F$1="Decline",SourceInputsAttenuation!$E$15*EXP(-1*(SourceInputsAttenuation!$I$15*SrcDecline!E116)),SourceInputsAttenuation!$E$15) -> 0.0009994642567 | G116: 113 | H116: =IF(I$1="Decline",(G116*QsrcLitres)/SourceInputsAttenuation!$C$33,"") -> 0.003261636347 | I116: =IF(I$1="Decline",SourceInputsAttenuation!$E$16*EXP(-1*(SourceInputsAttenuation!$I$16*SrcDecline!E116)),SourceInputsAttenuation!$E$16) -> 0.8681013256 | J116: 113 | K116: =IF(L$1="Decline",(J116*QsrcLitres)/SourceInputsAttenuation!$C$33,"") -> 0.003261636347 | L116: =IF(L$1="Decline",SourceInputsAttenuation!$E$17*EXP(-1*(SourceInputsAttenuation!$I$17*SrcDecline!K116)),SourceInputsAttenuation!$E$17) -> 0.003996439982 | M116: 113 | N116: =IF(O$1="Decline",(M116*QsrcLitres)/SourceInputsAttenuation!$C$33,"") -> 0.003261636347 | O116: =IF(O$1="Decline",SourceInputsAttenuation!$E$18*EXP(-1*(SourceInputsAttenuation!$I$18*SrcDecline!N116)),SourceInputsAttenuation!$E$18) -> 0.3996119805 | P116: 113 | Q116: =IF(R$1="Decline",(P116*QsrcLitres)/SourceInputsAttenuation!$C$33,"") -> 0.003261636347 | R116: =IF(R$1="Decline",SourceInputsAttenuation!$E$19*EXP(-1*(SourceInputsAttenuation!$I$19*SrcDecline!Q116)),SourceInputsAttenuation!$E$19) -> 0.1998024371 | S116: 113 | T116: =IF(U$1="Decline",(S116*QsrcLitres)/SourceInputsAttenuation!$C$33,"") -> 0.003261636347 | U116: =IF(U$1="Decline",SourceInputsAttenuation!$E$20*EXP(-1*(SourceInputsAttenuation!$I$20*SrcDecline!T116)),SourceInputsAttenuation!$E$20) -> 0.04996895843
A117: 114 | B117: =IF(C$1="Decline",(A117*QsrcLitres)/(SourceInputsAttenuation!$C$33),"") -> 0.003290500386 | C117: =IF(C$1="Decline",SourceInputsAttenuation!$E$14*EXP(-1*((SourceInputsAttenuation!$I$14)*SrcDecline!B117)),SourceInputsAttenuation!$E$14) -> 0.04998747316 | D117: 114 | E117: =IF(F$1="Decline",(D117*QsrcLitres)/SourceInputsAttenuation!$C$33,"") -> 0.003290500386 | F117: =IF(F$1="Decline",SourceInputsAttenuation!$E$15*EXP(-1*(SourceInputsAttenuation!$I$15*SrcDecline!E117)),SourceInputsAttenuation!$E$15) -> 0.0009994595169 | G117: 114 | H117: =IF(I$1="Decline",(G117*QsrcLitres)/SourceInputsAttenuation!$C$33,"") -> 0.003290500386 | I117: =IF(I$1="Decline",SourceInputsAttenuation!$E$16*EXP(-1*(SourceInputsAttenuation!$I$16*SrcDecline!E117)),SourceInputsAttenuation!$E$16) -> 0.868088958 | J117: 114 | K117: =IF(L$1="Decline",(J117*QsrcLitres)/SourceInputsAttenuation!$C$33,"") -> 0.003290500386 | L117: =IF(L$1="Decline",SourceInputsAttenuation!$E$17*EXP(-1*(SourceInputsAttenuation!$I$17*SrcDecline!K117)),SourceInputsAttenuation!$E$17) -> 0.003996408492 | M117: 114 | N117: =IF(O$1="Decline",(M117*QsrcLitres)/SourceInputsAttenuation!$C$33,"") -> 0.003290500386 | O117: =IF(O$1="Decline",SourceInputsAttenuation!$E$18*EXP(-1*(SourceInputsAttenuation!$I$18*SrcDecline!N117)),SourceInputsAttenuation!$E$18) -> 0.3996085484 | P117: 114 | Q117: =IF(R$1="Decline",(P117*QsrcLitres)/SourceInputsAttenuation!$C$33,"") -> 0.003290500386 | R117: =IF(R$1="Decline",SourceInputsAttenuation!$E$19*EXP(-1*(SourceInputsAttenuation!$I$19*SrcDecline!Q117)),SourceInputsAttenuation!$E$19) -> 0.1998006896 | S117: 114 | T117: =IF(U$1="Decline",(S117*QsrcLitres)/SourceInputsAttenuation!$C$33,"") -> 0.003290500386 | U117: =IF(U$1="Decline",SourceInputsAttenuation!$E$20*EXP(-1*(SourceInputsAttenuation!$I$20*SrcDecline!T117)),SourceInputsAttenuation!$E$20) -> 0.04996868382
A118: 115 | B118: =IF(C$1="Decline",(A118*QsrcLitres)/(SourceInputsAttenuation!$C$33),"") -> 0.003319364424 | C118: =IF(C$1="Decline",SourceInputsAttenuation!$E$14*EXP(-1*((SourceInputsAttenuation!$I$14)*SrcDecline!B118)),SourceInputsAttenuation!$E$14) -> 0.04998736329 | D118: 115 | E118: =IF(F$1="Decline",(D118*QsrcLitres)/SourceInputsAttenuation!$C$33,"") -> 0.003319364424 | F118: =IF(F$1="Decline",SourceInputsAttenuation!$E$15*EXP(-1*(SourceInputsAttenuation!$I$15*SrcDecline!E118)),SourceInputsAttenuation!$E$15) -> 0.0009994547771 | G118: 115 | H118: =IF(I$1="Decline",(G118*QsrcLitres)/SourceInputsAttenuation!$C$33,"") -> 0.003319364424 | I118: =IF(I$1="Decline",SourceInputsAttenuation!$E$16*EXP(-1*(SourceInputsAttenuation!$I$16*SrcDecline!E118)),SourceInputsAttenuation!$E$16) -> 0.8680765906 | J118: 115 | K118: =IF(L$1="Decline",(J118*QsrcLitres)/SourceInputsAttenuation!$C$33,"") -> 0.003319364424 | L118: =IF(L$1="Decline",SourceInputsAttenuation!$E$17*EXP(-1*(SourceInputsAttenuation!$I$17*SrcDecline!K118)),SourceInputsAttenuation!$E$17) -> 0.003996377002 | M118: 115 | N118: =IF(O$1="Decline",(M118*QsrcLitres)/SourceInputsAttenuation!$C$33,"") -> 0.003319364424 | O118: =IF(O$1="Decline",SourceInputsAttenuation!$E$18*EXP(-1*(SourceInputsAttenuation!$I$18*SrcDecline!N118)),SourceInputsAttenuation!$E$18) -> 0.3996051163 | P118: 115 | Q118: =IF(R$1="Decline",(P118*QsrcLitres)/SourceInputsAttenuation!$C$33,"") -> 0.003319364424 | R118: =IF(R$1="Decline",SourceInputsAttenuation!$E$19*EXP(-1*(SourceInputsAttenuation!$I$19*SrcDecline!Q118)),SourceInputsAttenuation!$E$19) -> 0.1997989422 | S118: 115 | T118: =IF(U$1="Decline",(S118*QsrcLitres)/SourceInputsAttenuation!$C$33,"") -> 0.003319364424 | U118: =IF(U$1="Decline",SourceInputsAttenuation!$E$20*EXP(-1*(SourceInputsAttenuation!$I$20*SrcDecline!T118)),SourceInputsAttenuation!$E$20) -> 0.0499684092
A119: 116 | B119: =IF(C$1="Decline",(A119*QsrcLitres)/(SourceInputsAttenuation!$C$33),"") -> 0.003348228463 | C119: =IF(C$1="Decline",SourceInputsAttenuation!$E$14*EXP(-1*((SourceInputsAttenuation!$I$14)*SrcDecline!B119)),SourceInputsAttenuation!$E$14) -> 0.04998725342 | D119: 116 | E119: =IF(F$1="Decline",(D119*QsrcLitres)/SourceInputsAttenuation!$C$33,"") -> 0.003348228463 | F119: =IF(F$1="Decline",SourceInputsAttenuation!$E$15*EXP(-1*(SourceInputsAttenuation!$I$15*SrcDecline!E119)),SourceInputsAttenuation!$E$15) -> 0.0009994500373 | G119: 116 | H119: =IF(I$1="Decline",(G119*QsrcLitres)/SourceInputsAttenuation!$C$33,"") -> 0.003348228463 | I119: =IF(I$1="Decline",SourceInputsAttenuation!$E$16*EXP(-1*(SourceInputsAttenuation!$I$16*SrcDecline!E119)),SourceInputsAttenuation!$E$16) -> 0.8680642233 | J119: 116 | K119: =IF(L$1="Decline",(J119*QsrcLitres)/SourceInputsAttenuation!$C$33,"") -> 0.003348228463 | L119: =IF(L$1="Decline",SourceInputsAttenuation!$E$17*EXP(-1*(SourceInputsAttenuation!$I$17*SrcDecline!K119)),SourceInputsAttenuation!$E$17) -> 0.003996345512 | M119: 116 | N119: =IF(O$1="Decline",(M119*QsrcLitres)/SourceInputsAttenuation!$C$33,"") -> 0.003348228463 | O119: =IF(O$1="Decline",SourceInputsAttenuation!$E$18*EXP(-1*(SourceInputsAttenuation!$I$18*SrcDecline!N119)),SourceInputsAttenuation!$E$18) -> 0.3996016842 | P119: 116 | Q119: =IF(R$1="Decline",(P119*QsrcLitres)/SourceInputsAttenuation!$C$33,"") -> 0.003348228463 | R119: =IF(R$1="Decline",SourceInputsAttenuation!$E$19*EXP(-1*(SourceInputsAttenuation!$I$19*SrcDecline!Q119)),SourceInputsAttenuation!$E$19) -> 0.1997971947 | S119: 116 | T119: =IF(U$1="Decline",(S119*QsrcLitres)/SourceInputsAttenuation!$C$33,"") -> 0.003348228463 | U119: =IF(U$1="Decline",SourceInputsAttenuation!$E$20*EXP(-1*(SourceInputsAttenuation!$I$20*SrcDecline!T119)),SourceInputsAttenuation!$E$20) -> 0.04996813458
A120: 117 | B120: =IF(C$1="Decline",(A120*QsrcLitres)/(SourceInputsAttenuation!$C$33),"") -> 0.003377092501 | C120: =IF(C$1="Decline",SourceInputsAttenuation!$E$14*EXP(-1*((SourceInputsAttenuation!$I$14)*SrcDecline!B120)),SourceInputsAttenuation!$E$14) -> 0.04998714355 | D120: 117 | E120: =IF(F$1="Decline",(D120*QsrcLitres)/SourceInputsAttenuation!$C$33,"") -> 0.003377092501 | F120: =IF(F$1="Decline",SourceInputsAttenuation!$E$15*EXP(-1*(SourceInputsAttenuation!$I$15*SrcDecline!E120)),SourceInputsAttenuation!$E$15) -> 0.0009994452976 | G120: 117 | H120: =IF(I$1="Decline",(G120*QsrcLitres)/SourceInputsAttenuation!$C$33,"") -> 0.003377092501 | I120: =IF(I$1="Decline",SourceInputsAttenuation!$E$16*EXP(-1*(SourceInputsAttenuation!$I$16*SrcDecline!E120)),SourceInputsAttenuation!$E$16) -> 0.8680518562 | J120: 117 | K120: =IF(L$1="Decline",(J120*QsrcLitres)/SourceInputsAttenuation!$C$33,"") -> 0.003377092501 | L120: =IF(L$1="Decline",SourceInputsAttenuation!$E$17*EXP(-1*(SourceInputsAttenuation!$I$17*SrcDecline!K120)),SourceInputsAttenuation!$E$17) -> 0.003996314022 | M120: 117 | N120: =IF(O$1="Decline",(M120*QsrcLitres)/SourceInputsAttenuation!$C$33,"") -> 0.003377092501 | O120: =IF(O$1="Decline",SourceInputsAttenuation!$E$18*EXP(-1*(SourceInputsAttenuation!$I$18*SrcDecline!N120)),SourceInputsAttenuation!$E$18) -> 0.3995982522 | P120: 117 | Q120: =IF(R$1="Decline",(P120*QsrcLitres)/SourceInputsAttenuation!$C$33,"") -> 0.003377092501 | R120: =IF(R$1="Decline",SourceInputsAttenuation!$E$19*EXP(-1*(SourceInputsAttenuation!$I$19*SrcDecline!Q120)),SourceInputsAttenuation!$E$19) -> 0.1997954473 | S120: 117 | T120: =IF(U$1="Decline",(S120*QsrcLitres)/SourceInputsAttenuation!$C$33,"") -> 0.003377092501 | U120: =IF(U$1="Decline",SourceInputsAttenuation!$E$20*EXP(-1*(SourceInputsAttenuation!$I$20*SrcDecline!T120)),SourceInputsAttenuation!$E$20) -> 0.04996785997
A121: 118 | B121: =IF(C$1="Decline",(A121*QsrcLitres)/(SourceInputsAttenuation!$C$33),"") -> 0.00340595654 | C121: =IF(C$1="Decline",SourceInputsAttenuation!$E$14*EXP(-1*((SourceInputsAttenuation!$I$14)*SrcDecline!B121)),SourceInputsAttenuation!$E$14) -> 0.04998703368 | D121: 118 | E121: =IF(F$1="Decline",(D121*QsrcLitres)/SourceInputsAttenuation!$C$33,"") -> 0.00340595654 | F121: =IF(F$1="Decline",SourceInputsAttenuation!$E$15*EXP(-1*(SourceInputsAttenuation!$I$15*SrcDecline!E121)),SourceInputsAttenuation!$E$15) -> 0.0009994405579 | G121: 118 | H121: =IF(I$1="Decline",(G121*QsrcLitres)/SourceInputsAttenuation!$C$33,"") -> 0.00340595654 | I121: =IF(I$1="Decline",SourceInputsAttenuation!$E$16*EXP(-1*(SourceInputsAttenuation!$I$16*SrcDecline!E121)),SourceInputsAttenuation!$E$16) -> 0.8680394893 | J121: 118 | K121: =IF(L$1="Decline",(J121*QsrcLitres)/SourceInputsAttenuation!$C$33,"") -> 0.00340595654 | L121: =IF(L$1="Decline",SourceInputsAttenuation!$E$17*EXP(-1*(SourceInputsAttenuation!$I$17*SrcDecline!K121)),SourceInputsAttenuation!$E$17) -> 0.003996282533 | M121: 118 | N121: =IF(O$1="Decline",(M121*QsrcLitres)/SourceInputsAttenuation!$C$33,"") -> 0.00340595654 | O121: =IF(O$1="Decline",SourceInputsAttenuation!$E$18*EXP(-1*(SourceInputsAttenuation!$I$18*SrcDecline!N121)),SourceInputsAttenuation!$E$18) -> 0.3995948202 | P121: 118 | Q121: =IF(R$1="Decline",(P121*QsrcLitres)/SourceInputsAttenuation!$C$33,"") -> 0.00340595654 | R121: =IF(R$1="Decline",SourceInputsAttenuation!$E$19*EXP(-1*(SourceInputsAttenuation!$I$19*SrcDecline!Q121)),SourceInputsAttenuation!$E$19) -> 0.1997936999 | S121: 118 | T121: =IF(U$1="Decline",(S121*QsrcLitres)/SourceInputsAttenuation!$C$33,"") -> 0.00340595654 | U121: =IF(U$1="Decline",SourceInputsAttenuation!$E$20*EXP(-1*(SourceInputsAttenuation!$I$20*SrcDecline!T121)),SourceInputsAttenuation!$E$20) -> 0.04996758536
A122: 119 | B122: =IF(C$1="Decline",(A122*QsrcLitres)/(SourceInputsAttenuation!$C$33),"") -> 0.003434820578 | C122: =IF(C$1="Decline",SourceInputsAttenuation!$E$14*EXP(-1*((SourceInputsAttenuation!$I$14)*SrcDecline!B122)),SourceInputsAttenuation!$E$14) -> 0.04998692381 | D122: 119 | E122: =IF(F$1="Decline",(D122*QsrcLitres)/SourceInputsAttenuation!$C$33,"") -> 0.003434820578 | F122: =IF(F$1="Decline",SourceInputsAttenuation!$E$15*EXP(-1*(SourceInputsAttenuation!$I$15*SrcDecline!E122)),SourceInputsAttenuation!$E$15) -> 0.0009994358182 | G122: 119 | H122: =IF(I$1="Decline",(G122*QsrcLitres)/SourceInputsAttenuation!$C$33,"") -> 0.003434820578 | I122: =IF(I$1="Decline",SourceInputsAttenuation!$E$16*EXP(-1*(SourceInputsAttenuation!$I$16*SrcDecline!E122)),SourceInputsAttenuation!$E$16) -> 0.8680271226 | J122: 119 | K122: =IF(L$1="Decline",(J122*QsrcLitres)/SourceInputsAttenuation!$C$33,"") -> 0.003434820578 | L122: =IF(L$1="Decline",SourceInputsAttenuation!$E$17*EXP(-1*(SourceInputsAttenuation!$I$17*SrcDecline!K122)),SourceInputsAttenuation!$E$17) -> 0.003996251043 | M122: 119 | N122: =IF(O$1="Decline",(M122*QsrcLitres)/SourceInputsAttenuation!$C$33,"") -> 0.003434820578 | O122: =IF(O$1="Decline",SourceInputsAttenuation!$E$18*EXP(-1*(SourceInputsAttenuation!$I$18*SrcDecline!N122)),SourceInputsAttenuation!$E$18) -> 0.3995913882 | P122: 119 | Q122: =IF(R$1="Decline",(P122*QsrcLitres)/SourceInputsAttenuation!$C$33,"") -> 0.003434820578 | R122: =IF(R$1="Decline",SourceInputsAttenuation!$E$19*EXP(-1*(SourceInputsAttenuation!$I$19*SrcDecline!Q122)),SourceInputsAttenuation!$E$19) -> 0.1997919525 | S122: 119 | T122: =IF(U$1="Decline",(S122*QsrcLitres)/SourceInputsAttenuation!$C$33,"") -> 0.003434820578 | U122: =IF(U$1="Decline",SourceInputsAttenuation!$E$20*EXP(-1*(SourceInputsAttenuation!$I$20*SrcDecline!T122)),SourceInputsAttenuation!$E$20) -> 0.04996731075
A123: 120 | B123: =IF(C$1="Decline",(A123*QsrcLitres)/(SourceInputsAttenuation!$C$33),"") -> 0.003463684617 | C123: =IF(C$1="Decline",SourceInputsAttenuation!$E$14*EXP(-1*((SourceInputsAttenuation!$I$14)*SrcDecline!B123)),SourceInputsAttenuation!$E$14) -> 0.04998681394 | D123: 120 | E123: =IF(F$1="Decline",(D123*QsrcLitres)/SourceInputsAttenuation!$C$33,"") -> 0.003463684617 | F123: =IF(F$1="Decline",SourceInputsAttenuation!$E$15*EXP(-1*(SourceInputsAttenuation!$I$15*SrcDecline!E123)),SourceInputsAttenuation!$E$15) -> 0.0009994310785 | G123: 120 | H123: =IF(I$1="Decline",(G123*QsrcLitres)/SourceInputsAttenuation!$C$33,"") -> 0.003463684617 | I123: =IF(I$1="Decline",SourceInputsAttenuation!$E$16*EXP(-1*(SourceInputsAttenuation!$I$16*SrcDecline!E123)),SourceInputsAttenuation!$E$16) -> 0.8680147561 | J123: 120 | K123: =IF(L$1="Decline",(J123*QsrcLitres)/SourceInputsAttenuation!$C$33,"") -> 0.003463684617 | L123: =IF(L$1="Decline",SourceInputsAttenuation!$E$17*EXP(-1*(SourceInputsAttenuation!$I$17*SrcDecline!K123)),SourceInputsAttenuation!$E$17) -> 0.003996219554 | M123: 120 | N123: =IF(O$1="Decline",(M123*QsrcLitres)/SourceInputsAttenuation!$C$33,"") -> 0.003463684617 | O123: =IF(O$1="Decline",SourceInputsAttenuation!$E$18*EXP(-1*(SourceInputsAttenuation!$I$18*SrcDecline!N123)),SourceInputsAttenuation!$E$18) -> 0.3995879563 | P123: 120 | Q123: =IF(R$1="Decline",(P123*QsrcLitres)/SourceInputsAttenuation!$C$33,"") -> 0.003463684617 | R123: =IF(R$1="Decline",SourceInputsAttenuation!$E$19*EXP(-1*(SourceInputsAttenuation!$I$19*SrcDecline!Q123)),SourceInputsAttenuation!$E$19) -> 0.1997902051 | S123: 120 | T123: =IF(U$1="Decline",(S123*QsrcLitres)/SourceInputsAttenuation!$C$33,"") -> 0.003463684617 | U123: =IF(U$1="Decline",SourceInputsAttenuation!$E$20*EXP(-1*(SourceInputsAttenuation!$I$20*SrcDecline!T123)),SourceInputsAttenuation!$E$20) -> 0.04996703614
A124: 121 | B124: =IF(C$1="Decline",(A124*QsrcLitres)/(SourceInputsAttenuation!$C$33),"") -> 0.003492548655 | C124: =IF(C$1="Decline",SourceInputsAttenuation!$E$14*EXP(-1*((SourceInputsAttenuation!$I$14)*SrcDecline!B124)),SourceInputsAttenuation!$E$14) -> 0.04998670407 | D124: 121 | E124: =IF(F$1="Decline",(D124*QsrcLitres)/SourceInputsAttenuation!$C$33,"") -> 0.003492548655 | F124: =IF(F$1="Decline",SourceInputsAttenuation!$E$15*EXP(-1*(SourceInputsAttenuation!$I$15*SrcDecline!E124)),SourceInputsAttenuation!$E$15) -> 0.0009994263389 | G124: 121 | H124: =IF(I$1="Decline",(G124*QsrcLitres)/SourceInputsAttenuation!$C$33,"") -> 0.003492548655 | I124: =IF(I$1="Decline",SourceInputsAttenuation!$E$16*EXP(-1*(SourceInputsAttenuation!$I$16*SrcDecline!E124)),SourceInputsAttenuation!$E$16) -> 0.8680023897 | J124: 121 | K124: =IF(L$1="Decline",(J124*QsrcLitres)/SourceInputsAttenuation!$C$33,"") -> 0.003492548655 | L124: =IF(L$1="Decline",SourceInputsAttenuation!$E$17*EXP(-1*(SourceInputsAttenuation!$I$17*SrcDecline!K124)),SourceInputsAttenuation!$E$17) -> 0.003996188066 | M124: 121 | N124: =IF(O$1="Decline",(M124*QsrcLitres)/SourceInputsAttenuation!$C$33,"") -> 0.003492548655 | O124: =IF(O$1="Decline",SourceInputsAttenuation!$E$18*EXP(-1*(SourceInputsAttenuation!$I$18*SrcDecline!N124)),SourceInputsAttenuation!$E$18) -> 0.3995845244 | P124: 121 | Q124: =IF(R$1="Decline",(P124*QsrcLitres)/SourceInputsAttenuation!$C$33,"") -> 0.003492548655 | R124: =IF(R$1="Decline",SourceInputsAttenuation!$E$19*EXP(-1*(SourceInputsAttenuation!$I$19*SrcDecline!Q124)),SourceInputsAttenuation!$E$19) -> 0.1997884577 | S124: 121 | T124: =IF(U$1="Decline",(S124*QsrcLitres)/SourceInputsAttenuation!$C$33,"") -> 0.003492548655 | U124: =IF(U$1="Decline",SourceInputsAttenuation!$E$20*EXP(-1*(SourceInputsAttenuation!$I$20*SrcDecline!T124)),SourceInputsAttenuation!$E$20) -> 0.04996676153
A125: 122 | B125: =IF(C$1="Decline",(A125*QsrcLitres)/(SourceInputsAttenuation!$C$33),"") -> 0.003521412694 | C125: =IF(C$1="Decline",SourceInputsAttenuation!$E$14*EXP(-1*((SourceInputsAttenuation!$I$14)*SrcDecline!B125)),SourceInputsAttenuation!$E$14) -> 0.0499865942 | D125: 122 | E125: =IF(F$1="Decline",(D125*QsrcLitres)/SourceInputsAttenuation!$C$33,"") -> 0.003521412694 | F125: =IF(F$1="Decline",SourceInputsAttenuation!$E$15*EXP(-1*(SourceInputsAttenuation!$I$15*SrcDecline!E125)),SourceInputsAttenuation!$E$15) -> 0.0009994215992 | G125: 122 | H125: =IF(I$1="Decline",(G125*QsrcLitres)/SourceInputsAttenuation!$C$33,"") -> 0.003521412694 | I125: =IF(I$1="Decline",SourceInputsAttenuation!$E$16*EXP(-1*(SourceInputsAttenuation!$I$16*SrcDecline!E125)),SourceInputsAttenuation!$E$16) -> 0.8679900235 | J125: 122 | K125: =IF(L$1="Decline",(J125*QsrcLitres)/SourceInputsAttenuation!$C$33,"") -> 0.003521412694 | L125: =IF(L$1="Decline",SourceInputsAttenuation!$E$17*EXP(-1*(SourceInputsAttenuation!$I$17*SrcDecline!K125)),SourceInputsAttenuation!$E$17) -> 0.003996156577 | M125: 122 | N125: =IF(O$1="Decline",(M125*QsrcLitres)/SourceInputsAttenuation!$C$33,"") -> 0.003521412694 | O125: =IF(O$1="Decline",SourceInputsAttenuation!$E$18*EXP(-1*(SourceInputsAttenuation!$I$18*SrcDecline!N125)),SourceInputsAttenuation!$E$18) -> 0.3995810925 | P125: 122 | Q125: =IF(R$1="Decline",(P125*QsrcLitres)/SourceInputsAttenuation!$C$33,"") -> 0.003521412694 | R125: =IF(R$1="Decline",SourceInputsAttenuation!$E$19*EXP(-1*(SourceInputsAttenuation!$I$19*SrcDecline!Q125)),SourceInputsAttenuation!$E$19) -> 0.1997867104 | S125: 122 | T125: =IF(U$1="Decline",(S125*QsrcLitres)/SourceInputsAttenuation!$C$33,"") -> 0.003521412694 | U125: =IF(U$1="Decline",SourceInputsAttenuation!$E$20*EXP(-1*(SourceInputsAttenuation!$I$20*SrcDecline!T125)),SourceInputsAttenuation!$E$20) -> 0.04996648693
A126: 123 | B126: =IF(C$1="Decline",(A126*QsrcLitres)/(SourceInputsAttenuation!$C$33),"") -> 0.003550276732 | C126: =IF(C$1="Decline",SourceInputsAttenuation!$E$14*EXP(-1*((SourceInputsAttenuation!$I$14)*SrcDecline!B126)),SourceInputsAttenuation!$E$14) -> 0.04998648433 | D126: 123 | E126: =IF(F$1="Decline",(D126*QsrcLitres)/SourceInputsAttenuation!$C$33,"") -> 0.003550276732 | F126: =IF(F$1="Decline",SourceInputsAttenuation!$E$15*EXP(-1*(SourceInputsAttenuation!$I$15*SrcDecline!E126)),SourceInputsAttenuation!$E$15) -> 0.0009994168596 | G126: 123 | H126: =IF(I$1="Decline",(G126*QsrcLitres)/SourceInputsAttenuation!$C$33,"") -> 0.003550276732 | I126: =IF(I$1="Decline",SourceInputsAttenuation!$E$16*EXP(-1*(SourceInputsAttenuation!$I$16*SrcDecline!E126)),SourceInputsAttenuation!$E$16) -> 0.8679776575 | J126: 123 | K126: =IF(L$1="Decline",(J126*QsrcLitres)/SourceInputsAttenuation!$C$33,"") -> 0.003550276732 | L126: =IF(L$1="Decline",SourceInputsAttenuation!$E$17*EXP(-1*(SourceInputsAttenuation!$I$17*SrcDecline!K126)),SourceInputsAttenuation!$E$17) -> 0.003996125089 | M126: 123 | N126: =IF(O$1="Decline",(M126*QsrcLitres)/SourceInputsAttenuation!$C$33,"") -> 0.003550276732 | O126: =IF(O$1="Decline",SourceInputsAttenuation!$E$18*EXP(-1*(SourceInputsAttenuation!$I$18*SrcDecline!N126)),SourceInputsAttenuation!$E$18) -> 0.3995776606 | P126: 123 | Q126: =IF(R$1="Decline",(P126*QsrcLitres)/SourceInputsAttenuation!$C$33,"") -> 0.003550276732 | R126: =IF(R$1="Decline",SourceInputsAttenuation!$E$19*EXP(-1*(SourceInputsAttenuation!$I$19*SrcDecline!Q126)),SourceInputsAttenuation!$E$19) -> 0.199784963 | S126: 123 | T126: =IF(U$1="Decline",(S126*QsrcLitres)/SourceInputsAttenuation!$C$33,"") -> 0.003550276732 | U126: =IF(U$1="Decline",SourceInputsAttenuation!$E$20*EXP(-1*(SourceInputsAttenuation!$I$20*SrcDecline!T126)),SourceInputsAttenuation!$E$20) -> 0.04996621232
A127: 124 | B127: =IF(C$1="Decline",(A127*QsrcLitres)/(SourceInputsAttenuation!$C$33),"") -> 0.003579140771 | C127: =IF(C$1="Decline",SourceInputsAttenuation!$E$14*EXP(-1*((SourceInputsAttenuation!$I$14)*SrcDecline!B127)),SourceInputsAttenuation!$E$14) -> 0.04998637447 | D127: 124 | E127: =IF(F$1="Decline",(D127*QsrcLitres)/SourceInputsAttenuation!$C$33,"") -> 0.003579140771 | F127: =IF(F$1="Decline",SourceInputsAttenuation!$E$15*EXP(-1*(SourceInputsAttenuation!$I$15*SrcDecline!E127)),SourceInputsAttenuation!$E$15) -> 0.00099941212 | G127: 124 | H127: =IF(I$1="Decline",(G127*QsrcLitres)/SourceInputsAttenuation!$C$33,"") -> 0.003579140771 | I127: =IF(I$1="Decline",SourceInputsAttenuation!$E$16*EXP(-1*(SourceInputsAttenuation!$I$16*SrcDecline!E127)),SourceInputsAttenuation!$E$16) -> 0.8679652917 | J127: 124 | K127: =IF(L$1="Decline",(J127*QsrcLitres)/SourceInputsAttenuation!$C$33,"") -> 0.003579140771 | L127: =IF(L$1="Decline",SourceInputsAttenuation!$E$17*EXP(-1*(SourceInputsAttenuation!$I$17*SrcDecline!K127)),SourceInputsAttenuation!$E$17) -> 0.003996093601 | M127: 124 | N127: =IF(O$1="Decline",(M127*QsrcLitres)/SourceInputsAttenuation!$C$33,"") -> 0.003579140771 | O127: =IF(O$1="Decline",SourceInputsAttenuation!$E$18*EXP(-1*(SourceInputsAttenuation!$I$18*SrcDecline!N127)),SourceInputsAttenuation!$E$18) -> 0.3995742288 | P127: 124 | Q127: =IF(R$1="Decline",(P127*QsrcLitres)/SourceInputsAttenuation!$C$33,"") -> 0.003579140771 | R127: =IF(R$1="Decline",SourceInputsAttenuation!$E$19*EXP(-1*(SourceInputsAttenuation!$I$19*SrcDecline!Q127)),SourceInputsAttenuation!$E$19) -> 0.1997832157 | S127: 124 | T127: =IF(U$1="Decline",(S127*QsrcLitres)/SourceInputsAttenuation!$C$33,"") -> 0.003579140771 | U127: =IF(U$1="Decline",SourceInputsAttenuation!$E$20*EXP(-1*(SourceInputsAttenuation!$I$20*SrcDecline!T127)),SourceInputsAttenuation!$E$20) -> 0.04996593772
A128: 125 | B128: =IF(C$1="Decline",(A128*QsrcLitres)/(SourceInputsAttenuation!$C$33),"") -> 0.003608004809 | C128: =IF(C$1="Decline",SourceInputsAttenuation!$E$14*EXP(-1*((SourceInputsAttenuation!$I$14)*SrcDecline!B128)),SourceInputsAttenuation!$E$14) -> 0.0499862646 | D128: 125 | E128: =IF(F$1="Decline",(D128*QsrcLitres)/SourceInputsAttenuation!$C$33,"") -> 0.003608004809 | F128: =IF(F$1="Decline",SourceInputsAttenuation!$E$15*EXP(-1*(SourceInputsAttenuation!$I$15*SrcDecline!E128)),SourceInputsAttenuation!$E$15) -> 0.0009994073805 | G128: 125 | H128: =IF(I$1="Decline",(G128*QsrcLitres)/SourceInputsAttenuation!$C$33,"") -> 0.003608004809 | I128: =IF(I$1="Decline",SourceInputsAttenuation!$E$16*EXP(-1*(SourceInputsAttenuation!$I$16*SrcDecline!E128)),SourceInputsAttenuation!$E$16) -> 0.867952926 | J128: 125 | K128: =IF(L$1="Decline",(J128*QsrcLitres)/SourceInputsAttenuation!$C$33,"") -> 0.003608004809 | L128: =IF(L$1="Decline",SourceInputsAttenuation!$E$17*EXP(-1*(SourceInputsAttenuation!$I$17*SrcDecline!K128)),SourceInputsAttenuation!$E$17) -> 0.003996062113 | M128: 125 | N128: =IF(O$1="Decline",(M128*QsrcLitres)/SourceInputsAttenuation!$C$33,"") -> 0.003608004809 | O128: =IF(O$1="Decline",SourceInputsAttenuation!$E$18*EXP(-1*(SourceInputsAttenuation!$I$18*SrcDecline!N128)),SourceInputsAttenuation!$E$18) -> 0.399570797 | P128: 125 | Q128: =IF(R$1="Decline",(P128*QsrcLitres)/SourceInputsAttenuation!$C$33,"") -> 0.003608004809 | R128: =IF(R$1="Decline",SourceInputsAttenuation!$E$19*EXP(-1*(SourceInputsAttenuation!$I$19*SrcDecline!Q128)),SourceInputsAttenuation!$E$19) -> 0.1997814684 | S128: 125 | T128: =IF(U$1="Decline",(S128*QsrcLitres)/SourceInputsAttenuation!$C$33,"") -> 0.003608004809 | U128: =IF(U$1="Decline",SourceInputsAttenuation!$E$20*EXP(-1*(SourceInputsAttenuation!$I$20*SrcDecline!T128)),SourceInputsAttenuation!$E$20) -> 0.04996566312
A129: 126 | B129: =IF(C$1="Decline",(A129*QsrcLitres)/(SourceInputsAttenuation!$C$33),"") -> 0.003636868847 | C129: =IF(C$1="Decline",SourceInputsAttenuation!$E$14*EXP(-1*((SourceInputsAttenuation!$I$14)*SrcDecline!B129)),SourceInputsAttenuation!$E$14) -> 0.04998615473 | D129: 126 | E129: =IF(F$1="Decline",(D129*QsrcLitres)/SourceInputsAttenuation!$C$33,"") -> 0.003636868847 | F129: =IF(F$1="Decline",SourceInputsAttenuation!$E$15*EXP(-1*(SourceInputsAttenuation!$I$15*SrcDecline!E129)),SourceInputsAttenuation!$E$15) -> 0.0009994026409 | G129: 126 | H129: =IF(I$1="Decline",(G129*QsrcLitres)/SourceInputsAttenuation!$C$33,"") -> 0.003636868847 | I129: =IF(I$1="Decline",SourceInputsAttenuation!$E$16*EXP(-1*(SourceInputsAttenuation!$I$16*SrcDecline!E129)),SourceInputsAttenuation!$E$16) -> 0.8679405605 | J129: 126 | K129: =IF(L$1="Decline",(J129*QsrcLitres)/SourceInputsAttenuation!$C$33,"") -> 0.003636868847 | L129: =IF(L$1="Decline",SourceInputsAttenuation!$E$17*EXP(-1*(SourceInputsAttenuation!$I$17*SrcDecline!K129)),SourceInputsAttenuation!$E$17) -> 0.003996030626 | M129: 126 | N129: =IF(O$1="Decline",(M129*QsrcLitres)/SourceInputsAttenuation!$C$33,"") -> 0.003636868847 | O129: =IF(O$1="Decline",SourceInputsAttenuation!$E$18*EXP(-1*(SourceInputsAttenuation!$I$18*SrcDecline!N129)),SourceInputsAttenuation!$E$18) -> 0.3995673652 | P129: 126 | Q129: =IF(R$1="Decline",(P129*QsrcLitres)/SourceInputsAttenuation!$C$33,"") -> 0.003636868847 | R129: =IF(R$1="Decline",SourceInputsAttenuation!$E$19*EXP(-1*(SourceInputsAttenuation!$I$19*SrcDecline!Q129)),SourceInputsAttenuation!$E$19) -> 0.1997797211 | S129: 126 | T129: =IF(U$1="Decline",(S129*QsrcLitres)/SourceInputsAttenuation!$C$33,"") -> 0.003636868847 | U129: =IF(U$1="Decline",SourceInputsAttenuation!$E$20*EXP(-1*(SourceInputsAttenuation!$I$20*SrcDecline!T129)),SourceInputsAttenuation!$E$20) -> 0.04996538852
A130: 127 | B130: =IF(C$1="Decline",(A130*QsrcLitres)/(SourceInputsAttenuation!$C$33),"") -> 0.003665732886 | C130: =IF(C$1="Decline",SourceInputsAttenuation!$E$14*EXP(-1*((SourceInputsAttenuation!$I$14)*SrcDecline!B130)),SourceInputsAttenuation!$E$14) -> 0.04998604486 | D130: 127 | E130: =IF(F$1="Decline",(D130*QsrcLitres)/SourceInputsAttenuation!$C$33,"") -> 0.003665732886 | F130: =IF(F$1="Decline",SourceInputsAttenuation!$E$15*EXP(-1*(SourceInputsAttenuation!$I$15*SrcDecline!E130)),SourceInputsAttenuation!$E$15) -> 0.0009993979014 | G130: 127 | H130: =IF(I$1="Decline",(G130*QsrcLitres)/SourceInputsAttenuation!$C$33,"") -> 0.003665732886 | I130: =IF(I$1="Decline",SourceInputsAttenuation!$E$16*EXP(-1*(SourceInputsAttenuation!$I$16*SrcDecline!E130)),SourceInputsAttenuation!$E$16) -> 0.8679281952 | J130: 127 | K130: =IF(L$1="Decline",(J130*QsrcLitres)/SourceInputsAttenuation!$C$33,"") -> 0.003665732886 | L130: =IF(L$1="Decline",SourceInputsAttenuation!$E$17*EXP(-1*(SourceInputsAttenuation!$I$17*SrcDecline!K130)),SourceInputsAttenuation!$E$17) -> 0.003995999139 | M130: 127 | N130: =IF(O$1="Decline",(M130*QsrcLitres)/SourceInputsAttenuation!$C$33,"") -> 0.003665732886 | O130: =IF(O$1="Decline",SourceInputsAttenuation!$E$18*EXP(-1*(SourceInputsAttenuation!$I$18*SrcDecline!N130)),SourceInputsAttenuation!$E$18) -> 0.3995639335 | P130: 127 | Q130: =IF(R$1="Decline",(P130*QsrcLitres)/SourceInputsAttenuation!$C$33,"") -> 0.003665732886 | R130: =IF(R$1="Decline",SourceInputsAttenuation!$E$19*EXP(-1*(SourceInputsAttenuation!$I$19*SrcDecline!Q130)),SourceInputsAttenuation!$E$19) -> 0.1997779739 | S130: 127 | T130: =IF(U$1="Decline",(S130*QsrcLitres)/SourceInputsAttenuation!$C$33,"") -> 0.003665732886 | U130: =IF(U$1="Decline",SourceInputsAttenuation!$E$20*EXP(-1*(SourceInputsAttenuation!$I$20*SrcDecline!T130)),SourceInputsAttenuation!$E$20) -> 0.04996511392
A131: 128 | B131: =IF(C$1="Decline",(A131*QsrcLitres)/(SourceInputsAttenuation!$C$33),"") -> 0.003694596924 | C131: =IF(C$1="Decline",SourceInputsAttenuation!$E$14*EXP(-1*((SourceInputsAttenuation!$I$14)*SrcDecline!B131)),SourceInputsAttenuation!$E$14) -> 0.04998593499 | D131: 128 | E131: =IF(F$1="Decline",(D131*QsrcLitres)/SourceInputsAttenuation!$C$33,"") -> 0.003694596924 | F131: =IF(F$1="Decline",SourceInputsAttenuation!$E$15*EXP(-1*(SourceInputsAttenuation!$I$15*SrcDecline!E131)),SourceInputsAttenuation!$E$15) -> 0.0009993931619 | G131: 128 | H131: =IF(I$1="Decline",(G131*QsrcLitres)/SourceInputsAttenuation!$C$33,"") -> 0.003694596924 | I131: =IF(I$1="Decline",SourceInputsAttenuation!$E$16*EXP(-1*(SourceInputsAttenuation!$I$16*SrcDecline!E131)),SourceInputsAttenuation!$E$16) -> 0.8679158301 | J131: 128 | K131: =IF(L$1="Decline",(J131*QsrcLitres)/SourceInputsAttenuation!$C$33,"") -> 0.003694596924 | L131: =IF(L$1="Decline",SourceInputsAttenuation!$E$17*EXP(-1*(SourceInputsAttenuation!$I$17*SrcDecline!K131)),SourceInputsAttenuation!$E$17) -> 0.003995967652 | M131: 128 | N131: =IF(O$1="Decline",(M131*QsrcLitres)/SourceInputsAttenuation!$C$33,"") -> 0.003694596924 | O131: =IF(O$1="Decline",SourceInputsAttenuation!$E$18*EXP(-1*(SourceInputsAttenuation!$I$18*SrcDecline!N131)),SourceInputsAttenuation!$E$18) -> 0.3995605018 | P131: 128 | Q131: =IF(R$1="Decline",(P131*QsrcLitres)/SourceInputsAttenuation!$C$33,"") -> 0.003694596924 | R131: =IF(R$1="Decline",SourceInputsAttenuation!$E$19*EXP(-1*(SourceInputsAttenuation!$I$19*SrcDecline!Q131)),SourceInputsAttenuation!$E$19) -> 0.1997762266 | S131: 128 | T131: =IF(U$1="Decline",(S131*QsrcLitres)/SourceInputsAttenuation!$C$33,"") -> 0.003694596924 | U131: =IF(U$1="Decline",SourceInputsAttenuation!$E$20*EXP(-1*(SourceInputsAttenuation!$I$20*SrcDecline!T131)),SourceInputsAttenuation!$E$20) -> 0.04996483932
A132: 129 | B132: =IF(C$1="Decline",(A132*QsrcLitres)/(SourceInputsAttenuation!$C$33),"") -> 0.003723460963 | C132: =IF(C$1="Decline",SourceInputsAttenuation!$E$14*EXP(-1*((SourceInputsAttenuation!$I$14)*SrcDecline!B132)),SourceInputsAttenuation!$E$14) -> 0.04998582513 | D132: 129 | E132: =IF(F$1="Decline",(D132*QsrcLitres)/SourceInputsAttenuation!$C$33,"") -> 0.003723460963 | F132: =IF(F$1="Decline",SourceInputsAttenuation!$E$15*EXP(-1*(SourceInputsAttenuation!$I$15*SrcDecline!E132)),SourceInputsAttenuation!$E$15) -> 0.0009993884225 | G132: 129 | H132: =IF(I$1="Decline",(G132*QsrcLitres)/SourceInputsAttenuation!$C$33,"") -> 0.003723460963 | I132: =IF(I$1="Decline",SourceInputsAttenuation!$E$16*EXP(-1*(SourceInputsAttenuation!$I$16*SrcDecline!E132)),SourceInputsAttenuation!$E$16) -> 0.8679034651 | J132: 129 | K132: =IF(L$1="Decline",(J132*QsrcLitres)/SourceInputsAttenuation!$C$33,"") -> 0.003723460963 | L132: =IF(L$1="Decline",SourceInputsAttenuation!$E$17*EXP(-1*(SourceInputsAttenuation!$I$17*SrcDecline!K132)),SourceInputsAttenuation!$E$17) -> 0.003995936165 | M132: 129 | N132: =IF(O$1="Decline",(M132*QsrcLitres)/SourceInputsAttenuation!$C$33,"") -> 0.003723460963 | O132: =IF(O$1="Decline",SourceInputsAttenuation!$E$18*EXP(-1*(SourceInputsAttenuation!$I$18*SrcDecline!N132)),SourceInputsAttenuation!$E$18) -> 0.3995570701 | P132: 129 | Q132: =IF(R$1="Decline",(P132*QsrcLitres)/SourceInputsAttenuation!$C$33,"") -> 0.003723460963 | R132: =IF(R$1="Decline",SourceInputsAttenuation!$E$19*EXP(-1*(SourceInputsAttenuation!$I$19*SrcDecline!Q132)),SourceInputsAttenuation!$E$19) -> 0.1997744793 | S132: 129 | T132: =IF(U$1="Decline",(S132*QsrcLitres)/SourceInputsAttenuation!$C$33,"") -> 0.003723460963 | U132: =IF(U$1="Decline",SourceInputsAttenuation!$E$20*EXP(-1*(SourceInputsAttenuation!$I$20*SrcDecline!T132)),SourceInputsAttenuation!$E$20) -> 0.04996456473
A133: =IF(A132<1000,A132+1,A132+10) -> 130 | B133: =IF(C$1="Decline",(A133*QsrcLitres)/(SourceInputsAttenuation!$C$33),"") -> 0.003752325001 | C133: =IF(C$1="Decline",SourceInputsAttenuation!$E$14*EXP(-1*((SourceInputsAttenuation!$I$14)*SrcDecline!B133)),SourceInputsAttenuation!$E$14) -> 0.04998571526 | D133: =IF(D132<1000,D132+1,D132+10) -> 130 | E133: =IF(F$1="Decline",(D133*QsrcLitres)/SourceInputsAttenuation!$C$33,"") -> 0.003752325001 | F133: =IF(F$1="Decline",SourceInputsAttenuation!$E$15*EXP(-1*(SourceInputsAttenuation!$I$15*SrcDecline!E133)),SourceInputsAttenuation!$E$15) -> 0.000999383683 | G133: =IF(G132<1000,G132+1,G132+10) -> 130 | H133: =IF(I$1="Decline",(G133*QsrcLitres)/SourceInputsAttenuation!$C$33,"") -> 0.003752325001 | I133: =IF(I$1="Decline",SourceInputsAttenuation!$E$16*EXP(-1*(SourceInputsAttenuation!$I$16*SrcDecline!E133)),SourceInputsAttenuation!$E$16) -> 0.8678911003 | J133: =IF(J132<1000,J132+1,J132+10) -> 130 | K133: =IF(L$1="Decline",(J133*QsrcLitres)/SourceInputsAttenuation!$C$33,"") -> 0.003752325001 | L133: =IF(L$1="Decline",SourceInputsAttenuation!$E$17*EXP(-1*(SourceInputsAttenuation!$I$17*SrcDecline!K133)),SourceInputsAttenuation!$E$17) -> 0.003995904679 | M133: =IF(M132<1000,M132+1,M132+10) -> 130 | N133: =IF(O$1="Decline",(M133*QsrcLitres)/SourceInputsAttenuation!$C$33,"") -> 0.003752325001 | O133: =IF(O$1="Decline",SourceInputsAttenuation!$E$18*EXP(-1*(SourceInputsAttenuation!$I$18*SrcDecline!N133)),SourceInputsAttenuation!$E$18) -> 0.3995536385 | P133: =IF(P132<1000,P132+1,P132+10) -> 130 | Q133: =IF(R$1="Decline",(P133*QsrcLitres)/SourceInputsAttenuation!$C$33,"") -> 0.003752325001 | R133: =IF(R$1="Decline",SourceInputsAttenuation!$E$19*EXP(-1*(SourceInputsAttenuation!$I$19*SrcDecline!Q133)),SourceInputsAttenuation!$E$19) -> 0.1997727321 | S133: =IF(S132<1000,S132+1,S132+10) -> 130 | T133: =IF(U$1="Decline",(S133*QsrcLitres)/SourceInputsAttenuation!$C$33,"") -> 0.003752325001 | U133: =IF(U$1="Decline",SourceInputsAttenuation!$E$20*EXP(-1*(SourceInputsAttenuation!$I$20*SrcDecline!T133)),SourceInputsAttenuation!$E$20) -> 0.04996429013
A134: 131 | B134: =IF(C$1="Decline",(A134*QsrcLitres)/(SourceInputsAttenuation!$C$33),"") -> 0.00378118904 | C134: =IF(C$1="Decline",SourceInputsAttenuation!$E$14*EXP(-1*((SourceInputsAttenuation!$I$14)*SrcDecline!B134)),SourceInputsAttenuation!$E$14) -> 0.04998560539 | D134: 131 | E134: =IF(F$1="Decline",(D134*QsrcLitres)/SourceInputsAttenuation!$C$33,"") -> 0.00378118904 | F134: =IF(F$1="Decline",SourceInputsAttenuation!$E$15*EXP(-1*(SourceInputsAttenuation!$I$15*SrcDecline!E134)),SourceInputsAttenuation!$E$15) -> 0.0009993789436 | G134: 131 | H134: =IF(I$1="Decline",(G134*QsrcLitres)/SourceInputsAttenuation!$C$33,"") -> 0.00378118904 | I134: =IF(I$1="Decline",SourceInputsAttenuation!$E$16*EXP(-1*(SourceInputsAttenuation!$I$16*SrcDecline!E134)),SourceInputsAttenuation!$E$16) -> 0.8678787357 | J134: 131 | K134: =IF(L$1="Decline",(J134*QsrcLitres)/SourceInputsAttenuation!$C$33,"") -> 0.00378118904 | L134: =IF(L$1="Decline",SourceInputsAttenuation!$E$17*EXP(-1*(SourceInputsAttenuation!$I$17*SrcDecline!K134)),SourceInputsAttenuation!$E$17) -> 0.003995873192 | M134: 131 | N134: =IF(O$1="Decline",(M134*QsrcLitres)/SourceInputsAttenuation!$C$33,"") -> 0.00378118904 | O134: =IF(O$1="Decline",SourceInputsAttenuation!$E$18*EXP(-1*(SourceInputsAttenuation!$I$18*SrcDecline!N134)),SourceInputsAttenuation!$E$18) -> 0.3995502069 | P134: 131 | Q134: =IF(R$1="Decline",(P134*QsrcLitres)/SourceInputsAttenuation!$C$33,"") -> 0.00378118904 | R134: =IF(R$1="Decline",SourceInputsAttenuation!$E$19*EXP(-1*(SourceInputsAttenuation!$I$19*SrcDecline!Q134)),SourceInputsAttenuation!$E$19) -> 0.1997709849 | S134: 131 | T134: =IF(U$1="Decline",(S134*QsrcLitres)/SourceInputsAttenuation!$C$33,"") -> 0.00378118904 | U134: =IF(U$1="Decline",SourceInputsAttenuation!$E$20*EXP(-1*(SourceInputsAttenuation!$I$20*SrcDecline!T134)),SourceInputsAttenuation!$E$20) -> 0.04996401554
A135: 132 | B135: =IF(C$1="Decline",(A135*QsrcLitres)/(SourceInputsAttenuation!$C$33),"") -> 0.003810053078 | C135: =IF(C$1="Decline",SourceInputsAttenuation!$E$14*EXP(-1*((SourceInputsAttenuation!$I$14)*SrcDecline!B135)),SourceInputsAttenuation!$E$14) -> 0.04998549553 | D135: 132 | E135: =IF(F$1="Decline",(D135*QsrcLitres)/SourceInputsAttenuation!$C$33,"") -> 0.003810053078 | F135: =IF(F$1="Decline",SourceInputsAttenuation!$E$15*EXP(-1*(SourceInputsAttenuation!$I$15*SrcDecline!E135)),SourceInputsAttenuation!$E$15) -> 0.0009993742042 | G135: 132 | H135: =IF(I$1="Decline",(G135*QsrcLitres)/SourceInputsAttenuation!$C$33,"") -> 0.003810053078 | I135: =IF(I$1="Decline",SourceInputsAttenuation!$E$16*EXP(-1*(SourceInputsAttenuation!$I$16*SrcDecline!E135)),SourceInputsAttenuation!$E$16) -> 0.8678663713 | J135: 132 | K135: =IF(L$1="Decline",(J135*QsrcLitres)/SourceInputsAttenuation!$C$33,"") -> 0.003810053078 | L135: =IF(L$1="Decline",SourceInputsAttenuation!$E$17*EXP(-1*(SourceInputsAttenuation!$I$17*SrcDecline!K135)),SourceInputsAttenuation!$E$17) -> 0.003995841706 | M135: 132 | N135: =IF(O$1="Decline",(M135*QsrcLitres)/SourceInputsAttenuation!$C$33,"") -> 0.003810053078 | O135: =IF(O$1="Decline",SourceInputsAttenuation!$E$18*EXP(-1*(SourceInputsAttenuation!$I$18*SrcDecline!N135)),SourceInputsAttenuation!$E$18) -> 0.3995467753 | P135: 132 | Q135: =IF(R$1="Decline",(P135*QsrcLitres)/SourceInputsAttenuation!$C$33,"") -> 0.003810053078 | R135: =IF(R$1="Decline",SourceInputsAttenuation!$E$19*EXP(-1*(SourceInputsAttenuation!$I$19*SrcDecline!Q135)),SourceInputsAttenuation!$E$19) -> 0.1997692377 | S135: 132 | T135: =IF(U$1="Decline",(S135*QsrcLitres)/SourceInputsAttenuation!$C$33,"") -> 0.003810053078 | U135: =IF(U$1="Decline",SourceInputsAttenuation!$E$20*EXP(-1*(SourceInputsAttenuation!$I$20*SrcDecline!T135)),SourceInputsAttenuation!$E$20) -> 0.04996374095
A136: 133 | B136: =IF(C$1="Decline",(A136*QsrcLitres)/(SourceInputsAttenuation!$C$33),"") -> 0.003838917117 | C136: =IF(C$1="Decline",SourceInputsAttenuation!$E$14*EXP(-1*((SourceInputsAttenuation!$I$14)*SrcDecline!B136)),SourceInputsAttenuation!$E$14) -> 0.04998538566 | D136: 133 | E136: =IF(F$1="Decline",(D136*QsrcLitres)/SourceInputsAttenuation!$C$33,"") -> 0.003838917117 | F136: =IF(F$1="Decline",SourceInputsAttenuation!$E$15*EXP(-1*(SourceInputsAttenuation!$I$15*SrcDecline!E136)),SourceInputsAttenuation!$E$15) -> 0.0009993694648 | G136: 133 | H136: =IF(I$1="Decline",(G136*QsrcLitres)/SourceInputsAttenuation!$C$33,"") -> 0.003838917117 | I136: =IF(I$1="Decline",SourceInputsAttenuation!$E$16*EXP(-1*(SourceInputsAttenuation!$I$16*SrcDecline!E136)),SourceInputsAttenuation!$E$16) -> 0.867854007 | J136: 133 | K136: =IF(L$1="Decline",(J136*QsrcLitres)/SourceInputsAttenuation!$C$33,"") -> 0.003838917117 | L136: =IF(L$1="Decline",SourceInputsAttenuation!$E$17*EXP(-1*(SourceInputsAttenuation!$I$17*SrcDecline!K136)),SourceInputsAttenuation!$E$17) -> 0.003995810221 | M136: 133 | N136: =IF(O$1="Decline",(M136*QsrcLitres)/SourceInputsAttenuation!$C$33,"") -> 0.003838917117 | O136: =IF(O$1="Decline",SourceInputsAttenuation!$E$18*EXP(-1*(SourceInputsAttenuation!$I$18*SrcDecline!N136)),SourceInputsAttenuation!$E$18) -> 0.3995433437 | P136: 133 | Q136: =IF(R$1="Decline",(P136*QsrcLitres)/SourceInputsAttenuation!$C$33,"") -> 0.003838917117 | R136: =IF(R$1="Decline",SourceInputsAttenuation!$E$19*EXP(-1*(SourceInputsAttenuation!$I$19*SrcDecline!Q136)),SourceInputsAttenuation!$E$19) -> 0.1997674905 | S136: 133 | T136: =IF(U$1="Decline",(S136*QsrcLitres)/SourceInputsAttenuation!$C$33,"") -> 0.003838917117 | U136: =IF(U$1="Decline",SourceInputsAttenuation!$E$20*EXP(-1*(SourceInputsAttenuation!$I$20*SrcDecline!T136)),SourceInputsAttenuation!$E$20) -> 0.04996346636
A137: 134 | B137: =IF(C$1="Decline",(A137*QsrcLitres)/(SourceInputsAttenuation!$C$33),"") -> 0.003867781155 | C137: =IF(C$1="Decline",SourceInputsAttenuation!$E$14*EXP(-1*((SourceInputsAttenuation!$I$14)*SrcDecline!B137)),SourceInputsAttenuation!$E$14) -> 0.04998527579 | D137: 134 | E137: =IF(F$1="Decline",(D137*QsrcLitres)/SourceInputsAttenuation!$C$33,"") -> 0.003867781155 | F137: =IF(F$1="Decline",SourceInputsAttenuation!$E$15*EXP(-1*(SourceInputsAttenuation!$I$15*SrcDecline!E137)),SourceInputsAttenuation!$E$15) -> 0.0009993647254 | G137: 134 | H137: =IF(I$1="Decline",(G137*QsrcLitres)/SourceInputsAttenuation!$C$33,"") -> 0.003867781155 | I137: =IF(I$1="Decline",SourceInputsAttenuation!$E$16*EXP(-1*(SourceInputsAttenuation!$I$16*SrcDecline!E137)),SourceInputsAttenuation!$E$16) -> 0.867841643 | J137: 134 | K137: =IF(L$1="Decline",(J137*QsrcLitres)/SourceInputsAttenuation!$C$33,"") -> 0.003867781155 | L137: =IF(L$1="Decline",SourceInputsAttenuation!$E$17*EXP(-1*(SourceInputsAttenuation!$I$17*SrcDecline!K137)),SourceInputsAttenuation!$E$17) -> 0.003995778735 | M137: 134 | N137: =IF(O$1="Decline",(M137*QsrcLitres)/SourceInputsAttenuation!$C$33,"") -> 0.003867781155 | O137: =IF(O$1="Decline",SourceInputsAttenuation!$E$18*EXP(-1*(SourceInputsAttenuation!$I$18*SrcDecline!N137)),SourceInputsAttenuation!$E$18) -> 0.3995399122 | P137: 134 | Q137: =IF(R$1="Decline",(P137*QsrcLitres)/SourceInputsAttenuation!$C$33,"") -> 0.003867781155 | R137: =IF(R$1="Decline",SourceInputsAttenuation!$E$19*EXP(-1*(SourceInputsAttenuation!$I$19*SrcDecline!Q137)),SourceInputsAttenuation!$E$19) -> 0.1997657434 | S137: 134 | T137: =IF(U$1="Decline",(S137*QsrcLitres)/SourceInputsAttenuation!$C$33,"") -> 0.003867781155 | U137: =IF(U$1="Decline",SourceInputsAttenuation!$E$20*EXP(-1*(SourceInputsAttenuation!$I$20*SrcDecline!T137)),SourceInputsAttenuation!$E$20) -> 0.04996319177
A138: 135 | B138: =IF(C$1="Decline",(A138*QsrcLitres)/(SourceInputsAttenuation!$C$33),"") -> 0.003896645194 | C138: =IF(C$1="Decline",SourceInputsAttenuation!$E$14*EXP(-1*((SourceInputsAttenuation!$I$14)*SrcDecline!B138)),SourceInputsAttenuation!$E$14) -> 0.04998516593 | D138: 135 | E138: =IF(F$1="Decline",(D138*QsrcLitres)/SourceInputsAttenuation!$C$33,"") -> 0.003896645194 | F138: =IF(F$1="Decline",SourceInputsAttenuation!$E$15*EXP(-1*(SourceInputsAttenuation!$I$15*SrcDecline!E138)),SourceInputsAttenuation!$E$15) -> 0.0009993599861 | G138: 135 | H138: =IF(I$1="Decline",(G138*QsrcLitres)/SourceInputsAttenuation!$C$33,"") -> 0.003896645194 | I138: =IF(I$1="Decline",SourceInputsAttenuation!$E$16*EXP(-1*(SourceInputsAttenuation!$I$16*SrcDecline!E138)),SourceInputsAttenuation!$E$16) -> 0.8678292791 | J138: 135 | K138: =IF(L$1="Decline",(J138*QsrcLitres)/SourceInputsAttenuation!$C$33,"") -> 0.003896645194 | L138: =IF(L$1="Decline",SourceInputsAttenuation!$E$17*EXP(-1*(SourceInputsAttenuation!$I$17*SrcDecline!K138)),SourceInputsAttenuation!$E$17) -> 0.00399574725 | M138: 135 | N138: =IF(O$1="Decline",(M138*QsrcLitres)/SourceInputsAttenuation!$C$33,"") -> 0.003896645194 | O138: =IF(O$1="Decline",SourceInputsAttenuation!$E$18*EXP(-1*(SourceInputsAttenuation!$I$18*SrcDecline!N138)),SourceInputsAttenuation!$E$18) -> 0.3995364807 | P138: 135 | Q138: =IF(R$1="Decline",(P138*QsrcLitres)/SourceInputsAttenuation!$C$33,"") -> 0.003896645194 | R138: =IF(R$1="Decline",SourceInputsAttenuation!$E$19*EXP(-1*(SourceInputsAttenuation!$I$19*SrcDecline!Q138)),SourceInputsAttenuation!$E$19) -> 0.1997639962 | S138: 135 | T138: =IF(U$1="Decline",(S138*QsrcLitres)/SourceInputsAttenuation!$C$33,"") -> 0.003896645194 | U138: =IF(U$1="Decline",SourceInputsAttenuation!$E$20*EXP(-1*(SourceInputsAttenuation!$I$20*SrcDecline!T138)),SourceInputsAttenuation!$E$20) -> 0.04996291719
A139: 136 | B139: =IF(C$1="Decline",(A139*QsrcLitres)/(SourceInputsAttenuation!$C$33),"") -> 0.003925509232 | C139: =IF(C$1="Decline",SourceInputsAttenuation!$E$14*EXP(-1*((SourceInputsAttenuation!$I$14)*SrcDecline!B139)),SourceInputsAttenuation!$E$14) -> 0.04998505606 | D139: 136 | E139: =IF(F$1="Decline",(D139*QsrcLitres)/SourceInputsAttenuation!$C$33,"") -> 0.003925509232 | F139: =IF(F$1="Decline",SourceInputsAttenuation!$E$15*EXP(-1*(SourceInputsAttenuation!$I$15*SrcDecline!E139)),SourceInputsAttenuation!$E$15) -> 0.0009993552468 | G139: 136 | H139: =IF(I$1="Decline",(G139*QsrcLitres)/SourceInputsAttenuation!$C$33,"") -> 0.003925509232 | I139: =IF(I$1="Decline",SourceInputsAttenuation!$E$16*EXP(-1*(SourceInputsAttenuation!$I$16*SrcDecline!E139)),SourceInputsAttenuation!$E$16) -> 0.8678169153 | J139: 136 | K139: =IF(L$1="Decline",(J139*QsrcLitres)/SourceInputsAttenuation!$C$33,"") -> 0.003925509232 | L139: =IF(L$1="Decline",SourceInputsAttenuation!$E$17*EXP(-1*(SourceInputsAttenuation!$I$17*SrcDecline!K139)),SourceInputsAttenuation!$E$17) -> 0.003995715765 | M139: 136 | N139: =IF(O$1="Decline",(M139*QsrcLitres)/SourceInputsAttenuation!$C$33,"") -> 0.003925509232 | O139: =IF(O$1="Decline",SourceInputsAttenuation!$E$18*EXP(-1*(SourceInputsAttenuation!$I$18*SrcDecline!N139)),SourceInputsAttenuation!$E$18) -> 0.3995330492 | P139: 136 | Q139: =IF(R$1="Decline",(P139*QsrcLitres)/SourceInputsAttenuation!$C$33,"") -> 0.003925509232 | R139: =IF(R$1="Decline",SourceInputsAttenuation!$E$19*EXP(-1*(SourceInputsAttenuation!$I$19*SrcDecline!Q139)),SourceInputsAttenuation!$E$19) -> 0.1997622491 | S139: 136 | T139: =IF(U$1="Decline",(S139*QsrcLitres)/SourceInputsAttenuation!$C$33,"") -> 0.003925509232 | U139: =IF(U$1="Decline",SourceInputsAttenuation!$E$20*EXP(-1*(SourceInputsAttenuation!$I$20*SrcDecline!T139)),SourceInputsAttenuation!$E$20) -> 0.0499626426
A140: 137 | B140: =IF(C$1="Decline",(A140*QsrcLitres)/(SourceInputsAttenuation!$C$33),"") -> 0.003954373271 | C140: =IF(C$1="Decline",SourceInputsAttenuation!$E$14*EXP(-1*((SourceInputsAttenuation!$I$14)*SrcDecline!B140)),SourceInputsAttenuation!$E$14) -> 0.0499849462 | D140: 137 | E140: =IF(F$1="Decline",(D140*QsrcLitres)/SourceInputsAttenuation!$C$33,"") -> 0.003954373271 | F140: =IF(F$1="Decline",SourceInputsAttenuation!$E$15*EXP(-1*(SourceInputsAttenuation!$I$15*SrcDecline!E140)),SourceInputsAttenuation!$E$15) -> 0.0009993505075 | G140: 137 | H140: =IF(I$1="Decline",(G140*QsrcLitres)/SourceInputsAttenuation!$C$33,"") -> 0.003954373271 | I140: =IF(I$1="Decline",SourceInputsAttenuation!$E$16*EXP(-1*(SourceInputsAttenuation!$I$16*SrcDecline!E140)),SourceInputsAttenuation!$E$16) -> 0.8678045518 | J140: 137 | K140: =IF(L$1="Decline",(J140*QsrcLitres)/SourceInputsAttenuation!$C$33,"") -> 0.003954373271 | L140: =IF(L$1="Decline",SourceInputsAttenuation!$E$17*EXP(-1*(SourceInputsAttenuation!$I$17*SrcDecline!K140)),SourceInputsAttenuation!$E$17) -> 0.00399568428 | M140: 137 | N140: =IF(O$1="Decline",(M140*QsrcLitres)/SourceInputsAttenuation!$C$33,"") -> 0.003954373271 | O140: =IF(O$1="Decline",SourceInputsAttenuation!$E$18*EXP(-1*(SourceInputsAttenuation!$I$18*SrcDecline!N140)),SourceInputsAttenuation!$E$18) -> 0.3995296178 | P140: 137 | Q140: =IF(R$1="Decline",(P140*QsrcLitres)/SourceInputsAttenuation!$C$33,"") -> 0.003954373271 | R140: =IF(R$1="Decline",SourceInputsAttenuation!$E$19*EXP(-1*(SourceInputsAttenuation!$I$19*SrcDecline!Q140)),SourceInputsAttenuation!$E$19) -> 0.1997605019 | S140: 137 | T140: =IF(U$1="Decline",(S140*QsrcLitres)/SourceInputsAttenuation!$C$33,"") -> 0.003954373271 | U140: =IF(U$1="Decline",SourceInputsAttenuation!$E$20*EXP(-1*(SourceInputsAttenuation!$I$20*SrcDecline!T140)),SourceInputsAttenuation!$E$20) -> 0.04996236802
A141: 138 | B141: =IF(C$1="Decline",(A141*QsrcLitres)/(SourceInputsAttenuation!$C$33),"") -> 0.003983237309 | C141: =IF(C$1="Decline",SourceInputsAttenuation!$E$14*EXP(-1*((SourceInputsAttenuation!$I$14)*SrcDecline!B141)),SourceInputsAttenuation!$E$14) -> 0.04998483633 | D141: 138 | E141: =IF(F$1="Decline",(D141*QsrcLitres)/SourceInputsAttenuation!$C$33,"") -> 0.003983237309 | F141: =IF(F$1="Decline",SourceInputsAttenuation!$E$15*EXP(-1*(SourceInputsAttenuation!$I$15*SrcDecline!E141)),SourceInputsAttenuation!$E$15) -> 0.0009993457682 | G141: 138 | H141: =IF(I$1="Decline",(G141*QsrcLitres)/SourceInputsAttenuation!$C$33,"") -> 0.003983237309 | I141: =IF(I$1="Decline",SourceInputsAttenuation!$E$16*EXP(-1*(SourceInputsAttenuation!$I$16*SrcDecline!E141)),SourceInputsAttenuation!$E$16) -> 0.8677921884 | J141: 138 | K141: =IF(L$1="Decline",(J141*QsrcLitres)/SourceInputsAttenuation!$C$33,"") -> 0.003983237309 | L141: =IF(L$1="Decline",SourceInputsAttenuation!$E$17*EXP(-1*(SourceInputsAttenuation!$I$17*SrcDecline!K141)),SourceInputsAttenuation!$E$17) -> 0.003995652796 | M141: 138 | N141: =IF(O$1="Decline",(M141*QsrcLitres)/SourceInputsAttenuation!$C$33,"") -> 0.003983237309 | O141: =IF(O$1="Decline",SourceInputsAttenuation!$E$18*EXP(-1*(SourceInputsAttenuation!$I$18*SrcDecline!N141)),SourceInputsAttenuation!$E$18) -> 0.3995261863 | P141: 138 | Q141: =IF(R$1="Decline",(P141*QsrcLitres)/SourceInputsAttenuation!$C$33,"") -> 0.003983237309 | R141: =IF(R$1="Decline",SourceInputsAttenuation!$E$19*EXP(-1*(SourceInputsAttenuation!$I$19*SrcDecline!Q141)),SourceInputsAttenuation!$E$19) -> 0.1997587548 | S141: 138 | T141: =IF(U$1="Decline",(S141*QsrcLitres)/SourceInputsAttenuation!$C$33,"") -> 0.003983237309 | U141: =IF(U$1="Decline",SourceInputsAttenuation!$E$20*EXP(-1*(SourceInputsAttenuation!$I$20*SrcDecline!T141)),SourceInputsAttenuation!$E$20) -> 0.04996209344
A142: 139 | B142: =IF(C$1="Decline",(A142*QsrcLitres)/(SourceInputsAttenuation!$C$33),"") -> 0.004012101348 | C142: =IF(C$1="Decline",SourceInputsAttenuation!$E$14*EXP(-1*((SourceInputsAttenuation!$I$14)*SrcDecline!B142)),SourceInputsAttenuation!$E$14) -> 0.04998472647 | D142: 139 | E142: =IF(F$1="Decline",(D142*QsrcLitres)/SourceInputsAttenuation!$C$33,"") -> 0.004012101348 | F142: =IF(F$1="Decline",SourceInputsAttenuation!$E$15*EXP(-1*(SourceInputsAttenuation!$I$15*SrcDecline!E142)),SourceInputsAttenuation!$E$15) -> 0.000999341029 | G142: 139 | H142: =IF(I$1="Decline",(G142*QsrcLitres)/SourceInputsAttenuation!$C$33,"") -> 0.004012101348 | I142: =IF(I$1="Decline",SourceInputsAttenuation!$E$16*EXP(-1*(SourceInputsAttenuation!$I$16*SrcDecline!E142)),SourceInputsAttenuation!$E$16) -> 0.8677798252 | J142: 139 | K142: =IF(L$1="Decline",(J142*QsrcLitres)/SourceInputsAttenuation!$C$33,"") -> 0.004012101348 | L142: =IF(L$1="Decline",SourceInputsAttenuation!$E$17*EXP(-1*(SourceInputsAttenuation!$I$17*SrcDecline!K142)),SourceInputsAttenuation!$E$17) -> 0.003995621312 | M142: 139 | N142: =IF(O$1="Decline",(M142*QsrcLitres)/SourceInputsAttenuation!$C$33,"") -> 0.004012101348 | O142: =IF(O$1="Decline",SourceInputsAttenuation!$E$18*EXP(-1*(SourceInputsAttenuation!$I$18*SrcDecline!N142)),SourceInputsAttenuation!$E$18) -> 0.399522755 | P142: 139 | Q142: =IF(R$1="Decline",(P142*QsrcLitres)/SourceInputsAttenuation!$C$33,"") -> 0.004012101348 | R142: =IF(R$1="Decline",SourceInputsAttenuation!$E$19*EXP(-1*(SourceInputsAttenuation!$I$19*SrcDecline!Q142)),SourceInputsAttenuation!$E$19) -> 0.1997570078 | S142: 139 | T142: =IF(U$1="Decline",(S142*QsrcLitres)/SourceInputsAttenuation!$C$33,"") -> 0.004012101348 | U142: =IF(U$1="Decline",SourceInputsAttenuation!$E$20*EXP(-1*(SourceInputsAttenuation!$I$20*SrcDecline!T142)),SourceInputsAttenuation!$E$20) -> 0.04996181886
A143: 140 | B143: =IF(C$1="Decline",(A143*QsrcLitres)/(SourceInputsAttenuation!$C$33),"") -> 0.004040965386 | C143: =IF(C$1="Decline",SourceInputsAttenuation!$E$14*EXP(-1*((SourceInputsAttenuation!$I$14)*SrcDecline!B143)),SourceInputsAttenuation!$E$14) -> 0.0499846166 | D143: 140 | E143: =IF(F$1="Decline",(D143*QsrcLitres)/SourceInputsAttenuation!$C$33,"") -> 0.004040965386 | F143: =IF(F$1="Decline",SourceInputsAttenuation!$E$15*EXP(-1*(SourceInputsAttenuation!$I$15*SrcDecline!E143)),SourceInputsAttenuation!$E$15) -> 0.0009993362897 | G143: 140 | H143: =IF(I$1="Decline",(G143*QsrcLitres)/SourceInputsAttenuation!$C$33,"") -> 0.004040965386 | I143: =IF(I$1="Decline",SourceInputsAttenuation!$E$16*EXP(-1*(SourceInputsAttenuation!$I$16*SrcDecline!E143)),SourceInputsAttenuation!$E$16) -> 0.8677674622 | J143: 140 | K143: =IF(L$1="Decline",(J143*QsrcLitres)/SourceInputsAttenuation!$C$33,"") -> 0.004040965386 | L143: =IF(L$1="Decline",SourceInputsAttenuation!$E$17*EXP(-1*(SourceInputsAttenuation!$I$17*SrcDecline!K143)),SourceInputsAttenuation!$E$17) -> 0.003995589828 | M143: 140 | N143: =IF(O$1="Decline",(M143*QsrcLitres)/SourceInputsAttenuation!$C$33,"") -> 0.004040965386 | O143: =IF(O$1="Decline",SourceInputsAttenuation!$E$18*EXP(-1*(SourceInputsAttenuation!$I$18*SrcDecline!N143)),SourceInputsAttenuation!$E$18) -> 0.3995193236 | P143: 140 | Q143: =IF(R$1="Decline",(P143*QsrcLitres)/SourceInputsAttenuation!$C$33,"") -> 0.004040965386 | R143: =IF(R$1="Decline",SourceInputsAttenuation!$E$19*EXP(-1*(SourceInputsAttenuation!$I$19*SrcDecline!Q143)),SourceInputsAttenuation!$E$19) -> 0.1997552607 | S143: 140 | T143: =IF(U$1="Decline",(S143*QsrcLitres)/SourceInputsAttenuation!$C$33,"") -> 0.004040965386 | U143: =IF(U$1="Decline",SourceInputsAttenuation!$E$20*EXP(-1*(SourceInputsAttenuation!$I$20*SrcDecline!T143)),SourceInputsAttenuation!$E$20) -> 0.04996154428
A144: 141 | B144: =IF(C$1="Decline",(A144*QsrcLitres)/(SourceInputsAttenuation!$C$33),"") -> 0.004069829425 | C144: =IF(C$1="Decline",SourceInputsAttenuation!$E$14*EXP(-1*((SourceInputsAttenuation!$I$14)*SrcDecline!B144)),SourceInputsAttenuation!$E$14) -> 0.04998450674 | D144: 141 | E144: =IF(F$1="Decline",(D144*QsrcLitres)/SourceInputsAttenuation!$C$33,"") -> 0.004069829425 | F144: =IF(F$1="Decline",SourceInputsAttenuation!$E$15*EXP(-1*(SourceInputsAttenuation!$I$15*SrcDecline!E144)),SourceInputsAttenuation!$E$15) -> 0.0009993315505 | G144: 141 | H144: =IF(I$1="Decline",(G144*QsrcLitres)/SourceInputsAttenuation!$C$33,"") -> 0.004069829425 | I144: =IF(I$1="Decline",SourceInputsAttenuation!$E$16*EXP(-1*(SourceInputsAttenuation!$I$16*SrcDecline!E144)),SourceInputsAttenuation!$E$16) -> 0.8677550994 | J144: 141 | K144: =IF(L$1="Decline",(J144*QsrcLitres)/SourceInputsAttenuation!$C$33,"") -> 0.004069829425 | L144: =IF(L$1="Decline",SourceInputsAttenuation!$E$17*EXP(-1*(SourceInputsAttenuation!$I$17*SrcDecline!K144)),SourceInputsAttenuation!$E$17) -> 0.003995558344 | M144: 141 | N144: =IF(O$1="Decline",(M144*QsrcLitres)/SourceInputsAttenuation!$C$33,"") -> 0.004069829425 | O144: =IF(O$1="Decline",SourceInputsAttenuation!$E$18*EXP(-1*(SourceInputsAttenuation!$I$18*SrcDecline!N144)),SourceInputsAttenuation!$E$18) -> 0.3995158923 | P144: 141 | Q144: =IF(R$1="Decline",(P144*QsrcLitres)/SourceInputsAttenuation!$C$33,"") -> 0.004069829425 | R144: =IF(R$1="Decline",SourceInputsAttenuation!$E$19*EXP(-1*(SourceInputsAttenuation!$I$19*SrcDecline!Q144)),SourceInputsAttenuation!$E$19) -> 0.1997535136 | S144: 141 | T144: =IF(U$1="Decline",(S144*QsrcLitres)/SourceInputsAttenuation!$C$33,"") -> 0.004069829425 | U144: =IF(U$1="Decline",SourceInputsAttenuation!$E$20*EXP(-1*(SourceInputsAttenuation!$I$20*SrcDecline!T144)),SourceInputsAttenuation!$E$20) -> 0.0499612697
A145: 142 | B145: =IF(C$1="Decline",(A145*QsrcLitres)/(SourceInputsAttenuation!$C$33),"") -> 0.004098693463 | C145: =IF(C$1="Decline",SourceInputsAttenuation!$E$14*EXP(-1*((SourceInputsAttenuation!$I$14)*SrcDecline!B145)),SourceInputsAttenuation!$E$14) -> 0.04998439687 | D145: 142 | E145: =IF(F$1="Decline",(D145*QsrcLitres)/SourceInputsAttenuation!$C$33,"") -> 0.004098693463 | F145: =IF(F$1="Decline",SourceInputsAttenuation!$E$15*EXP(-1*(SourceInputsAttenuation!$I$15*SrcDecline!E145)),SourceInputsAttenuation!$E$15) -> 0.0009993268114 | G145: 142 | H145: =IF(I$1="Decline",(G145*QsrcLitres)/SourceInputsAttenuation!$C$33,"") -> 0.004098693463 | I145: =IF(I$1="Decline",SourceInputsAttenuation!$E$16*EXP(-1*(SourceInputsAttenuation!$I$16*SrcDecline!E145)),SourceInputsAttenuation!$E$16) -> 0.8677427367 | J145: 142 | K145: =IF(L$1="Decline",(J145*QsrcLitres)/SourceInputsAttenuation!$C$33,"") -> 0.004098693463 | L145: =IF(L$1="Decline",SourceInputsAttenuation!$E$17*EXP(-1*(SourceInputsAttenuation!$I$17*SrcDecline!K145)),SourceInputsAttenuation!$E$17) -> 0.00399552686 | M145: 142 | N145: =IF(O$1="Decline",(M145*QsrcLitres)/SourceInputsAttenuation!$C$33,"") -> 0.004098693463 | O145: =IF(O$1="Decline",SourceInputsAttenuation!$E$18*EXP(-1*(SourceInputsAttenuation!$I$18*SrcDecline!N145)),SourceInputsAttenuation!$E$18) -> 0.399512461 | P145: 142 | Q145: =IF(R$1="Decline",(P145*QsrcLitres)/SourceInputsAttenuation!$C$33,"") -> 0.004098693463 | R145: =IF(R$1="Decline",SourceInputsAttenuation!$E$19*EXP(-1*(SourceInputsAttenuation!$I$19*SrcDecline!Q145)),SourceInputsAttenuation!$E$19) -> 0.1997517666 | S145: 142 | T145: =IF(U$1="Decline",(S145*QsrcLitres)/SourceInputsAttenuation!$C$33,"") -> 0.004098693463 | U145: =IF(U$1="Decline",SourceInputsAttenuation!$E$20*EXP(-1*(SourceInputsAttenuation!$I$20*SrcDecline!T145)),SourceInputsAttenuation!$E$20) -> 0.04996099512
A146: 143 | B146: =IF(C$1="Decline",(A146*QsrcLitres)/(SourceInputsAttenuation!$C$33),"") -> 0.004127557502 | C146: =IF(C$1="Decline",SourceInputsAttenuation!$E$14*EXP(-1*((SourceInputsAttenuation!$I$14)*SrcDecline!B146)),SourceInputsAttenuation!$E$14) -> 0.04998428701 | D146: 143 | E146: =IF(F$1="Decline",(D146*QsrcLitres)/SourceInputsAttenuation!$C$33,"") -> 0.004127557502 | F146: =IF(F$1="Decline",SourceInputsAttenuation!$E$15*EXP(-1*(SourceInputsAttenuation!$I$15*SrcDecline!E146)),SourceInputsAttenuation!$E$15) -> 0.0009993220722 | G146: 143 | H146: =IF(I$1="Decline",(G146*QsrcLitres)/SourceInputsAttenuation!$C$33,"") -> 0.004127557502 | I146: =IF(I$1="Decline",SourceInputsAttenuation!$E$16*EXP(-1*(SourceInputsAttenuation!$I$16*SrcDecline!E146)),SourceInputsAttenuation!$E$16) -> 0.8677303742 | J146: 143 | K146: =IF(L$1="Decline",(J146*QsrcLitres)/SourceInputsAttenuation!$C$33,"") -> 0.004127557502 | L146: =IF(L$1="Decline",SourceInputsAttenuation!$E$17*EXP(-1*(SourceInputsAttenuation!$I$17*SrcDecline!K146)),SourceInputsAttenuation!$E$17) -> 0.003995495377 | M146: 143 | N146: =IF(O$1="Decline",(M146*QsrcLitres)/SourceInputsAttenuation!$C$33,"") -> 0.004127557502 | O146: =IF(O$1="Decline",SourceInputsAttenuation!$E$18*EXP(-1*(SourceInputsAttenuation!$I$18*SrcDecline!N146)),SourceInputsAttenuation!$E$18) -> 0.3995090297 | P146: 143 | Q146: =IF(R$1="Decline",(P146*QsrcLitres)/SourceInputsAttenuation!$C$33,"") -> 0.004127557502 | R146: =IF(R$1="Decline",SourceInputsAttenuation!$E$19*EXP(-1*(SourceInputsAttenuation!$I$19*SrcDecline!Q146)),SourceInputsAttenuation!$E$19) -> 0.1997500195 | S146: 143 | T146: =IF(U$1="Decline",(S146*QsrcLitres)/SourceInputsAttenuation!$C$33,"") -> 0.004127557502 | U146: =IF(U$1="Decline",SourceInputsAttenuation!$E$20*EXP(-1*(SourceInputsAttenuation!$I$20*SrcDecline!T146)),SourceInputsAttenuation!$E$20) -> 0.04996072055
